Workbook

Sheet Menú Principal
D2: MAPA INTEGRAL DE RIESGOS | E2: Código: GI-MG-001-FR-014
D3: Macroproceso: Direccionamiento Estratégico | E3: Versión: 02
D4: Proceso: Gestión Integrada | E4: Fecha de Aprobación: 17/11/2017
D7: Identifique el eje a evaluar:

Sheet Procesos Calidad
C2: MAPA INTEGRAL DE RIESGOS | I2: Código: GI-MG-001-FR-014
C3: Macroproceso: Direccionamiento Estratégico | I3: Versión: 02
C4: Proceso: Gestión Integrada | I4: Fecha de Aprobación: 17/11/2017
C7: Eje de Calidad: Por favor seleccione el Proceso de su interés

Sheet Datos (hidden)
A2: Para Todos | B2: PROCESO | C2: OBJETIVO | E2: SEDE
B3: Todos los Procesos | C3: N/A | E3: Todas las Sedes
B4: Planeación Estratégica e Institucional | C4: Formular y Definir políticas institucionales mediante estrategias, programas y proyectos con el fin de dar cumplimiento a la misión, visión y objetivos institucionales. | E4: Sede Administrativa
B5: Gestión Integrada | C5: Gestionar el mejoramiento continuo de los subsistemas a través de un análisis sinérgico y permanente que contribuya al cumplimiento de los objetivos institucionales | E5: Facultad Ingeniería
B6: Autoevaluación y Acreditación | C6: Realizar de manera sistemática y permanente un análisis valorativo y autónomo que permita verificar el grado de cumplimiento de los objetivos institucionales. | E6: Facultad Ciencias y Educación - Macarena A
B7: Interinstitucionalización e Internacionalización | C7: Consolidar la Interinstitucionalización e Internacionalización de la Universidad Distrital Francisco José de Caldas mediante un conjunto de acciones para el direccionamiento estratégico con variables académicas, administrativas y tecnológicas para facilitar la inmersión y participación activa de la institución en la sociedad del conocimiento en el ámbito local, nacional e internacional. | E7: Facultad Ciencias y Educación - Macarena B
B8: Comunicaciones | C8: Coordinar, las actividades de comunicación institucional interna y externa con el objeto de garantizar el conocimiento de la universidad a las partes interesadas y generar sentido de pertenencia con la institución. | E8: Facultad de Medio Ambiente y Recursos Naturales - Vivero
B9: Gestión de Docencia | C9: Garantizar que los planes de estudio establecidos para cada proyecto curricular, ofrezcan al estudiante de la UDFJC una formación integral y de calidad, dirigida fundamentalmente a las necesidades de la sociedad, contando con la cantidad e idoneidad de docentes y demás personal que influya directamente en tal proceso de formación, garantizando que se ejecute eficientemente el proceso de enseñanza. | E9: Facultad Tecnológica
B10: Gestión de Investigación | C10: Fomentar y desarrollar la Gestión Investigativa de alto impacto, a través de la formulación de estrategias, programas y proyectos, a fin de aportar a la consecución de los objetivos y cumplimiento de las funciones institucionales y a los fines esenciales del estado. | E10: Facultad de Artes ASAB
B11: Extensión y Proyección Social | C11: Promover la Vinculación de la Universidad Distrital Francisco José de Caldas con su Entorno social, a través de la coordinación de los programas, planes y proyectos de Extensión y Proyección Social, en articulación a la Docencia y la Investigación. | E11: Facultad de Artes ASAB - Sótanos Jimenez
B12: Admisiones, Registro y Control | C12: Garantizar que la Inscripción, Selección, Ingresos, Reingresos, Transferencias, Registro y Control de la Historia Académica de los estudiantes y egresados de la Universidad, que se lleva a cabo en los Proyectos Curriculares, se realicen bajos preceptos de Equidad y Transparencia. | E12: Academia Luis A. Calvo - ALAC
B13: Bienestar Institucional | C13: Ofrecer servicios de Bienestar Universitario mediante la ejecución de programas que permitan el mejoramiento de la calidad de vida y el desarrollo integral de la comunidad Universitaria. | E13: Posgrados de Ciencias y Educación
B14: Gestión de la Información Bibliográfica | C14: Gestionar y proveer el acceso a fuentes de información académicas, investigativas y culturales de la comunidad universitaria, a través de recursos y servicios de información oportunos con el fin de apoyar la docencia, investigación y extensión de la comunidad universitaria y fortalecer los procesos misionales de la Universidad Distrital Francisco José de Caldas. | E14: Sede Deportiva Calle 34
B15: Gestión de Laboratorios | C15: Desarrollar las actividades de soporte necesarias para llevar a cabo la Gestión de Laboratorios de la Universidad Distrital Francisco Jose de Caldas mediante el cumplimiento de los lineamientos y políticas institucionales establecidas, brindando así apoyo a las labores misionales. | E15: Emisora LAUD 90.4
B16: Servicio al Ciudadano | C16: Recibir, radicar y tramitar las acciones ciudadanas (petición, queja, reclamo, derecho de petición, denuncia, sugerencia, solicitud de información o consulta) que la ciudadanía formule en el ejercicio del control social, relacionadas con el cumplimiento de la misión de la entidad, los servicios y el funcionamiento de la Universidad, siempre propendiendo garantizar la respuesta oportuna a la ciudadanía. | E16: ILUD - Calle 54
B17: Gestión de los Sistemas de Información y las Telecomunicaciones | C17: Gestionar los sistemas de informacion y las telecomunicaciones para asegurar el acceso, disponibilidad, confiabilidad, confidencialidad de los activos de información a través de la infraestructura y las soluciones Informaticas en el marco de la normatividad vigente aplicable, como apoyo a los procesos misionales de la Universidad. | E17: ILUD - San Luis
B18: Gestión y Desarrollo del Talento Humano | C18: Promover Servidores Públicos altamente calificados y comprometidos con la organización creando condiciones para su bienestar, seguridad e integralidad, a través del diseño e implementación de políticas, estrategias, planes, programas y proyectos, encaminados a la consecución de los objetivos y cumplimiento de las funciones institucionales. | E18: ILUD - UGI
B19: Gestión Documental | C19: Garantizar la correcta planeación, manejo, control, organización y funcionamiento de la gestión documental y la administración de las diferentes unidades documentales de la Universidad Distrital, de forma logíca de acuerdo con la naturaleza y fines de la Universidad, cumpliendo con los estándares para el tratamiento de los documentos y la legislación vigente, para proteger el patrimonio documental, preservar los archivos en las mejores condiciones de acceso y seguridad, y asegurar la disponibilidad a la academia, la comunidad en general y del mejoramiento institucional. | E19: ILUD - Calle 23
B20: Gestión de Infraestructura Física | C20: Garantizar a través de su gestión los servicios relacionados con administración de bienes, infraestructura, planta física, mantenimiento, compras,iinventarios, aseo y seguridad, requeridos para el óptimo desarrollo de las actividades académico-administrativas de la Universidad Distrital Francisco José de Caldas. | E20: Aduanilla de Paiba
B21: Gestión de Recursos Financieros | C21: Administrar, gestionar, registrar y controlar los recursos financieros en la Universidad Distrital Francisco José Caldas, cumpliendo con el marco, constitucional, legal y normativo viegente; garantizando la transparencia y sostenibilidad financiera de acuerdo a los lineamientos establecidos en el contexto estratégico y misional de la institución. | E21: Sede PORVENIR
B22: Gestión Contractual | C22: Gestionar de manera transparente y eficáz los recursos para la contratación de los bienes y/o servicios a través de los diferentes mecanismos de contratación necesarios para el cumplimiento de la misión y visión de la Universidad Distrital Francisco José de Caldas de acuerdo a los estándares y normatividad vigente. | E22: Sede IDEXUD
B23: Gestión Jurídica | C23: Ejecutar y desarrollar políticas, planes, programas y proyectos de carácter jurídico, armonizando los actos administrativos emanados por la Universidad con las leyes y la jurisprudencia vigente, llevando a cabo la representación legal, la defensa judicial, la asesoría en temas jurídicos y el apoyo a la gestión contractual, de la Universidad Distrital Francisco José de Caldas. | E23: Sede B "Thomas Jefferson"
B24: Evaluación y Control | C24: Medir y evaluar la eficiencia, eficacia y economía de los procesos de la Universidad Distrital Francisco José de Caldas, asesorando a la Alta Dirección en el mejoramiento continuo del proceso administrativo, para la evaluación de los planes establecidos y de los correctivos que sean necesarios para el cumplimiento de las metas y objetivos institucionales, basados en las diferentes funciones en las que se enmarca el rol de la Oficina de Control Interno, como son la valoración de riesgos, acompañamiento y asesoría, evaluación y seguimiento, fomento a la cultura de control y relación con entes externos. | E24: Sede Calle 42 No. 8A-80
B25: Control Disciplinario | C25: Atender y solucionar de manera imparcial los casos que presenten los funcionarios autorizados en la Universidad, referentes a conductas disciplinarias de funcionarios públicos. | E25: Sede Sección Publicaciones y Unidad de Extensión Facultad de Ciencias
B27: XXX
B28: XXX
B29: XXX
B30: XXX
B31: XXX
B32: XXX
B33: XXX
B34: XXX
B35: XXX
B36: XXX
B37: XXX
B38: XXX
B39: XXX
B40: XXX
B41: XXX
B42: XXX
B43: XXX
B44: XXX
B45: XXX
B46: XXX
B47: XXX
B48: XXX
B49: XXX
A51: Subsistema de Gestión de Calidad (SGC) | B51: CLASIFICACIÓN
B52: Interno
B53: Externo
B55: TIPO DE RIESGO
B56: Estratégico
B57: Imagen
B58: Operativos
B59: Financieros
B60: De cumplimiento
B61: De tecnología
B62: De corrupción
B64: PROBABILIDAD
B65: Raro - 1 | D65: BAJO - TRIVIAL 1 | E65: BAJO - ACEPTABLE 2 | F65: MODERADO 3 | G65: ALTA-IMPORTANTE 4 | H65: ALTA-IMPORTANTE 5
B66: Improbable - 2 | D66: BAJO - TRIVIAL 2 | E66: BAJO - ACEPTABLE 4 | F66: MODERADO 6 | G66: ALTA-IMPORTANTE 8 | H66: CATASTRÓFICO – INACEPTABLE 10
B67: Posible - 3 | D67: BAJO - TRIVIAL 3 | E67: MODERADO 6 | F67: ALTA - IMPORTANTE 9 | G67: CATASTRÓFICO – INACEPTABLE 12 | H67: CATASTRÓFICO – INACEPTABLE 15
B68: Probable - 4 | D68: MODERADO 4 | E68: ALTA - IMPORTANTE 8 | F68: ALTA - IMPORTANTE 12 | G68: CATASTRÓFICO – INACEPTABLE 16 | H68: CATASTRÓFICO – INACEPTABLE 20
B69: Seguro - 5 | D69: ALTA - IMPORTANTE 5 | E69: ALTA - IMPORTANTE 10 | F69: CATASTRÓFICO – INACEPTABLE 15 | G69: CATASTRÓFICO – INACEPTABLE 20 | H69: CATASTRÓFICO – INACEPTABLE 25
B71: IMPACTO
B72: Insignificante - 1
B73: Menor - 2
B74: Moderado - 3
B75: Mayor - 4
B76: Catastrófico - 5
B78: TIPO DE CONTROL | D78: CONTROL AUTOMÁTICO O MANUAL
B79: Correctivo | D79: Automático
B80: Preventivo | D80: Manual
B82: NIVEL
B83: Nulo - 0
B84: Bajo - 5
B85: Medio Bajo - 10
B86: Medio - 15
B87: Medio Alto - 20
B88: Alto - 25
B90: MANEJO DEL RIESGO
B91: Evitar (EV)
B92: Reducir (RE)
B93: Transferir (TR)
B94: Asumir (AS)
A96: Subsistema de Gestión Ambiental (SGA) | B96: FACTOR DE RIESGO | O96: ACTIVIDADES
B97: Incendio | O97: Manipulación de reactivos químicos (prácticas de laboratorio)
B98: Explosión | O98: Operación de sub estación eléctrica
O99: Mantenimiento de sub estación eléctrica
O100: Operación de equipos eléctricos y electrónicos (laboratorios)
B101: PROBABILIDAD | O101: Operación del circuito eléctrico
B102: Muy probable - 5 | O102: Protestas estudiantiles
B103: Altamente probable - 4 | O103: Operación de estufa de gas propano
B104: Probable - 3 | O104: Manipulación de Hornos para cerámica
B105: Posible - 2 | O105: Manipulación de pipetas de gas propano
B106: Poco probable - 1 | O106: Mantenimiento de aire acondicionado
O107: Operación de aire acondicionado
B108: CANTIDAD | O108: Mantenimiento de equipos (derrames accidentales)
B109: Muy Alta - 4 | O109: Centro de acopio para almacenamiento de residuos
B110: Alta - 3 | O110: Operación de la planta eléctrica
B111: Muy Poca - 2 | O111: Almacenamiento de reactivos químicos
B112: Poca - 1 | O112: Manipulación de estufas (apoyo alimentario)
O113: Manipulación y mezcla de reactivos químicos
B114: PELIGROSIDAD | O114: Operación de tanque de gas.
B115: Muy peligrosa - 4 | O115: Almacenamiento de maderas
B116: Peligrosa - 3 | O116: Otras
B117: Poco peligrosa - 2
B118: No peligrosa - 1
B120: EXTENSIÓN | D120: CALIDAD DEL MEDIO | E120: PATRIMONIO Y CAPITAL PRODUCTIVO
B121: Muy extenso - 4 | D121: Muy elevada - 4 | E121: Muy Alto - 4
B122: Extenso - 3 | D122: Elevada - 3 | E122: Alto - 3
B123: Poco extenso (Emplazamiento) - 2 | D123: Media - 2 | E123: Bajo - 2
B124: Puntual (Área afectada) - 1 | D124: Baja - 1 | E124: Muy Bajo - 1
B126: POBLACIÓN AFECTADA | D126: RIESGO LEVE 3 | E126: RIESGO LEVE 4 | F126: RIESGO LEVE 5 | G126: RIESGO LEVE 6 | H126: RIESGO LEVE 7 | I126: RIESGO LEVE 8 | J126: RIESGO LEVE 9 | K126: RIESGO LEVE 10 | L126: RIESGO LEVE 11 | M126: RIESGO LEVE 12
B127: Muy alto - 4 | D127: RIESGO LEVE 6 | E127: RIESGO LEVE 8 | F127: RIESGO LEVE 10 | G127: RIESGO LEVE 12 | H127: RIESGO LEVE 14 | I127: RIESGO LEVE 16 | J127: RIESGO LEVE 18 | K127: RIESGO LEVE 20 | L127: RIESGO MODERADO 22 | M127: RIESGO MODERADO 24
B128: Alto - 3 | D128: RIESGO LEVE 9 | E128: RIESGO LEVE 12 | F128: RIESGO LEVE 15 | G128: RIESGO LEVE 18 | H128: RIESGO MODERADO 21 | I128: RIESGO MODERADO 24 | J128: RIESGO MODERADO 27 | K128: RIESGO MODERADO 30 | L128: RIESGO MODERADO 33 | M128: RIESGO MODERADO 36
B129: Bajo - 2 | D129: RIESGO LEVE 12 | E129: RIESGO LEVE 16 | F129: RIESGO LEVE 20 | G129: RIESGO MODERADO 24 | H129: RIESGO MODERADO 28 | I129: RIESGO MODERADO 32 | J129: RIESGO MODERADO 36 | K129: RIESGO MODERADO 40 | L129: RIESGO SIGNIFICATIVO 44 | M129: RIESGO SIGNIFICATIVO 48
B130: Muy bajo - 1 | D130: RIESGO LEVE 15 | E130: RIESGO LEVE 20 | F130: RIESGO MODERADO 25 | G130: RIESGO MODERADO 30 | H130: RIESGO MODERADO 35 | I130: RIESGO MODERADO 40 | J130: RIESGO SIGNIFICATIVO 45 | K130: RIESGO SIGNIFICATIVO 50 | L130: RIESGO SIGNIFICATIVO 55 | M130: RIESGO SIGNIFICATIVO 60
A132: Subsistema de Gestión de Seguridad y Salud en el Trabajo (SGSST) | B132: ¿ES RUTINARIO?
B133: Sí
B134: No
B136: CLASIFICACIÓN | D136: BIOLÓGICO | E136: FÍSICO | F136: QUÍMICO | G136: PSICOSOCIAL | H136: BIOMECÁNICOS | I136: CONDICIONES DE SEGURIDAD | J136: FENÓMENOS NATURALES | K136: FACTORES HUMANOS
B137: Biológico | D137: Virus | E137: Ruido de impacto | F137: Polvos orgánicos | G137: Gestión organizacional estilo de mando, | H137: Postura prolongada | I137: Mecánico elementos o partes de máquinas | J137: Sismo | K137: No usar protecciones
B138: Físico | D138: Bacterias | E138: Ruido intermitente | F138: Polvos inorgánicos | G138: Gestión organizacional pago | H138: Postura mantenida | I138: Mecánico herramientas, Mecánico equipos | J138: Terremoto | K138: No usar o usar incorrectamente los EPP
B139: Químico | D139: Hongos | E139: Ruido continuo | F139: Fibras | G139: Gestión organizacional contratación | H139: Postura forzada | I139: Mecánico piezas a trabajar | J139: Vendaval | K139: Conducir a velocidades inapropiadas
B140: Psicosocial | D140: Ricketsias | E140: Exceso de Iluminación | F140: Líquidos nieblas | G140: Gestión organizacional participación | H140: Postura antigravitacional | I140: Mecánico materiales proyectados sólidos | J140: Inundación | K140: Usar equipos o herramientas defectuosas
B141: Biomecánicos | D141: Parásitos | E141: Deficiencia de Iluminación | F141: Líquidos rocios | G141: Gestión organizacional inducción y capacitación, | H141: Esfuerzo | I141: Mecánico materiales proyectados sólidos fluidos | J141: Derrumbe | K141: Levantar, cargas o transportar de forma incorrecta
B142: Condiciones_de_Seguridad | D142: Picaduras | E142: Vibración cuerpo entero | F142: Gases y vapores | G142: Gestión organizacional bienestar social | H142: Movimiento repetitivo | I142: Eléctrico alta tensión | J142: Precipitaciones (lluvias, granizadas, heladas) | K142: Almacenar de forma incorrecta
B143: Fenómenos_Naturales | D143: Mordeduras | E143: Vibración segmentaria | F143: Humos metálicos | G143: Gestión organizacional evaluación del desempeño | H143: Manipulación manual de cargas | I143: Eléctrico baja tensión | K143: Trabajo de la influencia del alcohol o sustancias alucinógenas, fumar dentro de las instalaciones
B144: Factores_Humanos | D144: Fluidos o excrementos | E144: Temperaturas extremo calor | F144: Humos no metálicos | G144: Gestión organizacional manejo de cambios | I144: Eléctrico estática | K144: Bromear, jugar, distraer, deficiencias en la disciplina
E145: Temperaturas extremo frío | F145: Material particulado | G145: Características de la organización del trabajo (comunicación, tecnología, organización del trabajo, demandas cualitativas y cuantitativas de la labor | I145: Locativo sistemas y medios de almacenamiento | K145: Comportamientos inseguros
E146: Radicaciones ionizantes rayos X, | G146: Características del grupo social de trabajo relaciones | I146: Locativo superficies de trabajo irregulares, Locativo superficies de trabajo deslizantes | K146: Incumplimiento de normas y procedimientos, Exceso de confianza
E147: Radicaciones ionizantes rayos gama | G147: Características del grupo social de trabajo cohesión | I147: Locativo superficies de trabajo con diferencias de nivel | K147: No reporte de actos y condiciones inseguras
E148: Radicaciones ionizantes rayos beta | G148: Características del grupo social de trabajo calidad de interacciones | I148: Locativo condiciones de orden y aseo | K148: Agresividad de los trabajadores
E149: Radicaciones ionizantes rayos alfa | G149: Características del grupo social de trabajo trabajo en equipo | I149: Locativo caída de objetos | K149: Falta de capacidad física y o mental de una persona o para realizar adecuadamente cierta actividad, función o servicio
E150: Radicaciones no ionizantes laser | G150: Condiciones de la tarea carga mental | I150: Tecnológico explosión, Tecnológico fuga
E151: Radicaciones no ionizantes ultravioleta | G151: Condiciones de la tarea contenido de la tarea | I151: Tecnológico derrame, Tecnológico incendio
E152: Radicaciones no ionizantes infrarroja | G152: Condiciones de la tarea demandas emocionales | I152: Accidentes de tránsito
E153: Radicaciones no ionizantes radiofrecuencia | G153: Condiciones de la tarea sistema de control | I153: Públicos robos, atracos, asaltos,
E154: Radicaciones no ionizantes microondas | G154: Condiciones de la tarea definición de roles | I154: Públicos atentados
B155: N.D | G155: Condiciones de la tarea monotonía | I155: Públicos de orden público
B156: Muy Alto (MA) - 10 | G156: Interfase persona-tarea conocimientos, | I156: Trabajo en alturas
B157: Alto (A) - 6 | G157: Interfase persona-tarea habilidades en relación con la demanda de la tarea | I157: Espacios confinados
B158: Medio (M) - 2 | G158: Interfase persona-tarea iniciativa
B159: Bajo (B) - No se Asigna Valor | G159: Interfase persona-tarea autonomía y reconocimiento
G160: Interfase persona-tarea identificación de la persona con la tarea y la organización
B161: N.E | G161: Jornadas de trabajo pausas
B162: Continua (EC) - 4 | G162: Jornadas de trabajo trabajo nocturno
B163: Frecuente (EF) - 3 | G163: Jornadas de trabajo rotación
B164: Ocasional (EO) - 2 | G164: Jornadas de trabajo horas extras
B165: Esporádica (EE) - 1 | G165: Jornadas de trabajo descansos
B167: N.P (N.DxN.E) | D167: MUY ALTO (MA) - 40 | E167: MUY ALTO (MA) - 30 | F167: ALTO (A) - 20 | G167: ALTO (A) - 10
D168: MUY ALTO (MA) - 24 | E168: ALTO (A) - 18 | F168: ALTO (A) - 12 | G168: MEDIO (M) - 6
D169: MEDIO (M) - 8 | E169: MEDIO (M) - 6 | F169: BAJO (B) - 4 | G169: BAJO (B) - 2
B170: N.C
B171: Mortal o Catastrófico (M) - 100
B172: Muy Grave (MG) - 60
B173: Grave (G) - 25
B174: Leve (L) - 10
B176: N.R (N.PxN.C) | D176: NIVEL DE RIESGO 1 (4000 - 2400) | E176: NIVEL DE RIESGO 1 (2000 - 1200) | F176: NIVEL DE RIESGO 1 (800 - 600) | G176: NIVEL DE RIESGO 2 (400 - 200)
D178: NIVEL DE RIESGO 1 (2400- 1440) | E178: NIVEL DE RIESGO 1 (1200 - 600) | F178: NIVEL DE RIESGO 2 (480 - 360) | G178: NIVEL DE RIESGO 2 (200)
G179: NIVEL DE RIESGO 3 (120)
D180: NIVEL DE RIESGO 1 (1000 - 600) | E180: NIVEL DE RIESGO 2 (500 - 250) | F180: NIVEL DE RIESGO 2 (200 - 150) | G180: NIVEL DE RIESGO 3 (100 - 50)
D182: NIVEL DE RIESGO 2 (400-240) | E182: NIVEL DE RIESGO 2 (200) | F182: NIVEL DE RIESGO 3 (80 - 60) | G182: NIVEL DE RIESGO 3 (40)
E183: NIVEL DE RIESGO 3 (100) | G183: NIVEL DE RIESGO 4 (20)
A185: Subsistema de Seguridad de la Información (SGSI) | B185: PROBABILIDAD
B186: Raro - 1 | D186: BAJO - TRIVIAL 1 | E186: BAJO - ACEPTABLE 2 | F186: MODERADO 3 | G186: ALTA-IMPORTANTE 4 | H186: ALTA-IMPORTANTE 5
B187: Improbable - 2 | D187: BAJO - TRIVIAL 2 | E187: BAJO - ACEPTABLE 4 | F187: MODERADO 6 | G187: ALTA-IMPORTANTE 8 | H187: CATASTRÓFICO – INACEPTABLE 10
B188: Posible - 3 | D188: BAJO - TRIVIAL 3 | E188: MODERADO 6 | F188: ALTA - IMPORTANTE 9 | G188: CATASTRÓFICO – INACEPTABLE 12 | H188: CATASTRÓFICO – INACEPTABLE 15
B189: Probable - 4 | D189: MODERADO 4 | E189: ALTA - IMPORTANTE 8 | F189: ALTA - IMPORTANTE 12 | G189: CATASTRÓFICO – INACEPTABLE 16 | H189: CATASTRÓFICO – INACEPTABLE 20
B190: Seguro - 5 | D190: ALTA - IMPORTANTE 5 | E190: ALTA - IMPORTANTE 10 | F190: CATASTRÓFICO – INACEPTABLE 15 | G190: CATASTRÓFICO – INACEPTABLE 20 | H190: CATASTRÓFICO – INACEPTABLE 25
B192: IMPACTO
B193: Insignificante - 1
B194: Menor - 2
B195: Moderado - 3
B196: Mayor - 4
B197: Catastrófico - 5
B199: TIPO DE CONTROL
B200: Correctivo
B201: Preventivo
B203: NIVEL
B204: Nulo - 0
B205: Bajo - 5
B206: Medio Bajo - 10
B207: Medio - 15
B208: Medio Alto - 20
B209: Alto - 25
A211: Riesgos de Corrupción | B211: PROBABILIDAD
B212: Rara vez - 1 | D212: MODERADA 25 | E212: ALTA 50 | F212: EXTREMA 100
B213: Improbable - 2 | D213: MODERADA 20 | E213: ALTA 40 | F213: EXTREMA 80
B214: Posible - 3 | D214: MODERADA 15 | E214: ALTA 30 | F214: EXTREMA 60
B215: Probable - 4 | D215: BAJA 10 | E215: MODERADA 20 | F215: ALTA 40
B216: Casi seguro - 5 | D216: BAJA 5 | E216: BAJA 10 | F216: MODERADA 20
B218: IMPACTO
B219: Moderado - 5
B220: Mayor - 10
B221: Catastrófico - 20
B223: TIPO DE CONTROL
B224: Preventivo
B225: Detectivo
... 33 more rows

Sheet Procesos corrupción
C2: MAPA INTEGRAL DE RIESGOS | I2: Código: GI-MG-001-FR-014
C3: Macroproceso: Direccionamiento Estratégico | I3: Versión: 02
C4: Proceso: Gestión Integrada | I4: Fecha de Aprobación: 17/11/2017
C6: Eje de Corrupción: Por favor seleccione el Proceso de su interés

Sheet GRF-C
C2: MAPA INTEGRAL DE RIESGOS | E2: Código: GI-MG-001-FR-014
C3: Macroproceso: Direccionamiento Estratégico | E3: Versión: 02
C4: Proceso: Gestión Integrada | E4: Fecha de Aprobación: 17/11/2017
C6: Riesgos de Corrupción
B8: PROCESO | D8: OBJETIVO DEL PROCESO | E8: CONTEXTO ESTRATÉGICO | G8: RIESGO | H8: DEFINICIÓN | I8: CONSECUENCIAS | J8: CLASIFICACIÓN | M8: EVALUACIÓN DEL RIESGO
E9: CAUSAS | J9: PROBABILIDAD | K9: IMPACTO | L9: ZONA DE RIESGO | M9: CONTROLES | N9: TIPO DE CONTROL | O9: CRITERIOS PARA LA EVALUACIÓN / CRITERIO DE MEDICIÓN | V9: TOTAL | W9: PROBABILIDAD RESIDUAL | Y9: IMPACTO RESIDUAL | AA9: ZONA DE RIESGO RESIDUAL | AB9: ACCIONES ASOCIADAS AL CONTROL | AE9: MONITOREO Y REVISIÓN
O10: ¿Existen manuales, instructivos o procedimientos para el manejo del control? | P10: ¿Está(n) definido(s) el(los) responsable(s) de la ejecución del control y del seguimiento? | Q10: ¿El control es automático? | R10: ¿El control es manual? | S10: ¿La frecuencia de ejecución del control y seguimiento es adecuada? | T10: ¿Se cuenta con evidencias de la ejecución y seguimiento del control? | U10: ¿En el tiempo que lleva la herramienta ha demostrado ser efectiva? | W10: RIESGO CONTROLADO | X10: PROBABILIDAD | Y10: RIESGO CONTROLADO | Z10: IMPACTO | AB10: PERIODO DE EJECUCIÓN | AC10: ACCIONES | AD10: REGISTRO | AE10: FECHA | AF10: ACCIONES | AG10: RESPONSABLES | AH10: INDICADOR
B11: Gestión de Recursos Financieros | D11: Administrar, gestionar, registrar y controlar los recursos financieros en la Universidad Distrital Francisco José Caldas, cumpliendo con el marco, constitucional, legal y normativo vigente; garantizando la transparencia y sostenibilidad financiera de acuerdo a los lineamientos establecidos en el contexto estratégico y misional de la institución. | E11: Falta de monitoreo y seguimiento a las actividades de los funcionarios. | G11: Alterar la información de un trámite a cambio de pagos o algún tipo de beneficio propio o a terceros. | H11: Modificar parcial o totalmente información o Procedimientos a cambio de pagos o beneficio propio o a algún tercero. | I11: Detrimento del patrimonio económico de la institución. | J11: Rara vez - 1 | K11: Catastrófico - 20 | L11: =IF(AND(J11=[49]Datos!$B$212,K11=[49]Datos!$B$219),[49]Datos!$D$216,IF(AND(J11=[49]Datos!$B$212,K11=[49]Datos!$B$220),[49]Datos!$E$216,IF(AND(J11=[49]Datos!$B$212,K11=[49]Datos!$B$221),[49]Datos!$F$216,IF(AND(J11=[49]Datos!$B$213,K11=[49]Datos!$B$219),[49]Datos!$D$215,IF(AND(J11=[49]Datos!$B$213,K11=[49]Datos!$B$220),[49]Datos!$E$215,IF(AND(J11=[49]Datos!$B$213,K11=[49]Datos!$B$221),[49]Datos!$F$215,IF(AND(J11=[49]Datos!$B$214,K11=[49]Datos!$B$219),[49]Datos!$D$214,IF(AND(J11=[49]Datos!$B$214,K11=[49]Datos!$B$220),[49]Datos!$E$214,IF(AND(J11=[49]Datos!$B$214,K11=[49]Datos!$B$221),[49]Datos!$F$214,IF(AND(J11=[49]Datos!$B$215,K11=[49]Datos!$B$219),[49]Datos!$D$213,IF(AND(J11=[49]Datos!$B$215,K11=[49]Datos!$B$220),[49]Datos!$E$213,IF(AND(J11=[49]Datos!$B$215,K11=[49]Datos!$B$221),[49]Datos!$F$213,IF(AND(J11=[49]Datos!$B$216,K11=[49]Datos!$B$219),[49]Datos!$D$212,IF(AND(J11=[49]Datos!$B$216,K11=[49]Datos!$B$220),[49]Datos!$E$212,IF(AND(J11=[49]Datos!$B$216,K11=[49]Datos!$B$221),[49]Datos!$F$212,"-"))))))))))))))) -> MODERADA 20 | M11: Fortalecimiento de la capacidad del sistema de información para detectar fraudes e inconsistencias. | N11: Preventivo | O11: Sí - 15 | P11: Sí - 5 | Q11: No - 0 | R11: Sí - 10 | S11: No - 0 | T11: Sí - 10 | U11: Sí - 30 | V11: =((IF(O11=[49]Datos!$B$233,15,0))/100)+((IF(P11=[49]Datos!$B$229,5,0))/100)+((IF(Q11=[49]Datos!$B$233,15,0))/100)+((IF(R11=[49]Datos!$B$231,10,0))/100)+((IF(S11=[49]Datos!$B$233,15,0))/100)+((IF(T11=[49]Datos!$B$231,10,0))/100)+((IF(U11=[49]Datos!$B$235,30,0))/100) -> 0.7 | W11: =IF(ISERROR(((IF(N11=[49]Datos!$B$224,V11,0))+(IF(N12=[49]Datos!$B$224,V12,0))+(IF(N13=[49]Datos!$B$224,V13,0))+(IF(N14=[49]Datos!$B$224,V14,0))+(IF(N15=[49]Datos!$B$224,V15,0))+(IF(N16=[49]Datos!$B$224,V16,0)))/((IF(N11=[49]Datos!$B$224,1,0))+(IF(N12=[49]Datos!$B$224,1,0))+(IF(N13=[49]Datos!$B$224,1,0))+(IF(N14=[49]Datos!$B$224,1,0))+(IF(N15=[49]Datos!$B$224,1,0))+(IF(N16=[49]Datos!$B$224,1,0)))),0,(((IF(N11=[49]Datos!$B$224,V11,0))+(IF(N12=[49]Datos!$B$224,V12,0))+(IF(N13=[49]Datos!$B$224,V13,0))+(IF(N14=[49]Datos!$B$224,V14,0))+(IF(N15=[49]Datos!$B$224,V15,0))+(IF(N16=[49]Datos!$B$224,V16,0)))/((IF(N11=[49]Datos!$B$224,1,0))+(IF(N12=[49]Datos!$B$224,1,0))+(IF(N13=[49]Datos!$B$224,1,0))+(IF(N14=[49]Datos!$B$224,1,0))+(IF(N15=[49]Datos!$B$224,1,0))+(IF(N16=[49]Datos!$B$224,1,0))))) -> 0.55 | X11: =IF(J11="","-",(IF(W11>0,(IF(J11=[49]Datos!$B$212,[49]Datos!$B$212,IF(AND(J11=[49]Datos!$B$213,W11>0.49),[49]Datos!$B$212,IF(AND(J11=[49]Datos!$B$214,W11>0.74),[49]Datos!$B$212,IF(AND(J11=[49]Datos!$B$214,W11<0.75,W11>0.49),[49]Datos!$B$213,IF(AND(J11=[49]Datos!$B$215,W11>0.74),[49]Datos!$B$213,IF(AND(J11=[49]Datos!$B$215,W11<0.75,W11>0.49),[49]Datos!$B$214,IF(AND(J11=[49]Datos!$B$216,W11>0.74),[49]Datos!$B$214,IF(AND(J11=[49]Datos!$B$216,W11<0.75,W11>0.49),[49]Datos!$B$215,J11))))))))),J11))) -> Rara vez - 1 | Y11: =IF(ISERROR(((IF(N11=[49]Datos!$B$225,V11,0))+(IF(N12=[49]Datos!$B$225,V12,0))+(IF(N13=[49]Datos!$B$225,V13,0))+(IF(N14=[49]Datos!$B$225,V14,0))+(IF(N15=[49]Datos!$B$225,V15,0))+(IF(N16=[49]Datos!$B$225,V16,0))+(IF(N11=[49]Datos!$B$226,V11,0))+(IF(N12=[49]Datos!$B$226,V12,0))+(IF(N13=[49]Datos!$B$226,V13,0))+(IF(N14=[49]Datos!$B$226,V14,0))+(IF(N15=[49]Datos!$B$226,V15,0))+(IF(N16=[49]Datos!$B$226,V16,0)))/((IF(N11=[49]Datos!$B$225,1,0))+(IF(N12=[49]Datos!$B$225,1,0))+(IF(N13=[49]Datos!$B$225,1,0))+(IF(N14=[49]Datos!$B$225,1,0))+(IF(N15=[49]Datos!$B$225,1,0))+(IF(N16=[49]Datos!$B$225,1,0))+(IF(N11=[49]Datos!$B$226,1,0))+(IF(N12=[49]Datos!$B$226,1,0))+(IF(N13=[49]Datos!$B$226,1,0))+(IF(N14=[49]Datos!$B$226,1,0))+(IF(N15=[49]Datos!$B$226,1,0))+(IF(N16=[49]Datos!$B$226,1,0)))),0,((IF(N11=[49]Datos!$B$225,V11,0))+(IF(N12=[49]Datos!$B$225,V12,0))+(IF(N13=[49]Datos!$B$225,V13,0))+(IF(N14=[49]Datos!$B$225,V14,0))+(IF(N15=[49]Datos!$B$225,V15,0))+(IF(N16=[49]Datos!$B$225,V16,0))+(IF(N11=[49]Datos!$B$226,V11,0))+(IF(N12=[49]Datos!$B$226,V12,0))+(IF(N13=[49]Datos!$B$226,V13,0))+(IF(N14=[49]Datos!$B$226,V14,0))+(IF(N15=[49]Datos!$B$226,V15,0))+(IF(N16=[49]Datos!$B$226,V16,0)))/((IF(N11=[49]Datos!$B$225,1,0))+(IF(N12=[49]Datos!$B$225,1,0))+(IF(N13=[49]Datos!$B$225,1,0))+(IF(N14=[49]Datos!$B$225,1,0))+(IF(N15=[49]Datos!$B$225,1,0))+(IF(N16=[49]Datos!$B$225,1,0))+(IF(N11=[49]Datos!$B$226,1,0))+(IF(N12=[49]Datos!$B$226,1,0))+(IF(N13=[49]Datos!$B$226,1,0))+(IF(N14=[49]Datos!$B$226,1,0))+(IF(N15=[49]Datos!$B$226,1,0))+(IF(N16=[49]Datos!$B$226,1,0)))) -> 0 | Z11: =IF(K11="","-",(IF(Y11>0,(IF(K11=[49]Datos!$B$219,[49]Datos!$B$219,IF(AND(K11=[49]Datos!$B$220,Y11>0.49),[49]Datos!$B$219,IF(AND(K11=[49]Datos!$B$221,Y11>0.74),[49]Datos!$B$219,IF(AND(K11=[49]Datos!$B$221,Y11<0.75,Y11>0.49),[49]Datos!$B$220,IF(AND(K11=[49]Datos!$B$222,Y11>0.74),[49]Datos!$B$220,IF(AND(K11=[49]Datos!$B$222,Y11<0.75,Y11>0.49),[49]Datos!$B$221,IF(AND(K11=[49]Datos!$B$223,Y11>0.74),[49]Datos!$B$221,IF(AND(K11=[49]Datos!$B$223,Y11<0.75,Y11>0.49),[49]Datos!$B$222,K11))))))))),K11))) -> Catastrófico - 20 | AA11: =IF(AND(X11=[49]Datos!$B$212,Z11=[49]Datos!$B$219),[49]Datos!$D$216,IF(AND(X11=[49]Datos!$B$212,Z11=[49]Datos!$B$220),[49]Datos!$E$216,IF(AND(X11=[49]Datos!$B$212,Z11=[49]Datos!$B$221),[49]Datos!$F$216,IF(AND(X11=[49]Datos!$B$213,Z11=[49]Datos!$B$219),[49]Datos!$D$215,IF(AND(X11=[49]Datos!$B$213,Z11=[49]Datos!$B$220),[49]Datos!$E$215,IF(AND(X11=[49]Datos!$B$213,Z11=[49]Datos!$B$221),[49]Datos!$F$215,IF(AND(X11=[49]Datos!$B$214,Z11=[49]Datos!$B$219),[49]Datos!$D$214,IF(AND(X11=[49]Datos!$B$214,Z11=[49]Datos!$B$220),[49]Datos!$E$214,IF(AND(X11=[49]Datos!$B$214,Z11=[49]Datos!$B$221),[49]Datos!$F$214,IF(AND(X11=[49]Datos!$B$215,Z11=[49]Datos!$B$219),[49]Datos!$D$213,IF(AND(X11=[49]Datos!$B$215,Z11=[49]Datos!$B$220),[49]Datos!$E$213,IF(AND(X11=[49]Datos!$B$215,Z11=[49]Datos!$B$221),[49]Datos!$F$213,IF(AND(X11=[49]Datos!$B$216,Z11=[49]Datos!$B$219),[49]Datos!$D$212,IF(AND(X11=[49]Datos!$B$216,Z11=[49]Datos!$B$220),[49]Datos!$E$212,IF(AND(X11=[49]Datos!$B$216,Z11=[49]Datos!$B$221),[49]Datos!$F$212,"-"))))))))))))))) -> MODERADA 20
E12: Poca seguridad en el Sistema de Información para contrarrestar manipulaciones. | I12: Daño a la imagen pública de la Institución. | M12: Mejorar los mecanismos de vigilancia a los funcionarios en los Procedimientos y dentro del Sistema de Información. | N12: Preventivo | O12: Sí - 15 | P12: Sí - 5 | Q12: No - 0 | R12: Sí - 10 | S12: No - 0 | T12: Sí - 10 | U12: No - 0 | V12: =((IF(O12=[49]Datos!$B$233,15,0))/100)+((IF(P12=[49]Datos!$B$229,5,0))/100)+((IF(Q12=[49]Datos!$B$233,15,0))/100)+((IF(R12=[49]Datos!$B$231,10,0))/100)+((IF(S12=[49]Datos!$B$233,15,0))/100)+((IF(T12=[49]Datos!$B$231,10,0))/100)+((IF(U12=[49]Datos!$B$235,30,0))/100) -> 0.4
E13: Complicidad de personal interno con terceros para cometer ilícito. | I13: Investigaciones sancionatorias, disciplinarias, fiscales o penales. | V13: =((IF(O13=[49]Datos!$B$233,15,0))/100)+((IF(P13=[49]Datos!$B$229,5,0))/100)+((IF(Q13=[49]Datos!$B$233,15,0))/100)+((IF(R13=[49]Datos!$B$231,10,0))/100)+((IF(S13=[49]Datos!$B$233,15,0))/100)+((IF(T13=[49]Datos!$B$231,10,0))/100)+((IF(U13=[49]Datos!$B$235,30,0))/100) -> 0
V14: =((IF(O14=[49]Datos!$B$233,15,0))/100)+((IF(P14=[49]Datos!$B$229,5,0))/100)+((IF(Q14=[49]Datos!$B$233,15,0))/100)+((IF(R14=[49]Datos!$B$231,10,0))/100)+((IF(S14=[49]Datos!$B$233,15,0))/100)+((IF(T14=[49]Datos!$B$231,10,0))/100)+((IF(U14=[49]Datos!$B$235,30,0))/100) -> 0
V15: =((IF(O15=[49]Datos!$B$233,15,0))/100)+((IF(P15=[49]Datos!$B$229,5,0))/100)+((IF(Q15=[49]Datos!$B$233,15,0))/100)+((IF(R15=[49]Datos!$B$231,10,0))/100)+((IF(S15=[49]Datos!$B$233,15,0))/100)+((IF(T15=[49]Datos!$B$231,10,0))/100)+((IF(U15=[49]Datos!$B$235,30,0))/100) -> 0
V16: =((IF(O16=[49]Datos!$B$233,15,0))/100)+((IF(P16=[49]Datos!$B$229,5,0))/100)+((IF(Q16=[49]Datos!$B$233,15,0))/100)+((IF(R16=[49]Datos!$B$231,10,0))/100)+((IF(S16=[49]Datos!$B$233,15,0))/100)+((IF(T16=[49]Datos!$B$231,10,0))/100)+((IF(U16=[49]Datos!$B$235,30,0))/100) -> 0
B17: Gestión de Recursos Financieros | D17: Administrar, gestionar, registrar y controlar los recursos financieros en la Universidad Distrital Francisco José Caldas, cumpliendo con el marco, constitucional, legal y normativo vigente; garantizando la transparencia y sostenibilidad financiera de acuerdo a los lineamientos establecidos en el contexto estratégico y misional de la institución. | E17: Ineficientes medidas de seguridad para salvaguardar bienes, documentos e información. | G17: Pérdida de documentos, bienes y/o información. | H17: Extraviar o destruir premeditadamente documentos, bienes y/o información. | I17: Pérdida de bienes de uso público de la entidad. | J17: Improbable - 2 | K17: Catastrófico - 20 | L17: =IF(AND(J17=[49]Datos!$B$212,K17=[49]Datos!$B$219),[49]Datos!$D$216,IF(AND(J17=[49]Datos!$B$212,K17=[49]Datos!$B$220),[49]Datos!$E$216,IF(AND(J17=[49]Datos!$B$212,K17=[49]Datos!$B$221),[49]Datos!$F$216,IF(AND(J17=[49]Datos!$B$213,K17=[49]Datos!$B$219),[49]Datos!$D$215,IF(AND(J17=[49]Datos!$B$213,K17=[49]Datos!$B$220),[49]Datos!$E$215,IF(AND(J17=[49]Datos!$B$213,K17=[49]Datos!$B$221),[49]Datos!$F$215,IF(AND(J17=[49]Datos!$B$214,K17=[49]Datos!$B$219),[49]Datos!$D$214,IF(AND(J17=[49]Datos!$B$214,K17=[49]Datos!$B$220),[49]Datos!$E$214,IF(AND(J17=[49]Datos!$B$214,K17=[49]Datos!$B$221),[49]Datos!$F$214,IF(AND(J17=[49]Datos!$B$215,K17=[49]Datos!$B$219),[49]Datos!$D$213,IF(AND(J17=[49]Datos!$B$215,K17=[49]Datos!$B$220),[49]Datos!$E$213,IF(AND(J17=[49]Datos!$B$215,K17=[49]Datos!$B$221),[49]Datos!$F$213,IF(AND(J17=[49]Datos!$B$216,K17=[49]Datos!$B$219),[49]Datos!$D$212,IF(AND(J17=[49]Datos!$B$216,K17=[49]Datos!$B$220),[49]Datos!$E$212,IF(AND(J17=[49]Datos!$B$216,K17=[49]Datos!$B$221),[49]Datos!$F$212,"-"))))))))))))))) -> ALTA 40 | M17: Regular el acceso a la documentación, bienes o información, utilizando registros de ingreso a los archivos. | N17: Preventivo | O17: Sí - 15 | P17: Sí - 5 | Q17: No - 0 | R17: Sí - 10 | S17: Sí - 15 | T17: Sí - 10 | U17: Sí - 30 | V17: =((IF(O17=[49]Datos!$B$233,15,0))/100)+((IF(P17=[49]Datos!$B$229,5,0))/100)+((IF(Q17=[49]Datos!$B$233,15,0))/100)+((IF(R17=[49]Datos!$B$231,10,0))/100)+((IF(S17=[49]Datos!$B$233,15,0))/100)+((IF(T17=[49]Datos!$B$231,10,0))/100)+((IF(U17=[49]Datos!$B$235,30,0))/100) -> 0.85 | W17: =IF(ISERROR(((IF(N17=[49]Datos!$B$224,V17,0))+(IF(N18=[49]Datos!$B$224,V18,0))+(IF(N19=[49]Datos!$B$224,V19,0))+(IF(N20=[49]Datos!$B$224,V20,0))+(IF(N21=[49]Datos!$B$224,V21,0))+(IF(N22=[49]Datos!$B$224,V22,0)))/((IF(N17=[49]Datos!$B$224,1,0))+(IF(N18=[49]Datos!$B$224,1,0))+(IF(N19=[49]Datos!$B$224,1,0))+(IF(N20=[49]Datos!$B$224,1,0))+(IF(N21=[49]Datos!$B$224,1,0))+(IF(N22=[49]Datos!$B$224,1,0)))),0,(((IF(N17=[49]Datos!$B$224,V17,0))+(IF(N18=[49]Datos!$B$224,V18,0))+(IF(N19=[49]Datos!$B$224,V19,0))+(IF(N20=[49]Datos!$B$224,V20,0))+(IF(N21=[49]Datos!$B$224,V21,0))+(IF(N22=[49]Datos!$B$224,V22,0)))/((IF(N17=[49]Datos!$B$224,1,0))+(IF(N18=[49]Datos!$B$224,1,0))+(IF(N19=[49]Datos!$B$224,1,0))+(IF(N20=[49]Datos!$B$224,1,0))+(IF(N21=[49]Datos!$B$224,1,0))+(IF(N22=[49]Datos!$B$224,1,0))))) -> 0.85 | X17: =IF(J17="","-",(IF(W17>0,(IF(J17=[49]Datos!$B$212,[49]Datos!$B$212,IF(AND(J17=[49]Datos!$B$213,W17>0.49),[49]Datos!$B$212,IF(AND(J17=[49]Datos!$B$214,W17>0.74),[49]Datos!$B$212,IF(AND(J17=[49]Datos!$B$214,W17<0.75,W17>0.49),[49]Datos!$B$213,IF(AND(J17=[49]Datos!$B$215,W17>0.74),[49]Datos!$B$213,IF(AND(J17=[49]Datos!$B$215,W17<0.75,W17>0.49),[49]Datos!$B$214,IF(AND(J17=[49]Datos!$B$216,W17>0.74),[49]Datos!$B$214,IF(AND(J17=[49]Datos!$B$216,W17<0.75,W17>0.49),[49]Datos!$B$215,J17))))))))),J17))) -> Rara vez - 1 | Y17: =IF(ISERROR(((IF(N17=[49]Datos!$B$225,V17,0))+(IF(N18=[49]Datos!$B$225,V18,0))+(IF(N19=[49]Datos!$B$225,V19,0))+(IF(N20=[49]Datos!$B$225,V20,0))+(IF(N21=[49]Datos!$B$225,V21,0))+(IF(N22=[49]Datos!$B$225,V22,0))+(IF(N17=[49]Datos!$B$226,V17,0))+(IF(N18=[49]Datos!$B$226,V18,0))+(IF(N19=[49]Datos!$B$226,V19,0))+(IF(N20=[49]Datos!$B$226,V20,0))+(IF(N21=[49]Datos!$B$226,V21,0))+(IF(N22=[49]Datos!$B$226,V22,0)))/((IF(N17=[49]Datos!$B$225,1,0))+(IF(N18=[49]Datos!$B$225,1,0))+(IF(N19=[49]Datos!$B$225,1,0))+(IF(N20=[49]Datos!$B$225,1,0))+(IF(N21=[49]Datos!$B$225,1,0))+(IF(N22=[49]Datos!$B$225,1,0))+(IF(N17=[49]Datos!$B$226,1,0))+(IF(N18=[49]Datos!$B$226,1,0))+(IF(N19=[49]Datos!$B$226,1,0))+(IF(N20=[49]Datos!$B$226,1,0))+(IF(N21=[49]Datos!$B$226,1,0))+(IF(N22=[49]Datos!$B$226,1,0)))),0,((IF(N17=[49]Datos!$B$225,V17,0))+(IF(N18=[49]Datos!$B$225,V18,0))+(IF(N19=[49]Datos!$B$225,V19,0))+(IF(N20=[49]Datos!$B$225,V20,0))+(IF(N21=[49]Datos!$B$225,V21,0))+(IF(N22=[49]Datos!$B$225,V22,0))+(IF(N17=[49]Datos!$B$226,V17,0))+(IF(N18=[49]Datos!$B$226,V18,0))+(IF(N19=[49]Datos!$B$226,V19,0))+(IF(N20=[49]Datos!$B$226,V20,0))+(IF(N21=[49]Datos!$B$226,V21,0))+(IF(N22=[49]Datos!$B$226,V22,0)))/((IF(N17=[49]Datos!$B$225,1,0))+(IF(N18=[49]Datos!$B$225,1,0))+(IF(N19=[49]Datos!$B$225,1,0))+(IF(N20=[49]Datos!$B$225,1,0))+(IF(N21=[49]Datos!$B$225,1,0))+(IF(N22=[49]Datos!$B$225,1,0))+(IF(N17=[49]Datos!$B$226,1,0))+(IF(N18=[49]Datos!$B$226,1,0))+(IF(N19=[49]Datos!$B$226,1,0))+(IF(N20=[49]Datos!$B$226,1,0))+(IF(N21=[49]Datos!$B$226,1,0))+(IF(N22=[49]Datos!$B$226,1,0)))) -> 0.4 | Z17: =IF(K17="","-",(IF(Y17>0,(IF(K17=[49]Datos!$B$219,[49]Datos!$B$219,IF(AND(K17=[49]Datos!$B$220,Y17>0.49),[49]Datos!$B$219,IF(AND(K17=[49]Datos!$B$221,Y17>0.74),[49]Datos!$B$219,IF(AND(K17=[49]Datos!$B$221,Y17<0.75,Y17>0.49),[49]Datos!$B$220,IF(AND(K17=[49]Datos!$B$222,Y17>0.74),[49]Datos!$B$220,IF(AND(K17=[49]Datos!$B$222,Y17<0.75,Y17>0.49),[49]Datos!$B$221,IF(AND(K17=[49]Datos!$B$223,Y17>0.74),[49]Datos!$B$221,IF(AND(K17=[49]Datos!$B$223,Y17<0.75,Y17>0.49),[49]Datos!$B$222,K17))))))))),K17))) -> Catastrófico - 20 | AA17: =IF(AND(X17=[49]Datos!$B$212,Z17=[49]Datos!$B$219),[49]Datos!$D$216,IF(AND(X17=[49]Datos!$B$212,Z17=[49]Datos!$B$220),[49]Datos!$E$216,IF(AND(X17=[49]Datos!$B$212,Z17=[49]Datos!$B$221),[49]Datos!$F$216,IF(AND(X17=[49]Datos!$B$213,Z17=[49]Datos!$B$219),[49]Datos!$D$215,IF(AND(X17=[49]Datos!$B$213,Z17=[49]Datos!$B$220),[49]Datos!$E$215,IF(AND(X17=[49]Datos!$B$213,Z17=[49]Datos!$B$221),[49]Datos!$F$215,IF(AND(X17=[49]Datos!$B$214,Z17=[49]Datos!$B$219),[49]Datos!$D$214,IF(AND(X17=[49]Datos!$B$214,Z17=[49]Datos!$B$220),[49]Datos!$E$214,IF(AND(X17=[49]Datos!$B$214,Z17=[49]Datos!$B$221),[49]Datos!$F$214,IF(AND(X17=[49]Datos!$B$215,Z17=[49]Datos!$B$219),[49]Datos!$D$213,IF(AND(X17=[49]Datos!$B$215,Z17=[49]Datos!$B$220),[49]Datos!$E$213,IF(AND(X17=[49]Datos!$B$215,Z17=[49]Datos!$B$221),[49]Datos!$F$213,IF(AND(X17=[49]Datos!$B$216,Z17=[49]Datos!$B$219),[49]Datos!$D$212,IF(AND(X17=[49]Datos!$B$216,Z17=[49]Datos!$B$220),[49]Datos!$E$212,IF(AND(X17=[49]Datos!$B$216,Z17=[49]Datos!$B$221),[49]Datos!$F$212,"-"))))))))))))))) -> MODERADA 20
E18: Acceso inapropiado a los archivos y fuentes de información. | I18: Daño patrimonial o moral. | M18: Investigar exhaustivamente los casos de pérdida de documentación, bienes o información aplicando medidas disciplinarias. | N18: Correctivo | O18: Sí - 15 | P18: Sí - 5 | Q18: No - 0 | R18: Sí - 10 | S18: No - 0 | T18: Sí - 10 | U18: No - 0 | V18: =((IF(O18=[49]Datos!$B$233,15,0))/100)+((IF(P18=[49]Datos!$B$229,5,0))/100)+((IF(Q18=[49]Datos!$B$233,15,0))/100)+((IF(R18=[49]Datos!$B$231,10,0))/100)+((IF(S18=[49]Datos!$B$233,15,0))/100)+((IF(T18=[49]Datos!$B$231,10,0))/100)+((IF(U18=[49]Datos!$B$235,30,0))/100) -> 0.4
I19: Perjuicio económico o intangible. | V19: =((IF(O19=[49]Datos!$B$233,15,0))/100)+((IF(P19=[49]Datos!$B$229,5,0))/100)+((IF(Q19=[49]Datos!$B$233,15,0))/100)+((IF(R19=[49]Datos!$B$231,10,0))/100)+((IF(S19=[49]Datos!$B$233,15,0))/100)+((IF(T19=[49]Datos!$B$231,10,0))/100)+((IF(U19=[49]Datos!$B$235,30,0))/100) -> 0
I20: Investigaciones sancionatorias, disciplinarias o fiscales. | V20: =((IF(O20=[49]Datos!$B$233,15,0))/100)+((IF(P20=[49]Datos!$B$229,5,0))/100)+((IF(Q20=[49]Datos!$B$233,15,0))/100)+((IF(R20=[49]Datos!$B$231,10,0))/100)+((IF(S20=[49]Datos!$B$233,15,0))/100)+((IF(T20=[49]Datos!$B$231,10,0))/100)+((IF(U20=[49]Datos!$B$235,30,0))/100) -> 0
I21: Daño a la imagen pública de la institución. | V21: =((IF(O21=[49]Datos!$B$233,15,0))/100)+((IF(P21=[49]Datos!$B$229,5,0))/100)+((IF(Q21=[49]Datos!$B$233,15,0))/100)+((IF(R21=[49]Datos!$B$231,10,0))/100)+((IF(S21=[49]Datos!$B$233,15,0))/100)+((IF(T21=[49]Datos!$B$231,10,0))/100)+((IF(U21=[49]Datos!$B$235,30,0))/100) -> 0
V22: =((IF(O22=[49]Datos!$B$233,15,0))/100)+((IF(P22=[49]Datos!$B$229,5,0))/100)+((IF(Q22=[49]Datos!$B$233,15,0))/100)+((IF(R22=[49]Datos!$B$231,10,0))/100)+((IF(S22=[49]Datos!$B$233,15,0))/100)+((IF(T22=[49]Datos!$B$231,10,0))/100)+((IF(U22=[49]Datos!$B$235,30,0))/100) -> 0
B23: Gestión de Recursos Financieros | D23: Administrar, gestionar, registrar y controlar los recursos financieros en la Universidad Distrital Francisco José Caldas, cumpliendo con el marco, constitucional, legal y normativo vigente; garantizando la transparencia y sostenibilidad financiera de acuerdo a los lineamientos establecidos en el contexto estratégico y misional de la institución. | E23: Vulnerabilidad y deficiencia de la plataforma tecnológica y de su monitoreo. | G23: Desviar fondos o cualquier patrimonio de la Universidad. | H23: Desviar o manipular fondos y/o patrimonio de la Universidad en beneficio propio o de terceros. | I23: Perjuicio económico o intangible. | J23: Rara vez - 1 | K23: Catastrófico - 20 | L23: =IF(AND(J23=[49]Datos!$B$212,K23=[49]Datos!$B$219),[49]Datos!$D$216,IF(AND(J23=[49]Datos!$B$212,K23=[49]Datos!$B$220),[49]Datos!$E$216,IF(AND(J23=[49]Datos!$B$212,K23=[49]Datos!$B$221),[49]Datos!$F$216,IF(AND(J23=[49]Datos!$B$213,K23=[49]Datos!$B$219),[49]Datos!$D$215,IF(AND(J23=[49]Datos!$B$213,K23=[49]Datos!$B$220),[49]Datos!$E$215,IF(AND(J23=[49]Datos!$B$213,K23=[49]Datos!$B$221),[49]Datos!$F$215,IF(AND(J23=[49]Datos!$B$214,K23=[49]Datos!$B$219),[49]Datos!$D$214,IF(AND(J23=[49]Datos!$B$214,K23=[49]Datos!$B$220),[49]Datos!$E$214,IF(AND(J23=[49]Datos!$B$214,K23=[49]Datos!$B$221),[49]Datos!$F$214,IF(AND(J23=[49]Datos!$B$215,K23=[49]Datos!$B$219),[49]Datos!$D$213,IF(AND(J23=[49]Datos!$B$215,K23=[49]Datos!$B$220),[49]Datos!$E$213,IF(AND(J23=[49]Datos!$B$215,K23=[49]Datos!$B$221),[49]Datos!$F$213,IF(AND(J23=[49]Datos!$B$216,K23=[49]Datos!$B$219),[49]Datos!$D$212,IF(AND(J23=[49]Datos!$B$216,K23=[49]Datos!$B$220),[49]Datos!$E$212,IF(AND(J23=[49]Datos!$B$216,K23=[49]Datos!$B$221),[49]Datos!$F$212,"-"))))))))))))))) -> MODERADA 20 | M23: Vigilar el flujo de fondos desde el proceso interno hasta los destinatarios. | N23: Preventivo | O23: Sí - 15 | P23: Sí - 5 | Q23: No - 0 | R23: Sí - 10 | S23: Sí - 15 | T23: Sí - 10 | U23: Sí - 30 | V23: =((IF(O23=[49]Datos!$B$233,15,0))/100)+((IF(P23=[49]Datos!$B$229,5,0))/100)+((IF(Q23=[49]Datos!$B$233,15,0))/100)+((IF(R23=[49]Datos!$B$231,10,0))/100)+((IF(S23=[49]Datos!$B$233,15,0))/100)+((IF(T23=[49]Datos!$B$231,10,0))/100)+((IF(U23=[49]Datos!$B$235,30,0))/100) -> 0.85 | W23: =IF(ISERROR(((IF(N23=[49]Datos!$B$224,V23,0))+(IF(N24=[49]Datos!$B$224,V24,0))+(IF(N25=[49]Datos!$B$224,V25,0))+(IF(N26=[49]Datos!$B$224,V26,0))+(IF(N27=[49]Datos!$B$224,V27,0))+(IF(N28=[49]Datos!$B$224,V28,0)))/((IF(N23=[49]Datos!$B$224,1,0))+(IF(N24=[49]Datos!$B$224,1,0))+(IF(N25=[49]Datos!$B$224,1,0))+(IF(N26=[49]Datos!$B$224,1,0))+(IF(N27=[49]Datos!$B$224,1,0))+(IF(N28=[49]Datos!$B$224,1,0)))),0,(((IF(N23=[49]Datos!$B$224,V23,0))+(IF(N24=[49]Datos!$B$224,V24,0))+(IF(N25=[49]Datos!$B$224,V25,0))+(IF(N26=[49]Datos!$B$224,V26,0))+(IF(N27=[49]Datos!$B$224,V27,0))+(IF(N28=[49]Datos!$B$224,V28,0)))/((IF(N23=[49]Datos!$B$224,1,0))+(IF(N24=[49]Datos!$B$224,1,0))+(IF(N25=[49]Datos!$B$224,1,0))+(IF(N26=[49]Datos!$B$224,1,0))+(IF(N27=[49]Datos!$B$224,1,0))+(IF(N28=[49]Datos!$B$224,1,0))))) -> 0.775 | X23: =IF(J23="","-",(IF(W23>0,(IF(J23=[49]Datos!$B$212,[49]Datos!$B$212,IF(AND(J23=[49]Datos!$B$213,W23>0.49),[49]Datos!$B$212,IF(AND(J23=[49]Datos!$B$214,W23>0.74),[49]Datos!$B$212,IF(AND(J23=[49]Datos!$B$214,W23<0.75,W23>0.49),[49]Datos!$B$213,IF(AND(J23=[49]Datos!$B$215,W23>0.74),[49]Datos!$B$213,IF(AND(J23=[49]Datos!$B$215,W23<0.75,W23>0.49),[49]Datos!$B$214,IF(AND(J23=[49]Datos!$B$216,W23>0.74),[49]Datos!$B$214,IF(AND(J23=[49]Datos!$B$216,W23<0.75,W23>0.49),[49]Datos!$B$215,J23))))))))),J23))) -> Rara vez - 1 | Y23: =IF(ISERROR(((IF(N23=[49]Datos!$B$225,V23,0))+(IF(N24=[49]Datos!$B$225,V24,0))+(IF(N25=[49]Datos!$B$225,V25,0))+(IF(N26=[49]Datos!$B$225,V26,0))+(IF(N27=[49]Datos!$B$225,V27,0))+(IF(N28=[49]Datos!$B$225,V28,0))+(IF(N23=[49]Datos!$B$226,V23,0))+(IF(N24=[49]Datos!$B$226,V24,0))+(IF(N25=[49]Datos!$B$226,V25,0))+(IF(N26=[49]Datos!$B$226,V26,0))+(IF(N27=[49]Datos!$B$226,V27,0))+(IF(N28=[49]Datos!$B$226,V28,0)))/((IF(N23=[49]Datos!$B$225,1,0))+(IF(N24=[49]Datos!$B$225,1,0))+(IF(N25=[49]Datos!$B$225,1,0))+(IF(N26=[49]Datos!$B$225,1,0))+(IF(N27=[49]Datos!$B$225,1,0))+(IF(N28=[49]Datos!$B$225,1,0))+(IF(N23=[49]Datos!$B$226,1,0))+(IF(N24=[49]Datos!$B$226,1,0))+(IF(N25=[49]Datos!$B$226,1,0))+(IF(N26=[49]Datos!$B$226,1,0))+(IF(N27=[49]Datos!$B$226,1,0))+(IF(N28=[49]Datos!$B$226,1,0)))),0,((IF(N23=[49]Datos!$B$225,V23,0))+(IF(N24=[49]Datos!$B$225,V24,0))+(IF(N25=[49]Datos!$B$225,V25,0))+(IF(N26=[49]Datos!$B$225,V26,0))+(IF(N27=[49]Datos!$B$225,V27,0))+(IF(N28=[49]Datos!$B$225,V28,0))+(IF(N23=[49]Datos!$B$226,V23,0))+(IF(N24=[49]Datos!$B$226,V24,0))+(IF(N25=[49]Datos!$B$226,V25,0))+(IF(N26=[49]Datos!$B$226,V26,0))+(IF(N27=[49]Datos!$B$226,V27,0))+(IF(N28=[49]Datos!$B$226,V28,0)))/((IF(N23=[49]Datos!$B$225,1,0))+(IF(N24=[49]Datos!$B$225,1,0))+(IF(N25=[49]Datos!$B$225,1,0))+(IF(N26=[49]Datos!$B$225,1,0))+(IF(N27=[49]Datos!$B$225,1,0))+(IF(N28=[49]Datos!$B$225,1,0))+(IF(N23=[49]Datos!$B$226,1,0))+(IF(N24=[49]Datos!$B$226,1,0))+(IF(N25=[49]Datos!$B$226,1,0))+(IF(N26=[49]Datos!$B$226,1,0))+(IF(N27=[49]Datos!$B$226,1,0))+(IF(N28=[49]Datos!$B$226,1,0)))) -> 0 | Z23: =IF(K23="","-",(IF(Y23>0,(IF(K23=[49]Datos!$B$219,[49]Datos!$B$219,IF(AND(K23=[49]Datos!$B$220,Y23>0.49),[49]Datos!$B$219,IF(AND(K23=[49]Datos!$B$221,Y23>0.74),[49]Datos!$B$219,IF(AND(K23=[49]Datos!$B$221,Y23<0.75,Y23>0.49),[49]Datos!$B$220,IF(AND(K23=[49]Datos!$B$222,Y23>0.74),[49]Datos!$B$220,IF(AND(K23=[49]Datos!$B$222,Y23<0.75,Y23>0.49),[49]Datos!$B$221,IF(AND(K23=[49]Datos!$B$223,Y23>0.74),[49]Datos!$B$221,IF(AND(K23=[49]Datos!$B$223,Y23<0.75,Y23>0.49),[49]Datos!$B$222,K23))))))))),K23))) -> Catastrófico - 20 | AA23: =IF(AND(X23=[49]Datos!$B$212,Z23=[49]Datos!$B$219),[49]Datos!$D$216,IF(AND(X23=[49]Datos!$B$212,Z23=[49]Datos!$B$220),[49]Datos!$E$216,IF(AND(X23=[49]Datos!$B$212,Z23=[49]Datos!$B$221),[49]Datos!$F$216,IF(AND(X23=[49]Datos!$B$213,Z23=[49]Datos!$B$219),[49]Datos!$D$215,IF(AND(X23=[49]Datos!$B$213,Z23=[49]Datos!$B$220),[49]Datos!$E$215,IF(AND(X23=[49]Datos!$B$213,Z23=[49]Datos!$B$221),[49]Datos!$F$215,IF(AND(X23=[49]Datos!$B$214,Z23=[49]Datos!$B$219),[49]Datos!$D$214,IF(AND(X23=[49]Datos!$B$214,Z23=[49]Datos!$B$220),[49]Datos!$E$214,IF(AND(X23=[49]Datos!$B$214,Z23=[49]Datos!$B$221),[49]Datos!$F$214,IF(AND(X23=[49]Datos!$B$215,Z23=[49]Datos!$B$219),[49]Datos!$D$213,IF(AND(X23=[49]Datos!$B$215,Z23=[49]Datos!$B$220),[49]Datos!$E$213,IF(AND(X23=[49]Datos!$B$215,Z23=[49]Datos!$B$221),[49]Datos!$F$213,IF(AND(X23=[49]Datos!$B$216,Z23=[49]Datos!$B$219),[49]Datos!$D$212,IF(AND(X23=[49]Datos!$B$216,Z23=[49]Datos!$B$220),[49]Datos!$E$212,IF(AND(X23=[49]Datos!$B$216,Z23=[49]Datos!$B$221),[49]Datos!$F$212,"-"))))))))))))))) -> MODERADA 20
E24: Complicidad de los funcionarios con terceros para cometer actos de corrupción. | I24: Daño a la imagen pública de la institución. | M24: Realizar Auditorías periódicas para revisar el estado del patrimonio económico de la Universidad. | N24: Preventivo | O24: Sí - 15 | P24: Sí - 5 | Q24: No - 0 | R24: Sí - 10 | S24: No - 0 | T24: Sí - 10 | U24: Sí - 30 | V24: =((IF(O24=[49]Datos!$B$233,15,0))/100)+((IF(P24=[49]Datos!$B$229,5,0))/100)+((IF(Q24=[49]Datos!$B$233,15,0))/100)+((IF(R24=[49]Datos!$B$231,10,0))/100)+((IF(S24=[49]Datos!$B$233,15,0))/100)+((IF(T24=[49]Datos!$B$231,10,0))/100)+((IF(U24=[49]Datos!$B$235,30,0))/100) -> 0.7
E25: Extralimitación de funciones. | I25: Investigaciones sancionatorias, disciplinarias o fiscales. | V25: =((IF(O25=[49]Datos!$B$233,15,0))/100)+((IF(P25=[49]Datos!$B$229,5,0))/100)+((IF(Q25=[49]Datos!$B$233,15,0))/100)+((IF(R25=[49]Datos!$B$231,10,0))/100)+((IF(S25=[49]Datos!$B$233,15,0))/100)+((IF(T25=[49]Datos!$B$231,10,0))/100)+((IF(U25=[49]Datos!$B$235,30,0))/100) -> 0
I26: Daño patrimonial o moral. | V26: =((IF(O26=[49]Datos!$B$233,15,0))/100)+((IF(P26=[49]Datos!$B$229,5,0))/100)+((IF(Q26=[49]Datos!$B$233,15,0))/100)+((IF(R26=[49]Datos!$B$231,10,0))/100)+((IF(S26=[49]Datos!$B$233,15,0))/100)+((IF(T26=[49]Datos!$B$231,10,0))/100)+((IF(U26=[49]Datos!$B$235,30,0))/100) -> 0
V27: =((IF(O27=[49]Datos!$B$233,15,0))/100)+((IF(P27=[49]Datos!$B$229,5,0))/100)+((IF(Q27=[49]Datos!$B$233,15,0))/100)+((IF(R27=[49]Datos!$B$231,10,0))/100)+((IF(S27=[49]Datos!$B$233,15,0))/100)+((IF(T27=[49]Datos!$B$231,10,0))/100)+((IF(U27=[49]Datos!$B$235,30,0))/100) -> 0
V28: =((IF(O28=[49]Datos!$B$233,15,0))/100)+((IF(P28=[49]Datos!$B$229,5,0))/100)+((IF(Q28=[49]Datos!$B$233,15,0))/100)+((IF(R28=[49]Datos!$B$231,10,0))/100)+((IF(S28=[49]Datos!$B$233,15,0))/100)+((IF(T28=[49]Datos!$B$231,10,0))/100)+((IF(U28=[49]Datos!$B$235,30,0))/100) -> 0
B29: Gestión de Recursos Financieros | D29: Administrar, gestionar, registrar y controlar los recursos financieros en la Universidad Distrital Francisco José Caldas, cumpliendo con el marco, constitucional, legal y normativo vigente; garantizando la transparencia y sostenibilidad financiera de acuerdo a los lineamientos establecidos en el contexto estratégico y misional de la institución. | E29: Manipulación de los registros contables. | G29: Alteración de los estados financieros. | H29: Modificar o alterar a conveniencia los resultados de los estados financieros. | I29: Daño a la imagen pública de la institución. | J29: Rara vez - 1 | K29: Catastrófico - 20 | L29: =IF(AND(J29=[49]Datos!$B$212,K29=[49]Datos!$B$219),[49]Datos!$D$216,IF(AND(J29=[49]Datos!$B$212,K29=[49]Datos!$B$220),[49]Datos!$E$216,IF(AND(J29=[49]Datos!$B$212,K29=[49]Datos!$B$221),[49]Datos!$F$216,IF(AND(J29=[49]Datos!$B$213,K29=[49]Datos!$B$219),[49]Datos!$D$215,IF(AND(J29=[49]Datos!$B$213,K29=[49]Datos!$B$220),[49]Datos!$E$215,IF(AND(J29=[49]Datos!$B$213,K29=[49]Datos!$B$221),[49]Datos!$F$215,IF(AND(J29=[49]Datos!$B$214,K29=[49]Datos!$B$219),[49]Datos!$D$214,IF(AND(J29=[49]Datos!$B$214,K29=[49]Datos!$B$220),[49]Datos!$E$214,IF(AND(J29=[49]Datos!$B$214,K29=[49]Datos!$B$221),[49]Datos!$F$214,IF(AND(J29=[49]Datos!$B$215,K29=[49]Datos!$B$219),[49]Datos!$D$213,IF(AND(J29=[49]Datos!$B$215,K29=[49]Datos!$B$220),[49]Datos!$E$213,IF(AND(J29=[49]Datos!$B$215,K29=[49]Datos!$B$221),[49]Datos!$F$213,IF(AND(J29=[49]Datos!$B$216,K29=[49]Datos!$B$219),[49]Datos!$D$212,IF(AND(J29=[49]Datos!$B$216,K29=[49]Datos!$B$220),[49]Datos!$E$212,IF(AND(J29=[49]Datos!$B$216,K29=[49]Datos!$B$221),[49]Datos!$F$212,"-"))))))))))))))) -> MODERADA 20 | M29: Vigilar el Procedimiento de registro contable, el cuadre general y entre las Secciones. | N29: Preventivo | O29: Sí - 15 | P29: No - 0 | Q29: No - 0 | R29: Sí - 10 | S29: Sí - 15 | T29: Sí - 10 | U29: No - 0 | V29: =((IF(O29=[49]Datos!$B$233,15,0))/100)+((IF(P29=[49]Datos!$B$229,5,0))/100)+((IF(Q29=[49]Datos!$B$233,15,0))/100)+((IF(R29=[49]Datos!$B$231,10,0))/100)+((IF(S29=[49]Datos!$B$233,15,0))/100)+((IF(T29=[49]Datos!$B$231,10,0))/100)+((IF(U29=[49]Datos!$B$235,30,0))/100) -> 0.5 | W29: =IF(ISERROR(((IF(N29=[49]Datos!$B$224,V29,0))+(IF(N30=[49]Datos!$B$224,V30,0))+(IF(N31=[49]Datos!$B$224,V31,0))+(IF(N32=[49]Datos!$B$224,V32,0))+(IF(N33=[49]Datos!$B$224,V33,0))+(IF(N34=[49]Datos!$B$224,V34,0)))/((IF(N29=[49]Datos!$B$224,1,0))+(IF(N30=[49]Datos!$B$224,1,0))+(IF(N31=[49]Datos!$B$224,1,0))+(IF(N32=[49]Datos!$B$224,1,0))+(IF(N33=[49]Datos!$B$224,1,0))+(IF(N34=[49]Datos!$B$224,1,0)))),0,(((IF(N29=[49]Datos!$B$224,V29,0))+(IF(N30=[49]Datos!$B$224,V30,0))+(IF(N31=[49]Datos!$B$224,V31,0))+(IF(N32=[49]Datos!$B$224,V32,0))+(IF(N33=[49]Datos!$B$224,V33,0))+(IF(N34=[49]Datos!$B$224,V34,0)))/((IF(N29=[49]Datos!$B$224,1,0))+(IF(N30=[49]Datos!$B$224,1,0))+(IF(N31=[49]Datos!$B$224,1,0))+(IF(N32=[49]Datos!$B$224,1,0))+(IF(N33=[49]Datos!$B$224,1,0))+(IF(N34=[49]Datos!$B$224,1,0))))) -> 0.6 | X29: =IF(J29="","-",(IF(W29>0,(IF(J29=[49]Datos!$B$212,[49]Datos!$B$212,IF(AND(J29=[49]Datos!$B$213,W29>0.49),[49]Datos!$B$212,IF(AND(J29=[49]Datos!$B$214,W29>0.74),[49]Datos!$B$212,IF(AND(J29=[49]Datos!$B$214,W29<0.75,W29>0.49),[49]Datos!$B$213,IF(AND(J29=[49]Datos!$B$215,W29>0.74),[49]Datos!$B$213,IF(AND(J29=[49]Datos!$B$215,W29<0.75,W29>0.49),[49]Datos!$B$214,IF(AND(J29=[49]Datos!$B$216,W29>0.74),[49]Datos!$B$214,IF(AND(J29=[49]Datos!$B$216,W29<0.75,W29>0.49),[49]Datos!$B$215,J29))))))))),J29))) -> Rara vez - 1 | Y29: =IF(ISERROR(((IF(N29=[49]Datos!$B$225,V29,0))+(IF(N30=[49]Datos!$B$225,V30,0))+(IF(N31=[49]Datos!$B$225,V31,0))+(IF(N32=[49]Datos!$B$225,V32,0))+(IF(N33=[49]Datos!$B$225,V33,0))+(IF(N34=[49]Datos!$B$225,V34,0))+(IF(N29=[49]Datos!$B$226,V29,0))+(IF(N30=[49]Datos!$B$226,V30,0))+(IF(N31=[49]Datos!$B$226,V31,0))+(IF(N32=[49]Datos!$B$226,V32,0))+(IF(N33=[49]Datos!$B$226,V33,0))+(IF(N34=[49]Datos!$B$226,V34,0)))/((IF(N29=[49]Datos!$B$225,1,0))+(IF(N30=[49]Datos!$B$225,1,0))+(IF(N31=[49]Datos!$B$225,1,0))+(IF(N32=[49]Datos!$B$225,1,0))+(IF(N33=[49]Datos!$B$225,1,0))+(IF(N34=[49]Datos!$B$225,1,0))+(IF(N29=[49]Datos!$B$226,1,0))+(IF(N30=[49]Datos!$B$226,1,0))+(IF(N31=[49]Datos!$B$226,1,0))+(IF(N32=[49]Datos!$B$226,1,0))+(IF(N33=[49]Datos!$B$226,1,0))+(IF(N34=[49]Datos!$B$226,1,0)))),0,((IF(N29=[49]Datos!$B$225,V29,0))+(IF(N30=[49]Datos!$B$225,V30,0))+(IF(N31=[49]Datos!$B$225,V31,0))+(IF(N32=[49]Datos!$B$225,V32,0))+(IF(N33=[49]Datos!$B$225,V33,0))+(IF(N34=[49]Datos!$B$225,V34,0))+(IF(N29=[49]Datos!$B$226,V29,0))+(IF(N30=[49]Datos!$B$226,V30,0))+(IF(N31=[49]Datos!$B$226,V31,0))+(IF(N32=[49]Datos!$B$226,V32,0))+(IF(N33=[49]Datos!$B$226,V33,0))+(IF(N34=[49]Datos!$B$226,V34,0)))/((IF(N29=[49]Datos!$B$225,1,0))+(IF(N30=[49]Datos!$B$225,1,0))+(IF(N31=[49]Datos!$B$225,1,0))+(IF(N32=[49]Datos!$B$225,1,0))+(IF(N33=[49]Datos!$B$225,1,0))+(IF(N34=[49]Datos!$B$225,1,0))+(IF(N29=[49]Datos!$B$226,1,0))+(IF(N30=[49]Datos!$B$226,1,0))+(IF(N31=[49]Datos!$B$226,1,0))+(IF(N32=[49]Datos!$B$226,1,0))+(IF(N33=[49]Datos!$B$226,1,0))+(IF(N34=[49]Datos!$B$226,1,0)))) -> 0 | Z29: =IF(K29="","-",(IF(Y29>0,(IF(K29=[49]Datos!$B$219,[49]Datos!$B$219,IF(AND(K29=[49]Datos!$B$220,Y29>0.49),[49]Datos!$B$219,IF(AND(K29=[49]Datos!$B$221,Y29>0.74),[49]Datos!$B$219,IF(AND(K29=[49]Datos!$B$221,Y29<0.75,Y29>0.49),[49]Datos!$B$220,IF(AND(K29=[49]Datos!$B$222,Y29>0.74),[49]Datos!$B$220,IF(AND(K29=[49]Datos!$B$222,Y29<0.75,Y29>0.49),[49]Datos!$B$221,IF(AND(K29=[49]Datos!$B$223,Y29>0.74),[49]Datos!$B$221,IF(AND(K29=[49]Datos!$B$223,Y29<0.75,Y29>0.49),[49]Datos!$B$222,K29))))))))),K29))) -> Catastrófico - 20 | AA29: =IF(AND(X29=[49]Datos!$B$212,Z29=[49]Datos!$B$219),[49]Datos!$D$216,IF(AND(X29=[49]Datos!$B$212,Z29=[49]Datos!$B$220),[49]Datos!$E$216,IF(AND(X29=[49]Datos!$B$212,Z29=[49]Datos!$B$221),[49]Datos!$F$216,IF(AND(X29=[49]Datos!$B$213,Z29=[49]Datos!$B$219),[49]Datos!$D$215,IF(AND(X29=[49]Datos!$B$213,Z29=[49]Datos!$B$220),[49]Datos!$E$215,IF(AND(X29=[49]Datos!$B$213,Z29=[49]Datos!$B$221),[49]Datos!$F$215,IF(AND(X29=[49]Datos!$B$214,Z29=[49]Datos!$B$219),[49]Datos!$D$214,IF(AND(X29=[49]Datos!$B$214,Z29=[49]Datos!$B$220),[49]Datos!$E$214,IF(AND(X29=[49]Datos!$B$214,Z29=[49]Datos!$B$221),[49]Datos!$F$214,IF(AND(X29=[49]Datos!$B$215,Z29=[49]Datos!$B$219),[49]Datos!$D$213,IF(AND(X29=[49]Datos!$B$215,Z29=[49]Datos!$B$220),[49]Datos!$E$213,IF(AND(X29=[49]Datos!$B$215,Z29=[49]Datos!$B$221),[49]Datos!$F$213,IF(AND(X29=[49]Datos!$B$216,Z29=[49]Datos!$B$219),[49]Datos!$D$212,IF(AND(X29=[49]Datos!$B$216,Z29=[49]Datos!$B$220),[49]Datos!$E$212,IF(AND(X29=[49]Datos!$B$216,Z29=[49]Datos!$B$221),[49]Datos!$F$212,"-"))))))))))))))) -> MODERADA 20
E30: Complicidad de los funcionarios para cometer fraude o corrupción. | I30: Investigaciones sancionatorias, disciplinarias o fiscales. | M30: Realizar Auditorías periódicas para revisar el estado del patrimonio económico de la Universidad. | N30: Preventivo | O30: Sí - 15 | P30: Sí - 5 | Q30: No - 0 | R30: Sí - 10 | S30: No - 0 | T30: Sí - 10 | U30: Sí - 30 | V30: =((IF(O30=[49]Datos!$B$233,15,0))/100)+((IF(P30=[49]Datos!$B$229,5,0))/100)+((IF(Q30=[49]Datos!$B$233,15,0))/100)+((IF(R30=[49]Datos!$B$231,10,0))/100)+((IF(S30=[49]Datos!$B$233,15,0))/100)+((IF(T30=[49]Datos!$B$231,10,0))/100)+((IF(U30=[49]Datos!$B$235,30,0))/100) -> 0.7
I31: Perjuicio económico o intangible. | V31: =((IF(O31=[49]Datos!$B$233,15,0))/100)+((IF(P31=[49]Datos!$B$229,5,0))/100)+((IF(Q31=[49]Datos!$B$233,15,0))/100)+((IF(R31=[49]Datos!$B$231,10,0))/100)+((IF(S31=[49]Datos!$B$233,15,0))/100)+((IF(T31=[49]Datos!$B$231,10,0))/100)+((IF(U31=[49]Datos!$B$235,30,0))/100) -> 0
I32: Daño patrimonial o moral. | V32: =((IF(O32=[49]Datos!$B$233,15,0))/100)+((IF(P32=[49]Datos!$B$229,5,0))/100)+((IF(Q32=[49]Datos!$B$233,15,0))/100)+((IF(R32=[49]Datos!$B$231,10,0))/100)+((IF(S32=[49]Datos!$B$233,15,0))/100)+((IF(T32=[49]Datos!$B$231,10,0))/100)+((IF(U32=[49]Datos!$B$235,30,0))/100) -> 0
V33: =((IF(O33=[49]Datos!$B$233,15,0))/100)+((IF(P33=[49]Datos!$B$229,5,0))/100)+((IF(Q33=[49]Datos!$B$233,15,0))/100)+((IF(R33=[49]Datos!$B$231,10,0))/100)+((IF(S33=[49]Datos!$B$233,15,0))/100)+((IF(T33=[49]Datos!$B$231,10,0))/100)+((IF(U33=[49]Datos!$B$235,30,0))/100) -> 0
V34: =((IF(O34=[49]Datos!$B$233,15,0))/100)+((IF(P34=[49]Datos!$B$229,5,0))/100)+((IF(Q34=[49]Datos!$B$233,15,0))/100)+((IF(R34=[49]Datos!$B$231,10,0))/100)+((IF(S34=[49]Datos!$B$233,15,0))/100)+((IF(T34=[49]Datos!$B$231,10,0))/100)+((IF(U34=[49]Datos!$B$235,30,0))/100) -> 0
B36: ELABORÓ | D36: REVISÓ | E36: APROBÓ
B37: Nombre: Equipo SIGUD Cargo: N/A Fecha: 03 de Diciembre de 2018 | D37: Nombre: Eusebio Antonio Rangel Roa Cargo: Jefe División de Recursos Financieros Fecha: 03 de Diciembre de 2018 | E37: Nombre: Eusebio Antonio Rangel Roa Cargo: Jefe División de Recursos Financieros Fecha: 03 de Diciembre de 2018

Sheet GD-C
C2: MAPA INTEGRAL DE RIESGOS | E2: Código: GI-MG-001-FR-014
C3: Macroproceso: Direccionamiento Estratégico | E3: Versión: 02
C4: Proceso: Gestión Integrada | E4: Fecha de Aprobación: 17/11/2017
C6: Riesgos de Corrupción
B8: PROCESO | D8: OBJETIVO DEL PROCESO | E8: CONTEXTO ESTRATÉGICO | G8: RIESGO | H8: DEFINICIÓN | I8: CONSECUENCIAS | J8: CLASIFICACIÓN | M8: EVALUACIÓN DEL RIESGO
E9: CAUSAS | J9: PROBABILIDAD | K9: IMPACTO | L9: ZONA DE RIESGO | M9: CONTROLES | N9: TIPO DE CONTROL | O9: CRITERIOS PARA LA EVALUACIÓN / CRITERIO DE MEDICIÓN | V9: TOTAL | W9: PROBABILIDAD RESIDUAL | Y9: IMPACTO RESIDUAL | AA9: ZONA DE RIESGO RESIDUAL | AB9: ACCIONES ASOCIADAS AL CONTROL | AE9: MONITOREO Y REVISIÓN
O10: ¿Existen manuales, instructivos o procedimientos para el manejo del control? | P10: ¿Está(n) definido(s) el(los) responsable(s) de la ejecución del control y del seguimiento? | Q10: ¿El control es automático? | R10: ¿El control es manual? | S10: ¿La frecuencia de ejecución del control y seguimiento es adecuada? | T10: ¿Se cuenta con evidencias de la ejecución y seguimiento del control? | U10: ¿En el tiempo que lleva la herramienta ha demostrado ser efectiva? | W10: RIESGO CONTROLADO | X10: PROBABILIDAD | Y10: RIESGO CONTROLADO | Z10: IMPACTO | AB10: PERIODO DE EJECUCIÓN | AC10: ACCIONES | AD10: REGISTRO | AE10: FECHA | AF10: ACCIONES | AG10: RESPONSABLES | AH10: INDICADOR
B11: Gestión de Docencia | D11: Garantizar que los planes de estudio establecidos para cada proyecto curricular, ofrezcan al estudiante de la UDFJC una formación integral y de calidad, dirigida fundamentalmente a las necesidades de la sociedad, contando con la cantidad e idoneidad de docentes y demás personal que influya directamente en tal proceso de formación, garantizando que se ejecute eficientemente el proceso de enseñanza. | E11: Omisión de los requisitos legales para el nombramiento o contratación de la persona. | G11: Incumplimiento de los Procedimientos de la Contratación y fraude en Convocatoria y Selección de Docentes. | H11: Procesos de Selección y Contratación de Docentes manipulados por el clientelismo, amiguismo y concentración de poder sin garantizar igualdad de condiciones a los inscritos. | I11: Falta de garantías para la igualdad de condiciones a los inscritos. | J11: Posible - 3 | K11: Mayor - 10 | L11: =IF(AND(J11=[50]Datos!$B$212,K11=[50]Datos!$B$219),[50]Datos!$D$216,IF(AND(J11=[50]Datos!$B$212,K11=[50]Datos!$B$220),[50]Datos!$E$216,IF(AND(J11=[50]Datos!$B$212,K11=[50]Datos!$B$221),[50]Datos!$F$216,IF(AND(J11=[50]Datos!$B$213,K11=[50]Datos!$B$219),[50]Datos!$D$215,IF(AND(J11=[50]Datos!$B$213,K11=[50]Datos!$B$220),[50]Datos!$E$215,IF(AND(J11=[50]Datos!$B$213,K11=[50]Datos!$B$221),[50]Datos!$F$215,IF(AND(J11=[50]Datos!$B$214,K11=[50]Datos!$B$219),[50]Datos!$D$214,IF(AND(J11=[50]Datos!$B$214,K11=[50]Datos!$B$220),[50]Datos!$E$214,IF(AND(J11=[50]Datos!$B$214,K11=[50]Datos!$B$221),[50]Datos!$F$214,IF(AND(J11=[50]Datos!$B$215,K11=[50]Datos!$B$219),[50]Datos!$D$213,IF(AND(J11=[50]Datos!$B$215,K11=[50]Datos!$B$220),[50]Datos!$E$213,IF(AND(J11=[50]Datos!$B$215,K11=[50]Datos!$B$221),[50]Datos!$F$213,IF(AND(J11=[50]Datos!$B$216,K11=[50]Datos!$B$219),[50]Datos!$D$212,IF(AND(J11=[50]Datos!$B$216,K11=[50]Datos!$B$220),[50]Datos!$E$212,IF(AND(J11=[50]Datos!$B$216,K11=[50]Datos!$B$221),[50]Datos!$F$212,"-"))))))))))))))) -> ALTA 30 | M11: Verificación y aprobación de perfiles antes de la publicación. | N11: Preventivo | O11: Sí - 15 | P11: Sí - 5 | Q11: No - 0 | R11: Sí - 10 | S11: Sí - 15 | T11: Sí - 10 | U11: Sí - 30 | V11: =((IF(O11=[50]Datos!$B$233,15,0))/100)+((IF(P11=[50]Datos!$B$229,5,0))/100)+((IF(Q11=[50]Datos!$B$233,15,0))/100)+((IF(R11=[50]Datos!$B$231,10,0))/100)+((IF(S11=[50]Datos!$B$233,15,0))/100)+((IF(T11=[50]Datos!$B$231,10,0))/100)+((IF(U11=[50]Datos!$B$235,30,0))/100) -> 0.85 | W11: =IF(ISERROR(((IF(N11=[50]Datos!$B$224,V11,0))+(IF(N12=[50]Datos!$B$224,V12,0))+(IF(N13=[50]Datos!$B$224,V13,0))+(IF(N14=[50]Datos!$B$224,V14,0))+(IF(N15=[50]Datos!$B$224,V15,0))+(IF(N16=[50]Datos!$B$224,V16,0)))/((IF(N11=[50]Datos!$B$224,1,0))+(IF(N12=[50]Datos!$B$224,1,0))+(IF(N13=[50]Datos!$B$224,1,0))+(IF(N14=[50]Datos!$B$224,1,0))+(IF(N15=[50]Datos!$B$224,1,0))+(IF(N16=[50]Datos!$B$224,1,0)))),0,(((IF(N11=[50]Datos!$B$224,V11,0))+(IF(N12=[50]Datos!$B$224,V12,0))+(IF(N13=[50]Datos!$B$224,V13,0))+(IF(N14=[50]Datos!$B$224,V14,0))+(IF(N15=[50]Datos!$B$224,V15,0))+(IF(N16=[50]Datos!$B$224,V16,0)))/((IF(N11=[50]Datos!$B$224,1,0))+(IF(N12=[50]Datos!$B$224,1,0))+(IF(N13=[50]Datos!$B$224,1,0))+(IF(N14=[50]Datos!$B$224,1,0))+(IF(N15=[50]Datos!$B$224,1,0))+(IF(N16=[50]Datos!$B$224,1,0))))) -> 0.85 | X11: =IF(J11="","-",(IF(W11>0,(IF(J11=[50]Datos!$B$212,[50]Datos!$B$212,IF(AND(J11=[50]Datos!$B$213,W11>0.49),[50]Datos!$B$212,IF(AND(J11=[50]Datos!$B$214,W11>0.74),[50]Datos!$B$212,IF(AND(J11=[50]Datos!$B$214,W11<0.75,W11>0.49),[50]Datos!$B$213,IF(AND(J11=[50]Datos!$B$215,W11>0.74),[50]Datos!$B$213,IF(AND(J11=[50]Datos!$B$215,W11<0.75,W11>0.49),[50]Datos!$B$214,IF(AND(J11=[50]Datos!$B$216,W11>0.74),[50]Datos!$B$214,IF(AND(J11=[50]Datos!$B$216,W11<0.75,W11>0.49),[50]Datos!$B$215,J11))))))))),J11))) -> Rara vez - 1 | Y11: =IF(ISERROR(((IF(N11=[50]Datos!$B$225,V11,0))+(IF(N12=[50]Datos!$B$225,V12,0))+(IF(N13=[50]Datos!$B$225,V13,0))+(IF(N14=[50]Datos!$B$225,V14,0))+(IF(N15=[50]Datos!$B$225,V15,0))+(IF(N16=[50]Datos!$B$225,V16,0))+(IF(N11=[50]Datos!$B$226,V11,0))+(IF(N12=[50]Datos!$B$226,V12,0))+(IF(N13=[50]Datos!$B$226,V13,0))+(IF(N14=[50]Datos!$B$226,V14,0))+(IF(N15=[50]Datos!$B$226,V15,0))+(IF(N16=[50]Datos!$B$226,V16,0)))/((IF(N11=[50]Datos!$B$225,1,0))+(IF(N12=[50]Datos!$B$225,1,0))+(IF(N13=[50]Datos!$B$225,1,0))+(IF(N14=[50]Datos!$B$225,1,0))+(IF(N15=[50]Datos!$B$225,1,0))+(IF(N16=[50]Datos!$B$225,1,0))+(IF(N11=[50]Datos!$B$226,1,0))+(IF(N12=[50]Datos!$B$226,1,0))+(IF(N13=[50]Datos!$B$226,1,0))+(IF(N14=[50]Datos!$B$226,1,0))+(IF(N15=[50]Datos!$B$226,1,0))+(IF(N16=[50]Datos!$B$226,1,0)))),0,((IF(N11=[50]Datos!$B$225,V11,0))+(IF(N12=[50]Datos!$B$225,V12,0))+(IF(N13=[50]Datos!$B$225,V13,0))+(IF(N14=[50]Datos!$B$225,V14,0))+(IF(N15=[50]Datos!$B$225,V15,0))+(IF(N16=[50]Datos!$B$225,V16,0))+(IF(N11=[50]Datos!$B$226,V11,0))+(IF(N12=[50]Datos!$B$226,V12,0))+(IF(N13=[50]Datos!$B$226,V13,0))+(IF(N14=[50]Datos!$B$226,V14,0))+(IF(N15=[50]Datos!$B$226,V15,0))+(IF(N16=[50]Datos!$B$226,V16,0)))/((IF(N11=[50]Datos!$B$225,1,0))+(IF(N12=[50]Datos!$B$225,1,0))+(IF(N13=[50]Datos!$B$225,1,0))+(IF(N14=[50]Datos!$B$225,1,0))+(IF(N15=[50]Datos!$B$225,1,0))+(IF(N16=[50]Datos!$B$225,1,0))+(IF(N11=[50]Datos!$B$226,1,0))+(IF(N12=[50]Datos!$B$226,1,0))+(IF(N13=[50]Datos!$B$226,1,0))+(IF(N14=[50]Datos!$B$226,1,0))+(IF(N15=[50]Datos!$B$226,1,0))+(IF(N16=[50]Datos!$B$226,1,0)))) -> 0.6 | Z11: =IF(K11="","-",(IF(Y11>0,(IF(K11=[50]Datos!$B$219,[50]Datos!$B$219,IF(AND(K11=[50]Datos!$B$220,Y11>0.49),[50]Datos!$B$219,IF(AND(K11=[50]Datos!$B$221,Y11>0.74),[50]Datos!$B$219,IF(AND(K11=[50]Datos!$B$221,Y11<0.75,Y11>0.49),[50]Datos!$B$220,IF(AND(K11=[50]Datos!$B$222,Y11>0.74),[50]Datos!$B$220,IF(AND(K11=[50]Datos!$B$222,Y11<0.75,Y11>0.49),[50]Datos!$B$221,IF(AND(K11=[50]Datos!$B$223,Y11>0.74),[50]Datos!$B$221,IF(AND(K11=[50]Datos!$B$223,Y11<0.75,Y11>0.49),[50]Datos!$B$222,K11))))))))),K11))) -> Moderado - 5 | AA11: =IF(AND(X11=[50]Datos!$B$212,Z11=[50]Datos!$B$219),[50]Datos!$D$216,IF(AND(X11=[50]Datos!$B$212,Z11=[50]Datos!$B$220),[50]Datos!$E$216,IF(AND(X11=[50]Datos!$B$212,Z11=[50]Datos!$B$221),[50]Datos!$F$216,IF(AND(X11=[50]Datos!$B$213,Z11=[50]Datos!$B$219),[50]Datos!$D$215,IF(AND(X11=[50]Datos!$B$213,Z11=[50]Datos!$B$220),[50]Datos!$E$215,IF(AND(X11=[50]Datos!$B$213,Z11=[50]Datos!$B$221),[50]Datos!$F$215,IF(AND(X11=[50]Datos!$B$214,Z11=[50]Datos!$B$219),[50]Datos!$D$214,IF(AND(X11=[50]Datos!$B$214,Z11=[50]Datos!$B$220),[50]Datos!$E$214,IF(AND(X11=[50]Datos!$B$214,Z11=[50]Datos!$B$221),[50]Datos!$F$214,IF(AND(X11=[50]Datos!$B$215,Z11=[50]Datos!$B$219),[50]Datos!$D$213,IF(AND(X11=[50]Datos!$B$215,Z11=[50]Datos!$B$220),[50]Datos!$E$213,IF(AND(X11=[50]Datos!$B$215,Z11=[50]Datos!$B$221),[50]Datos!$F$213,IF(AND(X11=[50]Datos!$B$216,Z11=[50]Datos!$B$219),[50]Datos!$D$212,IF(AND(X11=[50]Datos!$B$216,Z11=[50]Datos!$B$220),[50]Datos!$E$212,IF(AND(X11=[50]Datos!$B$216,Z11=[50]Datos!$B$221),[50]Datos!$F$212,"-"))))))))))))))) -> BAJA 5
E12: Uso de la información institucional para beneficios personales. | I12: Afecta la calidad académica de la Universidad debido a que el Docente seleccionado no cumple el perfil requerido. | M12: Acompañamiento del Asesor Jurídico. | N12: Preventivo | O12: Sí - 15 | P12: Sí - 5 | Q12: No - 0 | R12: Sí - 10 | S12: Sí - 15 | T12: Sí - 10 | U12: Sí - 30 | V12: =((IF(O12=[50]Datos!$B$233,15,0))/100)+((IF(P12=[50]Datos!$B$229,5,0))/100)+((IF(Q12=[50]Datos!$B$233,15,0))/100)+((IF(R12=[50]Datos!$B$231,10,0))/100)+((IF(S12=[50]Datos!$B$233,15,0))/100)+((IF(T12=[50]Datos!$B$231,10,0))/100)+((IF(U12=[50]Datos!$B$235,30,0))/100) -> 0.85
E13: Concentración de autoridad o abuso de poder. | I13: Mala imagen de la Universidad. | M13: Revisión de los resultados de las convocatorias por parte de la Decanatura (contraste entre el Docente seleccionado y el perfil aprobado). | N13: Detectivo | O13: No - 0 | P13: Sí - 5 | Q13: No - 0 | R13: Sí - 10 | S13: Sí - 15 | T13: No - 0 | U13: Sí - 30 | V13: =((IF(O13=[50]Datos!$B$233,15,0))/100)+((IF(P13=[50]Datos!$B$229,5,0))/100)+((IF(Q13=[50]Datos!$B$233,15,0))/100)+((IF(R13=[50]Datos!$B$231,10,0))/100)+((IF(S13=[50]Datos!$B$233,15,0))/100)+((IF(T13=[50]Datos!$B$231,10,0))/100)+((IF(U13=[50]Datos!$B$235,30,0))/100) -> 0.6
E14: Favorecimiento personal o de un tercero (clientelismo). | I14: Demanda a la institución, procesos disciplinarios y jurídicos. | V14: =((IF(O14=[50]Datos!$B$233,15,0))/100)+((IF(P14=[50]Datos!$B$229,5,0))/100)+((IF(Q14=[50]Datos!$B$233,15,0))/100)+((IF(R14=[50]Datos!$B$231,10,0))/100)+((IF(S14=[50]Datos!$B$233,15,0))/100)+((IF(T14=[50]Datos!$B$231,10,0))/100)+((IF(U14=[50]Datos!$B$235,30,0))/100) -> 0
E15: Criterios de selección y contratación sin controles pertinentes. | V15: =((IF(O15=[50]Datos!$B$233,15,0))/100)+((IF(P15=[50]Datos!$B$229,5,0))/100)+((IF(Q15=[50]Datos!$B$233,15,0))/100)+((IF(R15=[50]Datos!$B$231,10,0))/100)+((IF(S15=[50]Datos!$B$233,15,0))/100)+((IF(T15=[50]Datos!$B$231,10,0))/100)+((IF(U15=[50]Datos!$B$235,30,0))/100) -> 0
E16: Falta de ética de los funcionarios y aspirantes. | V16: =((IF(O16=[50]Datos!$B$233,15,0))/100)+((IF(P16=[50]Datos!$B$229,5,0))/100)+((IF(Q16=[50]Datos!$B$233,15,0))/100)+((IF(R16=[50]Datos!$B$231,10,0))/100)+((IF(S16=[50]Datos!$B$233,15,0))/100)+((IF(T16=[50]Datos!$B$231,10,0))/100)+((IF(U16=[50]Datos!$B$235,30,0))/100) -> 0
B17: Gestión de Docencia | D17: Garantizar que los planes de estudio establecidos para cada proyecto curricular, ofrezcan al estudiante de la UDFJC una formación integral y de calidad, dirigida fundamentalmente a las necesidades de la sociedad, contando con la cantidad e idoneidad de docentes y demás personal que influya directamente en tal proceso de formación, garantizando que se ejecute eficientemente el proceso de enseñanza. | E17: Ejecución de gastos no autorizados, autorización de compras innecesarias. | G17: Despilfarro de recursos públicos. | H17: Utilización de recursos económicos de forma incorrecta de tal manera que no cumpla con la prestación de los servicios establecidos en el Proceso de Gestión de Docencia. | I17: Desfinanciamiento de algunas actividades. | J17: Posible - 3 | K17: Catastrófico - 20 | L17: =IF(AND(J17=[50]Datos!$B$212,K17=[50]Datos!$B$219),[50]Datos!$D$216,IF(AND(J17=[50]Datos!$B$212,K17=[50]Datos!$B$220),[50]Datos!$E$216,IF(AND(J17=[50]Datos!$B$212,K17=[50]Datos!$B$221),[50]Datos!$F$216,IF(AND(J17=[50]Datos!$B$213,K17=[50]Datos!$B$219),[50]Datos!$D$215,IF(AND(J17=[50]Datos!$B$213,K17=[50]Datos!$B$220),[50]Datos!$E$215,IF(AND(J17=[50]Datos!$B$213,K17=[50]Datos!$B$221),[50]Datos!$F$215,IF(AND(J17=[50]Datos!$B$214,K17=[50]Datos!$B$219),[50]Datos!$D$214,IF(AND(J17=[50]Datos!$B$214,K17=[50]Datos!$B$220),[50]Datos!$E$214,IF(AND(J17=[50]Datos!$B$214,K17=[50]Datos!$B$221),[50]Datos!$F$214,IF(AND(J17=[50]Datos!$B$215,K17=[50]Datos!$B$219),[50]Datos!$D$213,IF(AND(J17=[50]Datos!$B$215,K17=[50]Datos!$B$220),[50]Datos!$E$213,IF(AND(J17=[50]Datos!$B$215,K17=[50]Datos!$B$221),[50]Datos!$F$213,IF(AND(J17=[50]Datos!$B$216,K17=[50]Datos!$B$219),[50]Datos!$D$212,IF(AND(J17=[50]Datos!$B$216,K17=[50]Datos!$B$220),[50]Datos!$E$212,IF(AND(J17=[50]Datos!$B$216,K17=[50]Datos!$B$221),[50]Datos!$F$212,"-"))))))))))))))) -> EXTREMA 60 | M17: Verificación de la coherencia entre los objetos y rubros afectados por parte de dependencias competentes (Presupuesto, recursos humanos, jurídica, oficina de docencia, decanaturas, entre otras). | N17: Preventivo | O17: Sí - 15 | P17: Sí - 5 | Q17: No - 0 | R17: Sí - 10 | S17: Sí - 15 | T17: Sí - 10 | U17: Sí - 30 | V17: =((IF(O17=[50]Datos!$B$233,15,0))/100)+((IF(P17=[50]Datos!$B$229,5,0))/100)+((IF(Q17=[50]Datos!$B$233,15,0))/100)+((IF(R17=[50]Datos!$B$231,10,0))/100)+((IF(S17=[50]Datos!$B$233,15,0))/100)+((IF(T17=[50]Datos!$B$231,10,0))/100)+((IF(U17=[50]Datos!$B$235,30,0))/100) -> 0.85 | W17: =IF(ISERROR(((IF(N17=[50]Datos!$B$224,V17,0))+(IF(N18=[50]Datos!$B$224,V18,0))+(IF(N19=[50]Datos!$B$224,V19,0))+(IF(N20=[50]Datos!$B$224,V20,0))+(IF(N21=[50]Datos!$B$224,V21,0))+(IF(N22=[50]Datos!$B$224,V22,0)))/((IF(N17=[50]Datos!$B$224,1,0))+(IF(N18=[50]Datos!$B$224,1,0))+(IF(N19=[50]Datos!$B$224,1,0))+(IF(N20=[50]Datos!$B$224,1,0))+(IF(N21=[50]Datos!$B$224,1,0))+(IF(N22=[50]Datos!$B$224,1,0)))),0,(((IF(N17=[50]Datos!$B$224,V17,0))+(IF(N18=[50]Datos!$B$224,V18,0))+(IF(N19=[50]Datos!$B$224,V19,0))+(IF(N20=[50]Datos!$B$224,V20,0))+(IF(N21=[50]Datos!$B$224,V21,0))+(IF(N22=[50]Datos!$B$224,V22,0)))/((IF(N17=[50]Datos!$B$224,1,0))+(IF(N18=[50]Datos!$B$224,1,0))+(IF(N19=[50]Datos!$B$224,1,0))+(IF(N20=[50]Datos!$B$224,1,0))+(IF(N21=[50]Datos!$B$224,1,0))+(IF(N22=[50]Datos!$B$224,1,0))))) -> 0.85 | X17: =IF(J17="","-",(IF(W17>0,(IF(J17=[50]Datos!$B$212,[50]Datos!$B$212,IF(AND(J17=[50]Datos!$B$213,W17>0.49),[50]Datos!$B$212,IF(AND(J17=[50]Datos!$B$214,W17>0.74),[50]Datos!$B$212,IF(AND(J17=[50]Datos!$B$214,W17<0.75,W17>0.49),[50]Datos!$B$213,IF(AND(J17=[50]Datos!$B$215,W17>0.74),[50]Datos!$B$213,IF(AND(J17=[50]Datos!$B$215,W17<0.75,W17>0.49),[50]Datos!$B$214,IF(AND(J17=[50]Datos!$B$216,W17>0.74),[50]Datos!$B$214,IF(AND(J17=[50]Datos!$B$216,W17<0.75,W17>0.49),[50]Datos!$B$215,J17))))))))),J17))) -> Rara vez - 1 | Y17: =IF(ISERROR(((IF(N17=[50]Datos!$B$225,V17,0))+(IF(N18=[50]Datos!$B$225,V18,0))+(IF(N19=[50]Datos!$B$225,V19,0))+(IF(N20=[50]Datos!$B$225,V20,0))+(IF(N21=[50]Datos!$B$225,V21,0))+(IF(N22=[50]Datos!$B$225,V22,0))+(IF(N17=[50]Datos!$B$226,V17,0))+(IF(N18=[50]Datos!$B$226,V18,0))+(IF(N19=[50]Datos!$B$226,V19,0))+(IF(N20=[50]Datos!$B$226,V20,0))+(IF(N21=[50]Datos!$B$226,V21,0))+(IF(N22=[50]Datos!$B$226,V22,0)))/((IF(N17=[50]Datos!$B$225,1,0))+(IF(N18=[50]Datos!$B$225,1,0))+(IF(N19=[50]Datos!$B$225,1,0))+(IF(N20=[50]Datos!$B$225,1,0))+(IF(N21=[50]Datos!$B$225,1,0))+(IF(N22=[50]Datos!$B$225,1,0))+(IF(N17=[50]Datos!$B$226,1,0))+(IF(N18=[50]Datos!$B$226,1,0))+(IF(N19=[50]Datos!$B$226,1,0))+(IF(N20=[50]Datos!$B$226,1,0))+(IF(N21=[50]Datos!$B$226,1,0))+(IF(N22=[50]Datos!$B$226,1,0)))),0,((IF(N17=[50]Datos!$B$225,V17,0))+(IF(N18=[50]Datos!$B$225,V18,0))+(IF(N19=[50]Datos!$B$225,V19,0))+(IF(N20=[50]Datos!$B$225,V20,0))+(IF(N21=[50]Datos!$B$225,V21,0))+(IF(N22=[50]Datos!$B$225,V22,0))+(IF(N17=[50]Datos!$B$226,V17,0))+(IF(N18=[50]Datos!$B$226,V18,0))+(IF(N19=[50]Datos!$B$226,V19,0))+(IF(N20=[50]Datos!$B$226,V20,0))+(IF(N21=[50]Datos!$B$226,V21,0))+(IF(N22=[50]Datos!$B$226,V22,0)))/((IF(N17=[50]Datos!$B$225,1,0))+(IF(N18=[50]Datos!$B$225,1,0))+(IF(N19=[50]Datos!$B$225,1,0))+(IF(N20=[50]Datos!$B$225,1,0))+(IF(N21=[50]Datos!$B$225,1,0))+(IF(N22=[50]Datos!$B$225,1,0))+(IF(N17=[50]Datos!$B$226,1,0))+(IF(N18=[50]Datos!$B$226,1,0))+(IF(N19=[50]Datos!$B$226,1,0))+(IF(N20=[50]Datos!$B$226,1,0))+(IF(N21=[50]Datos!$B$226,1,0))+(IF(N22=[50]Datos!$B$226,1,0)))) -> 0.85 | Z17: =IF(K17="","-",(IF(Y17>0,(IF(K17=[50]Datos!$B$219,[50]Datos!$B$219,IF(AND(K17=[50]Datos!$B$220,Y17>0.49),[50]Datos!$B$219,IF(AND(K17=[50]Datos!$B$221,Y17>0.74),[50]Datos!$B$219,IF(AND(K17=[50]Datos!$B$221,Y17<0.75,Y17>0.49),[50]Datos!$B$220,IF(AND(K17=[50]Datos!$B$222,Y17>0.74),[50]Datos!$B$220,IF(AND(K17=[50]Datos!$B$222,Y17<0.75,Y17>0.49),[50]Datos!$B$221,IF(AND(K17=[50]Datos!$B$223,Y17>0.74),[50]Datos!$B$221,IF(AND(K17=[50]Datos!$B$223,Y17<0.75,Y17>0.49),[50]Datos!$B$222,K17))))))))),K17))) -> Moderado - 5 | AA17: =IF(AND(X17=[50]Datos!$B$212,Z17=[50]Datos!$B$219),[50]Datos!$D$216,IF(AND(X17=[50]Datos!$B$212,Z17=[50]Datos!$B$220),[50]Datos!$E$216,IF(AND(X17=[50]Datos!$B$212,Z17=[50]Datos!$B$221),[50]Datos!$F$216,IF(AND(X17=[50]Datos!$B$213,Z17=[50]Datos!$B$219),[50]Datos!$D$215,IF(AND(X17=[50]Datos!$B$213,Z17=[50]Datos!$B$220),[50]Datos!$E$215,IF(AND(X17=[50]Datos!$B$213,Z17=[50]Datos!$B$221),[50]Datos!$F$215,IF(AND(X17=[50]Datos!$B$214,Z17=[50]Datos!$B$219),[50]Datos!$D$214,IF(AND(X17=[50]Datos!$B$214,Z17=[50]Datos!$B$220),[50]Datos!$E$214,IF(AND(X17=[50]Datos!$B$214,Z17=[50]Datos!$B$221),[50]Datos!$F$214,IF(AND(X17=[50]Datos!$B$215,Z17=[50]Datos!$B$219),[50]Datos!$D$213,IF(AND(X17=[50]Datos!$B$215,Z17=[50]Datos!$B$220),[50]Datos!$E$213,IF(AND(X17=[50]Datos!$B$215,Z17=[50]Datos!$B$221),[50]Datos!$F$213,IF(AND(X17=[50]Datos!$B$216,Z17=[50]Datos!$B$219),[50]Datos!$D$212,IF(AND(X17=[50]Datos!$B$216,Z17=[50]Datos!$B$220),[50]Datos!$E$212,IF(AND(X17=[50]Datos!$B$216,Z17=[50]Datos!$B$221),[50]Datos!$F$212,"-"))))))))))))))) -> BAJA 5
E18: Sobrecostos en la adquisición de los bienes y servicios. | I18: Acciones legales. | M18: Seguimiento a los planes de acción (en cuanto a qué se programa y qué se ejecuta). | N18: Preventivo | O18: Sí - 15 | P18: Sí - 5 | Q18: No - 0 | R18: Sí - 10 | S18: Sí - 15 | T18: Sí - 10 | U18: Sí - 30 | V18: =((IF(O18=[50]Datos!$B$233,15,0))/100)+((IF(P18=[50]Datos!$B$229,5,0))/100)+((IF(Q18=[50]Datos!$B$233,15,0))/100)+((IF(R18=[50]Datos!$B$231,10,0))/100)+((IF(S18=[50]Datos!$B$233,15,0))/100)+((IF(T18=[50]Datos!$B$231,10,0))/100)+((IF(U18=[50]Datos!$B$235,30,0))/100) -> 0.85
E19: Inclusión de gastos no autorizados. | I19: Desfavorecimiento de la imagen institucional. | M19: Decanatura revisa las solicitudes presupuestales de los proyectos curriculares y demás unidades académicas. | N19: Detectivo | O19: Sí - 15 | P19: Sí - 5 | Q19: No - 0 | R19: Sí - 10 | S19: Sí - 15 | T19: Sí - 10 | U19: Sí - 30 | V19: =((IF(O19=[50]Datos!$B$233,15,0))/100)+((IF(P19=[50]Datos!$B$229,5,0))/100)+((IF(Q19=[50]Datos!$B$233,15,0))/100)+((IF(R19=[50]Datos!$B$231,10,0))/100)+((IF(S19=[50]Datos!$B$233,15,0))/100)+((IF(T19=[50]Datos!$B$231,10,0))/100)+((IF(U19=[50]Datos!$B$235,30,0))/100) -> 0.85
E20: Afectar rubros que no corresponden con el objeto del gasto. | I20: Perdida de la percepción de transparencia. | M20: Auditorías internas y externas. | N20: Detectivo | O20: Sí - 15 | P20: Sí - 5 | Q20: No - 0 | R20: Sí - 10 | S20: Sí - 15 | T20: Sí - 10 | U20: Sí - 30 | V20: =((IF(O20=[50]Datos!$B$233,15,0))/100)+((IF(P20=[50]Datos!$B$229,5,0))/100)+((IF(Q20=[50]Datos!$B$233,15,0))/100)+((IF(R20=[50]Datos!$B$231,10,0))/100)+((IF(S20=[50]Datos!$B$233,15,0))/100)+((IF(T20=[50]Datos!$B$231,10,0))/100)+((IF(U20=[50]Datos!$B$235,30,0))/100) -> 0.85
E21: Debilidad en los mecanismos de control para la ejecución del presupuesto. | I21: Disminución de la calidad por uso incorrecto de recursos públicos. | V21: =((IF(O21=[50]Datos!$B$233,15,0))/100)+((IF(P21=[50]Datos!$B$229,5,0))/100)+((IF(Q21=[50]Datos!$B$233,15,0))/100)+((IF(R21=[50]Datos!$B$231,10,0))/100)+((IF(S21=[50]Datos!$B$233,15,0))/100)+((IF(T21=[50]Datos!$B$231,10,0))/100)+((IF(U21=[50]Datos!$B$235,30,0))/100) -> 0
E22: Afectar los rubros en la adquisición de bienes y servicios innecesarios o no priorizados. | I22: Detrimento patrimonial. | V22: =((IF(O22=[50]Datos!$B$233,15,0))/100)+((IF(P22=[50]Datos!$B$229,5,0))/100)+((IF(Q22=[50]Datos!$B$233,15,0))/100)+((IF(R22=[50]Datos!$B$231,10,0))/100)+((IF(S22=[50]Datos!$B$233,15,0))/100)+((IF(T22=[50]Datos!$B$231,10,0))/100)+((IF(U22=[50]Datos!$B$235,30,0))/100) -> 0
B23: Gestión de Docencia | D23: Garantizar que los planes de estudio establecidos para cada proyecto curricular, ofrezcan al estudiante de la UDFJC una formación integral y de calidad, dirigida fundamentalmente a las necesidades de la sociedad, contando con la cantidad e idoneidad de docentes y demás personal que influya directamente en tal proceso de formación, garantizando que se ejecute eficientemente el proceso de enseñanza. | E23: Desconocimiento de la reglamentación institucional. | G23: Incumplimiento de los reglamentos y normatividad interna. | H23: Desobediencia de los reglamentos y normatividad establecida por la Universidad por abstención, omisión, infracción o violación. | I23: Acciones legales. | J23: Posible - 3 | K23: Catastrófico - 20 | L23: =IF(AND(J23=[50]Datos!$B$212,K23=[50]Datos!$B$219),[50]Datos!$D$216,IF(AND(J23=[50]Datos!$B$212,K23=[50]Datos!$B$220),[50]Datos!$E$216,IF(AND(J23=[50]Datos!$B$212,K23=[50]Datos!$B$221),[50]Datos!$F$216,IF(AND(J23=[50]Datos!$B$213,K23=[50]Datos!$B$219),[50]Datos!$D$215,IF(AND(J23=[50]Datos!$B$213,K23=[50]Datos!$B$220),[50]Datos!$E$215,IF(AND(J23=[50]Datos!$B$213,K23=[50]Datos!$B$221),[50]Datos!$F$215,IF(AND(J23=[50]Datos!$B$214,K23=[50]Datos!$B$219),[50]Datos!$D$214,IF(AND(J23=[50]Datos!$B$214,K23=[50]Datos!$B$220),[50]Datos!$E$214,IF(AND(J23=[50]Datos!$B$214,K23=[50]Datos!$B$221),[50]Datos!$F$214,IF(AND(J23=[50]Datos!$B$215,K23=[50]Datos!$B$219),[50]Datos!$D$213,IF(AND(J23=[50]Datos!$B$215,K23=[50]Datos!$B$220),[50]Datos!$E$213,IF(AND(J23=[50]Datos!$B$215,K23=[50]Datos!$B$221),[50]Datos!$F$213,IF(AND(J23=[50]Datos!$B$216,K23=[50]Datos!$B$219),[50]Datos!$D$212,IF(AND(J23=[50]Datos!$B$216,K23=[50]Datos!$B$220),[50]Datos!$E$212,IF(AND(J23=[50]Datos!$B$216,K23=[50]Datos!$B$221),[50]Datos!$F$212,"-"))))))))))))))) -> EXTREMA 60 | M23: Socialización de la norma a través de correo electrónico. | N23: Preventivo | O23: Sí - 15 | P23: Sí - 5 | Q23: No - 0 | R23: Sí - 10 | S23: Sí - 15 | T23: Sí - 10 | U23: No - 0 | V23: =((IF(O23=[50]Datos!$B$233,15,0))/100)+((IF(P23=[50]Datos!$B$229,5,0))/100)+((IF(Q23=[50]Datos!$B$233,15,0))/100)+((IF(R23=[50]Datos!$B$231,10,0))/100)+((IF(S23=[50]Datos!$B$233,15,0))/100)+((IF(T23=[50]Datos!$B$231,10,0))/100)+((IF(U23=[50]Datos!$B$235,30,0))/100) -> 0.55 | W23: =IF(ISERROR(((IF(N23=[50]Datos!$B$224,V23,0))+(IF(N24=[50]Datos!$B$224,V24,0))+(IF(N25=[50]Datos!$B$224,V25,0))+(IF(N26=[50]Datos!$B$224,V26,0))+(IF(N27=[50]Datos!$B$224,V27,0))+(IF(N28=[50]Datos!$B$224,V28,0)))/((IF(N23=[50]Datos!$B$224,1,0))+(IF(N24=[50]Datos!$B$224,1,0))+(IF(N25=[50]Datos!$B$224,1,0))+(IF(N26=[50]Datos!$B$224,1,0))+(IF(N27=[50]Datos!$B$224,1,0))+(IF(N28=[50]Datos!$B$224,1,0)))),0,(((IF(N23=[50]Datos!$B$224,V23,0))+(IF(N24=[50]Datos!$B$224,V24,0))+(IF(N25=[50]Datos!$B$224,V25,0))+(IF(N26=[50]Datos!$B$224,V26,0))+(IF(N27=[50]Datos!$B$224,V27,0))+(IF(N28=[50]Datos!$B$224,V28,0)))/((IF(N23=[50]Datos!$B$224,1,0))+(IF(N24=[50]Datos!$B$224,1,0))+(IF(N25=[50]Datos!$B$224,1,0))+(IF(N26=[50]Datos!$B$224,1,0))+(IF(N27=[50]Datos!$B$224,1,0))+(IF(N28=[50]Datos!$B$224,1,0))))) -> 0.55 | X23: =IF(J23="","-",(IF(W23>0,(IF(J23=[50]Datos!$B$212,[50]Datos!$B$212,IF(AND(J23=[50]Datos!$B$213,W23>0.49),[50]Datos!$B$212,IF(AND(J23=[50]Datos!$B$214,W23>0.74),[50]Datos!$B$212,IF(AND(J23=[50]Datos!$B$214,W23<0.75,W23>0.49),[50]Datos!$B$213,IF(AND(J23=[50]Datos!$B$215,W23>0.74),[50]Datos!$B$213,IF(AND(J23=[50]Datos!$B$215,W23<0.75,W23>0.49),[50]Datos!$B$214,IF(AND(J23=[50]Datos!$B$216,W23>0.74),[50]Datos!$B$214,IF(AND(J23=[50]Datos!$B$216,W23<0.75,W23>0.49),[50]Datos!$B$215,J23))))))))),J23))) -> Improbable - 2 | Y23: =IF(ISERROR(((IF(N23=[50]Datos!$B$225,V23,0))+(IF(N24=[50]Datos!$B$225,V24,0))+(IF(N25=[50]Datos!$B$225,V25,0))+(IF(N26=[50]Datos!$B$225,V26,0))+(IF(N27=[50]Datos!$B$225,V27,0))+(IF(N28=[50]Datos!$B$225,V28,0))+(IF(N23=[50]Datos!$B$226,V23,0))+(IF(N24=[50]Datos!$B$226,V24,0))+(IF(N25=[50]Datos!$B$226,V25,0))+(IF(N26=[50]Datos!$B$226,V26,0))+(IF(N27=[50]Datos!$B$226,V27,0))+(IF(N28=[50]Datos!$B$226,V28,0)))/((IF(N23=[50]Datos!$B$225,1,0))+(IF(N24=[50]Datos!$B$225,1,0))+(IF(N25=[50]Datos!$B$225,1,0))+(IF(N26=[50]Datos!$B$225,1,0))+(IF(N27=[50]Datos!$B$225,1,0))+(IF(N28=[50]Datos!$B$225,1,0))+(IF(N23=[50]Datos!$B$226,1,0))+(IF(N24=[50]Datos!$B$226,1,0))+(IF(N25=[50]Datos!$B$226,1,0))+(IF(N26=[50]Datos!$B$226,1,0))+(IF(N27=[50]Datos!$B$226,1,0))+(IF(N28=[50]Datos!$B$226,1,0)))),0,((IF(N23=[50]Datos!$B$225,V23,0))+(IF(N24=[50]Datos!$B$225,V24,0))+(IF(N25=[50]Datos!$B$225,V25,0))+(IF(N26=[50]Datos!$B$225,V26,0))+(IF(N27=[50]Datos!$B$225,V27,0))+(IF(N28=[50]Datos!$B$225,V28,0))+(IF(N23=[50]Datos!$B$226,V23,0))+(IF(N24=[50]Datos!$B$226,V24,0))+(IF(N25=[50]Datos!$B$226,V25,0))+(IF(N26=[50]Datos!$B$226,V26,0))+(IF(N27=[50]Datos!$B$226,V27,0))+(IF(N28=[50]Datos!$B$226,V28,0)))/((IF(N23=[50]Datos!$B$225,1,0))+(IF(N24=[50]Datos!$B$225,1,0))+(IF(N25=[50]Datos!$B$225,1,0))+(IF(N26=[50]Datos!$B$225,1,0))+(IF(N27=[50]Datos!$B$225,1,0))+(IF(N28=[50]Datos!$B$225,1,0))+(IF(N23=[50]Datos!$B$226,1,0))+(IF(N24=[50]Datos!$B$226,1,0))+(IF(N25=[50]Datos!$B$226,1,0))+(IF(N26=[50]Datos!$B$226,1,0))+(IF(N27=[50]Datos!$B$226,1,0))+(IF(N28=[50]Datos!$B$226,1,0)))) -> 0.8166666667 | Z23: =IF(K23="","-",(IF(Y23>0,(IF(K23=[50]Datos!$B$219,[50]Datos!$B$219,IF(AND(K23=[50]Datos!$B$220,Y23>0.49),[50]Datos!$B$219,IF(AND(K23=[50]Datos!$B$221,Y23>0.74),[50]Datos!$B$219,IF(AND(K23=[50]Datos!$B$221,Y23<0.75,Y23>0.49),[50]Datos!$B$220,IF(AND(K23=[50]Datos!$B$222,Y23>0.74),[50]Datos!$B$220,IF(AND(K23=[50]Datos!$B$222,Y23<0.75,Y23>0.49),[50]Datos!$B$221,IF(AND(K23=[50]Datos!$B$223,Y23>0.74),[50]Datos!$B$221,IF(AND(K23=[50]Datos!$B$223,Y23<0.75,Y23>0.49),[50]Datos!$B$222,K23))))))))),K23))) -> Moderado - 5 | AA23: =IF(AND(X23=[50]Datos!$B$212,Z23=[50]Datos!$B$219),[50]Datos!$D$216,IF(AND(X23=[50]Datos!$B$212,Z23=[50]Datos!$B$220),[50]Datos!$E$216,IF(AND(X23=[50]Datos!$B$212,Z23=[50]Datos!$B$221),[50]Datos!$F$216,IF(AND(X23=[50]Datos!$B$213,Z23=[50]Datos!$B$219),[50]Datos!$D$215,IF(AND(X23=[50]Datos!$B$213,Z23=[50]Datos!$B$220),[50]Datos!$E$215,IF(AND(X23=[50]Datos!$B$213,Z23=[50]Datos!$B$221),[50]Datos!$F$215,IF(AND(X23=[50]Datos!$B$214,Z23=[50]Datos!$B$219),[50]Datos!$D$214,IF(AND(X23=[50]Datos!$B$214,Z23=[50]Datos!$B$220),[50]Datos!$E$214,IF(AND(X23=[50]Datos!$B$214,Z23=[50]Datos!$B$221),[50]Datos!$F$214,IF(AND(X23=[50]Datos!$B$215,Z23=[50]Datos!$B$219),[50]Datos!$D$213,IF(AND(X23=[50]Datos!$B$215,Z23=[50]Datos!$B$220),[50]Datos!$E$213,IF(AND(X23=[50]Datos!$B$215,Z23=[50]Datos!$B$221),[50]Datos!$F$213,IF(AND(X23=[50]Datos!$B$216,Z23=[50]Datos!$B$219),[50]Datos!$D$212,IF(AND(X23=[50]Datos!$B$216,Z23=[50]Datos!$B$220),[50]Datos!$E$212,IF(AND(X23=[50]Datos!$B$216,Z23=[50]Datos!$B$221),[50]Datos!$F$212,"-"))))))))))))))) -> BAJA 10
E24: Extralimitación de las funciones. | I24: Inoperancia en la ejecución de los Procesos. | M24: Auditorías internas. | N24: Detectivo | O24: Sí - 15 | P24: Sí - 5 | Q24: No - 0 | R24: Sí - 10 | S24: Sí - 15 | T24: Sí - 10 | U24: Sí - 30 | V24: =((IF(O24=[50]Datos!$B$233,15,0))/100)+((IF(P24=[50]Datos!$B$229,5,0))/100)+((IF(Q24=[50]Datos!$B$233,15,0))/100)+((IF(R24=[50]Datos!$B$231,10,0))/100)+((IF(S24=[50]Datos!$B$233,15,0))/100)+((IF(T24=[50]Datos!$B$231,10,0))/100)+((IF(U24=[50]Datos!$B$235,30,0))/100) -> 0.85
E25: Abuso de poder. | I25: Asignación de responsabilidades a quien no corresponde y descarga de las mismas a quienes deberían ejecutarlas. | M25: Supervisión de funciones a través de quejas y reclamos. | N25: Correctivo | O25: Sí - 15 | P25: Sí - 5 | Q25: No - 0 | R25: Sí - 10 | S25: Sí - 15 | T25: Sí - 10 | U25: Sí - 30 | V25: =((IF(O25=[50]Datos!$B$233,15,0))/100)+((IF(P25=[50]Datos!$B$229,5,0))/100)+((IF(Q25=[50]Datos!$B$233,15,0))/100)+((IF(R25=[50]Datos!$B$231,10,0))/100)+((IF(S25=[50]Datos!$B$233,15,0))/100)+((IF(T25=[50]Datos!$B$231,10,0))/100)+((IF(U25=[50]Datos!$B$235,30,0))/100) -> 0.85
E26: Desactualización del Sistema de Información referente a normativa de la Universidad y deficiencias en su diseño. | I26: Desorden administrativo. | M26: Supervisión de los jefes inmediatos. | N26: Detectivo | O26: Sí - 15 | P26: Sí - 5 | Q26: No - 0 | R26: Sí - 10 | S26: Sí - 15 | T26: No - 0 | U26: Sí - 30 | V26: =((IF(O26=[50]Datos!$B$233,15,0))/100)+((IF(P26=[50]Datos!$B$229,5,0))/100)+((IF(Q26=[50]Datos!$B$233,15,0))/100)+((IF(R26=[50]Datos!$B$231,10,0))/100)+((IF(S26=[50]Datos!$B$233,15,0))/100)+((IF(T26=[50]Datos!$B$231,10,0))/100)+((IF(U26=[50]Datos!$B$235,30,0))/100) -> 0.75
I27: Desagregación de funciones y definición de los niveles de autoridad. | V27: =((IF(O27=[50]Datos!$B$233,15,0))/100)+((IF(P27=[50]Datos!$B$229,5,0))/100)+((IF(Q27=[50]Datos!$B$233,15,0))/100)+((IF(R27=[50]Datos!$B$231,10,0))/100)+((IF(S27=[50]Datos!$B$233,15,0))/100)+((IF(T27=[50]Datos!$B$231,10,0))/100)+((IF(U27=[50]Datos!$B$235,30,0))/100) -> 0
V28: =((IF(O28=[50]Datos!$B$233,15,0))/100)+((IF(P28=[50]Datos!$B$229,5,0))/100)+((IF(Q28=[50]Datos!$B$233,15,0))/100)+((IF(R28=[50]Datos!$B$231,10,0))/100)+((IF(S28=[50]Datos!$B$233,15,0))/100)+((IF(T28=[50]Datos!$B$231,10,0))/100)+((IF(U28=[50]Datos!$B$235,30,0))/100) -> 0
B29: Gestión de Docencia | D29: Garantizar que los planes de estudio establecidos para cada proyecto curricular, ofrezcan al estudiante de la UDFJC una formación integral y de calidad, dirigida fundamentalmente a las necesidades de la sociedad, contando con la cantidad e idoneidad de docentes y demás personal que influya directamente en tal proceso de formación, garantizando que se ejecute eficientemente el proceso de enseñanza. | E29: Búsqueda de beneficios de diferente índole, a cambio de modificar las calificaciones de los estudiantes. | G29: Tráfico de notas. | H29: Recibir dadivas para la modificación de la información contenida en la plataforma institucional (notas) y/o de las certificaciones de los estudiantes favoreciendo a particulares. | I29: Procesos disciplinarios. | J29: Improbable - 2 | K29: Mayor - 10 | L29: =IF(AND(J29=[50]Datos!$B$212,K29=[50]Datos!$B$219),[50]Datos!$D$216,IF(AND(J29=[50]Datos!$B$212,K29=[50]Datos!$B$220),[50]Datos!$E$216,IF(AND(J29=[50]Datos!$B$212,K29=[50]Datos!$B$221),[50]Datos!$F$216,IF(AND(J29=[50]Datos!$B$213,K29=[50]Datos!$B$219),[50]Datos!$D$215,IF(AND(J29=[50]Datos!$B$213,K29=[50]Datos!$B$220),[50]Datos!$E$215,IF(AND(J29=[50]Datos!$B$213,K29=[50]Datos!$B$221),[50]Datos!$F$215,IF(AND(J29=[50]Datos!$B$214,K29=[50]Datos!$B$219),[50]Datos!$D$214,IF(AND(J29=[50]Datos!$B$214,K29=[50]Datos!$B$220),[50]Datos!$E$214,IF(AND(J29=[50]Datos!$B$214,K29=[50]Datos!$B$221),[50]Datos!$F$214,IF(AND(J29=[50]Datos!$B$215,K29=[50]Datos!$B$219),[50]Datos!$D$213,IF(AND(J29=[50]Datos!$B$215,K29=[50]Datos!$B$220),[50]Datos!$E$213,IF(AND(J29=[50]Datos!$B$215,K29=[50]Datos!$B$221),[50]Datos!$F$213,IF(AND(J29=[50]Datos!$B$216,K29=[50]Datos!$B$219),[50]Datos!$D$212,IF(AND(J29=[50]Datos!$B$216,K29=[50]Datos!$B$220),[50]Datos!$E$212,IF(AND(J29=[50]Datos!$B$216,K29=[50]Datos!$B$221),[50]Datos!$F$212,"-"))))))))))))))) -> MODERADA 20 | M29: Trazabilidad del uso del aplicativo (sistema de gestión académica). | N29: Detectivo | O29: Sí - 15 | P29: Sí - 5 | Q29: Sí - 15 | R29: No - 0 | S29: Sí - 15 | T29: Sí - 10 | U29: Sí - 30 | V29: =((IF(O29=[50]Datos!$B$233,15,0))/100)+((IF(P29=[50]Datos!$B$229,5,0))/100)+((IF(Q29=[50]Datos!$B$233,15,0))/100)+((IF(R29=[50]Datos!$B$231,10,0))/100)+((IF(S29=[50]Datos!$B$233,15,0))/100)+((IF(T29=[50]Datos!$B$231,10,0))/100)+((IF(U29=[50]Datos!$B$235,30,0))/100) -> 0.9 | W29: =IF(ISERROR(((IF(N29=[50]Datos!$B$224,V29,0))+(IF(N30=[50]Datos!$B$224,V30,0))+(IF(N31=[50]Datos!$B$224,V31,0))+(IF(N32=[50]Datos!$B$224,V32,0))+(IF(N33=[50]Datos!$B$224,V33,0))+(IF(N34=[50]Datos!$B$224,V34,0)))/((IF(N29=[50]Datos!$B$224,1,0))+(IF(N30=[50]Datos!$B$224,1,0))+(IF(N31=[50]Datos!$B$224,1,0))+(IF(N32=[50]Datos!$B$224,1,0))+(IF(N33=[50]Datos!$B$224,1,0))+(IF(N34=[50]Datos!$B$224,1,0)))),0,(((IF(N29=[50]Datos!$B$224,V29,0))+(IF(N30=[50]Datos!$B$224,V30,0))+(IF(N31=[50]Datos!$B$224,V31,0))+(IF(N32=[50]Datos!$B$224,V32,0))+(IF(N33=[50]Datos!$B$224,V33,0))+(IF(N34=[50]Datos!$B$224,V34,0)))/((IF(N29=[50]Datos!$B$224,1,0))+(IF(N30=[50]Datos!$B$224,1,0))+(IF(N31=[50]Datos!$B$224,1,0))+(IF(N32=[50]Datos!$B$224,1,0))+(IF(N33=[50]Datos!$B$224,1,0))+(IF(N34=[50]Datos!$B$224,1,0))))) -> 0.85 | X29: =IF(J29="","-",(IF(W29>0,(IF(J29=[50]Datos!$B$212,[50]Datos!$B$212,IF(AND(J29=[50]Datos!$B$213,W29>0.49),[50]Datos!$B$212,IF(AND(J29=[50]Datos!$B$214,W29>0.74),[50]Datos!$B$212,IF(AND(J29=[50]Datos!$B$214,W29<0.75,W29>0.49),[50]Datos!$B$213,IF(AND(J29=[50]Datos!$B$215,W29>0.74),[50]Datos!$B$213,IF(AND(J29=[50]Datos!$B$215,W29<0.75,W29>0.49),[50]Datos!$B$214,IF(AND(J29=[50]Datos!$B$216,W29>0.74),[50]Datos!$B$214,IF(AND(J29=[50]Datos!$B$216,W29<0.75,W29>0.49),[50]Datos!$B$215,J29))))))))),J29))) -> Rara vez - 1 | Y29: =IF(ISERROR(((IF(N29=[50]Datos!$B$225,V29,0))+(IF(N30=[50]Datos!$B$225,V30,0))+(IF(N31=[50]Datos!$B$225,V31,0))+(IF(N32=[50]Datos!$B$225,V32,0))+(IF(N33=[50]Datos!$B$225,V33,0))+(IF(N34=[50]Datos!$B$225,V34,0))+(IF(N29=[50]Datos!$B$226,V29,0))+(IF(N30=[50]Datos!$B$226,V30,0))+(IF(N31=[50]Datos!$B$226,V31,0))+(IF(N32=[50]Datos!$B$226,V32,0))+(IF(N33=[50]Datos!$B$226,V33,0))+(IF(N34=[50]Datos!$B$226,V34,0)))/((IF(N29=[50]Datos!$B$225,1,0))+(IF(N30=[50]Datos!$B$225,1,0))+(IF(N31=[50]Datos!$B$225,1,0))+(IF(N32=[50]Datos!$B$225,1,0))+(IF(N33=[50]Datos!$B$225,1,0))+(IF(N34=[50]Datos!$B$225,1,0))+(IF(N29=[50]Datos!$B$226,1,0))+(IF(N30=[50]Datos!$B$226,1,0))+(IF(N31=[50]Datos!$B$226,1,0))+(IF(N32=[50]Datos!$B$226,1,0))+(IF(N33=[50]Datos!$B$226,1,0))+(IF(N34=[50]Datos!$B$226,1,0)))),0,((IF(N29=[50]Datos!$B$225,V29,0))+(IF(N30=[50]Datos!$B$225,V30,0))+(IF(N31=[50]Datos!$B$225,V31,0))+(IF(N32=[50]Datos!$B$225,V32,0))+(IF(N33=[50]Datos!$B$225,V33,0))+(IF(N34=[50]Datos!$B$225,V34,0))+(IF(N29=[50]Datos!$B$226,V29,0))+(IF(N30=[50]Datos!$B$226,V30,0))+(IF(N31=[50]Datos!$B$226,V31,0))+(IF(N32=[50]Datos!$B$226,V32,0))+(IF(N33=[50]Datos!$B$226,V33,0))+(IF(N34=[50]Datos!$B$226,V34,0)))/((IF(N29=[50]Datos!$B$225,1,0))+(IF(N30=[50]Datos!$B$225,1,0))+(IF(N31=[50]Datos!$B$225,1,0))+(IF(N32=[50]Datos!$B$225,1,0))+(IF(N33=[50]Datos!$B$225,1,0))+(IF(N34=[50]Datos!$B$225,1,0))+(IF(N29=[50]Datos!$B$226,1,0))+(IF(N30=[50]Datos!$B$226,1,0))+(IF(N31=[50]Datos!$B$226,1,0))+(IF(N32=[50]Datos!$B$226,1,0))+(IF(N33=[50]Datos!$B$226,1,0))+(IF(N34=[50]Datos!$B$226,1,0)))) -> 0.8666666667 | Z29: =IF(K29="","-",(IF(Y29>0,(IF(K29=[50]Datos!$B$219,[50]Datos!$B$219,IF(AND(K29=[50]Datos!$B$220,Y29>0.49),[50]Datos!$B$219,IF(AND(K29=[50]Datos!$B$221,Y29>0.74),[50]Datos!$B$219,IF(AND(K29=[50]Datos!$B$221,Y29<0.75,Y29>0.49),[50]Datos!$B$220,IF(AND(K29=[50]Datos!$B$222,Y29>0.74),[50]Datos!$B$220,IF(AND(K29=[50]Datos!$B$222,Y29<0.75,Y29>0.49),[50]Datos!$B$221,IF(AND(K29=[50]Datos!$B$223,Y29>0.74),[50]Datos!$B$221,IF(AND(K29=[50]Datos!$B$223,Y29<0.75,Y29>0.49),[50]Datos!$B$222,K29))))))))),K29))) -> Moderado - 5 | AA29: =IF(AND(X29=[50]Datos!$B$212,Z29=[50]Datos!$B$219),[50]Datos!$D$216,IF(AND(X29=[50]Datos!$B$212,Z29=[50]Datos!$B$220),[50]Datos!$E$216,IF(AND(X29=[50]Datos!$B$212,Z29=[50]Datos!$B$221),[50]Datos!$F$216,IF(AND(X29=[50]Datos!$B$213,Z29=[50]Datos!$B$219),[50]Datos!$D$215,IF(AND(X29=[50]Datos!$B$213,Z29=[50]Datos!$B$220),[50]Datos!$E$215,IF(AND(X29=[50]Datos!$B$213,Z29=[50]Datos!$B$221),[50]Datos!$F$215,IF(AND(X29=[50]Datos!$B$214,Z29=[50]Datos!$B$219),[50]Datos!$D$214,IF(AND(X29=[50]Datos!$B$214,Z29=[50]Datos!$B$220),[50]Datos!$E$214,IF(AND(X29=[50]Datos!$B$214,Z29=[50]Datos!$B$221),[50]Datos!$F$214,IF(AND(X29=[50]Datos!$B$215,Z29=[50]Datos!$B$219),[50]Datos!$D$213,IF(AND(X29=[50]Datos!$B$215,Z29=[50]Datos!$B$220),[50]Datos!$E$213,IF(AND(X29=[50]Datos!$B$215,Z29=[50]Datos!$B$221),[50]Datos!$F$213,IF(AND(X29=[50]Datos!$B$216,Z29=[50]Datos!$B$219),[50]Datos!$D$212,IF(AND(X29=[50]Datos!$B$216,Z29=[50]Datos!$B$220),[50]Datos!$E$212,IF(AND(X29=[50]Datos!$B$216,Z29=[50]Datos!$B$221),[50]Datos!$F$212,"-"))))))))))))))) -> BAJA 5
E30: Sistemas de información susceptibles de manipulación o adulteración. | I30: Expulsión del infractor. | M30: Planillas de calificaciones. | N30: Preventivo | O30: Sí - 15 | P30: Sí - 5 | Q30: No - 0 | R30: Sí - 10 | S30: Sí - 15 | T30: Sí - 10 | U30: Sí - 30 | V30: =((IF(O30=[50]Datos!$B$233,15,0))/100)+((IF(P30=[50]Datos!$B$229,5,0))/100)+((IF(Q30=[50]Datos!$B$233,15,0))/100)+((IF(R30=[50]Datos!$B$231,10,0))/100)+((IF(S30=[50]Datos!$B$233,15,0))/100)+((IF(T30=[50]Datos!$B$231,10,0))/100)+((IF(U30=[50]Datos!$B$235,30,0))/100) -> 0.85
E31: Abuso de poder. | I31: Demandas y procesos penales. | M31: Actas de modificación de notas y soportes. | N31: Correctivo | O31: Sí - 15 | P31: Sí - 5 | Q31: No - 0 | R31: Sí - 10 | S31: Sí - 15 | T31: Sí - 10 | U31: Sí - 30 | V31: =((IF(O31=[50]Datos!$B$233,15,0))/100)+((IF(P31=[50]Datos!$B$229,5,0))/100)+((IF(Q31=[50]Datos!$B$233,15,0))/100)+((IF(R31=[50]Datos!$B$231,10,0))/100)+((IF(S31=[50]Datos!$B$233,15,0))/100)+((IF(T31=[50]Datos!$B$231,10,0))/100)+((IF(U31=[50]Datos!$B$235,30,0))/100) -> 0.85
E32: Favorecimiento personal o de un tercero (clientelismo). | I32: Afectación de imagen y credibilidad institucional. | M32: Segunda revisión de exámenes, trabajos y demás documentos presentados por los estudiantes. | N32: Correctivo | O32: Sí - 15 | P32: Sí - 5 | Q32: No - 0 | R32: Sí - 10 | S32: Sí - 15 | T32: Sí - 10 | U32: Sí - 30 | V32: =((IF(O32=[50]Datos!$B$233,15,0))/100)+((IF(P32=[50]Datos!$B$229,5,0))/100)+((IF(Q32=[50]Datos!$B$233,15,0))/100)+((IF(R32=[50]Datos!$B$231,10,0))/100)+((IF(S32=[50]Datos!$B$233,15,0))/100)+((IF(T32=[50]Datos!$B$231,10,0))/100)+((IF(U32=[50]Datos!$B$235,30,0))/100) -> 0.85
I33: Disminución de la calidad de la Universidad y sus egresados. | V33: =((IF(O33=[50]Datos!$B$233,15,0))/100)+((IF(P33=[50]Datos!$B$229,5,0))/100)+((IF(Q33=[50]Datos!$B$233,15,0))/100)+((IF(R33=[50]Datos!$B$231,10,0))/100)+((IF(S33=[50]Datos!$B$233,15,0))/100)+((IF(T33=[50]Datos!$B$231,10,0))/100)+((IF(U33=[50]Datos!$B$235,30,0))/100) -> 0
V34: =((IF(O34=[50]Datos!$B$233,15,0))/100)+((IF(P34=[50]Datos!$B$229,5,0))/100)+((IF(Q34=[50]Datos!$B$233,15,0))/100)+((IF(R34=[50]Datos!$B$231,10,0))/100)+((IF(S34=[50]Datos!$B$233,15,0))/100)+((IF(T34=[50]Datos!$B$231,10,0))/100)+((IF(U34=[50]Datos!$B$235,30,0))/100) -> 0
B35: Gestión de Docencia | D35: Garantizar que los planes de estudio establecidos para cada proyecto curricular, ofrezcan al estudiante de la UDFJC una formación integral y de calidad, dirigida fundamentalmente a las necesidades de la sociedad, contando con la cantidad e idoneidad de docentes y demás personal que influya directamente en tal proceso de formación, garantizando que se ejecute eficientemente el proceso de enseñanza. | E35: Deficientes controles en el Proceso. | G35: Pérdida, hurto o perjuicios a los recursos educativos. | H35: Deterioro o desaparición de recursos necesarios para la adecuada prestación de los servicios educativos. | I35: Deterioro del patrimonio universitario. | J35: Posible - 3 | K35: Mayor - 10 | L35: =IF(AND(J35=[50]Datos!$B$212,K35=[50]Datos!$B$219),[50]Datos!$D$216,IF(AND(J35=[50]Datos!$B$212,K35=[50]Datos!$B$220),[50]Datos!$E$216,IF(AND(J35=[50]Datos!$B$212,K35=[50]Datos!$B$221),[50]Datos!$F$216,IF(AND(J35=[50]Datos!$B$213,K35=[50]Datos!$B$219),[50]Datos!$D$215,IF(AND(J35=[50]Datos!$B$213,K35=[50]Datos!$B$220),[50]Datos!$E$215,IF(AND(J35=[50]Datos!$B$213,K35=[50]Datos!$B$221),[50]Datos!$F$215,IF(AND(J35=[50]Datos!$B$214,K35=[50]Datos!$B$219),[50]Datos!$D$214,IF(AND(J35=[50]Datos!$B$214,K35=[50]Datos!$B$220),[50]Datos!$E$214,IF(AND(J35=[50]Datos!$B$214,K35=[50]Datos!$B$221),[50]Datos!$F$214,IF(AND(J35=[50]Datos!$B$215,K35=[50]Datos!$B$219),[50]Datos!$D$213,IF(AND(J35=[50]Datos!$B$215,K35=[50]Datos!$B$220),[50]Datos!$E$213,IF(AND(J35=[50]Datos!$B$215,K35=[50]Datos!$B$221),[50]Datos!$F$213,IF(AND(J35=[50]Datos!$B$216,K35=[50]Datos!$B$219),[50]Datos!$D$212,IF(AND(J35=[50]Datos!$B$216,K35=[50]Datos!$B$220),[50]Datos!$E$212,IF(AND(J35=[50]Datos!$B$216,K35=[50]Datos!$B$221),[50]Datos!$F$212,"-"))))))))))))))) -> ALTA 30 | M35: Refuerzo a la vigilancia (personal, cámaras, minutas, acceso a las instalaciones). | N35: Detectivo | O35: Sí - 15 | P35: Sí - 5 | Q35: No - 0 | R35: Sí - 10 | S35: No - 0 | T35: Sí - 10 | U35: Sí - 30 | V35: =((IF(O35=[50]Datos!$B$233,15,0))/100)+((IF(P35=[50]Datos!$B$229,5,0))/100)+((IF(Q35=[50]Datos!$B$233,15,0))/100)+((IF(R35=[50]Datos!$B$231,10,0))/100)+((IF(S35=[50]Datos!$B$233,15,0))/100)+((IF(T35=[50]Datos!$B$231,10,0))/100)+((IF(U35=[50]Datos!$B$235,30,0))/100) -> 0.7 | W35: =IF(ISERROR(((IF(N35=[50]Datos!$B$224,V35,0))+(IF(N36=[50]Datos!$B$224,V36,0))+(IF(N37=[50]Datos!$B$224,V37,0))+(IF(N38=[50]Datos!$B$224,V38,0))+(IF(N39=[50]Datos!$B$224,V39,0))+(IF(N40=[50]Datos!$B$224,V40,0)))/((IF(N35=[50]Datos!$B$224,1,0))+(IF(N36=[50]Datos!$B$224,1,0))+(IF(N37=[50]Datos!$B$224,1,0))+(IF(N38=[50]Datos!$B$224,1,0))+(IF(N39=[50]Datos!$B$224,1,0))+(IF(N40=[50]Datos!$B$224,1,0)))),0,(((IF(N35=[50]Datos!$B$224,V35,0))+(IF(N36=[50]Datos!$B$224,V36,0))+(IF(N37=[50]Datos!$B$224,V37,0))+(IF(N38=[50]Datos!$B$224,V38,0))+(IF(N39=[50]Datos!$B$224,V39,0))+(IF(N40=[50]Datos!$B$224,V40,0)))/((IF(N35=[50]Datos!$B$224,1,0))+(IF(N36=[50]Datos!$B$224,1,0))+(IF(N37=[50]Datos!$B$224,1,0))+(IF(N38=[50]Datos!$B$224,1,0))+(IF(N39=[50]Datos!$B$224,1,0))+(IF(N40=[50]Datos!$B$224,1,0))))) -> 0.7166666667 | X35: =IF(J35="","-",(IF(W35>0,(IF(J35=[50]Datos!$B$212,[50]Datos!$B$212,IF(AND(J35=[50]Datos!$B$213,W35>0.49),[50]Datos!$B$212,IF(AND(J35=[50]Datos!$B$214,W35>0.74),[50]Datos!$B$212,IF(AND(J35=[50]Datos!$B$214,W35<0.75,W35>0.49),[50]Datos!$B$213,IF(AND(J35=[50]Datos!$B$215,W35>0.74),[50]Datos!$B$213,IF(AND(J35=[50]Datos!$B$215,W35<0.75,W35>0.49),[50]Datos!$B$214,IF(AND(J35=[50]Datos!$B$216,W35>0.74),[50]Datos!$B$214,IF(AND(J35=[50]Datos!$B$216,W35<0.75,W35>0.49),[50]Datos!$B$215,J35))))))))),J35))) -> Improbable - 2 | Y35: =IF(ISERROR(((IF(N35=[50]Datos!$B$225,V35,0))+(IF(N36=[50]Datos!$B$225,V36,0))+(IF(N37=[50]Datos!$B$225,V37,0))+(IF(N38=[50]Datos!$B$225,V38,0))+(IF(N39=[50]Datos!$B$225,V39,0))+(IF(N40=[50]Datos!$B$225,V40,0))+(IF(N35=[50]Datos!$B$226,V35,0))+(IF(N36=[50]Datos!$B$226,V36,0))+(IF(N37=[50]Datos!$B$226,V37,0))+(IF(N38=[50]Datos!$B$226,V38,0))+(IF(N39=[50]Datos!$B$226,V39,0))+(IF(N40=[50]Datos!$B$226,V40,0)))/((IF(N35=[50]Datos!$B$225,1,0))+(IF(N36=[50]Datos!$B$225,1,0))+(IF(N37=[50]Datos!$B$225,1,0))+(IF(N38=[50]Datos!$B$225,1,0))+(IF(N39=[50]Datos!$B$225,1,0))+(IF(N40=[50]Datos!$B$225,1,0))+(IF(N35=[50]Datos!$B$226,1,0))+(IF(N36=[50]Datos!$B$226,1,0))+(IF(N37=[50]Datos!$B$226,1,0))+(IF(N38=[50]Datos!$B$226,1,0))+(IF(N39=[50]Datos!$B$226,1,0))+(IF(N40=[50]Datos!$B$226,1,0)))),0,((IF(N35=[50]Datos!$B$225,V35,0))+(IF(N36=[50]Datos!$B$225,V36,0))+(IF(N37=[50]Datos!$B$225,V37,0))+(IF(N38=[50]Datos!$B$225,V38,0))+(IF(N39=[50]Datos!$B$225,V39,0))+(IF(N40=[50]Datos!$B$225,V40,0))+(IF(N35=[50]Datos!$B$226,V35,0))+(IF(N36=[50]Datos!$B$226,V36,0))+(IF(N37=[50]Datos!$B$226,V37,0))+(IF(N38=[50]Datos!$B$226,V38,0))+(IF(N39=[50]Datos!$B$226,V39,0))+(IF(N40=[50]Datos!$B$226,V40,0)))/((IF(N35=[50]Datos!$B$225,1,0))+(IF(N36=[50]Datos!$B$225,1,0))+(IF(N37=[50]Datos!$B$225,1,0))+(IF(N38=[50]Datos!$B$225,1,0))+(IF(N39=[50]Datos!$B$225,1,0))+(IF(N40=[50]Datos!$B$225,1,0))+(IF(N35=[50]Datos!$B$226,1,0))+(IF(N36=[50]Datos!$B$226,1,0))+(IF(N37=[50]Datos!$B$226,1,0))+(IF(N38=[50]Datos!$B$226,1,0))+(IF(N39=[50]Datos!$B$226,1,0))+(IF(N40=[50]Datos!$B$226,1,0)))) -> 0.55 | Z35: =IF(K35="","-",(IF(Y35>0,(IF(K35=[50]Datos!$B$219,[50]Datos!$B$219,IF(AND(K35=[50]Datos!$B$220,Y35>0.49),[50]Datos!$B$219,IF(AND(K35=[50]Datos!$B$221,Y35>0.74),[50]Datos!$B$219,IF(AND(K35=[50]Datos!$B$221,Y35<0.75,Y35>0.49),[50]Datos!$B$220,IF(AND(K35=[50]Datos!$B$222,Y35>0.74),[50]Datos!$B$220,IF(AND(K35=[50]Datos!$B$222,Y35<0.75,Y35>0.49),[50]Datos!$B$221,IF(AND(K35=[50]Datos!$B$223,Y35>0.74),[50]Datos!$B$221,IF(AND(K35=[50]Datos!$B$223,Y35<0.75,Y35>0.49),[50]Datos!$B$222,K35))))))))),K35))) -> Moderado - 5 | AA35: =IF(AND(X35=[50]Datos!$B$212,Z35=[50]Datos!$B$219),[50]Datos!$D$216,IF(AND(X35=[50]Datos!$B$212,Z35=[50]Datos!$B$220),[50]Datos!$E$216,IF(AND(X35=[50]Datos!$B$212,Z35=[50]Datos!$B$221),[50]Datos!$F$216,IF(AND(X35=[50]Datos!$B$213,Z35=[50]Datos!$B$219),[50]Datos!$D$215,IF(AND(X35=[50]Datos!$B$213,Z35=[50]Datos!$B$220),[50]Datos!$E$215,IF(AND(X35=[50]Datos!$B$213,Z35=[50]Datos!$B$221),[50]Datos!$F$215,IF(AND(X35=[50]Datos!$B$214,Z35=[50]Datos!$B$219),[50]Datos!$D$214,IF(AND(X35=[50]Datos!$B$214,Z35=[50]Datos!$B$220),[50]Datos!$E$214,IF(AND(X35=[50]Datos!$B$214,Z35=[50]Datos!$B$221),[50]Datos!$F$214,IF(AND(X35=[50]Datos!$B$215,Z35=[50]Datos!$B$219),[50]Datos!$D$213,IF(AND(X35=[50]Datos!$B$215,Z35=[50]Datos!$B$220),[50]Datos!$E$213,IF(AND(X35=[50]Datos!$B$215,Z35=[50]Datos!$B$221),[50]Datos!$F$213,IF(AND(X35=[50]Datos!$B$216,Z35=[50]Datos!$B$219),[50]Datos!$D$212,IF(AND(X35=[50]Datos!$B$216,Z35=[50]Datos!$B$220),[50]Datos!$E$212,IF(AND(X35=[50]Datos!$B$216,Z35=[50]Datos!$B$221),[50]Datos!$F$212,"-"))))))))))))))) -> BAJA 10
E36: Condiciones físicas inadecuadas de almacenamiento. | I36: Desmejoramiento de las condiciones educativas que repercuten en la calidad. | M36: Control y seguimiento al inventario de recursos. | N36: Preventivo | O36: Sí - 15 | P36: Sí - 5 | Q36: No - 0 | R36: Sí - 10 | S36: Sí - 15 | T36: Sí - 10 | U36: Sí - 30 | V36: =((IF(O36=[50]Datos!$B$233,15,0))/100)+((IF(P36=[50]Datos!$B$229,5,0))/100)+((IF(Q36=[50]Datos!$B$233,15,0))/100)+((IF(R36=[50]Datos!$B$231,10,0))/100)+((IF(S36=[50]Datos!$B$233,15,0))/100)+((IF(T36=[50]Datos!$B$231,10,0))/100)+((IF(U36=[50]Datos!$B$235,30,0))/100) -> 0.85
E37: Fallas en el sistema de seguridad. | I37: Mala imagen de la Universidad. | M37: Identificación de las personas que ingresan a la Universidad. | N37: Preventivo | O37: Sí - 15 | P37: Sí - 5 | Q37: No - 0 | R37: Sí - 10 | S37: No - 0 | T37: Sí - 10 | U37: No - 0 | V37: =((IF(O37=[50]Datos!$B$233,15,0))/100)+((IF(P37=[50]Datos!$B$229,5,0))/100)+((IF(Q37=[50]Datos!$B$233,15,0))/100)+((IF(R37=[50]Datos!$B$231,10,0))/100)+((IF(S37=[50]Datos!$B$233,15,0))/100)+((IF(T37=[50]Datos!$B$231,10,0))/100)+((IF(U37=[50]Datos!$B$235,30,0))/100) -> 0.4
E38: Falta de sentido de pertenencia y ética de funcionarios y usuarios | M38: Identificación de infractores y sanciones. | N38: Correctivo | O38: Sí - 15 | P38: Sí - 5 | Q38: No - 0 | R38: Sí - 10 | S38: No - 0 | T38: Sí - 10 | U38: No - 0 | V38: =((IF(O38=[50]Datos!$B$233,15,0))/100)+((IF(P38=[50]Datos!$B$229,5,0))/100)+((IF(Q38=[50]Datos!$B$233,15,0))/100)+((IF(R38=[50]Datos!$B$231,10,0))/100)+((IF(S38=[50]Datos!$B$233,15,0))/100)+((IF(T38=[50]Datos!$B$231,10,0))/100)+((IF(U38=[50]Datos!$B$235,30,0))/100) -> 0.4
E39: Acceso a personal ajeno a la comunidad universitaria. | M39: Registro para el acceso a los recursos. | N39: Preventivo | O39: Sí - 15 | P39: Sí - 5 | Q39: Sí - 15 | R39: No - 0 | S39: Sí - 15 | T39: Sí - 10 | U39: Sí - 30 | V39: =((IF(O39=[50]Datos!$B$233,15,0))/100)+((IF(P39=[50]Datos!$B$229,5,0))/100)+((IF(Q39=[50]Datos!$B$233,15,0))/100)+((IF(R39=[50]Datos!$B$231,10,0))/100)+((IF(S39=[50]Datos!$B$233,15,0))/100)+((IF(T39=[50]Datos!$B$231,10,0))/100)+((IF(U39=[50]Datos!$B$235,30,0))/100) -> 0.9
V40: =((IF(O40=[50]Datos!$B$233,15,0))/100)+((IF(P40=[50]Datos!$B$229,5,0))/100)+((IF(Q40=[50]Datos!$B$233,15,0))/100)+((IF(R40=[50]Datos!$B$231,10,0))/100)+((IF(S40=[50]Datos!$B$233,15,0))/100)+((IF(T40=[50]Datos!$B$231,10,0))/100)+((IF(U40=[50]Datos!$B$235,30,0))/100) -> 0
B41: Gestión de Docencia | D41: Garantizar que los planes de estudio establecidos para cada proyecto curricular, ofrezcan al estudiante de la UDFJC una formación integral y de calidad, dirigida fundamentalmente a las necesidades de la sociedad, contando con la cantidad e idoneidad de docentes y demás personal que influya directamente en tal proceso de formación, garantizando que se ejecute eficientemente el proceso de enseñanza. | E41: Falta de políticas institucionales o la socialización de éstas para la prevención, atención y sanción del hostigamiento. | G41: Acoso (psicológico, laboral, o sexual). | H41: Toda conducta persistente y demostrable, ejercida sobre un funcionario, un jefe o superior jerárquico, un compañero de trabajo o un subalterno o un estudiante, encaminada a infundir miedo, intimidación, terror y angustia, a causar perjuicio, generar desmotivación, o incluso la deserción de la institución. | I41: Procesos sancionatorios y disciplinarios. | J41: Posible - 3 | K41: Catastrófico - 20 | L41: =IF(AND(J41=[50]Datos!$B$212,K41=[50]Datos!$B$219),[50]Datos!$D$216,IF(AND(J41=[50]Datos!$B$212,K41=[50]Datos!$B$220),[50]Datos!$E$216,IF(AND(J41=[50]Datos!$B$212,K41=[50]Datos!$B$221),[50]Datos!$F$216,IF(AND(J41=[50]Datos!$B$213,K41=[50]Datos!$B$219),[50]Datos!$D$215,IF(AND(J41=[50]Datos!$B$213,K41=[50]Datos!$B$220),[50]Datos!$E$215,IF(AND(J41=[50]Datos!$B$213,K41=[50]Datos!$B$221),[50]Datos!$F$215,IF(AND(J41=[50]Datos!$B$214,K41=[50]Datos!$B$219),[50]Datos!$D$214,IF(AND(J41=[50]Datos!$B$214,K41=[50]Datos!$B$220),[50]Datos!$E$214,IF(AND(J41=[50]Datos!$B$214,K41=[50]Datos!$B$221),[50]Datos!$F$214,IF(AND(J41=[50]Datos!$B$215,K41=[50]Datos!$B$219),[50]Datos!$D$213,IF(AND(J41=[50]Datos!$B$215,K41=[50]Datos!$B$220),[50]Datos!$E$213,IF(AND(J41=[50]Datos!$B$215,K41=[50]Datos!$B$221),[50]Datos!$F$213,IF(AND(J41=[50]Datos!$B$216,K41=[50]Datos!$B$219),[50]Datos!$D$212,IF(AND(J41=[50]Datos!$B$216,K41=[50]Datos!$B$220),[50]Datos!$E$212,IF(AND(J41=[50]Datos!$B$216,K41=[50]Datos!$B$221),[50]Datos!$F$212,"-"))))))))))))))) -> EXTREMA 60 | M41: Normatividad aplicable a todas las tipologías de acoso a nivel interno y externo. | N41: Preventivo | O41: Sí - 15 | P41: Sí - 5 | Q41: No - 0 | R41: Sí - 10 | S41: Sí - 15 | T41: Sí - 10 | U41: Sí - 30 | V41: =((IF(O41=[50]Datos!$B$233,15,0))/100)+((IF(P41=[50]Datos!$B$229,5,0))/100)+((IF(Q41=[50]Datos!$B$233,15,0))/100)+((IF(R41=[50]Datos!$B$231,10,0))/100)+((IF(S41=[50]Datos!$B$233,15,0))/100)+((IF(T41=[50]Datos!$B$231,10,0))/100)+((IF(U41=[50]Datos!$B$235,30,0))/100) -> 0.85 | W41: =IF(ISERROR(((IF(N41=[50]Datos!$B$224,V41,0))+(IF(N42=[50]Datos!$B$224,V42,0))+(IF(N43=[50]Datos!$B$224,V43,0))+(IF(N44=[50]Datos!$B$224,V44,0))+(IF(N45=[50]Datos!$B$224,V45,0))+(IF(N46=[50]Datos!$B$224,V46,0)))/((IF(N41=[50]Datos!$B$224,1,0))+(IF(N42=[50]Datos!$B$224,1,0))+(IF(N43=[50]Datos!$B$224,1,0))+(IF(N44=[50]Datos!$B$224,1,0))+(IF(N45=[50]Datos!$B$224,1,0))+(IF(N46=[50]Datos!$B$224,1,0)))),0,(((IF(N41=[50]Datos!$B$224,V41,0))+(IF(N42=[50]Datos!$B$224,V42,0))+(IF(N43=[50]Datos!$B$224,V43,0))+(IF(N44=[50]Datos!$B$224,V44,0))+(IF(N45=[50]Datos!$B$224,V45,0))+(IF(N46=[50]Datos!$B$224,V46,0)))/((IF(N41=[50]Datos!$B$224,1,0))+(IF(N42=[50]Datos!$B$224,1,0))+(IF(N43=[50]Datos!$B$224,1,0))+(IF(N44=[50]Datos!$B$224,1,0))+(IF(N45=[50]Datos!$B$224,1,0))+(IF(N46=[50]Datos!$B$224,1,0))))) -> 0.85 | X41: =IF(J41="","-",(IF(W41>0,(IF(J41=[50]Datos!$B$212,[50]Datos!$B$212,IF(AND(J41=[50]Datos!$B$213,W41>0.49),[50]Datos!$B$212,IF(AND(J41=[50]Datos!$B$214,W41>0.74),[50]Datos!$B$212,IF(AND(J41=[50]Datos!$B$214,W41<0.75,W41>0.49),[50]Datos!$B$213,IF(AND(J41=[50]Datos!$B$215,W41>0.74),[50]Datos!$B$213,IF(AND(J41=[50]Datos!$B$215,W41<0.75,W41>0.49),[50]Datos!$B$214,IF(AND(J41=[50]Datos!$B$216,W41>0.74),[50]Datos!$B$214,IF(AND(J41=[50]Datos!$B$216,W41<0.75,W41>0.49),[50]Datos!$B$215,J41))))))))),J41))) -> Rara vez - 1 | Y41: =IF(ISERROR(((IF(N41=[50]Datos!$B$225,V41,0))+(IF(N42=[50]Datos!$B$225,V42,0))+(IF(N43=[50]Datos!$B$225,V43,0))+(IF(N44=[50]Datos!$B$225,V44,0))+(IF(N45=[50]Datos!$B$225,V45,0))+(IF(N46=[50]Datos!$B$225,V46,0))+(IF(N41=[50]Datos!$B$226,V41,0))+(IF(N42=[50]Datos!$B$226,V42,0))+(IF(N43=[50]Datos!$B$226,V43,0))+(IF(N44=[50]Datos!$B$226,V44,0))+(IF(N45=[50]Datos!$B$226,V45,0))+(IF(N46=[50]Datos!$B$226,V46,0)))/((IF(N41=[50]Datos!$B$225,1,0))+(IF(N42=[50]Datos!$B$225,1,0))+(IF(N43=[50]Datos!$B$225,1,0))+(IF(N44=[50]Datos!$B$225,1,0))+(IF(N45=[50]Datos!$B$225,1,0))+(IF(N46=[50]Datos!$B$225,1,0))+(IF(N41=[50]Datos!$B$226,1,0))+(IF(N42=[50]Datos!$B$226,1,0))+(IF(N43=[50]Datos!$B$226,1,0))+(IF(N44=[50]Datos!$B$226,1,0))+(IF(N45=[50]Datos!$B$226,1,0))+(IF(N46=[50]Datos!$B$226,1,0)))),0,((IF(N41=[50]Datos!$B$225,V41,0))+(IF(N42=[50]Datos!$B$225,V42,0))+(IF(N43=[50]Datos!$B$225,V43,0))+(IF(N44=[50]Datos!$B$225,V44,0))+(IF(N45=[50]Datos!$B$225,V45,0))+(IF(N46=[50]Datos!$B$225,V46,0))+(IF(N41=[50]Datos!$B$226,V41,0))+(IF(N42=[50]Datos!$B$226,V42,0))+(IF(N43=[50]Datos!$B$226,V43,0))+(IF(N44=[50]Datos!$B$226,V44,0))+(IF(N45=[50]Datos!$B$226,V45,0))+(IF(N46=[50]Datos!$B$226,V46,0)))/((IF(N41=[50]Datos!$B$225,1,0))+(IF(N42=[50]Datos!$B$225,1,0))+(IF(N43=[50]Datos!$B$225,1,0))+(IF(N44=[50]Datos!$B$225,1,0))+(IF(N45=[50]Datos!$B$225,1,0))+(IF(N46=[50]Datos!$B$225,1,0))+(IF(N41=[50]Datos!$B$226,1,0))+(IF(N42=[50]Datos!$B$226,1,0))+(IF(N43=[50]Datos!$B$226,1,0))+(IF(N44=[50]Datos!$B$226,1,0))+(IF(N45=[50]Datos!$B$226,1,0))+(IF(N46=[50]Datos!$B$226,1,0)))) -> 0.85 | Z41: =IF(K41="","-",(IF(Y41>0,(IF(K41=[50]Datos!$B$219,[50]Datos!$B$219,IF(AND(K41=[50]Datos!$B$220,Y41>0.49),[50]Datos!$B$219,IF(AND(K41=[50]Datos!$B$221,Y41>0.74),[50]Datos!$B$219,IF(AND(K41=[50]Datos!$B$221,Y41<0.75,Y41>0.49),[50]Datos!$B$220,IF(AND(K41=[50]Datos!$B$222,Y41>0.74),[50]Datos!$B$220,IF(AND(K41=[50]Datos!$B$222,Y41<0.75,Y41>0.49),[50]Datos!$B$221,IF(AND(K41=[50]Datos!$B$223,Y41>0.74),[50]Datos!$B$221,IF(AND(K41=[50]Datos!$B$223,Y41<0.75,Y41>0.49),[50]Datos!$B$222,K41))))))))),K41))) -> Moderado - 5 | AA41: =IF(AND(X41=[50]Datos!$B$212,Z41=[50]Datos!$B$219),[50]Datos!$D$216,IF(AND(X41=[50]Datos!$B$212,Z41=[50]Datos!$B$220),[50]Datos!$E$216,IF(AND(X41=[50]Datos!$B$212,Z41=[50]Datos!$B$221),[50]Datos!$F$216,IF(AND(X41=[50]Datos!$B$213,Z41=[50]Datos!$B$219),[50]Datos!$D$215,IF(AND(X41=[50]Datos!$B$213,Z41=[50]Datos!$B$220),[50]Datos!$E$215,IF(AND(X41=[50]Datos!$B$213,Z41=[50]Datos!$B$221),[50]Datos!$F$215,IF(AND(X41=[50]Datos!$B$214,Z41=[50]Datos!$B$219),[50]Datos!$D$214,IF(AND(X41=[50]Datos!$B$214,Z41=[50]Datos!$B$220),[50]Datos!$E$214,IF(AND(X41=[50]Datos!$B$214,Z41=[50]Datos!$B$221),[50]Datos!$F$214,IF(AND(X41=[50]Datos!$B$215,Z41=[50]Datos!$B$219),[50]Datos!$D$213,IF(AND(X41=[50]Datos!$B$215,Z41=[50]Datos!$B$220),[50]Datos!$E$213,IF(AND(X41=[50]Datos!$B$215,Z41=[50]Datos!$B$221),[50]Datos!$F$213,IF(AND(X41=[50]Datos!$B$216,Z41=[50]Datos!$B$219),[50]Datos!$D$212,IF(AND(X41=[50]Datos!$B$216,Z41=[50]Datos!$B$220),[50]Datos!$E$212,IF(AND(X41=[50]Datos!$B$216,Z41=[50]Datos!$B$221),[50]Datos!$F$212,"-"))))))))))))))) -> BAJA 5
E42: Abuso de poder. | I42: Seguimiento de instancias u organismos externos. | M42: Mecanismo de denuncia (protocolos definidos). | N42: Detectivo | O42: Sí - 15 | P42: Sí - 5 | Q42: No - 0 | R42: Sí - 10 | S42: Sí - 15 | T42: Sí - 10 | U42: Sí - 30 | V42: =((IF(O42=[50]Datos!$B$233,15,0))/100)+((IF(P42=[50]Datos!$B$229,5,0))/100)+((IF(Q42=[50]Datos!$B$233,15,0))/100)+((IF(R42=[50]Datos!$B$231,10,0))/100)+((IF(S42=[50]Datos!$B$233,15,0))/100)+((IF(T42=[50]Datos!$B$231,10,0))/100)+((IF(U42=[50]Datos!$B$235,30,0))/100) -> 0.85
E43: Mal uso de los espacios físicos de la Universidad. | I43: Agresiones físicas o verbales. | V43: =((IF(O43=[50]Datos!$B$233,15,0))/100)+((IF(P43=[50]Datos!$B$229,5,0))/100)+((IF(Q43=[50]Datos!$B$233,15,0))/100)+((IF(R43=[50]Datos!$B$231,10,0))/100)+((IF(S43=[50]Datos!$B$233,15,0))/100)+((IF(T43=[50]Datos!$B$231,10,0))/100)+((IF(U43=[50]Datos!$B$235,30,0))/100) -> 0
E44: Discriminación. | I44: Perdida de imagen profesional e institucional. | V44: =((IF(O44=[50]Datos!$B$233,15,0))/100)+((IF(P44=[50]Datos!$B$229,5,0))/100)+((IF(Q44=[50]Datos!$B$233,15,0))/100)+((IF(R44=[50]Datos!$B$231,10,0))/100)+((IF(S44=[50]Datos!$B$233,15,0))/100)+((IF(T44=[50]Datos!$B$231,10,0))/100)+((IF(U44=[50]Datos!$B$235,30,0))/100) -> 0
E45: Intolerancia manifiesta entre los miembros de la comunidad. | V45: =((IF(O45=[50]Datos!$B$233,15,0))/100)+((IF(P45=[50]Datos!$B$229,5,0))/100)+((IF(Q45=[50]Datos!$B$233,15,0))/100)+((IF(R45=[50]Datos!$B$231,10,0))/100)+((IF(S45=[50]Datos!$B$233,15,0))/100)+((IF(T45=[50]Datos!$B$231,10,0))/100)+((IF(U45=[50]Datos!$B$235,30,0))/100) -> 0
E46: Limitantes al trato de las denuncias por acoso debido a las condiciones contractuales de los funcionarios de la Universidad. | V46: =((IF(O46=[50]Datos!$B$233,15,0))/100)+((IF(P46=[50]Datos!$B$229,5,0))/100)+((IF(Q46=[50]Datos!$B$233,15,0))/100)+((IF(R46=[50]Datos!$B$231,10,0))/100)+((IF(S46=[50]Datos!$B$233,15,0))/100)+((IF(T46=[50]Datos!$B$231,10,0))/100)+((IF(U46=[50]Datos!$B$235,30,0))/100) -> 0
B48: ELABORÓ | D48: REVISÓ | E48: APROBÓ
B49: Nombre: Equipo SIGUD Cargo: N/A Fecha: 7/11/2017 | D49: Nombre: N/A Cargo: Decanos de Facultad Fecha: 29/11/2017 | E49: Nombre: N/A Cargo: Decanos de facultad Fecha: 29/11/2017

Sheet SGC-GD
C2: MAPA INTEGRAL DE RIESGOS | E2: Código: GI-MG-001-FR-014
C3: Macroproceso: Direccionamiento Estratégico | E3: Versión: 02
C4: Proceso: Gestión Integrada | E4: Fecha de Aprobación: 17/11/2017
C6: Subsistema de Gestión de Calidad (SGC)
B8: PROCESO | D8: OBJETIVO DEL PROCESO | E8: CONTEXTO ESTRATÉGICO | H8: RIESGO | I8: DESCRIPCIÓN | J8: TIPO DE RIESGO | K8: CONSECUENCIAS | L8: CLASIFICACIÓN | O8: EVALUACIÓN DEL RIESGO
E9: CAUSA O FUENTE | G9: CLASIFICACIÓN | L9: PROBABILIDAD | M9: IMPACTO | N9: ZONA DE RIESGO | O9: CONTROLES | P9: CONTROL AUTOMÁTICO O MANUAL | Q9: TIPO DE CONTROL | R9: NIVEL | V9: TOTAL NIVEL | W9: PROBABILIDAD RESIDUAL | Y9: IMPACTO RESIDUAL | AA9: ZONA DE RIESGO RESIDUAL | AB9: MANEJO DEL RIESGO
R10: Documentado | S10: Aplicación | T10: Efectivo | U10: Seguimiento, evaluación y mejora | W10: RIESGO CONTROLADO | X10: PROBABILIDAD | Y10: RIESGO CONTROLADO | Z10: IMPACTO
B11: Gestión de Docencia | D11: =IF(B11="","-",VLOOKUP(B11,[47]Datos!$B$4:$C$25,2,FALSE)) -> Garantizar que los planes de estudio establecidos para cada proyecto curricular, ofrezcan al estudiante de la UDFJC una formación integral y de calidad, dirigida fundamentalmente a las necesidades de la sociedad, contando con la cantidad e idoneidad de docentes y demás personal que influya directamente en tal proceso de formación, garantizando que se ejecute eficientemente el proceso de enseñanza. | E11: Deficiencia en el diseño del proceso de evaluación docente en términos de criterios de evaluación y sus ponderaciones (Estatuto Docente 011/2002 del CSU). | G11: Interno | H11: Calificación docente subjetiva. | I11: El proceso de evaluación docente se ve afectado debido a que las personas que hacen parte de la valoración (estudiantes, docentes y proyectos curriculares) no tienen una herramienta que permita evaluar criterios integrales. | J11: Estratégico | K11: Docentes mal evaluados. | L11: Probable - 4 | M11: Mayor - 4 | N11: =IF(AND(L11=[47]Datos!$B$65,M11=[47]Datos!$B$72),[47]Datos!$D$65,IF(AND(L11=[47]Datos!$B$65,M11=[47]Datos!$B$73),[47]Datos!$E$65,IF(AND(L11=[47]Datos!$B$65,M11=[47]Datos!$B$74),[47]Datos!$F$65,IF(AND(L11=[47]Datos!$B$65,M11=[47]Datos!$B$75),[47]Datos!$G$65,IF(AND(L11=[47]Datos!$B$65,M11=[47]Datos!$B$76),[47]Datos!$H$65,IF(AND(L11=[47]Datos!$B$66,M11=[47]Datos!$B$72),[47]Datos!$D$66,IF(AND(L11=[47]Datos!$B$66,M11=[47]Datos!$B$73),[47]Datos!$E$66,IF(AND(L11=[47]Datos!$B$66,M11=[47]Datos!$B$74),[47]Datos!$F$66,IF(AND(L11=[47]Datos!$B$66,M11=[47]Datos!$B$75),[47]Datos!$G$66,IF(AND(L11=[47]Datos!$B$66,M11=[47]Datos!$B$76),[47]Datos!$H$66,IF(AND(L11=[47]Datos!$B$67,M11=[47]Datos!$B$72),[47]Datos!$D$67,IF(AND(L11=[47]Datos!$B$67,M11=[47]Datos!$B$73),[47]Datos!$E$67,IF(AND(L11=[47]Datos!$B$67,M11=[47]Datos!$B$74),[47]Datos!$F$67,IF(AND(L11=[47]Datos!$B$67,M11=[47]Datos!$B$75),[47]Datos!$G$67,IF(AND(L11=[47]Datos!$B$67,M11=[47]Datos!$B$76),[47]Datos!$H$67,IF(AND(L11=[47]Datos!$B$68,M11=[47]Datos!$B$72),[47]Datos!$D$68,IF(AND(L11=[47]Datos!$B$68,M11=[47]Datos!$B$73),[47]Datos!$E$68,IF(AND(L11=[47]Datos!$B$68,M11=[47]Datos!$B$74),[47]Datos!$F$68,IF(AND(L11=[47]Datos!$B$68,M11=[47]Datos!$B$75),[47]Datos!$G$68,IF(AND(L11=[47]Datos!$B$68,M11=[47]Datos!$B$76),[47]Datos!$H$68,IF(AND(L11=[47]Datos!$B$69,M11=[47]Datos!$B$72),[47]Datos!$D$69,IF(AND(L11=[47]Datos!$B$69,M11=[47]Datos!$B$73),[47]Datos!$E$69,IF(AND(L11=[47]Datos!$B$69,M11=[47]Datos!$B$74),[47]Datos!$F$69,IF(AND(L11=[47]Datos!$B$69,M11=[47]Datos!$B$75),[47]Datos!$G$69,IF(AND(L11=[47]Datos!$B$69,M11=[47]Datos!$B$76),[47]Datos!$H$69,"-"))))))))))))))))))))))))) -> CATASTRÓFICO – INACEPTABLE 16 | O11: Garantizar que los docentes entreguen un informe de gestión y a su vez que la evaluación por parte de los Proyectos Curriculares sea con base en éste. | P11: Manual | Q11: Preventivo | R11: Alto - 25 | S11: Alto - 25 | T11: Bajo - 5 | U11: Medio Alto - 20 | V11: =((IF(R11=[47]Datos!$B$83,0,IF(R11=[47]Datos!$B$84,5,IF(R11=[47]Datos!$B$85,10,IF(R11=[47]Datos!$B$86,15,IF(R11=[47]Datos!$B$87,20,IF(R11=[47]Datos!$B$88,25,0)))))))/100)+((IF(S11=[47]Datos!$B$83,0,IF(S11=[47]Datos!$B$84,5,IF(S11=[47]Datos!$B$85,10,IF(S11=[47]Datos!$B$86,15,IF(S11=[47]Datos!$B$87,20,IF(S11=[47]Datos!$B$88,25,0)))))))/100)+((IF(T11=[47]Datos!$B$83,0,IF(T11=[47]Datos!$B$84,5,IF(T11=[47]Datos!$B$85,10,IF(T11=[47]Datos!$B$86,15,IF(T11=[47]Datos!$B$87,20,IF(T11=[47]Datos!$B$88,25,0)))))))/100)+((IF(U11=[47]Datos!$B$83,0,IF(U11=[47]Datos!$B$84,5,IF(U11=[47]Datos!$B$85,10,IF(U11=[47]Datos!$B$86,15,IF(U11=[47]Datos!$B$87,20,IF(U11=[47]Datos!$B$88,25,0)))))))/100) -> 0.75 | W11: =IF(ISERROR((IF(Q11=[47]Datos!$B$80,V11,0)+IF(Q12=[47]Datos!$B$80,V12,0)+IF(Q13=[47]Datos!$B$80,V13,0)+IF(Q14=[47]Datos!$B$80,V14,0)+IF(Q15=[47]Datos!$B$80,V15,0)+IF(Q16=[47]Datos!$B$80,V16,0))/(IF(Q11=[47]Datos!$B$80,1,0)+IF(Q12=[47]Datos!$B$80,1,0)+IF(Q13=[47]Datos!$B$80,1,0)+IF(Q14=[47]Datos!$B$80,1,0)+IF(Q15=[47]Datos!$B$80,1,0)+IF(Q16=[47]Datos!$B$80,1,0))),0,(IF(Q11=[47]Datos!$B$80,V11,0)+IF(Q12=[47]Datos!$B$80,V12,0)+IF(Q13=[47]Datos!$B$80,V13,0)+IF(Q14=[47]Datos!$B$80,V14,0)+IF(Q15=[47]Datos!$B$80,V15,0)+IF(Q16=[47]Datos!$B$80,V16,0))/(IF(Q11=[47]Datos!$B$80,1,0)+IF(Q12=[47]Datos!$B$80,1,0)+IF(Q13=[47]Datos!$B$80,1,0)+IF(Q14=[47]Datos!$B$80,1,0)+IF(Q15=[47]Datos!$B$80,1,0)+IF(Q16=[47]Datos!$B$80,1,0))) -> 0.75 | X11: =IF(L11="","-",(IF(W11>0,(IF(L11=[47]Datos!$B$65,[47]Datos!$B$65,IF(AND(L11=[47]Datos!$B$66,W11>0.49),[47]Datos!$B$65,IF(AND(L11=[47]Datos!$B$67,W11>0.74),[47]Datos!$B$65,IF(AND(L11=[47]Datos!$B$67,W11<0.75,W11>0.49),[47]Datos!$B$66,IF(AND(L11=[47]Datos!$B$68,W11>0.74),[47]Datos!$B$66,IF(AND(L11=[47]Datos!$B$68,W11<0.75,W11>0.49),[47]Datos!$B$67,IF(AND(L11=[47]Datos!$B$69,W11>0.74),[47]Datos!$B$67,IF(AND(L11=[47]Datos!$B$69,W11<0.75,W11>0.49),[47]Datos!$B$68,L11))))))))),L11))) -> Improbable - 2 | Y11: =IF(ISERROR((IF(Q11=[47]Datos!$B$79,V11,0)+IF(Q12=[47]Datos!$B$79,V12,0)+IF(Q13=[47]Datos!$B$79,V13,0)+IF(Q14=[47]Datos!$B$79,V14,0)+IF(Q15=[47]Datos!$B$79,V15,0)+IF(Q16=[47]Datos!$B$79,V16,0))/(IF(Q11=[47]Datos!$B$79,1,0)+IF(Q12=[47]Datos!$B$79,1,0)+IF(Q13=[47]Datos!$B$79,1,0)+IF(Q14=[47]Datos!$B$79,1,0)+IF(Q15=[47]Datos!$B$79,1,0)+IF(Q16=[47]Datos!$B$79,1,0))),0,(IF(Q11=[47]Datos!$B$79,V11,0)+IF(Q12=[47]Datos!$B$79,V12,0)+IF(Q13=[47]Datos!$B$79,V13,0)+IF(Q14=[47]Datos!$B$79,V14,0)+IF(Q15=[47]Datos!$B$79,V15,0)+IF(Q16=[47]Datos!$B$79,V16,0))/(IF(Q11=[47]Datos!$B$79,1,0)+IF(Q12=[47]Datos!$B$79,1,0)+IF(Q13=[47]Datos!$B$79,1,0)+IF(Q14=[47]Datos!$B$79,1,0)+IF(Q15=[47]Datos!$B$79,1,0)+IF(Q16=[47]Datos!$B$79,1,0))) -> 0 | Z11: =IF(M11="","-",(IF(Y11>0,(IF(M11=[47]Datos!$B$72,[47]Datos!$B$72,IF(AND(M11=[47]Datos!$B$73,Y11>0.49),[47]Datos!$B$72,IF(AND(M11=[47]Datos!$B$74,Y11>0.74),[47]Datos!$B$72,IF(AND(M11=[47]Datos!$B$74,Y11<0.75,Y11>0.49),[47]Datos!$B$73,IF(AND(M11=[47]Datos!$B$75,Y11>0.74),[47]Datos!$B$73,IF(AND(M11=[47]Datos!$B$75,Y11<0.75,Y11>0.49),[47]Datos!$B$74,IF(AND(M11=[47]Datos!$B$76,Y11>0.74),[47]Datos!$B$74,IF(AND(M11=[47]Datos!$B$76,Y11<0.75,Y11>0.49),[47]Datos!$B$75,M11))))))))),M11))) -> Mayor - 4 | AA11: =IF(AND(X11=[47]Datos!$B$65,Z11=[47]Datos!$B$72),[47]Datos!$D$65,IF(AND(X11=[47]Datos!$B$65,Z11=[47]Datos!$B$73),[47]Datos!$E$65,IF(AND(X11=[47]Datos!$B$65,Z11=[47]Datos!$B$74),[47]Datos!$F$65,IF(AND(X11=[47]Datos!$B$65,Z11=[47]Datos!$B$75),[47]Datos!$G$65,IF(AND(X11=[47]Datos!$B$65,Z11=[47]Datos!$B$76),[47]Datos!$H$65,IF(AND(X11=[47]Datos!$B$66,Z11=[47]Datos!$B$72),[47]Datos!$D$66,IF(AND(X11=[47]Datos!$B$66,Z11=[47]Datos!$B$73),[47]Datos!$E$66,IF(AND(X11=[47]Datos!$B$66,Z11=[47]Datos!$B$74),[47]Datos!$F$66,IF(AND(X11=[47]Datos!$B$66,Z11=[47]Datos!$B$75),[47]Datos!$G$66,IF(AND(X11=[47]Datos!$B$66,Z11=[47]Datos!$B$76),[47]Datos!$H$66,IF(AND(X11=[47]Datos!$B$67,Z11=[47]Datos!$B$72),[47]Datos!$D$67,IF(AND(X11=[47]Datos!$B$67,Z11=[47]Datos!$B$73),[47]Datos!$E$67,IF(AND(X11=[47]Datos!$B$67,Z11=[47]Datos!$B$74),[47]Datos!$F$67,IF(AND(X11=[47]Datos!$B$67,Z11=[47]Datos!$B$75),[47]Datos!$G$67,IF(AND(X11=[47]Datos!$B$67,Z11=[47]Datos!$B$76),[47]Datos!$H$67,IF(AND(X11=[47]Datos!$B$68,Z11=[47]Datos!$B$72),[47]Datos!$D$68,IF(AND(X11=[47]Datos!$B$68,Z11=[47]Datos!$B$73),[47]Datos!$E$68,IF(AND(X11=[47]Datos!$B$68,Z11=[47]Datos!$B$74),[47]Datos!$F$68,IF(AND(X11=[47]Datos!$B$68,Z11=[47]Datos!$B$75),[47]Datos!$G$68,IF(AND(X11=[47]Datos!$B$68,Z11=[47]Datos!$B$76),[47]Datos!$H$68,IF(AND(X11=[47]Datos!$B$69,Z11=[47]Datos!$B$72),[47]Datos!$D$69,IF(AND(X11=[47]Datos!$B$69,Z11=[47]Datos!$B$73),[47]Datos!$E$69,IF(AND(X11=[47]Datos!$B$69,Z11=[47]Datos!$B$74),[47]Datos!$F$69,IF(AND(X11=[47]Datos!$B$69,Z11=[47]Datos!$B$75),[47]Datos!$G$69,IF(AND(X11=[47]Datos!$B$69,Z11=[47]Datos!$B$76),[47]Datos!$H$69,"-"))))))))))))))))))))))))) -> ALTA-IMPORTANTE 8 | AB11: Reducir (RE)
E12: El formato de la evaluación docente no permite una valoración objetiva e integral de los aspectos que se deben tener en cuenta en la valoración de las actividades que ejecutan docentes. | G12: Interno | K12: Datos poco representativos para la toma de decisiones con respecto a la continuidad de los docentes, necesidades de capacitación docente y bonificaciones asociadas a la excelencia en el proceso de evaluación. | V12: =((IF(R12=[47]Datos!$B$83,0,IF(R12=[47]Datos!$B$84,5,IF(R12=[47]Datos!$B$85,10,IF(R12=[47]Datos!$B$86,15,IF(R12=[47]Datos!$B$87,20,IF(R12=[47]Datos!$B$88,25,0)))))))/100)+((IF(S12=[47]Datos!$B$83,0,IF(S12=[47]Datos!$B$84,5,IF(S12=[47]Datos!$B$85,10,IF(S12=[47]Datos!$B$86,15,IF(S12=[47]Datos!$B$87,20,IF(S12=[47]Datos!$B$88,25,0)))))))/100)+((IF(T12=[47]Datos!$B$83,0,IF(T12=[47]Datos!$B$84,5,IF(T12=[47]Datos!$B$85,10,IF(T12=[47]Datos!$B$86,15,IF(T12=[47]Datos!$B$87,20,IF(T12=[47]Datos!$B$88,25,0)))))))/100)+((IF(U12=[47]Datos!$B$83,0,IF(U12=[47]Datos!$B$84,5,IF(U12=[47]Datos!$B$85,10,IF(U12=[47]Datos!$B$86,15,IF(U12=[47]Datos!$B$87,20,IF(U12=[47]Datos!$B$88,25,0)))))))/100) -> 0
E13: Falta de cultura de evaluación institucional. | G13: Externo | K13: Continuidad de los docentes mal evaluados en la institución. | V13: =((IF(R13=[47]Datos!$B$83,0,IF(R13=[47]Datos!$B$84,5,IF(R13=[47]Datos!$B$85,10,IF(R13=[47]Datos!$B$86,15,IF(R13=[47]Datos!$B$87,20,IF(R13=[47]Datos!$B$88,25,0)))))))/100)+((IF(S13=[47]Datos!$B$83,0,IF(S13=[47]Datos!$B$84,5,IF(S13=[47]Datos!$B$85,10,IF(S13=[47]Datos!$B$86,15,IF(S13=[47]Datos!$B$87,20,IF(S13=[47]Datos!$B$88,25,0)))))))/100)+((IF(T13=[47]Datos!$B$83,0,IF(T13=[47]Datos!$B$84,5,IF(T13=[47]Datos!$B$85,10,IF(T13=[47]Datos!$B$86,15,IF(T13=[47]Datos!$B$87,20,IF(T13=[47]Datos!$B$88,25,0)))))))/100)+((IF(U13=[47]Datos!$B$83,0,IF(U13=[47]Datos!$B$84,5,IF(U13=[47]Datos!$B$85,10,IF(U13=[47]Datos!$B$86,15,IF(U13=[47]Datos!$B$87,20,IF(U13=[47]Datos!$B$88,25,0)))))))/100) -> 0
E14: Falta de institucionalización de la Oficina de Evaluación Docente. | G14: Externo | V14: =((IF(R14=[47]Datos!$B$83,0,IF(R14=[47]Datos!$B$84,5,IF(R14=[47]Datos!$B$85,10,IF(R14=[47]Datos!$B$86,15,IF(R14=[47]Datos!$B$87,20,IF(R14=[47]Datos!$B$88,25,0)))))))/100)+((IF(S14=[47]Datos!$B$83,0,IF(S14=[47]Datos!$B$84,5,IF(S14=[47]Datos!$B$85,10,IF(S14=[47]Datos!$B$86,15,IF(S14=[47]Datos!$B$87,20,IF(S14=[47]Datos!$B$88,25,0)))))))/100)+((IF(T14=[47]Datos!$B$83,0,IF(T14=[47]Datos!$B$84,5,IF(T14=[47]Datos!$B$85,10,IF(T14=[47]Datos!$B$86,15,IF(T14=[47]Datos!$B$87,20,IF(T14=[47]Datos!$B$88,25,0)))))))/100)+((IF(U14=[47]Datos!$B$83,0,IF(U14=[47]Datos!$B$84,5,IF(U14=[47]Datos!$B$85,10,IF(U14=[47]Datos!$B$86,15,IF(U14=[47]Datos!$B$87,20,IF(U14=[47]Datos!$B$88,25,0)))))))/100) -> 0
V15: =((IF(R15=[47]Datos!$B$83,0,IF(R15=[47]Datos!$B$84,5,IF(R15=[47]Datos!$B$85,10,IF(R15=[47]Datos!$B$86,15,IF(R15=[47]Datos!$B$87,20,IF(R15=[47]Datos!$B$88,25,0)))))))/100)+((IF(S15=[47]Datos!$B$83,0,IF(S15=[47]Datos!$B$84,5,IF(S15=[47]Datos!$B$85,10,IF(S15=[47]Datos!$B$86,15,IF(S15=[47]Datos!$B$87,20,IF(S15=[47]Datos!$B$88,25,0)))))))/100)+((IF(T15=[47]Datos!$B$83,0,IF(T15=[47]Datos!$B$84,5,IF(T15=[47]Datos!$B$85,10,IF(T15=[47]Datos!$B$86,15,IF(T15=[47]Datos!$B$87,20,IF(T15=[47]Datos!$B$88,25,0)))))))/100)+((IF(U15=[47]Datos!$B$83,0,IF(U15=[47]Datos!$B$84,5,IF(U15=[47]Datos!$B$85,10,IF(U15=[47]Datos!$B$86,15,IF(U15=[47]Datos!$B$87,20,IF(U15=[47]Datos!$B$88,25,0)))))))/100) -> 0
V16: =((IF(R16=[47]Datos!$B$83,0,IF(R16=[47]Datos!$B$84,5,IF(R16=[47]Datos!$B$85,10,IF(R16=[47]Datos!$B$86,15,IF(R16=[47]Datos!$B$87,20,IF(R16=[47]Datos!$B$88,25,0)))))))/100)+((IF(S16=[47]Datos!$B$83,0,IF(S16=[47]Datos!$B$84,5,IF(S16=[47]Datos!$B$85,10,IF(S16=[47]Datos!$B$86,15,IF(S16=[47]Datos!$B$87,20,IF(S16=[47]Datos!$B$88,25,0)))))))/100)+((IF(T16=[47]Datos!$B$83,0,IF(T16=[47]Datos!$B$84,5,IF(T16=[47]Datos!$B$85,10,IF(T16=[47]Datos!$B$86,15,IF(T16=[47]Datos!$B$87,20,IF(T16=[47]Datos!$B$88,25,0)))))))/100)+((IF(U16=[47]Datos!$B$83,0,IF(U16=[47]Datos!$B$84,5,IF(U16=[47]Datos!$B$85,10,IF(U16=[47]Datos!$B$86,15,IF(U16=[47]Datos!$B$87,20,IF(U16=[47]Datos!$B$88,25,0)))))))/100) -> 0
B17: Gestión de Docencia | D17: =IF(B17="","-",VLOOKUP(B17,[47]Datos!$B$4:$C$25,2,FALSE)) -> Garantizar que los planes de estudio establecidos para cada proyecto curricular, ofrezcan al estudiante de la UDFJC una formación integral y de calidad, dirigida fundamentalmente a las necesidades de la sociedad, contando con la cantidad e idoneidad de docentes y demás personal que influya directamente en tal proceso de formación, garantizando que se ejecute eficientemente el proceso de enseñanza. | E17: Falta de credibilidad y apatía en la evaluación docente por parte de los involucrados. | G17: Interno | H17: Baja participación de los involucrados en el proceso de evaluación docente. | I17: Falta de compromiso por parte de los involucrados durante el proceso de evaluación docente. | J17: Estratégico | K17: No existe realimentación por parte de los estudiantes y proyectos curriculares para que los docentes mejoren su labor académica. | L17: Posible - 3 | M17: Moderado - 3 | N17: =IF(AND(L17=[47]Datos!$B$65,M17=[47]Datos!$B$72),[47]Datos!$D$65,IF(AND(L17=[47]Datos!$B$65,M17=[47]Datos!$B$73),[47]Datos!$E$65,IF(AND(L17=[47]Datos!$B$65,M17=[47]Datos!$B$74),[47]Datos!$F$65,IF(AND(L17=[47]Datos!$B$65,M17=[47]Datos!$B$75),[47]Datos!$G$65,IF(AND(L17=[47]Datos!$B$65,M17=[47]Datos!$B$76),[47]Datos!$H$65,IF(AND(L17=[47]Datos!$B$66,M17=[47]Datos!$B$72),[47]Datos!$D$66,IF(AND(L17=[47]Datos!$B$66,M17=[47]Datos!$B$73),[47]Datos!$E$66,IF(AND(L17=[47]Datos!$B$66,M17=[47]Datos!$B$74),[47]Datos!$F$66,IF(AND(L17=[47]Datos!$B$66,M17=[47]Datos!$B$75),[47]Datos!$G$66,IF(AND(L17=[47]Datos!$B$66,M17=[47]Datos!$B$76),[47]Datos!$H$66,IF(AND(L17=[47]Datos!$B$67,M17=[47]Datos!$B$72),[47]Datos!$D$67,IF(AND(L17=[47]Datos!$B$67,M17=[47]Datos!$B$73),[47]Datos!$E$67,IF(AND(L17=[47]Datos!$B$67,M17=[47]Datos!$B$74),[47]Datos!$F$67,IF(AND(L17=[47]Datos!$B$67,M17=[47]Datos!$B$75),[47]Datos!$G$67,IF(AND(L17=[47]Datos!$B$67,M17=[47]Datos!$B$76),[47]Datos!$H$67,IF(AND(L17=[47]Datos!$B$68,M17=[47]Datos!$B$72),[47]Datos!$D$68,IF(AND(L17=[47]Datos!$B$68,M17=[47]Datos!$B$73),[47]Datos!$E$68,IF(AND(L17=[47]Datos!$B$68,M17=[47]Datos!$B$74),[47]Datos!$F$68,IF(AND(L17=[47]Datos!$B$68,M17=[47]Datos!$B$75),[47]Datos!$G$68,IF(AND(L17=[47]Datos!$B$68,M17=[47]Datos!$B$76),[47]Datos!$H$68,IF(AND(L17=[47]Datos!$B$69,M17=[47]Datos!$B$72),[47]Datos!$D$69,IF(AND(L17=[47]Datos!$B$69,M17=[47]Datos!$B$73),[47]Datos!$E$69,IF(AND(L17=[47]Datos!$B$69,M17=[47]Datos!$B$74),[47]Datos!$F$69,IF(AND(L17=[47]Datos!$B$69,M17=[47]Datos!$B$75),[47]Datos!$G$69,IF(AND(L17=[47]Datos!$B$69,M17=[47]Datos!$B$76),[47]Datos!$H$69,"-"))))))))))))))))))))))))) -> ALTA - IMPORTANTE 9 | O17: Socialización a través de correos electrónicos, boletines, página web, afiches, sistema de gestión académica, etc. | P17: Manual | Q17: Preventivo | R17: Alto - 25 | S17: Alto - 25 | T17: Alto - 25 | U17: Alto - 25 | V17: =((IF(R17=[47]Datos!$B$83,0,IF(R17=[47]Datos!$B$84,5,IF(R17=[47]Datos!$B$85,10,IF(R17=[47]Datos!$B$86,15,IF(R17=[47]Datos!$B$87,20,IF(R17=[47]Datos!$B$88,25,0)))))))/100)+((IF(S17=[47]Datos!$B$83,0,IF(S17=[47]Datos!$B$84,5,IF(S17=[47]Datos!$B$85,10,IF(S17=[47]Datos!$B$86,15,IF(S17=[47]Datos!$B$87,20,IF(S17=[47]Datos!$B$88,25,0)))))))/100)+((IF(T17=[47]Datos!$B$83,0,IF(T17=[47]Datos!$B$84,5,IF(T17=[47]Datos!$B$85,10,IF(T17=[47]Datos!$B$86,15,IF(T17=[47]Datos!$B$87,20,IF(T17=[47]Datos!$B$88,25,0)))))))/100)+((IF(U17=[47]Datos!$B$83,0,IF(U17=[47]Datos!$B$84,5,IF(U17=[47]Datos!$B$85,10,IF(U17=[47]Datos!$B$86,15,IF(U17=[47]Datos!$B$87,20,IF(U17=[47]Datos!$B$88,25,0)))))))/100) -> 1 | W17: =IF(ISERROR((IF(Q17=[47]Datos!$B$80,V17,0)+IF(Q18=[47]Datos!$B$80,V18,0)+IF(Q19=[47]Datos!$B$80,V19,0)+IF(Q20=[47]Datos!$B$80,V20,0)+IF(Q21=[47]Datos!$B$80,V21,0)+IF(Q22=[47]Datos!$B$80,V22,0))/(IF(Q17=[47]Datos!$B$80,1,0)+IF(Q18=[47]Datos!$B$80,1,0)+IF(Q19=[47]Datos!$B$80,1,0)+IF(Q20=[47]Datos!$B$80,1,0)+IF(Q21=[47]Datos!$B$80,1,0)+IF(Q22=[47]Datos!$B$80,1,0))),0,(IF(Q17=[47]Datos!$B$80,V17,0)+IF(Q18=[47]Datos!$B$80,V18,0)+IF(Q19=[47]Datos!$B$80,V19,0)+IF(Q20=[47]Datos!$B$80,V20,0)+IF(Q21=[47]Datos!$B$80,V21,0)+IF(Q22=[47]Datos!$B$80,V22,0))/(IF(Q17=[47]Datos!$B$80,1,0)+IF(Q18=[47]Datos!$B$80,1,0)+IF(Q19=[47]Datos!$B$80,1,0)+IF(Q20=[47]Datos!$B$80,1,0)+IF(Q21=[47]Datos!$B$80,1,0)+IF(Q22=[47]Datos!$B$80,1,0))) -> 1 | X17: =IF(L17="","-",(IF(W17>0,(IF(L17=[47]Datos!$B$65,[47]Datos!$B$65,IF(AND(L17=[47]Datos!$B$66,W17>0.49),[47]Datos!$B$65,IF(AND(L17=[47]Datos!$B$67,W17>0.74),[47]Datos!$B$65,IF(AND(L17=[47]Datos!$B$67,W17<0.75,W17>0.49),[47]Datos!$B$66,IF(AND(L17=[47]Datos!$B$68,W17>0.74),[47]Datos!$B$66,IF(AND(L17=[47]Datos!$B$68,W17<0.75,W17>0.49),[47]Datos!$B$67,IF(AND(L17=[47]Datos!$B$69,W17>0.74),[47]Datos!$B$67,IF(AND(L17=[47]Datos!$B$69,W17<0.75,W17>0.49),[47]Datos!$B$68,L17))))))))),L17))) -> Raro - 1 | Y17: =IF(ISERROR((IF(Q17=[47]Datos!$B$79,V17,0)+IF(Q18=[47]Datos!$B$79,V18,0)+IF(Q19=[47]Datos!$B$79,V19,0)+IF(Q20=[47]Datos!$B$79,V20,0)+IF(Q21=[47]Datos!$B$79,V21,0)+IF(Q22=[47]Datos!$B$79,V22,0))/(IF(Q17=[47]Datos!$B$79,1,0)+IF(Q18=[47]Datos!$B$79,1,0)+IF(Q19=[47]Datos!$B$79,1,0)+IF(Q20=[47]Datos!$B$79,1,0)+IF(Q21=[47]Datos!$B$79,1,0)+IF(Q22=[47]Datos!$B$79,1,0))),0,(IF(Q17=[47]Datos!$B$79,V17,0)+IF(Q18=[47]Datos!$B$79,V18,0)+IF(Q19=[47]Datos!$B$79,V19,0)+IF(Q20=[47]Datos!$B$79,V20,0)+IF(Q21=[47]Datos!$B$79,V21,0)+IF(Q22=[47]Datos!$B$79,V22,0))/(IF(Q17=[47]Datos!$B$79,1,0)+IF(Q18=[47]Datos!$B$79,1,0)+IF(Q19=[47]Datos!$B$79,1,0)+IF(Q20=[47]Datos!$B$79,1,0)+IF(Q21=[47]Datos!$B$79,1,0)+IF(Q22=[47]Datos!$B$79,1,0))) -> 0.975 | Z17: =IF(M17="","-",(IF(Y17>0,(IF(M17=[47]Datos!$B$72,[47]Datos!$B$72,IF(AND(M17=[47]Datos!$B$73,Y17>0.49),[47]Datos!$B$72,IF(AND(M17=[47]Datos!$B$74,Y17>0.74),[47]Datos!$B$72,IF(AND(M17=[47]Datos!$B$74,Y17<0.75,Y17>0.49),[47]Datos!$B$73,IF(AND(M17=[47]Datos!$B$75,Y17>0.74),[47]Datos!$B$73,IF(AND(M17=[47]Datos!$B$75,Y17<0.75,Y17>0.49),[47]Datos!$B$74,IF(AND(M17=[47]Datos!$B$76,Y17>0.74),[47]Datos!$B$74,IF(AND(M17=[47]Datos!$B$76,Y17<0.75,Y17>0.49),[47]Datos!$B$75,M17))))))))),M17))) -> Insignificante - 1 | AA17: =IF(AND(X17=[47]Datos!$B$65,Z17=[47]Datos!$B$72),[47]Datos!$D$65,IF(AND(X17=[47]Datos!$B$65,Z17=[47]Datos!$B$73),[47]Datos!$E$65,IF(AND(X17=[47]Datos!$B$65,Z17=[47]Datos!$B$74),[47]Datos!$F$65,IF(AND(X17=[47]Datos!$B$65,Z17=[47]Datos!$B$75),[47]Datos!$G$65,IF(AND(X17=[47]Datos!$B$65,Z17=[47]Datos!$B$76),[47]Datos!$H$65,IF(AND(X17=[47]Datos!$B$66,Z17=[47]Datos!$B$72),[47]Datos!$D$66,IF(AND(X17=[47]Datos!$B$66,Z17=[47]Datos!$B$73),[47]Datos!$E$66,IF(AND(X17=[47]Datos!$B$66,Z17=[47]Datos!$B$74),[47]Datos!$F$66,IF(AND(X17=[47]Datos!$B$66,Z17=[47]Datos!$B$75),[47]Datos!$G$66,IF(AND(X17=[47]Datos!$B$66,Z17=[47]Datos!$B$76),[47]Datos!$H$66,IF(AND(X17=[47]Datos!$B$67,Z17=[47]Datos!$B$72),[47]Datos!$D$67,IF(AND(X17=[47]Datos!$B$67,Z17=[47]Datos!$B$73),[47]Datos!$E$67,IF(AND(X17=[47]Datos!$B$67,Z17=[47]Datos!$B$74),[47]Datos!$F$67,IF(AND(X17=[47]Datos!$B$67,Z17=[47]Datos!$B$75),[47]Datos!$G$67,IF(AND(X17=[47]Datos!$B$67,Z17=[47]Datos!$B$76),[47]Datos!$H$67,IF(AND(X17=[47]Datos!$B$68,Z17=[47]Datos!$B$72),[47]Datos!$D$68,IF(AND(X17=[47]Datos!$B$68,Z17=[47]Datos!$B$73),[47]Datos!$E$68,IF(AND(X17=[47]Datos!$B$68,Z17=[47]Datos!$B$74),[47]Datos!$F$68,IF(AND(X17=[47]Datos!$B$68,Z17=[47]Datos!$B$75),[47]Datos!$G$68,IF(AND(X17=[47]Datos!$B$68,Z17=[47]Datos!$B$76),[47]Datos!$H$68,IF(AND(X17=[47]Datos!$B$69,Z17=[47]Datos!$B$72),[47]Datos!$D$69,IF(AND(X17=[47]Datos!$B$69,Z17=[47]Datos!$B$73),[47]Datos!$E$69,IF(AND(X17=[47]Datos!$B$69,Z17=[47]Datos!$B$74),[47]Datos!$F$69,IF(AND(X17=[47]Datos!$B$69,Z17=[47]Datos!$B$75),[47]Datos!$G$69,IF(AND(X17=[47]Datos!$B$69,Z17=[47]Datos!$B$76),[47]Datos!$H$69,"-"))))))))))))))))))))))))) -> BAJO - TRIVIAL 1 | AB17: Reducir (RE)
E18: La comunidad académica no percibe cambios relacionados a partir de los resultados de la evaluación docente. | G18: Interno | K18: El proceso de evaluación docente deja de ser representativo. | O18: Apoyo asistencial con personal encargado de reforzar la participación en el proceso. | P18: Manual | Q18: Correctivo | R18: Alto - 25 | S18: Alto - 25 | T18: Alto - 25 | U18: Medio Alto - 20 | V18: =((IF(R18=[47]Datos!$B$83,0,IF(R18=[47]Datos!$B$84,5,IF(R18=[47]Datos!$B$85,10,IF(R18=[47]Datos!$B$86,15,IF(R18=[47]Datos!$B$87,20,IF(R18=[47]Datos!$B$88,25,0)))))))/100)+((IF(S18=[47]Datos!$B$83,0,IF(S18=[47]Datos!$B$84,5,IF(S18=[47]Datos!$B$85,10,IF(S18=[47]Datos!$B$86,15,IF(S18=[47]Datos!$B$87,20,IF(S18=[47]Datos!$B$88,25,0)))))))/100)+((IF(T18=[47]Datos!$B$83,0,IF(T18=[47]Datos!$B$84,5,IF(T18=[47]Datos!$B$85,10,IF(T18=[47]Datos!$B$86,15,IF(T18=[47]Datos!$B$87,20,IF(T18=[47]Datos!$B$88,25,0)))))))/100)+((IF(U18=[47]Datos!$B$83,0,IF(U18=[47]Datos!$B$84,5,IF(U18=[47]Datos!$B$85,10,IF(U18=[47]Datos!$B$86,15,IF(U18=[47]Datos!$B$87,20,IF(U18=[47]Datos!$B$88,25,0)))))))/100) -> 0.95
E19: El formato de la evaluación docente no permite una valoración objetiva e integral de los aspectos que se deben tener en cuenta. | G19: Interno | O19: Comunicaciones permanentes con los docentes, coordinaciones y decanaturas informando el estado de participación de los estudiantes en sus diferentes asignaturas. | P19: Manual | Q19: Correctivo | R19: Alto - 25 | S19: Alto - 25 | T19: Alto - 25 | U19: Alto - 25 | V19: =((IF(R19=[47]Datos!$B$83,0,IF(R19=[47]Datos!$B$84,5,IF(R19=[47]Datos!$B$85,10,IF(R19=[47]Datos!$B$86,15,IF(R19=[47]Datos!$B$87,20,IF(R19=[47]Datos!$B$88,25,0)))))))/100)+((IF(S19=[47]Datos!$B$83,0,IF(S19=[47]Datos!$B$84,5,IF(S19=[47]Datos!$B$85,10,IF(S19=[47]Datos!$B$86,15,IF(S19=[47]Datos!$B$87,20,IF(S19=[47]Datos!$B$88,25,0)))))))/100)+((IF(T19=[47]Datos!$B$83,0,IF(T19=[47]Datos!$B$84,5,IF(T19=[47]Datos!$B$85,10,IF(T19=[47]Datos!$B$86,15,IF(T19=[47]Datos!$B$87,20,IF(T19=[47]Datos!$B$88,25,0)))))))/100)+((IF(U19=[47]Datos!$B$83,0,IF(U19=[47]Datos!$B$84,5,IF(U19=[47]Datos!$B$85,10,IF(U19=[47]Datos!$B$86,15,IF(U19=[47]Datos!$B$87,20,IF(U19=[47]Datos!$B$88,25,0)))))))/100) -> 1
E20: Falta de cultura de evaluación institucional. | G20: Externo | O20: Seguimiento de la Oficina Asesora de Sistemas para verificar tiempos y funcionamiento de la plataforma. | P20: Automático | Q20: Preventivo | R20: Alto - 25 | S20: Alto - 25 | T20: Alto - 25 | U20: Alto - 25 | V20: =((IF(R20=[47]Datos!$B$83,0,IF(R20=[47]Datos!$B$84,5,IF(R20=[47]Datos!$B$85,10,IF(R20=[47]Datos!$B$86,15,IF(R20=[47]Datos!$B$87,20,IF(R20=[47]Datos!$B$88,25,0)))))))/100)+((IF(S20=[47]Datos!$B$83,0,IF(S20=[47]Datos!$B$84,5,IF(S20=[47]Datos!$B$85,10,IF(S20=[47]Datos!$B$86,15,IF(S20=[47]Datos!$B$87,20,IF(S20=[47]Datos!$B$88,25,0)))))))/100)+((IF(T20=[47]Datos!$B$83,0,IF(T20=[47]Datos!$B$84,5,IF(T20=[47]Datos!$B$85,10,IF(T20=[47]Datos!$B$86,15,IF(T20=[47]Datos!$B$87,20,IF(T20=[47]Datos!$B$88,25,0)))))))/100)+((IF(U20=[47]Datos!$B$83,0,IF(U20=[47]Datos!$B$84,5,IF(U20=[47]Datos!$B$85,10,IF(U20=[47]Datos!$B$86,15,IF(U20=[47]Datos!$B$87,20,IF(U20=[47]Datos!$B$88,25,0)))))))/100) -> 1
E21: Falta de institucionalización de la Oficina de Evaluación Docente | G21: Externo | O21: Generación de certificado de realización de autoevaluación en los docentes. | P21: Manual | V21: =((IF(R21=[47]Datos!$B$83,0,IF(R21=[47]Datos!$B$84,5,IF(R21=[47]Datos!$B$85,10,IF(R21=[47]Datos!$B$86,15,IF(R21=[47]Datos!$B$87,20,IF(R21=[47]Datos!$B$88,25,0)))))))/100)+((IF(S21=[47]Datos!$B$83,0,IF(S21=[47]Datos!$B$84,5,IF(S21=[47]Datos!$B$85,10,IF(S21=[47]Datos!$B$86,15,IF(S21=[47]Datos!$B$87,20,IF(S21=[47]Datos!$B$88,25,0)))))))/100)+((IF(T21=[47]Datos!$B$83,0,IF(T21=[47]Datos!$B$84,5,IF(T21=[47]Datos!$B$85,10,IF(T21=[47]Datos!$B$86,15,IF(T21=[47]Datos!$B$87,20,IF(T21=[47]Datos!$B$88,25,0)))))))/100)+((IF(U21=[47]Datos!$B$83,0,IF(U21=[47]Datos!$B$84,5,IF(U21=[47]Datos!$B$85,10,IF(U21=[47]Datos!$B$86,15,IF(U21=[47]Datos!$B$87,20,IF(U21=[47]Datos!$B$88,25,0)))))))/100) -> 0
V22: =((IF(R22=[47]Datos!$B$83,0,IF(R22=[47]Datos!$B$84,5,IF(R22=[47]Datos!$B$85,10,IF(R22=[47]Datos!$B$86,15,IF(R22=[47]Datos!$B$87,20,IF(R22=[47]Datos!$B$88,25,0)))))))/100)+((IF(S22=[47]Datos!$B$83,0,IF(S22=[47]Datos!$B$84,5,IF(S22=[47]Datos!$B$85,10,IF(S22=[47]Datos!$B$86,15,IF(S22=[47]Datos!$B$87,20,IF(S22=[47]Datos!$B$88,25,0)))))))/100)+((IF(T22=[47]Datos!$B$83,0,IF(T22=[47]Datos!$B$84,5,IF(T22=[47]Datos!$B$85,10,IF(T22=[47]Datos!$B$86,15,IF(T22=[47]Datos!$B$87,20,IF(T22=[47]Datos!$B$88,25,0)))))))/100)+((IF(U22=[47]Datos!$B$83,0,IF(U22=[47]Datos!$B$84,5,IF(U22=[47]Datos!$B$85,10,IF(U22=[47]Datos!$B$86,15,IF(U22=[47]Datos!$B$87,20,IF(U22=[47]Datos!$B$88,25,0)))))))/100) -> 0
B23: Gestión de Docencia | D23: =IF(B23="","-",VLOOKUP(B23,[47]Datos!$B$4:$C$25,2,FALSE)) -> Garantizar que los planes de estudio establecidos para cada proyecto curricular, ofrezcan al estudiante de la UDFJC una formación integral y de calidad, dirigida fundamentalmente a las necesidades de la sociedad, contando con la cantidad e idoneidad de docentes y demás personal que influya directamente en tal proceso de formación, garantizando que se ejecute eficientemente el proceso de enseñanza. | E23: Demora en autorización de recursos para la realización de las prácticas académicas. | G23: Interno | H23: Inconvenientes en la gestión de prácticas académicas. | I23: Interrupción, cancelación o demoras en la realización de las actividades de gestión administrativa para las prácticas académicas. | J23: Operativos | K23: Disminuye la experiencia formativa de los estudiantes. | L23: Posible - 3 | M23: Moderado - 3 | N23: =IF(AND(L23=[47]Datos!$B$65,M23=[47]Datos!$B$72),[47]Datos!$D$65,IF(AND(L23=[47]Datos!$B$65,M23=[47]Datos!$B$73),[47]Datos!$E$65,IF(AND(L23=[47]Datos!$B$65,M23=[47]Datos!$B$74),[47]Datos!$F$65,IF(AND(L23=[47]Datos!$B$65,M23=[47]Datos!$B$75),[47]Datos!$G$65,IF(AND(L23=[47]Datos!$B$65,M23=[47]Datos!$B$76),[47]Datos!$H$65,IF(AND(L23=[47]Datos!$B$66,M23=[47]Datos!$B$72),[47]Datos!$D$66,IF(AND(L23=[47]Datos!$B$66,M23=[47]Datos!$B$73),[47]Datos!$E$66,IF(AND(L23=[47]Datos!$B$66,M23=[47]Datos!$B$74),[47]Datos!$F$66,IF(AND(L23=[47]Datos!$B$66,M23=[47]Datos!$B$75),[47]Datos!$G$66,IF(AND(L23=[47]Datos!$B$66,M23=[47]Datos!$B$76),[47]Datos!$H$66,IF(AND(L23=[47]Datos!$B$67,M23=[47]Datos!$B$72),[47]Datos!$D$67,IF(AND(L23=[47]Datos!$B$67,M23=[47]Datos!$B$73),[47]Datos!$E$67,IF(AND(L23=[47]Datos!$B$67,M23=[47]Datos!$B$74),[47]Datos!$F$67,IF(AND(L23=[47]Datos!$B$67,M23=[47]Datos!$B$75),[47]Datos!$G$67,IF(AND(L23=[47]Datos!$B$67,M23=[47]Datos!$B$76),[47]Datos!$H$67,IF(AND(L23=[47]Datos!$B$68,M23=[47]Datos!$B$72),[47]Datos!$D$68,IF(AND(L23=[47]Datos!$B$68,M23=[47]Datos!$B$73),[47]Datos!$E$68,IF(AND(L23=[47]Datos!$B$68,M23=[47]Datos!$B$74),[47]Datos!$F$68,IF(AND(L23=[47]Datos!$B$68,M23=[47]Datos!$B$75),[47]Datos!$G$68,IF(AND(L23=[47]Datos!$B$68,M23=[47]Datos!$B$76),[47]Datos!$H$68,IF(AND(L23=[47]Datos!$B$69,M23=[47]Datos!$B$72),[47]Datos!$D$69,IF(AND(L23=[47]Datos!$B$69,M23=[47]Datos!$B$73),[47]Datos!$E$69,IF(AND(L23=[47]Datos!$B$69,M23=[47]Datos!$B$74),[47]Datos!$F$69,IF(AND(L23=[47]Datos!$B$69,M23=[47]Datos!$B$75),[47]Datos!$G$69,IF(AND(L23=[47]Datos!$B$69,M23=[47]Datos!$B$76),[47]Datos!$H$69,"-"))))))))))))))))))))))))) -> ALTA - IMPORTANTE 9 | O23: Comunicación entre el proyecto curricular y decanatura sobre el estado de la solicitud | P23: Manual | Q23: Preventivo | R23: Nulo - 0 | S23: Alto - 25 | T23: Medio - 15 | U23: Nulo - 0 | V23: =((IF(R23=[47]Datos!$B$83,0,IF(R23=[47]Datos!$B$84,5,IF(R23=[47]Datos!$B$85,10,IF(R23=[47]Datos!$B$86,15,IF(R23=[47]Datos!$B$87,20,IF(R23=[47]Datos!$B$88,25,0)))))))/100)+((IF(S23=[47]Datos!$B$83,0,IF(S23=[47]Datos!$B$84,5,IF(S23=[47]Datos!$B$85,10,IF(S23=[47]Datos!$B$86,15,IF(S23=[47]Datos!$B$87,20,IF(S23=[47]Datos!$B$88,25,0)))))))/100)+((IF(T23=[47]Datos!$B$83,0,IF(T23=[47]Datos!$B$84,5,IF(T23=[47]Datos!$B$85,10,IF(T23=[47]Datos!$B$86,15,IF(T23=[47]Datos!$B$87,20,IF(T23=[47]Datos!$B$88,25,0)))))))/100)+((IF(U23=[47]Datos!$B$83,0,IF(U23=[47]Datos!$B$84,5,IF(U23=[47]Datos!$B$85,10,IF(U23=[47]Datos!$B$86,15,IF(U23=[47]Datos!$B$87,20,IF(U23=[47]Datos!$B$88,25,0)))))))/100) -> 0.4 | W23: =IF(ISERROR((IF(Q23=[47]Datos!$B$80,V23,0)+IF(Q24=[47]Datos!$B$80,V24,0)+IF(Q25=[47]Datos!$B$80,V25,0)+IF(Q26=[47]Datos!$B$80,V26,0)+IF(Q27=[47]Datos!$B$80,V27,0)+IF(Q28=[47]Datos!$B$80,V28,0))/(IF(Q23=[47]Datos!$B$80,1,0)+IF(Q24=[47]Datos!$B$80,1,0)+IF(Q25=[47]Datos!$B$80,1,0)+IF(Q26=[47]Datos!$B$80,1,0)+IF(Q27=[47]Datos!$B$80,1,0)+IF(Q28=[47]Datos!$B$80,1,0))),0,(IF(Q23=[47]Datos!$B$80,V23,0)+IF(Q24=[47]Datos!$B$80,V24,0)+IF(Q25=[47]Datos!$B$80,V25,0)+IF(Q26=[47]Datos!$B$80,V26,0)+IF(Q27=[47]Datos!$B$80,V27,0)+IF(Q28=[47]Datos!$B$80,V28,0))/(IF(Q23=[47]Datos!$B$80,1,0)+IF(Q24=[47]Datos!$B$80,1,0)+IF(Q25=[47]Datos!$B$80,1,0)+IF(Q26=[47]Datos!$B$80,1,0)+IF(Q27=[47]Datos!$B$80,1,0)+IF(Q28=[47]Datos!$B$80,1,0))) -> 0.65 | X23: =IF(L23="","-",(IF(W23>0,(IF(L23=[47]Datos!$B$65,[47]Datos!$B$65,IF(AND(L23=[47]Datos!$B$66,W23>0.49),[47]Datos!$B$65,IF(AND(L23=[47]Datos!$B$67,W23>0.74),[47]Datos!$B$65,IF(AND(L23=[47]Datos!$B$67,W23<0.75,W23>0.49),[47]Datos!$B$66,IF(AND(L23=[47]Datos!$B$68,W23>0.74),[47]Datos!$B$66,IF(AND(L23=[47]Datos!$B$68,W23<0.75,W23>0.49),[47]Datos!$B$67,IF(AND(L23=[47]Datos!$B$69,W23>0.74),[47]Datos!$B$67,IF(AND(L23=[47]Datos!$B$69,W23<0.75,W23>0.49),[47]Datos!$B$68,L23))))))))),L23))) -> Improbable - 2 | Y23: =IF(ISERROR((IF(Q23=[47]Datos!$B$79,V23,0)+IF(Q24=[47]Datos!$B$79,V24,0)+IF(Q25=[47]Datos!$B$79,V25,0)+IF(Q26=[47]Datos!$B$79,V26,0)+IF(Q27=[47]Datos!$B$79,V27,0)+IF(Q28=[47]Datos!$B$79,V28,0))/(IF(Q23=[47]Datos!$B$79,1,0)+IF(Q24=[47]Datos!$B$79,1,0)+IF(Q25=[47]Datos!$B$79,1,0)+IF(Q26=[47]Datos!$B$79,1,0)+IF(Q27=[47]Datos!$B$79,1,0)+IF(Q28=[47]Datos!$B$79,1,0))),0,(IF(Q23=[47]Datos!$B$79,V23,0)+IF(Q24=[47]Datos!$B$79,V24,0)+IF(Q25=[47]Datos!$B$79,V25,0)+IF(Q26=[47]Datos!$B$79,V26,0)+IF(Q27=[47]Datos!$B$79,V27,0)+IF(Q28=[47]Datos!$B$79,V28,0))/(IF(Q23=[47]Datos!$B$79,1,0)+IF(Q24=[47]Datos!$B$79,1,0)+IF(Q25=[47]Datos!$B$79,1,0)+IF(Q26=[47]Datos!$B$79,1,0)+IF(Q27=[47]Datos!$B$79,1,0)+IF(Q28=[47]Datos!$B$79,1,0))) -> 0.75 | Z23: =IF(M23="","-",(IF(Y23>0,(IF(M23=[47]Datos!$B$72,[47]Datos!$B$72,IF(AND(M23=[47]Datos!$B$73,Y23>0.49),[47]Datos!$B$72,IF(AND(M23=[47]Datos!$B$74,Y23>0.74),[47]Datos!$B$72,IF(AND(M23=[47]Datos!$B$74,Y23<0.75,Y23>0.49),[47]Datos!$B$73,IF(AND(M23=[47]Datos!$B$75,Y23>0.74),[47]Datos!$B$73,IF(AND(M23=[47]Datos!$B$75,Y23<0.75,Y23>0.49),[47]Datos!$B$74,IF(AND(M23=[47]Datos!$B$76,Y23>0.74),[47]Datos!$B$74,IF(AND(M23=[47]Datos!$B$76,Y23<0.75,Y23>0.49),[47]Datos!$B$75,M23))))))))),M23))) -> Insignificante - 1 | AA23: =IF(AND(X23=[47]Datos!$B$65,Z23=[47]Datos!$B$72),[47]Datos!$D$65,IF(AND(X23=[47]Datos!$B$65,Z23=[47]Datos!$B$73),[47]Datos!$E$65,IF(AND(X23=[47]Datos!$B$65,Z23=[47]Datos!$B$74),[47]Datos!$F$65,IF(AND(X23=[47]Datos!$B$65,Z23=[47]Datos!$B$75),[47]Datos!$G$65,IF(AND(X23=[47]Datos!$B$65,Z23=[47]Datos!$B$76),[47]Datos!$H$65,IF(AND(X23=[47]Datos!$B$66,Z23=[47]Datos!$B$72),[47]Datos!$D$66,IF(AND(X23=[47]Datos!$B$66,Z23=[47]Datos!$B$73),[47]Datos!$E$66,IF(AND(X23=[47]Datos!$B$66,Z23=[47]Datos!$B$74),[47]Datos!$F$66,IF(AND(X23=[47]Datos!$B$66,Z23=[47]Datos!$B$75),[47]Datos!$G$66,IF(AND(X23=[47]Datos!$B$66,Z23=[47]Datos!$B$76),[47]Datos!$H$66,IF(AND(X23=[47]Datos!$B$67,Z23=[47]Datos!$B$72),[47]Datos!$D$67,IF(AND(X23=[47]Datos!$B$67,Z23=[47]Datos!$B$73),[47]Datos!$E$67,IF(AND(X23=[47]Datos!$B$67,Z23=[47]Datos!$B$74),[47]Datos!$F$67,IF(AND(X23=[47]Datos!$B$67,Z23=[47]Datos!$B$75),[47]Datos!$G$67,IF(AND(X23=[47]Datos!$B$67,Z23=[47]Datos!$B$76),[47]Datos!$H$67,IF(AND(X23=[47]Datos!$B$68,Z23=[47]Datos!$B$72),[47]Datos!$D$68,IF(AND(X23=[47]Datos!$B$68,Z23=[47]Datos!$B$73),[47]Datos!$E$68,IF(AND(X23=[47]Datos!$B$68,Z23=[47]Datos!$B$74),[47]Datos!$F$68,IF(AND(X23=[47]Datos!$B$68,Z23=[47]Datos!$B$75),[47]Datos!$G$68,IF(AND(X23=[47]Datos!$B$68,Z23=[47]Datos!$B$76),[47]Datos!$H$68,IF(AND(X23=[47]Datos!$B$69,Z23=[47]Datos!$B$72),[47]Datos!$D$69,IF(AND(X23=[47]Datos!$B$69,Z23=[47]Datos!$B$73),[47]Datos!$E$69,IF(AND(X23=[47]Datos!$B$69,Z23=[47]Datos!$B$74),[47]Datos!$F$69,IF(AND(X23=[47]Datos!$B$69,Z23=[47]Datos!$B$75),[47]Datos!$G$69,IF(AND(X23=[47]Datos!$B$69,Z23=[47]Datos!$B$76),[47]Datos!$H$69,"-"))))))))))))))))))))))))) -> BAJO - TRIVIAL 2 | AB23: Reducir (RE)
E24: Pocos recursos económicos, humanos o físicos para la ejecución de practicas aprobadas y programadas. | G24: Externo | K24: Mala imagen de la universidad en las organizaciones o entidades con las cuales se pueda haber pactado una práctica académica. | O24: Planear las actividades (plan de acción de la facultad) | P24: Manual | Q24: Correctivo | R24: Alto - 25 | S24: Bajo - 5 | T24: Medio Alto - 20 | U24: Alto - 25 | V24: =((IF(R24=[47]Datos!$B$83,0,IF(R24=[47]Datos!$B$84,5,IF(R24=[47]Datos!$B$85,10,IF(R24=[47]Datos!$B$86,15,IF(R24=[47]Datos!$B$87,20,IF(R24=[47]Datos!$B$88,25,0)))))))/100)+((IF(S24=[47]Datos!$B$83,0,IF(S24=[47]Datos!$B$84,5,IF(S24=[47]Datos!$B$85,10,IF(S24=[47]Datos!$B$86,15,IF(S24=[47]Datos!$B$87,20,IF(S24=[47]Datos!$B$88,25,0)))))))/100)+((IF(T24=[47]Datos!$B$83,0,IF(T24=[47]Datos!$B$84,5,IF(T24=[47]Datos!$B$85,10,IF(T24=[47]Datos!$B$86,15,IF(T24=[47]Datos!$B$87,20,IF(T24=[47]Datos!$B$88,25,0)))))))/100)+((IF(U24=[47]Datos!$B$83,0,IF(U24=[47]Datos!$B$84,5,IF(U24=[47]Datos!$B$85,10,IF(U24=[47]Datos!$B$86,15,IF(U24=[47]Datos!$B$87,20,IF(U24=[47]Datos!$B$88,25,0)))))))/100) -> 0.75
E25: Trámites administrativos demorados, burocráticos y lentos. | G25: Interno | K25: Insatisfacción en los usuarios de las prácticas. | O25: Hacer uso del instructivo de avances de la universidad | P25: Manual | Q25: Preventivo | R25: Alto - 25 | S25: Medio - 15 | T25: Alto - 25 | U25: Alto - 25 | V25: =((IF(R25=[47]Datos!$B$83,0,IF(R25=[47]Datos!$B$84,5,IF(R25=[47]Datos!$B$85,10,IF(R25=[47]Datos!$B$86,15,IF(R25=[47]Datos!$B$87,20,IF(R25=[47]Datos!$B$88,25,0)))))))/100)+((IF(S25=[47]Datos!$B$83,0,IF(S25=[47]Datos!$B$84,5,IF(S25=[47]Datos!$B$85,10,IF(S25=[47]Datos!$B$86,15,IF(S25=[47]Datos!$B$87,20,IF(S25=[47]Datos!$B$88,25,0)))))))/100)+((IF(T25=[47]Datos!$B$83,0,IF(T25=[47]Datos!$B$84,5,IF(T25=[47]Datos!$B$85,10,IF(T25=[47]Datos!$B$86,15,IF(T25=[47]Datos!$B$87,20,IF(T25=[47]Datos!$B$88,25,0)))))))/100)+((IF(U25=[47]Datos!$B$83,0,IF(U25=[47]Datos!$B$84,5,IF(U25=[47]Datos!$B$85,10,IF(U25=[47]Datos!$B$86,15,IF(U25=[47]Datos!$B$87,20,IF(U25=[47]Datos!$B$88,25,0)))))))/100) -> 0.9
E26: Limitación del desarrollo de las prácticas a los docentes de planta. | G26: Interno | K26: Desaprovechamiento del rubro (presupuesto asignado). | V26: =((IF(R26=[47]Datos!$B$83,0,IF(R26=[47]Datos!$B$84,5,IF(R26=[47]Datos!$B$85,10,IF(R26=[47]Datos!$B$86,15,IF(R26=[47]Datos!$B$87,20,IF(R26=[47]Datos!$B$88,25,0)))))))/100)+((IF(S26=[47]Datos!$B$83,0,IF(S26=[47]Datos!$B$84,5,IF(S26=[47]Datos!$B$85,10,IF(S26=[47]Datos!$B$86,15,IF(S26=[47]Datos!$B$87,20,IF(S26=[47]Datos!$B$88,25,0)))))))/100)+((IF(T26=[47]Datos!$B$83,0,IF(T26=[47]Datos!$B$84,5,IF(T26=[47]Datos!$B$85,10,IF(T26=[47]Datos!$B$86,15,IF(T26=[47]Datos!$B$87,20,IF(T26=[47]Datos!$B$88,25,0)))))))/100)+((IF(U26=[47]Datos!$B$83,0,IF(U26=[47]Datos!$B$84,5,IF(U26=[47]Datos!$B$85,10,IF(U26=[47]Datos!$B$86,15,IF(U26=[47]Datos!$B$87,20,IF(U26=[47]Datos!$B$88,25,0)))))))/100) -> 0
E27: Centralización de la tramitología y gestión administrativa de las prácticas. | G27: Externo | K27: Desmotivación en los docentes para liderar y gestionar prácticas. | V27: =((IF(R27=[47]Datos!$B$83,0,IF(R27=[47]Datos!$B$84,5,IF(R27=[47]Datos!$B$85,10,IF(R27=[47]Datos!$B$86,15,IF(R27=[47]Datos!$B$87,20,IF(R27=[47]Datos!$B$88,25,0)))))))/100)+((IF(S27=[47]Datos!$B$83,0,IF(S27=[47]Datos!$B$84,5,IF(S27=[47]Datos!$B$85,10,IF(S27=[47]Datos!$B$86,15,IF(S27=[47]Datos!$B$87,20,IF(S27=[47]Datos!$B$88,25,0)))))))/100)+((IF(T27=[47]Datos!$B$83,0,IF(T27=[47]Datos!$B$84,5,IF(T27=[47]Datos!$B$85,10,IF(T27=[47]Datos!$B$86,15,IF(T27=[47]Datos!$B$87,20,IF(T27=[47]Datos!$B$88,25,0)))))))/100)+((IF(U27=[47]Datos!$B$83,0,IF(U27=[47]Datos!$B$84,5,IF(U27=[47]Datos!$B$85,10,IF(U27=[47]Datos!$B$86,15,IF(U27=[47]Datos!$B$87,20,IF(U27=[47]Datos!$B$88,25,0)))))))/100) -> 0
E28: La aprobación y asignación de los translados a través de la bolsa de transporte de la Universidad, que generan trámites contractuales lentos (lineamientos nuevos implementados en la marcha del proceso). | G28: Externo | V28: =((IF(R28=[47]Datos!$B$83,0,IF(R28=[47]Datos!$B$84,5,IF(R28=[47]Datos!$B$85,10,IF(R28=[47]Datos!$B$86,15,IF(R28=[47]Datos!$B$87,20,IF(R28=[47]Datos!$B$88,25,0)))))))/100)+((IF(S28=[47]Datos!$B$83,0,IF(S28=[47]Datos!$B$84,5,IF(S28=[47]Datos!$B$85,10,IF(S28=[47]Datos!$B$86,15,IF(S28=[47]Datos!$B$87,20,IF(S28=[47]Datos!$B$88,25,0)))))))/100)+((IF(T28=[47]Datos!$B$83,0,IF(T28=[47]Datos!$B$84,5,IF(T28=[47]Datos!$B$85,10,IF(T28=[47]Datos!$B$86,15,IF(T28=[47]Datos!$B$87,20,IF(T28=[47]Datos!$B$88,25,0)))))))/100)+((IF(U28=[47]Datos!$B$83,0,IF(U28=[47]Datos!$B$84,5,IF(U28=[47]Datos!$B$85,10,IF(U28=[47]Datos!$B$86,15,IF(U28=[47]Datos!$B$87,20,IF(U28=[47]Datos!$B$88,25,0)))))))/100) -> 0
B29: Gestión de Docencia | D29: =IF(B29="","-",VLOOKUP(B29,[47]Datos!$B$4:$C$25,2,FALSE)) -> Garantizar que los planes de estudio establecidos para cada proyecto curricular, ofrezcan al estudiante de la UDFJC una formación integral y de calidad, dirigida fundamentalmente a las necesidades de la sociedad, contando con la cantidad e idoneidad de docentes y demás personal que influya directamente en tal proceso de formación, garantizando que se ejecute eficientemente el proceso de enseñanza. | E29: Demora en la realización del comité de asignación y reconocimiento de puntaje debido a falta de fórum o cruce de agendas de los asistentes. | G29: Interno | H29: Demora en los procesos que se efectúan en la Oficina de Docencia. | I29: Inconvenientes con los procesos que se efectúan en la Oficina de Docencia relacionados con los tiempos de respuesta a las solicitudes de valoración de producción académica extendidas por los docentes de la Universidad. | J29: Operativos | K29: Insatisfacción en los usuarios de la oficina. | L29: Probable - 4 | M29: Moderado - 3 | N29: =IF(AND(L29=[47]Datos!$B$65,M29=[47]Datos!$B$72),[47]Datos!$D$65,IF(AND(L29=[47]Datos!$B$65,M29=[47]Datos!$B$73),[47]Datos!$E$65,IF(AND(L29=[47]Datos!$B$65,M29=[47]Datos!$B$74),[47]Datos!$F$65,IF(AND(L29=[47]Datos!$B$65,M29=[47]Datos!$B$75),[47]Datos!$G$65,IF(AND(L29=[47]Datos!$B$65,M29=[47]Datos!$B$76),[47]Datos!$H$65,IF(AND(L29=[47]Datos!$B$66,M29=[47]Datos!$B$72),[47]Datos!$D$66,IF(AND(L29=[47]Datos!$B$66,M29=[47]Datos!$B$73),[47]Datos!$E$66,IF(AND(L29=[47]Datos!$B$66,M29=[47]Datos!$B$74),[47]Datos!$F$66,IF(AND(L29=[47]Datos!$B$66,M29=[47]Datos!$B$75),[47]Datos!$G$66,IF(AND(L29=[47]Datos!$B$66,M29=[47]Datos!$B$76),[47]Datos!$H$66,IF(AND(L29=[47]Datos!$B$67,M29=[47]Datos!$B$72),[47]Datos!$D$67,IF(AND(L29=[47]Datos!$B$67,M29=[47]Datos!$B$73),[47]Datos!$E$67,IF(AND(L29=[47]Datos!$B$67,M29=[47]Datos!$B$74),[47]Datos!$F$67,IF(AND(L29=[47]Datos!$B$67,M29=[47]Datos!$B$75),[47]Datos!$G$67,IF(AND(L29=[47]Datos!$B$67,M29=[47]Datos!$B$76),[47]Datos!$H$67,IF(AND(L29=[47]Datos!$B$68,M29=[47]Datos!$B$72),[47]Datos!$D$68,IF(AND(L29=[47]Datos!$B$68,M29=[47]Datos!$B$73),[47]Datos!$E$68,IF(AND(L29=[47]Datos!$B$68,M29=[47]Datos!$B$74),[47]Datos!$F$68,IF(AND(L29=[47]Datos!$B$68,M29=[47]Datos!$B$75),[47]Datos!$G$68,IF(AND(L29=[47]Datos!$B$68,M29=[47]Datos!$B$76),[47]Datos!$H$68,IF(AND(L29=[47]Datos!$B$69,M29=[47]Datos!$B$72),[47]Datos!$D$69,IF(AND(L29=[47]Datos!$B$69,M29=[47]Datos!$B$73),[47]Datos!$E$69,IF(AND(L29=[47]Datos!$B$69,M29=[47]Datos!$B$74),[47]Datos!$F$69,IF(AND(L29=[47]Datos!$B$69,M29=[47]Datos!$B$75),[47]Datos!$G$69,IF(AND(L29=[47]Datos!$B$69,M29=[47]Datos!$B$76),[47]Datos!$H$69,"-"))))))))))))))))))))))))) -> ALTA - IMPORTANTE 12 | O29: No existen controles establecidos. | V29: =((IF(R29=[47]Datos!$B$83,0,IF(R29=[47]Datos!$B$84,5,IF(R29=[47]Datos!$B$85,10,IF(R29=[47]Datos!$B$86,15,IF(R29=[47]Datos!$B$87,20,IF(R29=[47]Datos!$B$88,25,0)))))))/100)+((IF(S29=[47]Datos!$B$83,0,IF(S29=[47]Datos!$B$84,5,IF(S29=[47]Datos!$B$85,10,IF(S29=[47]Datos!$B$86,15,IF(S29=[47]Datos!$B$87,20,IF(S29=[47]Datos!$B$88,25,0)))))))/100)+((IF(T29=[47]Datos!$B$83,0,IF(T29=[47]Datos!$B$84,5,IF(T29=[47]Datos!$B$85,10,IF(T29=[47]Datos!$B$86,15,IF(T29=[47]Datos!$B$87,20,IF(T29=[47]Datos!$B$88,25,0)))))))/100)+((IF(U29=[47]Datos!$B$83,0,IF(U29=[47]Datos!$B$84,5,IF(U29=[47]Datos!$B$85,10,IF(U29=[47]Datos!$B$86,15,IF(U29=[47]Datos!$B$87,20,IF(U29=[47]Datos!$B$88,25,0)))))))/100) -> 0 | W29: =IF(ISERROR((IF(Q29=[47]Datos!$B$80,V29,0)+IF(Q30=[47]Datos!$B$80,V30,0)+IF(Q31=[47]Datos!$B$80,V31,0)+IF(Q32=[47]Datos!$B$80,V32,0)+IF(Q33=[47]Datos!$B$80,V33,0)+IF(Q34=[47]Datos!$B$80,V34,0))/(IF(Q29=[47]Datos!$B$80,1,0)+IF(Q30=[47]Datos!$B$80,1,0)+IF(Q31=[47]Datos!$B$80,1,0)+IF(Q32=[47]Datos!$B$80,1,0)+IF(Q33=[47]Datos!$B$80,1,0)+IF(Q34=[47]Datos!$B$80,1,0))),0,(IF(Q29=[47]Datos!$B$80,V29,0)+IF(Q30=[47]Datos!$B$80,V30,0)+IF(Q31=[47]Datos!$B$80,V31,0)+IF(Q32=[47]Datos!$B$80,V32,0)+IF(Q33=[47]Datos!$B$80,V33,0)+IF(Q34=[47]Datos!$B$80,V34,0))/(IF(Q29=[47]Datos!$B$80,1,0)+IF(Q30=[47]Datos!$B$80,1,0)+IF(Q31=[47]Datos!$B$80,1,0)+IF(Q32=[47]Datos!$B$80,1,0)+IF(Q33=[47]Datos!$B$80,1,0)+IF(Q34=[47]Datos!$B$80,1,0))) -> 0 | X29: =IF(L29="","-",(IF(W29>0,(IF(L29=[47]Datos!$B$65,[47]Datos!$B$65,IF(AND(L29=[47]Datos!$B$66,W29>0.49),[47]Datos!$B$65,IF(AND(L29=[47]Datos!$B$67,W29>0.74),[47]Datos!$B$65,IF(AND(L29=[47]Datos!$B$67,W29<0.75,W29>0.49),[47]Datos!$B$66,IF(AND(L29=[47]Datos!$B$68,W29>0.74),[47]Datos!$B$66,IF(AND(L29=[47]Datos!$B$68,W29<0.75,W29>0.49),[47]Datos!$B$67,IF(AND(L29=[47]Datos!$B$69,W29>0.74),[47]Datos!$B$67,IF(AND(L29=[47]Datos!$B$69,W29<0.75,W29>0.49),[47]Datos!$B$68,L29))))))))),L29))) -> Probable - 4 | Y29: =IF(ISERROR((IF(Q29=[47]Datos!$B$79,V29,0)+IF(Q30=[47]Datos!$B$79,V30,0)+IF(Q31=[47]Datos!$B$79,V31,0)+IF(Q32=[47]Datos!$B$79,V32,0)+IF(Q33=[47]Datos!$B$79,V33,0)+IF(Q34=[47]Datos!$B$79,V34,0))/(IF(Q29=[47]Datos!$B$79,1,0)+IF(Q30=[47]Datos!$B$79,1,0)+IF(Q31=[47]Datos!$B$79,1,0)+IF(Q32=[47]Datos!$B$79,1,0)+IF(Q33=[47]Datos!$B$79,1,0)+IF(Q34=[47]Datos!$B$79,1,0))),0,(IF(Q29=[47]Datos!$B$79,V29,0)+IF(Q30=[47]Datos!$B$79,V30,0)+IF(Q31=[47]Datos!$B$79,V31,0)+IF(Q32=[47]Datos!$B$79,V32,0)+IF(Q33=[47]Datos!$B$79,V33,0)+IF(Q34=[47]Datos!$B$79,V34,0))/(IF(Q29=[47]Datos!$B$79,1,0)+IF(Q30=[47]Datos!$B$79,1,0)+IF(Q31=[47]Datos!$B$79,1,0)+IF(Q32=[47]Datos!$B$79,1,0)+IF(Q33=[47]Datos!$B$79,1,0)+IF(Q34=[47]Datos!$B$79,1,0))) -> 0 | Z29: =IF(M29="","-",(IF(Y29>0,(IF(M29=[47]Datos!$B$72,[47]Datos!$B$72,IF(AND(M29=[47]Datos!$B$73,Y29>0.49),[47]Datos!$B$72,IF(AND(M29=[47]Datos!$B$74,Y29>0.74),[47]Datos!$B$72,IF(AND(M29=[47]Datos!$B$74,Y29<0.75,Y29>0.49),[47]Datos!$B$73,IF(AND(M29=[47]Datos!$B$75,Y29>0.74),[47]Datos!$B$73,IF(AND(M29=[47]Datos!$B$75,Y29<0.75,Y29>0.49),[47]Datos!$B$74,IF(AND(M29=[47]Datos!$B$76,Y29>0.74),[47]Datos!$B$74,IF(AND(M29=[47]Datos!$B$76,Y29<0.75,Y29>0.49),[47]Datos!$B$75,M29))))))))),M29))) -> Moderado - 3 | AA29: =IF(AND(X29=[47]Datos!$B$65,Z29=[47]Datos!$B$72),[47]Datos!$D$65,IF(AND(X29=[47]Datos!$B$65,Z29=[47]Datos!$B$73),[47]Datos!$E$65,IF(AND(X29=[47]Datos!$B$65,Z29=[47]Datos!$B$74),[47]Datos!$F$65,IF(AND(X29=[47]Datos!$B$65,Z29=[47]Datos!$B$75),[47]Datos!$G$65,IF(AND(X29=[47]Datos!$B$65,Z29=[47]Datos!$B$76),[47]Datos!$H$65,IF(AND(X29=[47]Datos!$B$66,Z29=[47]Datos!$B$72),[47]Datos!$D$66,IF(AND(X29=[47]Datos!$B$66,Z29=[47]Datos!$B$73),[47]Datos!$E$66,IF(AND(X29=[47]Datos!$B$66,Z29=[47]Datos!$B$74),[47]Datos!$F$66,IF(AND(X29=[47]Datos!$B$66,Z29=[47]Datos!$B$75),[47]Datos!$G$66,IF(AND(X29=[47]Datos!$B$66,Z29=[47]Datos!$B$76),[47]Datos!$H$66,IF(AND(X29=[47]Datos!$B$67,Z29=[47]Datos!$B$72),[47]Datos!$D$67,IF(AND(X29=[47]Datos!$B$67,Z29=[47]Datos!$B$73),[47]Datos!$E$67,IF(AND(X29=[47]Datos!$B$67,Z29=[47]Datos!$B$74),[47]Datos!$F$67,IF(AND(X29=[47]Datos!$B$67,Z29=[47]Datos!$B$75),[47]Datos!$G$67,IF(AND(X29=[47]Datos!$B$67,Z29=[47]Datos!$B$76),[47]Datos!$H$67,IF(AND(X29=[47]Datos!$B$68,Z29=[47]Datos!$B$72),[47]Datos!$D$68,IF(AND(X29=[47]Datos!$B$68,Z29=[47]Datos!$B$73),[47]Datos!$E$68,IF(AND(X29=[47]Datos!$B$68,Z29=[47]Datos!$B$74),[47]Datos!$F$68,IF(AND(X29=[47]Datos!$B$68,Z29=[47]Datos!$B$75),[47]Datos!$G$68,IF(AND(X29=[47]Datos!$B$68,Z29=[47]Datos!$B$76),[47]Datos!$H$68,IF(AND(X29=[47]Datos!$B$69,Z29=[47]Datos!$B$72),[47]Datos!$D$69,IF(AND(X29=[47]Datos!$B$69,Z29=[47]Datos!$B$73),[47]Datos!$E$69,IF(AND(X29=[47]Datos!$B$69,Z29=[47]Datos!$B$74),[47]Datos!$F$69,IF(AND(X29=[47]Datos!$B$69,Z29=[47]Datos!$B$75),[47]Datos!$G$69,IF(AND(X29=[47]Datos!$B$69,Z29=[47]Datos!$B$76),[47]Datos!$H$69,"-"))))))))))))))))))))))))) -> ALTA - IMPORTANTE 12 | AB29: Reducir (RE)
E30: Reproceso por fallas encontradas en los documentos. | G30: Interno | K30: Reclamaciones, tutelas o solicitudes de los entes de control o los solicitudes. | V30: =((IF(R30=[47]Datos!$B$83,0,IF(R30=[47]Datos!$B$84,5,IF(R30=[47]Datos!$B$85,10,IF(R30=[47]Datos!$B$86,15,IF(R30=[47]Datos!$B$87,20,IF(R30=[47]Datos!$B$88,25,0)))))))/100)+((IF(S30=[47]Datos!$B$83,0,IF(S30=[47]Datos!$B$84,5,IF(S30=[47]Datos!$B$85,10,IF(S30=[47]Datos!$B$86,15,IF(S30=[47]Datos!$B$87,20,IF(S30=[47]Datos!$B$88,25,0)))))))/100)+((IF(T30=[47]Datos!$B$83,0,IF(T30=[47]Datos!$B$84,5,IF(T30=[47]Datos!$B$85,10,IF(T30=[47]Datos!$B$86,15,IF(T30=[47]Datos!$B$87,20,IF(T30=[47]Datos!$B$88,25,0)))))))/100)+((IF(U30=[47]Datos!$B$83,0,IF(U30=[47]Datos!$B$84,5,IF(U30=[47]Datos!$B$85,10,IF(U30=[47]Datos!$B$86,15,IF(U30=[47]Datos!$B$87,20,IF(U30=[47]Datos!$B$88,25,0)))))))/100) -> 0
E31: Demora en la consecución de pares evaluadores de Colciencias calificados para la valoración de la producción académica y en la recepción de los conceptos de éstos. | G31: Externo | K31: Desgaste de los funcionarios de la oficina. | V31: =((IF(R31=[47]Datos!$B$83,0,IF(R31=[47]Datos!$B$84,5,IF(R31=[47]Datos!$B$85,10,IF(R31=[47]Datos!$B$86,15,IF(R31=[47]Datos!$B$87,20,IF(R31=[47]Datos!$B$88,25,0)))))))/100)+((IF(S31=[47]Datos!$B$83,0,IF(S31=[47]Datos!$B$84,5,IF(S31=[47]Datos!$B$85,10,IF(S31=[47]Datos!$B$86,15,IF(S31=[47]Datos!$B$87,20,IF(S31=[47]Datos!$B$88,25,0)))))))/100)+((IF(T31=[47]Datos!$B$83,0,IF(T31=[47]Datos!$B$84,5,IF(T31=[47]Datos!$B$85,10,IF(T31=[47]Datos!$B$86,15,IF(T31=[47]Datos!$B$87,20,IF(T31=[47]Datos!$B$88,25,0)))))))/100)+((IF(U31=[47]Datos!$B$83,0,IF(U31=[47]Datos!$B$84,5,IF(U31=[47]Datos!$B$85,10,IF(U31=[47]Datos!$B$86,15,IF(U31=[47]Datos!$B$87,20,IF(U31=[47]Datos!$B$88,25,0)))))))/100) -> 0
E32: Personal insuficiente en la Oficina de Docencia. | G32: Externo | V32: =((IF(R32=[47]Datos!$B$83,0,IF(R32=[47]Datos!$B$84,5,IF(R32=[47]Datos!$B$85,10,IF(R32=[47]Datos!$B$86,15,IF(R32=[47]Datos!$B$87,20,IF(R32=[47]Datos!$B$88,25,0)))))))/100)+((IF(S32=[47]Datos!$B$83,0,IF(S32=[47]Datos!$B$84,5,IF(S32=[47]Datos!$B$85,10,IF(S32=[47]Datos!$B$86,15,IF(S32=[47]Datos!$B$87,20,IF(S32=[47]Datos!$B$88,25,0)))))))/100)+((IF(T32=[47]Datos!$B$83,0,IF(T32=[47]Datos!$B$84,5,IF(T32=[47]Datos!$B$85,10,IF(T32=[47]Datos!$B$86,15,IF(T32=[47]Datos!$B$87,20,IF(T32=[47]Datos!$B$88,25,0)))))))/100)+((IF(U32=[47]Datos!$B$83,0,IF(U32=[47]Datos!$B$84,5,IF(U32=[47]Datos!$B$85,10,IF(U32=[47]Datos!$B$86,15,IF(U32=[47]Datos!$B$87,20,IF(U32=[47]Datos!$B$88,25,0)))))))/100) -> 0
E33: Falta de institucionalización de la Oficina de Docencia y de infraestructura asociada a ésta. | G33: Externo | V33: =((IF(R33=[47]Datos!$B$83,0,IF(R33=[47]Datos!$B$84,5,IF(R33=[47]Datos!$B$85,10,IF(R33=[47]Datos!$B$86,15,IF(R33=[47]Datos!$B$87,20,IF(R33=[47]Datos!$B$88,25,0)))))))/100)+((IF(S33=[47]Datos!$B$83,0,IF(S33=[47]Datos!$B$84,5,IF(S33=[47]Datos!$B$85,10,IF(S33=[47]Datos!$B$86,15,IF(S33=[47]Datos!$B$87,20,IF(S33=[47]Datos!$B$88,25,0)))))))/100)+((IF(T33=[47]Datos!$B$83,0,IF(T33=[47]Datos!$B$84,5,IF(T33=[47]Datos!$B$85,10,IF(T33=[47]Datos!$B$86,15,IF(T33=[47]Datos!$B$87,20,IF(T33=[47]Datos!$B$88,25,0)))))))/100)+((IF(U33=[47]Datos!$B$83,0,IF(U33=[47]Datos!$B$84,5,IF(U33=[47]Datos!$B$85,10,IF(U33=[47]Datos!$B$86,15,IF(U33=[47]Datos!$B$87,20,IF(U33=[47]Datos!$B$88,25,0)))))))/100) -> 0
E34: Falta de conocimiento de la normatividad aplicable a la producción académica (decreto 1279) por parte de los docentes que solicitan valoración de producción. | G34: Externo | V34: =((IF(R34=[47]Datos!$B$83,0,IF(R34=[47]Datos!$B$84,5,IF(R34=[47]Datos!$B$85,10,IF(R34=[47]Datos!$B$86,15,IF(R34=[47]Datos!$B$87,20,IF(R34=[47]Datos!$B$88,25,0)))))))/100)+((IF(S34=[47]Datos!$B$83,0,IF(S34=[47]Datos!$B$84,5,IF(S34=[47]Datos!$B$85,10,IF(S34=[47]Datos!$B$86,15,IF(S34=[47]Datos!$B$87,20,IF(S34=[47]Datos!$B$88,25,0)))))))/100)+((IF(T34=[47]Datos!$B$83,0,IF(T34=[47]Datos!$B$84,5,IF(T34=[47]Datos!$B$85,10,IF(T34=[47]Datos!$B$86,15,IF(T34=[47]Datos!$B$87,20,IF(T34=[47]Datos!$B$88,25,0)))))))/100)+((IF(U34=[47]Datos!$B$83,0,IF(U34=[47]Datos!$B$84,5,IF(U34=[47]Datos!$B$85,10,IF(U34=[47]Datos!$B$86,15,IF(U34=[47]Datos!$B$87,20,IF(U34=[47]Datos!$B$88,25,0)))))))/100) -> 0
B35: Gestión de Docencia | D35: =IF(B35="","-",VLOOKUP(B35,[47]Datos!$B$4:$C$25,2,FALSE)) -> Garantizar que los planes de estudio establecidos para cada proyecto curricular, ofrezcan al estudiante de la UDFJC una formación integral y de calidad, dirigida fundamentalmente a las necesidades de la sociedad, contando con la cantidad e idoneidad de docentes y demás personal que influya directamente en tal proceso de formación, garantizando que se ejecute eficientemente el proceso de enseñanza. | E35: Falta de parámetros en el sistema de gestión académica que permitan regular los tiempos asignados a cada tipo de actividad en los planes de trabajo docente, según la distribución e intensidad establecidas por la normatividad. | G35: Interno | H35: Incumplimiento de las actividades consignadas en los planes de trabajo, por parte de los docentes. | I35: Incumplimiento en la ejecución de las actividades especificadas en los planes de trabajo. | J35: Operativos | K35: Los docentes no dediquen tiempo a actividades como tutorías académicas, consejería a estudiantes y otras actividades contempladas en el estatuto docente (capítulo 9, articulo 48). | L35: Posible - 3 | M35: Mayor - 4 | N35: =IF(AND(L35=[47]Datos!$B$65,M35=[47]Datos!$B$72),[47]Datos!$D$65,IF(AND(L35=[47]Datos!$B$65,M35=[47]Datos!$B$73),[47]Datos!$E$65,IF(AND(L35=[47]Datos!$B$65,M35=[47]Datos!$B$74),[47]Datos!$F$65,IF(AND(L35=[47]Datos!$B$65,M35=[47]Datos!$B$75),[47]Datos!$G$65,IF(AND(L35=[47]Datos!$B$65,M35=[47]Datos!$B$76),[47]Datos!$H$65,IF(AND(L35=[47]Datos!$B$66,M35=[47]Datos!$B$72),[47]Datos!$D$66,IF(AND(L35=[47]Datos!$B$66,M35=[47]Datos!$B$73),[47]Datos!$E$66,IF(AND(L35=[47]Datos!$B$66,M35=[47]Datos!$B$74),[47]Datos!$F$66,IF(AND(L35=[47]Datos!$B$66,M35=[47]Datos!$B$75),[47]Datos!$G$66,IF(AND(L35=[47]Datos!$B$66,M35=[47]Datos!$B$76),[47]Datos!$H$66,IF(AND(L35=[47]Datos!$B$67,M35=[47]Datos!$B$72),[47]Datos!$D$67,IF(AND(L35=[47]Datos!$B$67,M35=[47]Datos!$B$73),[47]Datos!$E$67,IF(AND(L35=[47]Datos!$B$67,M35=[47]Datos!$B$74),[47]Datos!$F$67,IF(AND(L35=[47]Datos!$B$67,M35=[47]Datos!$B$75),[47]Datos!$G$67,IF(AND(L35=[47]Datos!$B$67,M35=[47]Datos!$B$76),[47]Datos!$H$67,IF(AND(L35=[47]Datos!$B$68,M35=[47]Datos!$B$72),[47]Datos!$D$68,IF(AND(L35=[47]Datos!$B$68,M35=[47]Datos!$B$73),[47]Datos!$E$68,IF(AND(L35=[47]Datos!$B$68,M35=[47]Datos!$B$74),[47]Datos!$F$68,IF(AND(L35=[47]Datos!$B$68,M35=[47]Datos!$B$75),[47]Datos!$G$68,IF(AND(L35=[47]Datos!$B$68,M35=[47]Datos!$B$76),[47]Datos!$H$68,IF(AND(L35=[47]Datos!$B$69,M35=[47]Datos!$B$72),[47]Datos!$D$69,IF(AND(L35=[47]Datos!$B$69,M35=[47]Datos!$B$73),[47]Datos!$E$69,IF(AND(L35=[47]Datos!$B$69,M35=[47]Datos!$B$74),[47]Datos!$F$69,IF(AND(L35=[47]Datos!$B$69,M35=[47]Datos!$B$75),[47]Datos!$G$69,IF(AND(L35=[47]Datos!$B$69,M35=[47]Datos!$B$76),[47]Datos!$H$69,"-"))))))))))))))))))))))))) -> CATASTRÓFICO – INACEPTABLE 12 | O35: Revisión del plan de trabajo docente por parte del coordinador del proyecto curricular. | P35: Manual | Q35: Preventivo | R35: Alto - 25 | S35: Medio - 15 | T35: Alto - 25 | U35: Alto - 25 | V35: =((IF(R35=[47]Datos!$B$83,0,IF(R35=[47]Datos!$B$84,5,IF(R35=[47]Datos!$B$85,10,IF(R35=[47]Datos!$B$86,15,IF(R35=[47]Datos!$B$87,20,IF(R35=[47]Datos!$B$88,25,0)))))))/100)+((IF(S35=[47]Datos!$B$83,0,IF(S35=[47]Datos!$B$84,5,IF(S35=[47]Datos!$B$85,10,IF(S35=[47]Datos!$B$86,15,IF(S35=[47]Datos!$B$87,20,IF(S35=[47]Datos!$B$88,25,0)))))))/100)+((IF(T35=[47]Datos!$B$83,0,IF(T35=[47]Datos!$B$84,5,IF(T35=[47]Datos!$B$85,10,IF(T35=[47]Datos!$B$86,15,IF(T35=[47]Datos!$B$87,20,IF(T35=[47]Datos!$B$88,25,0)))))))/100)+((IF(U35=[47]Datos!$B$83,0,IF(U35=[47]Datos!$B$84,5,IF(U35=[47]Datos!$B$85,10,IF(U35=[47]Datos!$B$86,15,IF(U35=[47]Datos!$B$87,20,IF(U35=[47]Datos!$B$88,25,0)))))))/100) -> 0.9 | W35: =IF(ISERROR((IF(Q35=[47]Datos!$B$80,V35,0)+IF(Q36=[47]Datos!$B$80,V36,0)+IF(Q37=[47]Datos!$B$80,V37,0)+IF(Q38=[47]Datos!$B$80,V38,0)+IF(Q39=[47]Datos!$B$80,V39,0)+IF(Q40=[47]Datos!$B$80,V40,0))/(IF(Q35=[47]Datos!$B$80,1,0)+IF(Q36=[47]Datos!$B$80,1,0)+IF(Q37=[47]Datos!$B$80,1,0)+IF(Q38=[47]Datos!$B$80,1,0)+IF(Q39=[47]Datos!$B$80,1,0)+IF(Q40=[47]Datos!$B$80,1,0))),0,(IF(Q35=[47]Datos!$B$80,V35,0)+IF(Q36=[47]Datos!$B$80,V36,0)+IF(Q37=[47]Datos!$B$80,V37,0)+IF(Q38=[47]Datos!$B$80,V38,0)+IF(Q39=[47]Datos!$B$80,V39,0)+IF(Q40=[47]Datos!$B$80,V40,0))/(IF(Q35=[47]Datos!$B$80,1,0)+IF(Q36=[47]Datos!$B$80,1,0)+IF(Q37=[47]Datos!$B$80,1,0)+IF(Q38=[47]Datos!$B$80,1,0)+IF(Q39=[47]Datos!$B$80,1,0)+IF(Q40=[47]Datos!$B$80,1,0))) -> 0.9 | X35: =IF(L35="","-",(IF(W35>0,(IF(L35=[47]Datos!$B$65,[47]Datos!$B$65,IF(AND(L35=[47]Datos!$B$66,W35>0.49),[47]Datos!$B$65,IF(AND(L35=[47]Datos!$B$67,W35>0.74),[47]Datos!$B$65,IF(AND(L35=[47]Datos!$B$67,W35<0.75,W35>0.49),[47]Datos!$B$66,IF(AND(L35=[47]Datos!$B$68,W35>0.74),[47]Datos!$B$66,IF(AND(L35=[47]Datos!$B$68,W35<0.75,W35>0.49),[47]Datos!$B$67,IF(AND(L35=[47]Datos!$B$69,W35>0.74),[47]Datos!$B$67,IF(AND(L35=[47]Datos!$B$69,W35<0.75,W35>0.49),[47]Datos!$B$68,L35))))))))),L35))) -> Raro - 1 | Y35: =IF(ISERROR((IF(Q35=[47]Datos!$B$79,V35,0)+IF(Q36=[47]Datos!$B$79,V36,0)+IF(Q37=[47]Datos!$B$79,V37,0)+IF(Q38=[47]Datos!$B$79,V38,0)+IF(Q39=[47]Datos!$B$79,V39,0)+IF(Q40=[47]Datos!$B$79,V40,0))/(IF(Q35=[47]Datos!$B$79,1,0)+IF(Q36=[47]Datos!$B$79,1,0)+IF(Q37=[47]Datos!$B$79,1,0)+IF(Q38=[47]Datos!$B$79,1,0)+IF(Q39=[47]Datos!$B$79,1,0)+IF(Q40=[47]Datos!$B$79,1,0))),0,(IF(Q35=[47]Datos!$B$79,V35,0)+IF(Q36=[47]Datos!$B$79,V36,0)+IF(Q37=[47]Datos!$B$79,V37,0)+IF(Q38=[47]Datos!$B$79,V38,0)+IF(Q39=[47]Datos!$B$79,V39,0)+IF(Q40=[47]Datos!$B$79,V40,0))/(IF(Q35=[47]Datos!$B$79,1,0)+IF(Q36=[47]Datos!$B$79,1,0)+IF(Q37=[47]Datos!$B$79,1,0)+IF(Q38=[47]Datos!$B$79,1,0)+IF(Q39=[47]Datos!$B$79,1,0)+IF(Q40=[47]Datos!$B$79,1,0))) -> 0 | Z35: =IF(M35="","-",(IF(Y35>0,(IF(M35=[47]Datos!$B$72,[47]Datos!$B$72,IF(AND(M35=[47]Datos!$B$73,Y35>0.49),[47]Datos!$B$72,IF(AND(M35=[47]Datos!$B$74,Y35>0.74),[47]Datos!$B$72,IF(AND(M35=[47]Datos!$B$74,Y35<0.75,Y35>0.49),[47]Datos!$B$73,IF(AND(M35=[47]Datos!$B$75,Y35>0.74),[47]Datos!$B$73,IF(AND(M35=[47]Datos!$B$75,Y35<0.75,Y35>0.49),[47]Datos!$B$74,IF(AND(M35=[47]Datos!$B$76,Y35>0.74),[47]Datos!$B$74,IF(AND(M35=[47]Datos!$B$76,Y35<0.75,Y35>0.49),[47]Datos!$B$75,M35))))))))),M35))) -> Mayor - 4 | AA35: =IF(AND(X35=[47]Datos!$B$65,Z35=[47]Datos!$B$72),[47]Datos!$D$65,IF(AND(X35=[47]Datos!$B$65,Z35=[47]Datos!$B$73),[47]Datos!$E$65,IF(AND(X35=[47]Datos!$B$65,Z35=[47]Datos!$B$74),[47]Datos!$F$65,IF(AND(X35=[47]Datos!$B$65,Z35=[47]Datos!$B$75),[47]Datos!$G$65,IF(AND(X35=[47]Datos!$B$65,Z35=[47]Datos!$B$76),[47]Datos!$H$65,IF(AND(X35=[47]Datos!$B$66,Z35=[47]Datos!$B$72),[47]Datos!$D$66,IF(AND(X35=[47]Datos!$B$66,Z35=[47]Datos!$B$73),[47]Datos!$E$66,IF(AND(X35=[47]Datos!$B$66,Z35=[47]Datos!$B$74),[47]Datos!$F$66,IF(AND(X35=[47]Datos!$B$66,Z35=[47]Datos!$B$75),[47]Datos!$G$66,IF(AND(X35=[47]Datos!$B$66,Z35=[47]Datos!$B$76),[47]Datos!$H$66,IF(AND(X35=[47]Datos!$B$67,Z35=[47]Datos!$B$72),[47]Datos!$D$67,IF(AND(X35=[47]Datos!$B$67,Z35=[47]Datos!$B$73),[47]Datos!$E$67,IF(AND(X35=[47]Datos!$B$67,Z35=[47]Datos!$B$74),[47]Datos!$F$67,IF(AND(X35=[47]Datos!$B$67,Z35=[47]Datos!$B$75),[47]Datos!$G$67,IF(AND(X35=[47]Datos!$B$67,Z35=[47]Datos!$B$76),[47]Datos!$H$67,IF(AND(X35=[47]Datos!$B$68,Z35=[47]Datos!$B$72),[47]Datos!$D$68,IF(AND(X35=[47]Datos!$B$68,Z35=[47]Datos!$B$73),[47]Datos!$E$68,IF(AND(X35=[47]Datos!$B$68,Z35=[47]Datos!$B$74),[47]Datos!$F$68,IF(AND(X35=[47]Datos!$B$68,Z35=[47]Datos!$B$75),[47]Datos!$G$68,IF(AND(X35=[47]Datos!$B$68,Z35=[47]Datos!$B$76),[47]Datos!$H$68,IF(AND(X35=[47]Datos!$B$69,Z35=[47]Datos!$B$72),[47]Datos!$D$69,IF(AND(X35=[47]Datos!$B$69,Z35=[47]Datos!$B$73),[47]Datos!$E$69,IF(AND(X35=[47]Datos!$B$69,Z35=[47]Datos!$B$74),[47]Datos!$F$69,IF(AND(X35=[47]Datos!$B$69,Z35=[47]Datos!$B$75),[47]Datos!$G$69,IF(AND(X35=[47]Datos!$B$69,Z35=[47]Datos!$B$76),[47]Datos!$H$69,"-"))))))))))))))))))))))))) -> ALTA-IMPORTANTE 4 | AB35: Asumir (AS)
E36: La normatividad existente no es lo suficientemente clara y especifica a la hora de establecer las actividades de los planes de trabajo. | G36: Interno | K36: No se garantiza que el docente cumpla con las obligaciones pactadas para con la Universidad (horas lectivas y no lectivas). | O36: Revisión de la carga del docente por parte de la decanatura de la respectiva facultad. | P36: Manual | Q36: Preventivo | R36: Alto - 25 | S36: Alto - 25 | T36: Alto - 25 | U36: Alto - 25 | V36: =((IF(R36=[47]Datos!$B$83,0,IF(R36=[47]Datos!$B$84,5,IF(R36=[47]Datos!$B$85,10,IF(R36=[47]Datos!$B$86,15,IF(R36=[47]Datos!$B$87,20,IF(R36=[47]Datos!$B$88,25,0)))))))/100)+((IF(S36=[47]Datos!$B$83,0,IF(S36=[47]Datos!$B$84,5,IF(S36=[47]Datos!$B$85,10,IF(S36=[47]Datos!$B$86,15,IF(S36=[47]Datos!$B$87,20,IF(S36=[47]Datos!$B$88,25,0)))))))/100)+((IF(T36=[47]Datos!$B$83,0,IF(T36=[47]Datos!$B$84,5,IF(T36=[47]Datos!$B$85,10,IF(T36=[47]Datos!$B$86,15,IF(T36=[47]Datos!$B$87,20,IF(T36=[47]Datos!$B$88,25,0)))))))/100)+((IF(U36=[47]Datos!$B$83,0,IF(U36=[47]Datos!$B$84,5,IF(U36=[47]Datos!$B$85,10,IF(U36=[47]Datos!$B$86,15,IF(U36=[47]Datos!$B$87,20,IF(U36=[47]Datos!$B$88,25,0)))))))/100) -> 1
E37: Mecanismo de seguimiento y control no permite asegurar la coherencia entre las actividades consignadas en el plan de trabajo docente y las ejecutadas. | G37: Interno | K37: Perdida de percepción de la calidad por parte de los estudiantes. | O37: Revisión del informe de gestión del docente de planta. | P37: Manual | Q37: Preventivo | R37: Medio Bajo - 10 | S37: Medio Alto - 20 | T37: Alto - 25 | U37: Alto - 25 | V37: =((IF(R37=[47]Datos!$B$83,0,IF(R37=[47]Datos!$B$84,5,IF(R37=[47]Datos!$B$85,10,IF(R37=[47]Datos!$B$86,15,IF(R37=[47]Datos!$B$87,20,IF(R37=[47]Datos!$B$88,25,0)))))))/100)+((IF(S37=[47]Datos!$B$83,0,IF(S37=[47]Datos!$B$84,5,IF(S37=[47]Datos!$B$85,10,IF(S37=[47]Datos!$B$86,15,IF(S37=[47]Datos!$B$87,20,IF(S37=[47]Datos!$B$88,25,0)))))))/100)+((IF(T37=[47]Datos!$B$83,0,IF(T37=[47]Datos!$B$84,5,IF(T37=[47]Datos!$B$85,10,IF(T37=[47]Datos!$B$86,15,IF(T37=[47]Datos!$B$87,20,IF(T37=[47]Datos!$B$88,25,0)))))))/100)+((IF(U37=[47]Datos!$B$83,0,IF(U37=[47]Datos!$B$84,5,IF(U37=[47]Datos!$B$85,10,IF(U37=[47]Datos!$B$86,15,IF(U37=[47]Datos!$B$87,20,IF(U37=[47]Datos!$B$88,25,0)))))))/100) -> 0.8
E38: No existe un protocolo específico para la elaboración de los informes de gestión de los docentes más allá de los ítems contenidos en el plan de trabajo. | G38: Interno | K38: Incumplimiento de los objetivos establecidos en los planes de trabajo de las instancias académicas (proyecto curricular, decanatura). | V38: =((IF(R38=[47]Datos!$B$83,0,IF(R38=[47]Datos!$B$84,5,IF(R38=[47]Datos!$B$85,10,IF(R38=[47]Datos!$B$86,15,IF(R38=[47]Datos!$B$87,20,IF(R38=[47]Datos!$B$88,25,0)))))))/100)+((IF(S38=[47]Datos!$B$83,0,IF(S38=[47]Datos!$B$84,5,IF(S38=[47]Datos!$B$85,10,IF(S38=[47]Datos!$B$86,15,IF(S38=[47]Datos!$B$87,20,IF(S38=[47]Datos!$B$88,25,0)))))))/100)+((IF(T38=[47]Datos!$B$83,0,IF(T38=[47]Datos!$B$84,5,IF(T38=[47]Datos!$B$85,10,IF(T38=[47]Datos!$B$86,15,IF(T38=[47]Datos!$B$87,20,IF(T38=[47]Datos!$B$88,25,0)))))))/100)+((IF(U38=[47]Datos!$B$83,0,IF(U38=[47]Datos!$B$84,5,IF(U38=[47]Datos!$B$85,10,IF(U38=[47]Datos!$B$86,15,IF(U38=[47]Datos!$B$87,20,IF(U38=[47]Datos!$B$88,25,0)))))))/100) -> 0
E39: Falta de un sistema para verificar el cumplimiento de las actividades. | G39: Interno | K39: Sobrecarga laboral a algunos docentes. | V39: =((IF(R39=[47]Datos!$B$83,0,IF(R39=[47]Datos!$B$84,5,IF(R39=[47]Datos!$B$85,10,IF(R39=[47]Datos!$B$86,15,IF(R39=[47]Datos!$B$87,20,IF(R39=[47]Datos!$B$88,25,0)))))))/100)+((IF(S39=[47]Datos!$B$83,0,IF(S39=[47]Datos!$B$84,5,IF(S39=[47]Datos!$B$85,10,IF(S39=[47]Datos!$B$86,15,IF(S39=[47]Datos!$B$87,20,IF(S39=[47]Datos!$B$88,25,0)))))))/100)+((IF(T39=[47]Datos!$B$83,0,IF(T39=[47]Datos!$B$84,5,IF(T39=[47]Datos!$B$85,10,IF(T39=[47]Datos!$B$86,15,IF(T39=[47]Datos!$B$87,20,IF(T39=[47]Datos!$B$88,25,0)))))))/100)+((IF(U39=[47]Datos!$B$83,0,IF(U39=[47]Datos!$B$84,5,IF(U39=[47]Datos!$B$85,10,IF(U39=[47]Datos!$B$86,15,IF(U39=[47]Datos!$B$87,20,IF(U39=[47]Datos!$B$88,25,0)))))))/100) -> 0
E40: Duplicidad entre las actividades objeto de descarga y las actividades no lectivas. | G40: Interno | V40: =((IF(R40=[47]Datos!$B$83,0,IF(R40=[47]Datos!$B$84,5,IF(R40=[47]Datos!$B$85,10,IF(R40=[47]Datos!$B$86,15,IF(R40=[47]Datos!$B$87,20,IF(R40=[47]Datos!$B$88,25,0)))))))/100)+((IF(S40=[47]Datos!$B$83,0,IF(S40=[47]Datos!$B$84,5,IF(S40=[47]Datos!$B$85,10,IF(S40=[47]Datos!$B$86,15,IF(S40=[47]Datos!$B$87,20,IF(S40=[47]Datos!$B$88,25,0)))))))/100)+((IF(T40=[47]Datos!$B$83,0,IF(T40=[47]Datos!$B$84,5,IF(T40=[47]Datos!$B$85,10,IF(T40=[47]Datos!$B$86,15,IF(T40=[47]Datos!$B$87,20,IF(T40=[47]Datos!$B$88,25,0)))))))/100)+((IF(U40=[47]Datos!$B$83,0,IF(U40=[47]Datos!$B$84,5,IF(U40=[47]Datos!$B$85,10,IF(U40=[47]Datos!$B$86,15,IF(U40=[47]Datos!$B$87,20,IF(U40=[47]Datos!$B$88,25,0)))))))/100) -> 0
B42: ELABORÓ | D42: REVISÓ | E42: APROBÓ
B43: Nombre: Equipo SIGUD Cargo: N/A Fecha: 7/11/2017 | D43: Nombre: N/A Cargo: Decanos de Facultad Fecha: 29/11/2017 | E43: Nombre: N/A Cargo: Decanos de facultad Fecha: 29/11/2017

Sheet SGC-AA
C2: MAPA INTEGRAL DE RIESGOS | E2: Código: GI-MG-001-FR-014
C3: Macroproceso: Direccionamiento Estratégico | E3: Versión: 02
C4: Proceso: Gestión Integrada | E4: Fecha de Aprobación: 29/10/2015
C6: Subsistema de Gestión de Calidad (SGC)
B8: PROCESO | D8: OBJETIVO DEL PROCESO | E8: CONTEXTO ESTRATÉGICO | H8: RIESGO | I8: DESCRIPCIÓN | J8: TIPO DE RIESGO | K8: CONSECUENCIAS | L8: CLASIFICACIÓN | O8: EVALUACIÓN DEL RIESGO
E9: CAUSA O FUENTE | G9: CLASIFICACIÓN | L9: PROBABILIDAD | M9: IMPACTO | N9: ZONA DE RIESGO | O9: CONTROLES | P9: CONTROL AUTOMÁTICO O MANUAL | Q9: TIPO DE CONTROL | R9: NIVEL | V9: TOTAL NIVEL | W9: PROBABILIDAD RESIDUAL | Y9: IMPACTO RESIDUAL | AA9: ZONA DE RIESGO RESIDUAL | AB9: MANEJO DEL RIESGO
R10: Documentado | S10: Aplicación | T10: Efectivo | U10: Seguimiento, evaluación y mejora | W10: RIESGO CONTROLADO | X10: PROBABILIDAD | Y10: RIESGO CONTROLADO | Z10: IMPACTO
B11: =IF([3]Menú!$C$7="","-",[3]Menú!$C$7) -> Autoevaluación y Acreditación | D11: =IF(B11="-","-",VLOOKUP(B11,[3]Datos!$B$3:$C$25,2,FALSE)) -> Realizar de manera sistemática y permanente un análisis valorativo y autónomo que permita verificar el grado de cumplimiento de los objetivos institucionales. | E11: Anomalías en la plataforma SACES MEN que dificulta el registro, solicitud o consulta en el sistema. | G11: Externo | H11: Pérdida de registro calificado por parte de los proyetos curriculares. | I11: Perdida de la Renovación de Registro Calificado por parte de los Proyectos Curriculares por Resolucion del Ministerio Nacional de Educación. | J11: De cumplimiento | K11: No se puede ofertar el proyecto curricular. | L11: Posible - 3 | M11: Moderado - 3 | N11: =IF(AND(L11=[3]Datos!$B$65,M11=[3]Datos!$B$72),[3]Datos!$D$65,IF(AND(L11=[3]Datos!$B$65,M11=[3]Datos!$B$73),[3]Datos!$E$65,IF(AND(L11=[3]Datos!$B$65,M11=[3]Datos!$B$74),[3]Datos!$F$65,IF(AND(L11=[3]Datos!$B$65,M11=[3]Datos!$B$75),[3]Datos!$G$65,IF(AND(L11=[3]Datos!$B$65,M11=[3]Datos!$B$76),[3]Datos!$H$65,IF(AND(L11=[3]Datos!$B$66,M11=[3]Datos!$B$72),[3]Datos!$D$66,IF(AND(L11=[3]Datos!$B$66,M11=[3]Datos!$B$73),[3]Datos!$E$66,IF(AND(L11=[3]Datos!$B$66,M11=[3]Datos!$B$74),[3]Datos!$F$66,IF(AND(L11=[3]Datos!$B$66,M11=[3]Datos!$B$75),[3]Datos!$G$66,IF(AND(L11=[3]Datos!$B$66,M11=[3]Datos!$B$76),[3]Datos!$H$66,IF(AND(L11=[3]Datos!$B$67,M11=[3]Datos!$B$72),[3]Datos!$D$67,IF(AND(L11=[3]Datos!$B$67,M11=[3]Datos!$B$73),[3]Datos!$E$67,IF(AND(L11=[3]Datos!$B$67,M11=[3]Datos!$B$74),[3]Datos!$F$67,IF(AND(L11=[3]Datos!$B$67,M11=[3]Datos!$B$75),[3]Datos!$G$67,IF(AND(L11=[3]Datos!$B$67,M11=[3]Datos!$B$76),[3]Datos!$H$67,IF(AND(L11=[3]Datos!$B$68,M11=[3]Datos!$B$72),[3]Datos!$D$68,IF(AND(L11=[3]Datos!$B$68,M11=[3]Datos!$B$73),[3]Datos!$E$68,IF(AND(L11=[3]Datos!$B$68,M11=[3]Datos!$B$74),[3]Datos!$F$68,IF(AND(L11=[3]Datos!$B$68,M11=[3]Datos!$B$75),[3]Datos!$G$68,IF(AND(L11=[3]Datos!$B$68,M11=[3]Datos!$B$76),[3]Datos!$H$68,IF(AND(L11=[3]Datos!$B$69,M11=[3]Datos!$B$72),[3]Datos!$D$69,IF(AND(L11=[3]Datos!$B$69,M11=[3]Datos!$B$73),[3]Datos!$E$69,IF(AND(L11=[3]Datos!$B$69,M11=[3]Datos!$B$74),[3]Datos!$F$69,IF(AND(L11=[3]Datos!$B$69,M11=[3]Datos!$B$75),[3]Datos!$G$69,IF(AND(L11=[3]Datos!$B$69,M11=[3]Datos!$B$76),[3]Datos!$H$69,"-"))))))))))))))))))))))))) -> ALTA - IMPORTANTE 9 | O11: Fortalecer las jornadas de capacitación a los subcomités de autoevaluación y acreditación de los proyectos curriculares. | P11: Manual | Q11: Preventivo | R11: Alto - 25 | S11: Alto - 25 | T11: Alto - 25 | U11: Alto - 25 | V11: =((IF(R11=[3]Datos!$B$83,0,IF(R11=[3]Datos!$B$84,5,IF(R11=[3]Datos!$B$85,10,IF(R11=[3]Datos!$B$86,15,IF(R11=[3]Datos!$B$87,20,IF(R11=[3]Datos!$B$88,25,0)))))))/100)+((IF(S11=[3]Datos!$B$83,0,IF(S11=[3]Datos!$B$84,5,IF(S11=[3]Datos!$B$85,10,IF(S11=[3]Datos!$B$86,15,IF(S11=[3]Datos!$B$87,20,IF(S11=[3]Datos!$B$88,25,0)))))))/100)+((IF(T11=[3]Datos!$B$83,0,IF(T11=[3]Datos!$B$84,5,IF(T11=[3]Datos!$B$85,10,IF(T11=[3]Datos!$B$86,15,IF(T11=[3]Datos!$B$87,20,IF(T11=[3]Datos!$B$88,25,0)))))))/100)+((IF(U11=[3]Datos!$B$83,0,IF(U11=[3]Datos!$B$84,5,IF(U11=[3]Datos!$B$85,10,IF(U11=[3]Datos!$B$86,15,IF(U11=[3]Datos!$B$87,20,IF(U11=[3]Datos!$B$88,25,0)))))))/100) -> 1 | W11: =IF(ISERROR((IF(Q11=[3]Datos!$B$80,V11,0)+IF(Q12=[3]Datos!$B$80,V12,0)+IF(Q13=[3]Datos!$B$80,V13,0)+IF(Q14=[3]Datos!$B$80,V14,0)+IF(Q15=[3]Datos!$B$80,V15,0)+IF(Q20=[3]Datos!$B$80,V20,0))/(IF(Q11=[3]Datos!$B$80,1,0)+IF(Q12=[3]Datos!$B$80,1,0)+IF(Q13=[3]Datos!$B$80,1,0)+IF(Q14=[3]Datos!$B$80,1,0)+IF(Q15=[3]Datos!$B$80,1,0)+IF(Q20=[3]Datos!$B$80,1,0))),0,(IF(Q11=[3]Datos!$B$80,V11,0)+IF(Q12=[3]Datos!$B$80,V12,0)+IF(Q13=[3]Datos!$B$80,V13,0)+IF(Q14=[3]Datos!$B$80,V14,0)+IF(Q15=[3]Datos!$B$80,V15,0)+IF(Q20=[3]Datos!$B$80,V20,0))/(IF(Q11=[3]Datos!$B$80,1,0)+IF(Q12=[3]Datos!$B$80,1,0)+IF(Q13=[3]Datos!$B$80,1,0)+IF(Q14=[3]Datos!$B$80,1,0)+IF(Q15=[3]Datos!$B$80,1,0)+IF(Q20=[3]Datos!$B$80,1,0))) -> 0.93 | X11: =IF(L11="","-",(IF(W11>0,(IF(L11=[3]Datos!$B$65,[3]Datos!$B$65,IF(AND(L11=[3]Datos!$B$66,W11>0.49),[3]Datos!$B$65,IF(AND(L11=[3]Datos!$B$67,W11>0.74),[3]Datos!$B$65,IF(AND(L11=[3]Datos!$B$67,W11<0.75,W11>0.49),[3]Datos!$B$66,IF(AND(L11=[3]Datos!$B$68,W11>0.74),[3]Datos!$B$66,IF(AND(L11=[3]Datos!$B$68,W11<0.75,W11>0.49),[3]Datos!$B$67,IF(AND(L11=[3]Datos!$B$69,W11>0.74),[3]Datos!$B$67,IF(AND(L11=[3]Datos!$B$69,W11<0.75,W11>0.49),[3]Datos!$B$68,L11))))))))),L11))) -> Raro - 1 | Y11: =IF(ISERROR((IF(Q11=[3]Datos!$B$79,V11,0)+IF(Q12=[3]Datos!$B$79,V12,0)+IF(Q13=[3]Datos!$B$79,V13,0)+IF(Q14=[3]Datos!$B$79,V14,0)+IF(Q15=[3]Datos!$B$79,V15,0)+IF(Q20=[3]Datos!$B$79,V20,0))/(IF(Q11=[3]Datos!$B$79,1,0)+IF(Q12=[3]Datos!$B$79,1,0)+IF(Q13=[3]Datos!$B$79,1,0)+IF(Q14=[3]Datos!$B$79,1,0)+IF(Q15=[3]Datos!$B$79,1,0)+IF(Q20=[3]Datos!$B$79,1,0))),0,(IF(Q11=[3]Datos!$B$79,V11,0)+IF(Q12=[3]Datos!$B$79,V12,0)+IF(Q13=[3]Datos!$B$79,V13,0)+IF(Q14=[3]Datos!$B$79,V14,0)+IF(Q15=[3]Datos!$B$79,V15,0)+IF(Q20=[3]Datos!$B$79,V20,0))/(IF(Q11=[3]Datos!$B$79,1,0)+IF(Q12=[3]Datos!$B$79,1,0)+IF(Q13=[3]Datos!$B$79,1,0)+IF(Q14=[3]Datos!$B$79,1,0)+IF(Q15=[3]Datos!$B$79,1,0)+IF(Q20=[3]Datos!$B$79,1,0))) -> 0 | Z11: =IF(M11="","-",(IF(Y11>0,(IF(M11=[3]Datos!$B$72,[3]Datos!$B$72,IF(AND(M11=[3]Datos!$B$73,Y11>0.49),[3]Datos!$B$72,IF(AND(M11=[3]Datos!$B$74,Y11>0.74),[3]Datos!$B$72,IF(AND(M11=[3]Datos!$B$74,Y11<0.75,Y11>0.49),[3]Datos!$B$73,IF(AND(M11=[3]Datos!$B$75,Y11>0.74),[3]Datos!$B$73,IF(AND(M11=[3]Datos!$B$75,Y11<0.75,Y11>0.49),[3]Datos!$B$74,IF(AND(M11=[3]Datos!$B$76,Y11>0.74),[3]Datos!$B$74,IF(AND(M11=[3]Datos!$B$76,Y11<0.75,Y11>0.49),[3]Datos!$B$75,M11))))))))),M11))) -> Moderado - 3 | AA11: =IF(AND(X11=[3]Datos!$B$65,Z11=[3]Datos!$B$72),[3]Datos!$D$65,IF(AND(X11=[3]Datos!$B$65,Z11=[3]Datos!$B$73),[3]Datos!$E$65,IF(AND(X11=[3]Datos!$B$65,Z11=[3]Datos!$B$74),[3]Datos!$F$65,IF(AND(X11=[3]Datos!$B$65,Z11=[3]Datos!$B$75),[3]Datos!$G$65,IF(AND(X11=[3]Datos!$B$65,Z11=[3]Datos!$B$76),[3]Datos!$H$65,IF(AND(X11=[3]Datos!$B$66,Z11=[3]Datos!$B$72),[3]Datos!$D$66,IF(AND(X11=[3]Datos!$B$66,Z11=[3]Datos!$B$73),[3]Datos!$E$66,IF(AND(X11=[3]Datos!$B$66,Z11=[3]Datos!$B$74),[3]Datos!$F$66,IF(AND(X11=[3]Datos!$B$66,Z11=[3]Datos!$B$75),[3]Datos!$G$66,IF(AND(X11=[3]Datos!$B$66,Z11=[3]Datos!$B$76),[3]Datos!$H$66,IF(AND(X11=[3]Datos!$B$67,Z11=[3]Datos!$B$72),[3]Datos!$D$67,IF(AND(X11=[3]Datos!$B$67,Z11=[3]Datos!$B$73),[3]Datos!$E$67,IF(AND(X11=[3]Datos!$B$67,Z11=[3]Datos!$B$74),[3]Datos!$F$67,IF(AND(X11=[3]Datos!$B$67,Z11=[3]Datos!$B$75),[3]Datos!$G$67,IF(AND(X11=[3]Datos!$B$67,Z11=[3]Datos!$B$76),[3]Datos!$H$67,IF(AND(X11=[3]Datos!$B$68,Z11=[3]Datos!$B$72),[3]Datos!$D$68,IF(AND(X11=[3]Datos!$B$68,Z11=[3]Datos!$B$73),[3]Datos!$E$68,IF(AND(X11=[3]Datos!$B$68,Z11=[3]Datos!$B$74),[3]Datos!$F$68,IF(AND(X11=[3]Datos!$B$68,Z11=[3]Datos!$B$75),[3]Datos!$G$68,IF(AND(X11=[3]Datos!$B$68,Z11=[3]Datos!$B$76),[3]Datos!$H$68,IF(AND(X11=[3]Datos!$B$69,Z11=[3]Datos!$B$72),[3]Datos!$D$69,IF(AND(X11=[3]Datos!$B$69,Z11=[3]Datos!$B$73),[3]Datos!$E$69,IF(AND(X11=[3]Datos!$B$69,Z11=[3]Datos!$B$74),[3]Datos!$F$69,IF(AND(X11=[3]Datos!$B$69,Z11=[3]Datos!$B$75),[3]Datos!$G$69,IF(AND(X11=[3]Datos!$B$69,Z11=[3]Datos!$B$76),[3]Datos!$H$69,"-"))))))))))))))))))))))))) -> MODERADO 3 | AB11: Evitar (EV)
E12: Desactualización de normativa asociada a procedimientos o documentación. | G12: Interno | K12: Sanciones del por parte del Ministerio de Educación Nacional por oferta de proyectos curriculares sin registro calificado o que se presenten modificaciones no autorizadas. | O12: Realizar acompañamiento permanente a los proyectos curriculares que adelanten procedimientos de autoevaluación, establecimiento y seguimiento a los planes de mejoramiento. | P12: Manual | Q12: Preventivo | R12: Alto - 25 | S12: Alto - 25 | T12: Alto - 25 | U12: Alto - 25 | V12: =((IF(R12=[3]Datos!$B$83,0,IF(R12=[3]Datos!$B$84,5,IF(R12=[3]Datos!$B$85,10,IF(R12=[3]Datos!$B$86,15,IF(R12=[3]Datos!$B$87,20,IF(R12=[3]Datos!$B$88,25,0)))))))/100)+((IF(S12=[3]Datos!$B$83,0,IF(S12=[3]Datos!$B$84,5,IF(S12=[3]Datos!$B$85,10,IF(S12=[3]Datos!$B$86,15,IF(S12=[3]Datos!$B$87,20,IF(S12=[3]Datos!$B$88,25,0)))))))/100)+((IF(T12=[3]Datos!$B$83,0,IF(T12=[3]Datos!$B$84,5,IF(T12=[3]Datos!$B$85,10,IF(T12=[3]Datos!$B$86,15,IF(T12=[3]Datos!$B$87,20,IF(T12=[3]Datos!$B$88,25,0)))))))/100)+((IF(U12=[3]Datos!$B$83,0,IF(U12=[3]Datos!$B$84,5,IF(U12=[3]Datos!$B$85,10,IF(U12=[3]Datos!$B$86,15,IF(U12=[3]Datos!$B$87,20,IF(U12=[3]Datos!$B$88,25,0)))))))/100) -> 1
E13: Suministro de información de forma incompleta o fuera de los tiempos establecidos por parte de las dependencias. | G13: Externo | K13: se afecta a la población estudiantil potencial que aspira a ingresar al proyecto curricular. | O13: Comunicación abierta y permanente con las dependencias para garantizar la entrega a tiempo de información. | P13: Manual | Q13: Preventivo | R13: Medio Alto - 20 | S13: Alto - 25 | T13: Alto - 25 | U13: Alto - 25 | V13: =((IF(R13=[3]Datos!$B$83,0,IF(R13=[3]Datos!$B$84,5,IF(R13=[3]Datos!$B$85,10,IF(R13=[3]Datos!$B$86,15,IF(R13=[3]Datos!$B$87,20,IF(R13=[3]Datos!$B$88,25,0)))))))/100)+((IF(S13=[3]Datos!$B$83,0,IF(S13=[3]Datos!$B$84,5,IF(S13=[3]Datos!$B$85,10,IF(S13=[3]Datos!$B$86,15,IF(S13=[3]Datos!$B$87,20,IF(S13=[3]Datos!$B$88,25,0)))))))/100)+((IF(T13=[3]Datos!$B$83,0,IF(T13=[3]Datos!$B$84,5,IF(T13=[3]Datos!$B$85,10,IF(T13=[3]Datos!$B$86,15,IF(T13=[3]Datos!$B$87,20,IF(T13=[3]Datos!$B$88,25,0)))))))/100)+((IF(U13=[3]Datos!$B$83,0,IF(U13=[3]Datos!$B$84,5,IF(U13=[3]Datos!$B$85,10,IF(U13=[3]Datos!$B$86,15,IF(U13=[3]Datos!$B$87,20,IF(U13=[3]Datos!$B$88,25,0)))))))/100) -> 0.95
E14: Desconocimiento por parte de la comunidad los procedimientos establecidos. | G14: Externo | K14: Disminución en las matriculas de nuevos estudiantes. (cobertura). | O14: Documentación, publicación y socialización de información en pagina web institucional, cartillas, guías y procedimientos facilitando los la elaboración de documentos de condiciones institucionales, autoevaluación y planes de mejoramiento. | P14: Manual | Q14: Preventivo | R14: Alto - 25 | S14: Medio Alto - 20 | T14: Alto - 25 | U14: Medio Bajo - 10 | V14: =((IF(R14=[3]Datos!$B$83,0,IF(R14=[3]Datos!$B$84,5,IF(R14=[3]Datos!$B$85,10,IF(R14=[3]Datos!$B$86,15,IF(R14=[3]Datos!$B$87,20,IF(R14=[3]Datos!$B$88,25,0)))))))/100)+((IF(S14=[3]Datos!$B$83,0,IF(S14=[3]Datos!$B$84,5,IF(S14=[3]Datos!$B$85,10,IF(S14=[3]Datos!$B$86,15,IF(S14=[3]Datos!$B$87,20,IF(S14=[3]Datos!$B$88,25,0)))))))/100)+((IF(T14=[3]Datos!$B$83,0,IF(T14=[3]Datos!$B$84,5,IF(T14=[3]Datos!$B$85,10,IF(T14=[3]Datos!$B$86,15,IF(T14=[3]Datos!$B$87,20,IF(T14=[3]Datos!$B$88,25,0)))))))/100)+((IF(U14=[3]Datos!$B$83,0,IF(U14=[3]Datos!$B$84,5,IF(U14=[3]Datos!$B$85,10,IF(U14=[3]Datos!$B$86,15,IF(U14=[3]Datos!$B$87,20,IF(U14=[3]Datos!$B$88,25,0)))))))/100) -> 0.8
E15: Saltos de conductos regulares definidos en los procedimientos para aprobación y revisión de documentos. | G15: Externo | K15: Afecta la Imagen institucional. | O15: Actualización permanente de los documentos de cuadros maestros para facilitar la obtención de información Institucional. | P15: Manual | Q15: Preventivo | R15: Alto - 25 | S15: Medio Alto - 20 | T15: Medio Alto - 20 | U15: Alto - 25 | V15: =((IF(R15=[3]Datos!$B$83,0,IF(R15=[3]Datos!$B$84,5,IF(R15=[3]Datos!$B$85,10,IF(R15=[3]Datos!$B$86,15,IF(R15=[3]Datos!$B$87,20,IF(R15=[3]Datos!$B$88,25,0)))))))/100)+((IF(S15=[3]Datos!$B$83,0,IF(S15=[3]Datos!$B$84,5,IF(S15=[3]Datos!$B$85,10,IF(S15=[3]Datos!$B$86,15,IF(S15=[3]Datos!$B$87,20,IF(S15=[3]Datos!$B$88,25,0)))))))/100)+((IF(T15=[3]Datos!$B$83,0,IF(T15=[3]Datos!$B$84,5,IF(T15=[3]Datos!$B$85,10,IF(T15=[3]Datos!$B$86,15,IF(T15=[3]Datos!$B$87,20,IF(T15=[3]Datos!$B$88,25,0)))))))/100)+((IF(U15=[3]Datos!$B$83,0,IF(U15=[3]Datos!$B$84,5,IF(U15=[3]Datos!$B$85,10,IF(U15=[3]Datos!$B$86,15,IF(U15=[3]Datos!$B$87,20,IF(U15=[3]Datos!$B$88,25,0)))))))/100) -> 0.9
E16: No cumplimiento de los plazos establecidos para la radicación de información necesaria en la plataforma. | G16: Externo
E17: Incumplimiento en la entrega de informes de autoevaluación por partes de los Proyectos Curriculares. | G17: Externo
E18: Incumplimiento a los criterios para la formulación de los Planes de Mejoramiento de los Proyectos Curriculares | G18: Externo
E19: Incumplimiento a las actividades y acciones, así como al seguimiento a los planes de mejoramiento establecidos. | G19: Externo
E20: Falta de asignación de tiempos a docentes que manejan procedimientos referentes de Registros calificados y Acreditaciones de alta calidad de proyectos curriculares. | G20: Externo | V20: =((IF(R20=[3]Datos!$B$83,0,IF(R20=[3]Datos!$B$84,5,IF(R20=[3]Datos!$B$85,10,IF(R20=[3]Datos!$B$86,15,IF(R20=[3]Datos!$B$87,20,IF(R20=[3]Datos!$B$88,25,0)))))))/100)+((IF(S20=[3]Datos!$B$83,0,IF(S20=[3]Datos!$B$84,5,IF(S20=[3]Datos!$B$85,10,IF(S20=[3]Datos!$B$86,15,IF(S20=[3]Datos!$B$87,20,IF(S20=[3]Datos!$B$88,25,0)))))))/100)+((IF(T20=[3]Datos!$B$83,0,IF(T20=[3]Datos!$B$84,5,IF(T20=[3]Datos!$B$85,10,IF(T20=[3]Datos!$B$86,15,IF(T20=[3]Datos!$B$87,20,IF(T20=[3]Datos!$B$88,25,0)))))))/100)+((IF(U20=[3]Datos!$B$83,0,IF(U20=[3]Datos!$B$84,5,IF(U20=[3]Datos!$B$85,10,IF(U20=[3]Datos!$B$86,15,IF(U20=[3]Datos!$B$87,20,IF(U20=[3]Datos!$B$88,25,0)))))))/100) -> 0
B21: =IF([3]Menú!$C$7="","-",[3]Menú!$C$7) -> Autoevaluación y Acreditación | D21: =IF(B21="-","-",VLOOKUP(B21,[3]Datos!$B$3:$C$25,2,FALSE)) -> Realizar de manera sistemática y permanente un análisis valorativo y autónomo que permita verificar el grado de cumplimiento de los objetivos institucionales. | E21: Anomalías en la plataforma SACES CNA que dificulta el registro, solicitud o consulta en el sistema. | G21: Externo | H21: Pérdida o no consecución de la Acreditación de Alta Calidad de los Proyectos Curriculares. | I21: Pérdida de la oportunidad de Obtener o Renovar la Acreditación de Alta Calidad de los Proyectos Curriculares ante el Consejo Nacional de Acreditación. | J21: De cumplimiento | K21: Deterioro de buena imagen del proyecto curricular. | L21: Posible - 3 | M21: Moderado - 3 | N21: =IF(AND(L21=[3]Datos!$B$65,M21=[3]Datos!$B$72),[3]Datos!$D$65,IF(AND(L21=[3]Datos!$B$65,M21=[3]Datos!$B$73),[3]Datos!$E$65,IF(AND(L21=[3]Datos!$B$65,M21=[3]Datos!$B$74),[3]Datos!$F$65,IF(AND(L21=[3]Datos!$B$65,M21=[3]Datos!$B$75),[3]Datos!$G$65,IF(AND(L21=[3]Datos!$B$65,M21=[3]Datos!$B$76),[3]Datos!$H$65,IF(AND(L21=[3]Datos!$B$66,M21=[3]Datos!$B$72),[3]Datos!$D$66,IF(AND(L21=[3]Datos!$B$66,M21=[3]Datos!$B$73),[3]Datos!$E$66,IF(AND(L21=[3]Datos!$B$66,M21=[3]Datos!$B$74),[3]Datos!$F$66,IF(AND(L21=[3]Datos!$B$66,M21=[3]Datos!$B$75),[3]Datos!$G$66,IF(AND(L21=[3]Datos!$B$66,M21=[3]Datos!$B$76),[3]Datos!$H$66,IF(AND(L21=[3]Datos!$B$67,M21=[3]Datos!$B$72),[3]Datos!$D$67,IF(AND(L21=[3]Datos!$B$67,M21=[3]Datos!$B$73),[3]Datos!$E$67,IF(AND(L21=[3]Datos!$B$67,M21=[3]Datos!$B$74),[3]Datos!$F$67,IF(AND(L21=[3]Datos!$B$67,M21=[3]Datos!$B$75),[3]Datos!$G$67,IF(AND(L21=[3]Datos!$B$67,M21=[3]Datos!$B$76),[3]Datos!$H$67,IF(AND(L21=[3]Datos!$B$68,M21=[3]Datos!$B$72),[3]Datos!$D$68,IF(AND(L21=[3]Datos!$B$68,M21=[3]Datos!$B$73),[3]Datos!$E$68,IF(AND(L21=[3]Datos!$B$68,M21=[3]Datos!$B$74),[3]Datos!$F$68,IF(AND(L21=[3]Datos!$B$68,M21=[3]Datos!$B$75),[3]Datos!$G$68,IF(AND(L21=[3]Datos!$B$68,M21=[3]Datos!$B$76),[3]Datos!$H$68,IF(AND(L21=[3]Datos!$B$69,M21=[3]Datos!$B$72),[3]Datos!$D$69,IF(AND(L21=[3]Datos!$B$69,M21=[3]Datos!$B$73),[3]Datos!$E$69,IF(AND(L21=[3]Datos!$B$69,M21=[3]Datos!$B$74),[3]Datos!$F$69,IF(AND(L21=[3]Datos!$B$69,M21=[3]Datos!$B$75),[3]Datos!$G$69,IF(AND(L21=[3]Datos!$B$69,M21=[3]Datos!$B$76),[3]Datos!$H$69,"-"))))))))))))))))))))))))) -> ALTA - IMPORTANTE 9 | O21: Fortalecer las jornadas de capacitación a los subcomités de autoevaluación y acreditación de los proyectos curriculares. | P21: Manual | Q21: Preventivo | R21: Alto - 25 | S21: Alto - 25 | T21: Alto - 25 | U21: Alto - 25 | V21: =((IF(R21=[3]Datos!$B$83,0,IF(R21=[3]Datos!$B$84,5,IF(R21=[3]Datos!$B$85,10,IF(R21=[3]Datos!$B$86,15,IF(R21=[3]Datos!$B$87,20,IF(R21=[3]Datos!$B$88,25,0)))))))/100)+((IF(S21=[3]Datos!$B$83,0,IF(S21=[3]Datos!$B$84,5,IF(S21=[3]Datos!$B$85,10,IF(S21=[3]Datos!$B$86,15,IF(S21=[3]Datos!$B$87,20,IF(S21=[3]Datos!$B$88,25,0)))))))/100)+((IF(T21=[3]Datos!$B$83,0,IF(T21=[3]Datos!$B$84,5,IF(T21=[3]Datos!$B$85,10,IF(T21=[3]Datos!$B$86,15,IF(T21=[3]Datos!$B$87,20,IF(T21=[3]Datos!$B$88,25,0)))))))/100)+((IF(U21=[3]Datos!$B$83,0,IF(U21=[3]Datos!$B$84,5,IF(U21=[3]Datos!$B$85,10,IF(U21=[3]Datos!$B$86,15,IF(U21=[3]Datos!$B$87,20,IF(U21=[3]Datos!$B$88,25,0)))))))/100) -> 1 | W21: =IF(ISERROR((IF(Q21=[3]Datos!$B$80,V21,0)+IF(Q22=[3]Datos!$B$80,V22,0)+IF(Q23=[3]Datos!$B$80,V23,0)+IF(Q24=[3]Datos!$B$80,V24,0)+IF(Q25=[3]Datos!$B$80,V25,0)+IF(Q30=[3]Datos!$B$80,V30,0))/(IF(Q21=[3]Datos!$B$80,1,0)+IF(Q22=[3]Datos!$B$80,1,0)+IF(Q23=[3]Datos!$B$80,1,0)+IF(Q24=[3]Datos!$B$80,1,0)+IF(Q25=[3]Datos!$B$80,1,0)+IF(Q30=[3]Datos!$B$80,1,0))),0,(IF(Q21=[3]Datos!$B$80,V21,0)+IF(Q22=[3]Datos!$B$80,V22,0)+IF(Q23=[3]Datos!$B$80,V23,0)+IF(Q24=[3]Datos!$B$80,V24,0)+IF(Q25=[3]Datos!$B$80,V25,0)+IF(Q30=[3]Datos!$B$80,V30,0))/(IF(Q21=[3]Datos!$B$80,1,0)+IF(Q22=[3]Datos!$B$80,1,0)+IF(Q23=[3]Datos!$B$80,1,0)+IF(Q24=[3]Datos!$B$80,1,0)+IF(Q25=[3]Datos!$B$80,1,0)+IF(Q30=[3]Datos!$B$80,1,0))) -> 0.93 | X21: =IF(L21="","-",(IF(W21>0,(IF(L21=[3]Datos!$B$65,[3]Datos!$B$65,IF(AND(L21=[3]Datos!$B$66,W21>0.49),[3]Datos!$B$65,IF(AND(L21=[3]Datos!$B$67,W21>0.74),[3]Datos!$B$65,IF(AND(L21=[3]Datos!$B$67,W21<0.75,W21>0.49),[3]Datos!$B$66,IF(AND(L21=[3]Datos!$B$68,W21>0.74),[3]Datos!$B$66,IF(AND(L21=[3]Datos!$B$68,W21<0.75,W21>0.49),[3]Datos!$B$67,IF(AND(L21=[3]Datos!$B$69,W21>0.74),[3]Datos!$B$67,IF(AND(L21=[3]Datos!$B$69,W21<0.75,W21>0.49),[3]Datos!$B$68,L21))))))))),L21))) -> Raro - 1 | Y21: =IF(ISERROR((IF(Q21=[3]Datos!$B$79,V21,0)+IF(Q23=[3]Datos!$B$79,V23,0)+IF(Q24=[3]Datos!$B$79,V24,0)+IF(Q25=[3]Datos!$B$79,V25,0)+IF(Q28=[3]Datos!$B$79,V28,0)+IF(Q30=[3]Datos!$B$79,V30,0))/(IF(Q21=[3]Datos!$B$79,1,0)+IF(Q23=[3]Datos!$B$79,1,0)+IF(Q24=[3]Datos!$B$79,1,0)+IF(Q25=[3]Datos!$B$79,1,0)+IF(Q28=[3]Datos!$B$79,1,0)+IF(Q30=[3]Datos!$B$79,1,0))),0,(IF(Q21=[3]Datos!$B$79,V21,0)+IF(Q23=[3]Datos!$B$79,V23,0)+IF(Q24=[3]Datos!$B$79,V24,0)+IF(Q25=[3]Datos!$B$79,V25,0)+IF(Q28=[3]Datos!$B$79,V28,0)+IF(Q30=[3]Datos!$B$79,V30,0))/(IF(Q21=[3]Datos!$B$79,1,0)+IF(Q23=[3]Datos!$B$79,1,0)+IF(Q24=[3]Datos!$B$79,1,0)+IF(Q25=[3]Datos!$B$79,1,0)+IF(Q28=[3]Datos!$B$79,1,0)+IF(Q30=[3]Datos!$B$79,1,0))) -> 0 | Z21: =IF(M21="","-",(IF(Y21>0,(IF(M21=[3]Datos!$B$72,[3]Datos!$B$72,IF(AND(M21=[3]Datos!$B$73,Y21>0.49),[3]Datos!$B$72,IF(AND(M21=[3]Datos!$B$74,Y21>0.74),[3]Datos!$B$72,IF(AND(M21=[3]Datos!$B$74,Y21<0.75,Y21>0.49),[3]Datos!$B$73,IF(AND(M21=[3]Datos!$B$75,Y21>0.74),[3]Datos!$B$73,IF(AND(M21=[3]Datos!$B$75,Y21<0.75,Y21>0.49),[3]Datos!$B$74,IF(AND(M21=[3]Datos!$B$76,Y21>0.74),[3]Datos!$B$74,IF(AND(M21=[3]Datos!$B$76,Y21<0.75,Y21>0.49),[3]Datos!$B$75,M21))))))))),M21))) -> Moderado - 3 | AA21: =IF(AND(X21=[3]Datos!$B$65,Z21=[3]Datos!$B$72),[3]Datos!$D$65,IF(AND(X21=[3]Datos!$B$65,Z21=[3]Datos!$B$73),[3]Datos!$E$65,IF(AND(X21=[3]Datos!$B$65,Z21=[3]Datos!$B$74),[3]Datos!$F$65,IF(AND(X21=[3]Datos!$B$65,Z21=[3]Datos!$B$75),[3]Datos!$G$65,IF(AND(X21=[3]Datos!$B$65,Z21=[3]Datos!$B$76),[3]Datos!$H$65,IF(AND(X21=[3]Datos!$B$66,Z21=[3]Datos!$B$72),[3]Datos!$D$66,IF(AND(X21=[3]Datos!$B$66,Z21=[3]Datos!$B$73),[3]Datos!$E$66,IF(AND(X21=[3]Datos!$B$66,Z21=[3]Datos!$B$74),[3]Datos!$F$66,IF(AND(X21=[3]Datos!$B$66,Z21=[3]Datos!$B$75),[3]Datos!$G$66,IF(AND(X21=[3]Datos!$B$66,Z21=[3]Datos!$B$76),[3]Datos!$H$66,IF(AND(X21=[3]Datos!$B$67,Z21=[3]Datos!$B$72),[3]Datos!$D$67,IF(AND(X21=[3]Datos!$B$67,Z21=[3]Datos!$B$73),[3]Datos!$E$67,IF(AND(X21=[3]Datos!$B$67,Z21=[3]Datos!$B$74),[3]Datos!$F$67,IF(AND(X21=[3]Datos!$B$67,Z21=[3]Datos!$B$75),[3]Datos!$G$67,IF(AND(X21=[3]Datos!$B$67,Z21=[3]Datos!$B$76),[3]Datos!$H$67,IF(AND(X21=[3]Datos!$B$68,Z21=[3]Datos!$B$72),[3]Datos!$D$68,IF(AND(X21=[3]Datos!$B$68,Z21=[3]Datos!$B$73),[3]Datos!$E$68,IF(AND(X21=[3]Datos!$B$68,Z21=[3]Datos!$B$74),[3]Datos!$F$68,IF(AND(X21=[3]Datos!$B$68,Z21=[3]Datos!$B$75),[3]Datos!$G$68,IF(AND(X21=[3]Datos!$B$68,Z21=[3]Datos!$B$76),[3]Datos!$H$68,IF(AND(X21=[3]Datos!$B$69,Z21=[3]Datos!$B$72),[3]Datos!$D$69,IF(AND(X21=[3]Datos!$B$69,Z21=[3]Datos!$B$73),[3]Datos!$E$69,IF(AND(X21=[3]Datos!$B$69,Z21=[3]Datos!$B$74),[3]Datos!$F$69,IF(AND(X21=[3]Datos!$B$69,Z21=[3]Datos!$B$75),[3]Datos!$G$69,IF(AND(X21=[3]Datos!$B$69,Z21=[3]Datos!$B$76),[3]Datos!$H$69,"-"))))))))))))))))))))))))) -> MODERADO 3 | AB21: Asumir (AS)
E22: Desactualización de normativa asociada a procedimientos o documentación. | G22: Interno | K22: Pérdida de la trayectoria como programa reconocido de alta calidad. | O22: Realizar acompañamiento permanente a los proyectos curriculares que adelanten procedimientos de autoevaluación, establecimiento y seguimiento a los planes de mejoramiento. | P22: Manual | Q22: Preventivo | R22: Alto - 25 | S22: Alto - 25 | T22: Alto - 25 | U22: Alto - 25 | V22: =((IF(R22=[3]Datos!$B$83,0,IF(R22=[3]Datos!$B$84,5,IF(R22=[3]Datos!$B$85,10,IF(R22=[3]Datos!$B$86,15,IF(R22=[3]Datos!$B$87,20,IF(R22=[3]Datos!$B$88,25,0)))))))/100)+((IF(S22=[3]Datos!$B$83,0,IF(S22=[3]Datos!$B$84,5,IF(S22=[3]Datos!$B$85,10,IF(S22=[3]Datos!$B$86,15,IF(S22=[3]Datos!$B$87,20,IF(S22=[3]Datos!$B$88,25,0)))))))/100)+((IF(T22=[3]Datos!$B$83,0,IF(T22=[3]Datos!$B$84,5,IF(T22=[3]Datos!$B$85,10,IF(T22=[3]Datos!$B$86,15,IF(T22=[3]Datos!$B$87,20,IF(T22=[3]Datos!$B$88,25,0)))))))/100)+((IF(U22=[3]Datos!$B$83,0,IF(U22=[3]Datos!$B$84,5,IF(U22=[3]Datos!$B$85,10,IF(U22=[3]Datos!$B$86,15,IF(U22=[3]Datos!$B$87,20,IF(U22=[3]Datos!$B$88,25,0)))))))/100) -> 1
E23: No cumplimiento de los plazos establecidos para la radicación de información necesaria en la plataforma. | G23: Externo | K23: Imposibilidad de acceder a la Acreditación Institucional por el incumplimiento de los porcentajes requeridos para ésta. | O23: Comunicación abierta y permanente con las dependencias para garantizar la entrega a tiempo de información. | P23: Manual | Q23: Preventivo | R23: Medio Alto - 20 | S23: Alto - 25 | T23: Alto - 25 | U23: Alto - 25 | V23: =((IF(R23=[3]Datos!$B$83,0,IF(R23=[3]Datos!$B$84,5,IF(R23=[3]Datos!$B$85,10,IF(R23=[3]Datos!$B$86,15,IF(R23=[3]Datos!$B$87,20,IF(R23=[3]Datos!$B$88,25,0)))))))/100)+((IF(S23=[3]Datos!$B$83,0,IF(S23=[3]Datos!$B$84,5,IF(S23=[3]Datos!$B$85,10,IF(S23=[3]Datos!$B$86,15,IF(S23=[3]Datos!$B$87,20,IF(S23=[3]Datos!$B$88,25,0)))))))/100)+((IF(T23=[3]Datos!$B$83,0,IF(T23=[3]Datos!$B$84,5,IF(T23=[3]Datos!$B$85,10,IF(T23=[3]Datos!$B$86,15,IF(T23=[3]Datos!$B$87,20,IF(T23=[3]Datos!$B$88,25,0)))))))/100)+((IF(U23=[3]Datos!$B$83,0,IF(U23=[3]Datos!$B$84,5,IF(U23=[3]Datos!$B$85,10,IF(U23=[3]Datos!$B$86,15,IF(U23=[3]Datos!$B$87,20,IF(U23=[3]Datos!$B$88,25,0)))))))/100) -> 0.95
E24: Suministro de información de forma incompleta o fuera de los tiempos establecidos por parte de las dependencias o falencias en la documentación necesaria para la presentación ante entes externos. | G24: Externo | O24: Documentación, publicación y socialización de información en pagina web institucional, cartillas, guías y procedimientos facilitando los la elaboración de documentos de condiciones institucionales, autoevaluación y planes de mejoramiento. | P24: Manual | Q24: Preventivo | R24: Alto - 25 | S24: Medio Alto - 20 | T24: Alto - 25 | U24: Medio Bajo - 10 | V24: =((IF(R24=[3]Datos!$B$83,0,IF(R24=[3]Datos!$B$84,5,IF(R24=[3]Datos!$B$85,10,IF(R24=[3]Datos!$B$86,15,IF(R24=[3]Datos!$B$87,20,IF(R24=[3]Datos!$B$88,25,0)))))))/100)+((IF(S24=[3]Datos!$B$83,0,IF(S24=[3]Datos!$B$84,5,IF(S24=[3]Datos!$B$85,10,IF(S24=[3]Datos!$B$86,15,IF(S24=[3]Datos!$B$87,20,IF(S24=[3]Datos!$B$88,25,0)))))))/100)+((IF(T24=[3]Datos!$B$83,0,IF(T24=[3]Datos!$B$84,5,IF(T24=[3]Datos!$B$85,10,IF(T24=[3]Datos!$B$86,15,IF(T24=[3]Datos!$B$87,20,IF(T24=[3]Datos!$B$88,25,0)))))))/100)+((IF(U24=[3]Datos!$B$83,0,IF(U24=[3]Datos!$B$84,5,IF(U24=[3]Datos!$B$85,10,IF(U24=[3]Datos!$B$86,15,IF(U24=[3]Datos!$B$87,20,IF(U24=[3]Datos!$B$88,25,0)))))))/100) -> 0.8
E25: Desconocimiento por parte de la comunidad los procedimientos establecidos. | G25: Externo | O25: Actualización permanente de los documentos de cuadros maestros para facilitar la obtención de información Institucional. | P25: Manual | Q25: Preventivo | R25: Alto - 25 | S25: Medio Alto - 20 | T25: Medio Alto - 20 | U25: Alto - 25 | V25: =((IF(R25=[3]Datos!$B$83,0,IF(R25=[3]Datos!$B$84,5,IF(R25=[3]Datos!$B$85,10,IF(R25=[3]Datos!$B$86,15,IF(R25=[3]Datos!$B$87,20,IF(R25=[3]Datos!$B$88,25,0)))))))/100)+((IF(S25=[3]Datos!$B$83,0,IF(S25=[3]Datos!$B$84,5,IF(S25=[3]Datos!$B$85,10,IF(S25=[3]Datos!$B$86,15,IF(S25=[3]Datos!$B$87,20,IF(S25=[3]Datos!$B$88,25,0)))))))/100)+((IF(T25=[3]Datos!$B$83,0,IF(T25=[3]Datos!$B$84,5,IF(T25=[3]Datos!$B$85,10,IF(T25=[3]Datos!$B$86,15,IF(T25=[3]Datos!$B$87,20,IF(T25=[3]Datos!$B$88,25,0)))))))/100)+((IF(U25=[3]Datos!$B$83,0,IF(U25=[3]Datos!$B$84,5,IF(U25=[3]Datos!$B$85,10,IF(U25=[3]Datos!$B$86,15,IF(U25=[3]Datos!$B$87,20,IF(U25=[3]Datos!$B$88,25,0)))))))/100) -> 0.9
E26: Incumplimiento a los criterios para la formulación de los Planes de Mejoramiento de los Proyectos Curriculares | G26: Externo | O26: Acompañamiento a la formulación de los planes de mejoramiento de los Proyectos Curriculares. | P26: Manual | Q26: Preventivo | R26: Alto - 25 | S26: Alto - 25 | T26: Medio Bajo - 10 | U26: Medio Bajo - 10 | V26: =((IF(R26=[3]Datos!$B$83,0,IF(R26=[3]Datos!$B$84,5,IF(R26=[3]Datos!$B$85,10,IF(R26=[3]Datos!$B$86,15,IF(R26=[3]Datos!$B$87,20,IF(R26=[3]Datos!$B$88,25,0)))))))/100)+((IF(S26=[3]Datos!$B$83,0,IF(S26=[3]Datos!$B$84,5,IF(S26=[3]Datos!$B$85,10,IF(S26=[3]Datos!$B$86,15,IF(S26=[3]Datos!$B$87,20,IF(S26=[3]Datos!$B$88,25,0)))))))/100)+((IF(T26=[3]Datos!$B$83,0,IF(T26=[3]Datos!$B$84,5,IF(T26=[3]Datos!$B$85,10,IF(T26=[3]Datos!$B$86,15,IF(T26=[3]Datos!$B$87,20,IF(T26=[3]Datos!$B$88,25,0)))))))/100)+((IF(U26=[3]Datos!$B$83,0,IF(U26=[3]Datos!$B$84,5,IF(U26=[3]Datos!$B$85,10,IF(U26=[3]Datos!$B$86,15,IF(U26=[3]Datos!$B$87,20,IF(U26=[3]Datos!$B$88,25,0)))))))/100) -> 0.7
E27: Incumplimiento a las actividades y acciones, así como al seguimiento a los planes de mejoramiento establecidos. | G27: Externo | O27: Establecer lineamientos (actualización de formatos) para la elaboración, evaluación y seguimiento a los planes de mejoramiento de los proyectos curriculares. | P27: Manual | Q27: Preventivo | R27: Alto - 25 | S27: Alto - 25 | T27: Medio Bajo - 10 | U27: Medio Bajo - 10 | V27: =((IF(R27=[3]Datos!$B$83,0,IF(R27=[3]Datos!$B$84,5,IF(R27=[3]Datos!$B$85,10,IF(R27=[3]Datos!$B$86,15,IF(R27=[3]Datos!$B$87,20,IF(R27=[3]Datos!$B$88,25,0)))))))/100)+((IF(S27=[3]Datos!$B$83,0,IF(S27=[3]Datos!$B$84,5,IF(S27=[3]Datos!$B$85,10,IF(S27=[3]Datos!$B$86,15,IF(S27=[3]Datos!$B$87,20,IF(S27=[3]Datos!$B$88,25,0)))))))/100)+((IF(T27=[3]Datos!$B$83,0,IF(T27=[3]Datos!$B$84,5,IF(T27=[3]Datos!$B$85,10,IF(T27=[3]Datos!$B$86,15,IF(T27=[3]Datos!$B$87,20,IF(T27=[3]Datos!$B$88,25,0)))))))/100)+((IF(U27=[3]Datos!$B$83,0,IF(U27=[3]Datos!$B$84,5,IF(U27=[3]Datos!$B$85,10,IF(U27=[3]Datos!$B$86,15,IF(U27=[3]Datos!$B$87,20,IF(U27=[3]Datos!$B$88,25,0)))))))/100) -> 0.7
E28: Saltos de conductos regulares definidos en los procedimientos para aprobación y revisión de documentos. | G28: Externo
E29: Baja credibilidad en los procesos de aseguramiento de calidad académica (Acreditación de alta calidad). | G29: Externo
E30: No uso / falta de aprovechamiento | G30: Externo
B31: =IF([3]Menú!$C$7="","-",[3]Menú!$C$7) -> Autoevaluación y Acreditación | D31: =IF(B31="-","-",VLOOKUP(B31,[3]Datos!$B$3:$C$25,2,FALSE)) -> Realizar de manera sistemática y permanente un análisis valorativo y autónomo que permita verificar el grado de cumplimiento de los objetivos institucionales. | E31: Desactualización de normativa asociada a procedimientos o documentación. | G31: Interno | H31: Perdida de Acreditación Institucional de Alta Calidad. | I31: Perdida de la Acreditación Institucional de Alta Calidad otorgada por el Consejo Nacional de Acreditación. | J31: Imagen | K31: Perdida de buena imagen de la universidad. | L31: Posible - 3 | M31: Mayor - 4 | N31: =IF(AND(L31=[3]Datos!$B$65,M31=[3]Datos!$B$72),[3]Datos!$D$65,IF(AND(L31=[3]Datos!$B$65,M31=[3]Datos!$B$73),[3]Datos!$E$65,IF(AND(L31=[3]Datos!$B$65,M31=[3]Datos!$B$74),[3]Datos!$F$65,IF(AND(L31=[3]Datos!$B$65,M31=[3]Datos!$B$75),[3]Datos!$G$65,IF(AND(L31=[3]Datos!$B$65,M31=[3]Datos!$B$76),[3]Datos!$H$65,IF(AND(L31=[3]Datos!$B$66,M31=[3]Datos!$B$72),[3]Datos!$D$66,IF(AND(L31=[3]Datos!$B$66,M31=[3]Datos!$B$73),[3]Datos!$E$66,IF(AND(L31=[3]Datos!$B$66,M31=[3]Datos!$B$74),[3]Datos!$F$66,IF(AND(L31=[3]Datos!$B$66,M31=[3]Datos!$B$75),[3]Datos!$G$66,IF(AND(L31=[3]Datos!$B$66,M31=[3]Datos!$B$76),[3]Datos!$H$66,IF(AND(L31=[3]Datos!$B$67,M31=[3]Datos!$B$72),[3]Datos!$D$67,IF(AND(L31=[3]Datos!$B$67,M31=[3]Datos!$B$73),[3]Datos!$E$67,IF(AND(L31=[3]Datos!$B$67,M31=[3]Datos!$B$74),[3]Datos!$F$67,IF(AND(L31=[3]Datos!$B$67,M31=[3]Datos!$B$75),[3]Datos!$G$67,IF(AND(L31=[3]Datos!$B$67,M31=[3]Datos!$B$76),[3]Datos!$H$67,IF(AND(L31=[3]Datos!$B$68,M31=[3]Datos!$B$72),[3]Datos!$D$68,IF(AND(L31=[3]Datos!$B$68,M31=[3]Datos!$B$73),[3]Datos!$E$68,IF(AND(L31=[3]Datos!$B$68,M31=[3]Datos!$B$74),[3]Datos!$F$68,IF(AND(L31=[3]Datos!$B$68,M31=[3]Datos!$B$75),[3]Datos!$G$68,IF(AND(L31=[3]Datos!$B$68,M31=[3]Datos!$B$76),[3]Datos!$H$68,IF(AND(L31=[3]Datos!$B$69,M31=[3]Datos!$B$72),[3]Datos!$D$69,IF(AND(L31=[3]Datos!$B$69,M31=[3]Datos!$B$73),[3]Datos!$E$69,IF(AND(L31=[3]Datos!$B$69,M31=[3]Datos!$B$74),[3]Datos!$F$69,IF(AND(L31=[3]Datos!$B$69,M31=[3]Datos!$B$75),[3]Datos!$G$69,IF(AND(L31=[3]Datos!$B$69,M31=[3]Datos!$B$76),[3]Datos!$H$69,"-"))))))))))))))))))))))))) -> CATASTRÓFICO – INACEPTABLE 12 | O31: Fortalecer las jornadas de socialización, divulgación y sensibilización de la acreditación institucional con la comunidad universitaria. | P31: Manual | Q31: Preventivo | R31: Alto - 25 | S31: Medio Alto - 20 | T31: Medio Alto - 20 | U31: Medio Alto - 20 | V31: =((IF(R31=[3]Datos!$B$83,0,IF(R31=[3]Datos!$B$84,5,IF(R31=[3]Datos!$B$85,10,IF(R31=[3]Datos!$B$86,15,IF(R31=[3]Datos!$B$87,20,IF(R31=[3]Datos!$B$88,25,0)))))))/100)+((IF(S31=[3]Datos!$B$83,0,IF(S31=[3]Datos!$B$84,5,IF(S31=[3]Datos!$B$85,10,IF(S31=[3]Datos!$B$86,15,IF(S31=[3]Datos!$B$87,20,IF(S31=[3]Datos!$B$88,25,0)))))))/100)+((IF(T31=[3]Datos!$B$83,0,IF(T31=[3]Datos!$B$84,5,IF(T31=[3]Datos!$B$85,10,IF(T31=[3]Datos!$B$86,15,IF(T31=[3]Datos!$B$87,20,IF(T31=[3]Datos!$B$88,25,0)))))))/100)+((IF(U31=[3]Datos!$B$83,0,IF(U31=[3]Datos!$B$84,5,IF(U31=[3]Datos!$B$85,10,IF(U31=[3]Datos!$B$86,15,IF(U31=[3]Datos!$B$87,20,IF(U31=[3]Datos!$B$88,25,0)))))))/100) -> 0.85 | W31: =IF(ISERROR((IF(Q31=[3]Datos!$B$80,V31,0)+IF(Q32=[3]Datos!$B$80,V32,0)+IF(Q33=[3]Datos!$B$80,V33,0)+IF(Q34=[3]Datos!$B$80,V34,0)+IF(Q35=[3]Datos!$B$80,V35,0)+IF(#REF!=[3]Datos!$B$80,#REF!,0))/(IF(Q31=[3]Datos!$B$80,1,0)+IF(Q32=[3]Datos!$B$80,1,0)+IF(Q33=[3]Datos!$B$80,1,0)+IF(Q34=[3]Datos!$B$80,1,0)+IF(Q35=[3]Datos!$B$80,1,0)+IF(#REF!=[3]Datos!$B$80,1,0))),0,(IF(Q31=[3]Datos!$B$80,V31,0)+IF(Q32=[3]Datos!$B$80,V32,0)+IF(Q33=[3]Datos!$B$80,V33,0)+IF(Q34=[3]Datos!$B$80,V34,0)+IF(Q35=[3]Datos!$B$80,V35,0)+IF(#REF!=[3]Datos!$B$80,#REF!,0))/(IF(Q31=[3]Datos!$B$80,1,0)+IF(Q32=[3]Datos!$B$80,1,0)+IF(Q33=[3]Datos!$B$80,1,0)+IF(Q34=[3]Datos!$B$80,1,0)+IF(Q35=[3]Datos!$B$80,1,0)+IF(#REF!=[3]Datos!$B$80,1,0))) -> 0 | X31: =IF(L31="","-",(IF(W31>0,(IF(L31=[3]Datos!$B$65,[3]Datos!$B$65,IF(AND(L31=[3]Datos!$B$66,W31>0.49),[3]Datos!$B$65,IF(AND(L31=[3]Datos!$B$67,W31>0.74),[3]Datos!$B$65,IF(AND(L31=[3]Datos!$B$67,W31<0.75,W31>0.49),[3]Datos!$B$66,IF(AND(L31=[3]Datos!$B$68,W31>0.74),[3]Datos!$B$66,IF(AND(L31=[3]Datos!$B$68,W31<0.75,W31>0.49),[3]Datos!$B$67,IF(AND(L31=[3]Datos!$B$69,W31>0.74),[3]Datos!$B$67,IF(AND(L31=[3]Datos!$B$69,W31<0.75,W31>0.49),[3]Datos!$B$68,L31))))))))),L31))) -> Posible - 3 | Y31: =IF(ISERROR((IF(Q31=[3]Datos!$B$79,V31,0)+IF(Q32=[3]Datos!$B$79,V32,0)+IF(Q33=[3]Datos!$B$79,V33,0)+IF(Q34=[3]Datos!$B$79,V34,0)+IF(Q35=[3]Datos!$B$79,V35,0)+IF(#REF!=[3]Datos!$B$79,#REF!,0))/(IF(Q31=[3]Datos!$B$79,1,0)+IF(Q32=[3]Datos!$B$79,1,0)+IF(Q33=[3]Datos!$B$79,1,0)+IF(Q34=[3]Datos!$B$79,1,0)+IF(Q35=[3]Datos!$B$79,1,0)+IF(#REF!=[3]Datos!$B$79,1,0))),0,(IF(Q31=[3]Datos!$B$79,V31,0)+IF(Q32=[3]Datos!$B$79,V32,0)+IF(Q33=[3]Datos!$B$79,V33,0)+IF(Q34=[3]Datos!$B$79,V34,0)+IF(Q35=[3]Datos!$B$79,V35,0)+IF(#REF!=[3]Datos!$B$79,#REF!,0))/(IF(Q31=[3]Datos!$B$79,1,0)+IF(Q32=[3]Datos!$B$79,1,0)+IF(Q33=[3]Datos!$B$79,1,0)+IF(Q34=[3]Datos!$B$79,1,0)+IF(Q35=[3]Datos!$B$79,1,0)+IF(#REF!=[3]Datos!$B$79,1,0))) -> 0 | Z31: =IF(M31="","-",(IF(Y31>0,(IF(M31=[3]Datos!$B$72,[3]Datos!$B$72,IF(AND(M31=[3]Datos!$B$73,Y31>0.49),[3]Datos!$B$72,IF(AND(M31=[3]Datos!$B$74,Y31>0.74),[3]Datos!$B$72,IF(AND(M31=[3]Datos!$B$74,Y31<0.75,Y31>0.49),[3]Datos!$B$73,IF(AND(M31=[3]Datos!$B$75,Y31>0.74),[3]Datos!$B$73,IF(AND(M31=[3]Datos!$B$75,Y31<0.75,Y31>0.49),[3]Datos!$B$74,IF(AND(M31=[3]Datos!$B$76,Y31>0.74),[3]Datos!$B$74,IF(AND(M31=[3]Datos!$B$76,Y31<0.75,Y31>0.49),[3]Datos!$B$75,M31))))))))),M31))) -> Mayor - 4 | AA31: =IF(AND(X31=[3]Datos!$B$65,Z31=[3]Datos!$B$72),[3]Datos!$D$65,IF(AND(X31=[3]Datos!$B$65,Z31=[3]Datos!$B$73),[3]Datos!$E$65,IF(AND(X31=[3]Datos!$B$65,Z31=[3]Datos!$B$74),[3]Datos!$F$65,IF(AND(X31=[3]Datos!$B$65,Z31=[3]Datos!$B$75),[3]Datos!$G$65,IF(AND(X31=[3]Datos!$B$65,Z31=[3]Datos!$B$76),[3]Datos!$H$65,IF(AND(X31=[3]Datos!$B$66,Z31=[3]Datos!$B$72),[3]Datos!$D$66,IF(AND(X31=[3]Datos!$B$66,Z31=[3]Datos!$B$73),[3]Datos!$E$66,IF(AND(X31=[3]Datos!$B$66,Z31=[3]Datos!$B$74),[3]Datos!$F$66,IF(AND(X31=[3]Datos!$B$66,Z31=[3]Datos!$B$75),[3]Datos!$G$66,IF(AND(X31=[3]Datos!$B$66,Z31=[3]Datos!$B$76),[3]Datos!$H$66,IF(AND(X31=[3]Datos!$B$67,Z31=[3]Datos!$B$72),[3]Datos!$D$67,IF(AND(X31=[3]Datos!$B$67,Z31=[3]Datos!$B$73),[3]Datos!$E$67,IF(AND(X31=[3]Datos!$B$67,Z31=[3]Datos!$B$74),[3]Datos!$F$67,IF(AND(X31=[3]Datos!$B$67,Z31=[3]Datos!$B$75),[3]Datos!$G$67,IF(AND(X31=[3]Datos!$B$67,Z31=[3]Datos!$B$76),[3]Datos!$H$67,IF(AND(X31=[3]Datos!$B$68,Z31=[3]Datos!$B$72),[3]Datos!$D$68,IF(AND(X31=[3]Datos!$B$68,Z31=[3]Datos!$B$73),[3]Datos!$E$68,IF(AND(X31=[3]Datos!$B$68,Z31=[3]Datos!$B$74),[3]Datos!$F$68,IF(AND(X31=[3]Datos!$B$68,Z31=[3]Datos!$B$75),[3]Datos!$G$68,IF(AND(X31=[3]Datos!$B$68,Z31=[3]Datos!$B$76),[3]Datos!$H$68,IF(AND(X31=[3]Datos!$B$69,Z31=[3]Datos!$B$72),[3]Datos!$D$69,IF(AND(X31=[3]Datos!$B$69,Z31=[3]Datos!$B$73),[3]Datos!$E$69,IF(AND(X31=[3]Datos!$B$69,Z31=[3]Datos!$B$74),[3]Datos!$F$69,IF(AND(X31=[3]Datos!$B$69,Z31=[3]Datos!$B$75),[3]Datos!$G$69,IF(AND(X31=[3]Datos!$B$69,Z31=[3]Datos!$B$76),[3]Datos!$H$69,"-"))))))))))))))))))))))))) -> CATASTRÓFICO – INACEPTABLE 12 | AB31: Asumir (AS)
E32: No cumplimiento de los plazos establecidos para la radicación de información necesaria para el proceso. | G32: Interno | K32: Incumplimiento con los objetivos del Plan Estratégico de Desarrollo. | O32: Comunicación abierta y permanente con las dependencias para garantizar la entrega a tiempo de información. | P32: Manual | Q32: Preventivo | R32: Medio Alto - 20 | S32: Alto - 25 | T32: Alto - 25 | U32: Alto - 25 | V32: =((IF(R32=[3]Datos!$B$83,0,IF(R32=[3]Datos!$B$84,5,IF(R32=[3]Datos!$B$85,10,IF(R32=[3]Datos!$B$86,15,IF(R32=[3]Datos!$B$87,20,IF(R32=[3]Datos!$B$88,25,0)))))))/100)+((IF(S32=[3]Datos!$B$83,0,IF(S32=[3]Datos!$B$84,5,IF(S32=[3]Datos!$B$85,10,IF(S32=[3]Datos!$B$86,15,IF(S32=[3]Datos!$B$87,20,IF(S32=[3]Datos!$B$88,25,0)))))))/100)+((IF(T32=[3]Datos!$B$83,0,IF(T32=[3]Datos!$B$84,5,IF(T32=[3]Datos!$B$85,10,IF(T32=[3]Datos!$B$86,15,IF(T32=[3]Datos!$B$87,20,IF(T32=[3]Datos!$B$88,25,0)))))))/100)+((IF(U32=[3]Datos!$B$83,0,IF(U32=[3]Datos!$B$84,5,IF(U32=[3]Datos!$B$85,10,IF(U32=[3]Datos!$B$86,15,IF(U32=[3]Datos!$B$87,20,IF(U32=[3]Datos!$B$88,25,0)))))))/100) -> 0.95
E33: Suministro de información de forma incompleta o fuera de los tiempos establecidos por parte de las dependencias o falencias en la documentación necesaria para la presentación ante entes externos. | G33: Externo | K33: Perdida de confianza por parte de la comunidad universitaria y comunidad en general. | O33: Seguimiento permanente a la situación del plan de mejoramiento institucional para evidenciar el logro de las actividades propuestas . | P33: Manual | Q33: Preventivo | R33: Alto - 25 | S33: Medio Alto - 20 | T33: Medio - 15 | U33: Medio Alto - 20 | V33: =((IF(R33=[3]Datos!$B$83,0,IF(R33=[3]Datos!$B$84,5,IF(R33=[3]Datos!$B$85,10,IF(R33=[3]Datos!$B$86,15,IF(R33=[3]Datos!$B$87,20,IF(R33=[3]Datos!$B$88,25,0)))))))/100)+((IF(S33=[3]Datos!$B$83,0,IF(S33=[3]Datos!$B$84,5,IF(S33=[3]Datos!$B$85,10,IF(S33=[3]Datos!$B$86,15,IF(S33=[3]Datos!$B$87,20,IF(S33=[3]Datos!$B$88,25,0)))))))/100)+((IF(T33=[3]Datos!$B$83,0,IF(T33=[3]Datos!$B$84,5,IF(T33=[3]Datos!$B$85,10,IF(T33=[3]Datos!$B$86,15,IF(T33=[3]Datos!$B$87,20,IF(T33=[3]Datos!$B$88,25,0)))))))/100)+((IF(U33=[3]Datos!$B$83,0,IF(U33=[3]Datos!$B$84,5,IF(U33=[3]Datos!$B$85,10,IF(U33=[3]Datos!$B$86,15,IF(U33=[3]Datos!$B$87,20,IF(U33=[3]Datos!$B$88,25,0)))))))/100) -> 0.8
E34: Baja credibilidad en los procesos de aseguramiento de calidad académica (Acreditación Institucional de Alta Calidad). | G34: Externo | K34: Disminución de recursos por parte del estado. | V34: =((IF(R34=[3]Datos!$B$83,0,IF(R34=[3]Datos!$B$84,5,IF(R34=[3]Datos!$B$85,10,IF(R34=[3]Datos!$B$86,15,IF(R34=[3]Datos!$B$87,20,IF(R34=[3]Datos!$B$88,25,0)))))))/100)+((IF(S34=[3]Datos!$B$83,0,IF(S34=[3]Datos!$B$84,5,IF(S34=[3]Datos!$B$85,10,IF(S34=[3]Datos!$B$86,15,IF(S34=[3]Datos!$B$87,20,IF(S34=[3]Datos!$B$88,25,0)))))))/100)+((IF(T34=[3]Datos!$B$83,0,IF(T34=[3]Datos!$B$84,5,IF(T34=[3]Datos!$B$85,10,IF(T34=[3]Datos!$B$86,15,IF(T34=[3]Datos!$B$87,20,IF(T34=[3]Datos!$B$88,25,0)))))))/100)+((IF(U34=[3]Datos!$B$83,0,IF(U34=[3]Datos!$B$84,5,IF(U34=[3]Datos!$B$85,10,IF(U34=[3]Datos!$B$86,15,IF(U34=[3]Datos!$B$87,20,IF(U34=[3]Datos!$B$88,25,0)))))))/100) -> 0
E35: Deficiencias en el seguimiento a la ejecución del Plan de Mejoramiento Institucional. | G35: Interno | K35: Pérdida del posicionamiento académico en el ámbito nacional e internacional. | V35: =((IF(R35=[3]Datos!$B$83,0,IF(R35=[3]Datos!$B$84,5,IF(R35=[3]Datos!$B$85,10,IF(R35=[3]Datos!$B$86,15,IF(R35=[3]Datos!$B$87,20,IF(R35=[3]Datos!$B$88,25,0)))))))/100)+((IF(S35=[3]Datos!$B$83,0,IF(S35=[3]Datos!$B$84,5,IF(S35=[3]Datos!$B$85,10,IF(S35=[3]Datos!$B$86,15,IF(S35=[3]Datos!$B$87,20,IF(S35=[3]Datos!$B$88,25,0)))))))/100)+((IF(T35=[3]Datos!$B$83,0,IF(T35=[3]Datos!$B$84,5,IF(T35=[3]Datos!$B$85,10,IF(T35=[3]Datos!$B$86,15,IF(T35=[3]Datos!$B$87,20,IF(T35=[3]Datos!$B$88,25,0)))))))/100)+((IF(U35=[3]Datos!$B$83,0,IF(U35=[3]Datos!$B$84,5,IF(U35=[3]Datos!$B$85,10,IF(U35=[3]Datos!$B$86,15,IF(U35=[3]Datos!$B$87,20,IF(U35=[3]Datos!$B$88,25,0)))))))/100) -> 0
E36: Falta de recursos (presupuestales, tecnológicos, humano) para el cumplimiento de las actividades contempladas en el plan de mejoramiento institucional. | G36: Externo
E37: Incumplimiento por parte de la alta dirección de los compromisos derivados de la Acreditación Institucional. | G37: Externo
E38: Incumplimiento de los compromisos establecidos en el Plan de Mejoramiento Institucional. | G38: Externo
B40: ELABORÓ | D40: REVISÓ | E40: APROBÓ
B41: Nombre: Equipo SIGUD Cargo: N.A. Fecha: 20/09/2018 | D41: Nombre: Pilar Infante Cargo: Coordinadora Autoevaluación y Acreditación Fecha: 20/09/2018 | E41: Nombre: Pilar Infante Luna Cargo: Coordinadora Autoevaluación y Acreditación Fecha: 20/09/2018

Sheet AA-C
C2: MAPA INTEGRAL DE RIESGOS | E2: Código: GI-MG-001-FR-014
C3: Macroproceso: Direccionamiento Estratégico | E3: Versión: 02
C4: Proceso: Gestión Integrada | E4: Fecha de Aprobación: 29/10/2015
C6: Riesgos de Corrupción
B8: PROCESO | D8: OBJETIVO DEL PROCESO | E8: CONTEXTO ESTRATÉGICO | G8: RIESGO | H8: DEFINICIÓN | I8: CONSECUENCIAS | J8: CLASIFICACIÓN | M8: EVALUACIÓN DEL RIESGO
E9: CAUSAS | J9: PROBABILIDAD | K9: IMPACTO | L9: ZONA DE RIESGO | M9: CONTROLES | N9: TIPO DE CONTROL | O9: CRITERIOS PARA LA EVALUACIÓN / CRITERIO DE MEDICIÓN | V9: TOTAL | W9: PROBABILIDAD RESIDUAL | Y9: IMPACTO RESIDUAL | AA9: ZONA DE RIESGO RESIDUAL | AB9: ACCIONES ASOCIADAS AL CONTROL | AE9: MONITOREO Y REVISIÓN
O10: ¿Existen manuales, instructivos o procedimientos para el manejo del control? | P10: ¿Está(n) definido(s) el(los) responsable(s) de la ejecución del control y del seguimiento? | Q10: ¿El control es automático? | R10: ¿El control es manual? | S10: ¿La frecuencia de ejecución del control y seguimiento es adecuada? | T10: ¿Se cuenta con evidencias de la ejecución y seguimiento del control? | U10: ¿En el tiempo que lleva la herramienta ha demostrado ser efectiva? | W10: RIESGO CONTROLADO | X10: PROBABILIDAD | Y10: RIESGO CONTROLADO | Z10: IMPACTO | AB10: PERIODO DE EJECUCIÓN | AC10: ACCIONES | AD10: REGISTRO | AE10: FECHA | AF10: ACCIONES | AG10: RESPONSABLES | AH10: INDICADOR
B11: Autoevaluación y Acreditación | D11: Realizar de manera sistemática y permanente un análisis valorativo y autónomo que permita verificar el grado de cumplimiento de los objetivos institucionales. | E11: Saltos de conductos regulares definidos en los procedimientos y lineamientos para aprobación, revisión y registro en plataforma de documentación de los mismos. | G11: Manipulación o alteración de la información requerida para elaboracion de documentos relacionados con los procedimientos del proceso | H11: Manipulación o alteración de la información requerida para elaboración de documentos relacionados con los procedimientos del proceso | I11: Informes de autoevaluación que no reflejan a la realidad del proyecto curricular o la Institución. | J11: Posible - 3 | K11: Mayor - 10 | L11: ALTA 30 | M11: Verificación de información a partir de evidencias. | N11: Detectivo | O11: Sí - 15 | P11: Sí - 5 | Q11: No - 0 | R11: Sí - 10 | S11: Sí - 15 | T11: Sí - 10 | U11: Sí - 30 | V11: 0.85 | W11: 0 | X11: Posible - 3 | Y11: 0.85 | Z11: Moderado - 5 | AA11: MODERADA 15
E12: Plagio, copia o uso inadecuado de documentos de autoevaluación por parte de un programa diferente al que los elaboró. | I12: Generación de hallazgos por parte de los entes de control externos e internos, que potencialmente generen apertura de procesos de investigación. | M12: Verificación de información que radica ante los entes externos (MEN, CNA) por parte del jefe de la Unidad. | N12: Detectivo | O12: Sí - 15 | P12: Sí - 5 | Q12: No - 0 | R12: Sí - 10 | S12: Sí - 15 | T12: Sí - 10 | U12: Sí - 30 | V12: 0.85
E13: Manejo de información inapropiado por parte de funcionarios y/o contratistas. | I13: Pérdida de buena imagen institucional. | V13: 0
E14: Tráfico de influencias. | I14: Pérdida de los registros calificados y/o las acreditaciones de alta calidad. | V14: 0
V15: 0
V16: 0
B18: ELABORÓ | D18: REVISÓ | E18: APROBÓ
B19: Nombre: Equipo SIGUD Cargo: N.A. Fecha: 20/09/2018 | D19: Nombre: Pilar Infante Luna Cargo: Coordinadora Autoevaluación y Acreditación Fecha: 20/09/2018 | E19: Nombre: Pilar Infante Luna Cargo: Coordinadora Autoevaluación y Acreditación Fecha: 20/09/2018

Sheet SGC-GIN
C2: MAPA INTEGRAL DE RIESGOS | E2: Código: GI-MG-001-FR-014
C3: Macroproceso: Direccionamiento Estratégico | E3: Versión: 02
C4: Proceso: Gestión Integrada | E4: Fecha de Aprobación: 29/10/2015
C6: Subsistema de Gestión de Calidad (SGC)
B8: PROCESO | D8: OBJETIVO DEL PROCESO | E8: CONTEXTO ESTRATÉGICO | H8: RIESGO | I8: DESCRIPCIÓN | J8: TIPO DE RIESGO | K8: CONSECUENCIAS | L8: CLASIFICACIÓN | O8: EVALUACIÓN DEL RIESGO
E9: CAUSA O FUENTE | G9: CLASIFICACIÓN | L9: PROBABILIDAD | M9: IMPACTO | N9: ZONA DE RIESGO | O9: CONTROLES | P9: CONTROL AUTOMÁTICO O MANUAL | Q9: TIPO DE CONTROL | R9: NIVEL | V9: TOTAL NIVEL | W9: PROBABILIDAD RESIDUAL | Y9: IMPACTO RESIDUAL | AA9: ZONA DE RIESGO RESIDUAL | AB9: MANEJO DEL RIESGO
R10: Documentado | S10: Aplicación | T10: Efectivo | U10: Seguimiento, evaluación y mejora | W10: RIESGO CONTROLADO | X10: PROBABILIDAD | Y10: RIESGO CONTROLADO | Z10: IMPACTO
B11: =IF([4]Menú!$C$7="","-",[4]Menú!$C$7) -> Gestión Integrada | D11: Articular y fortalecer la Gestión de los subsistemas que integran el Sistema Integrado de Gestión, a través de un análisis sinérgico que permita establecer planes de Mejoramiento Continuo, contribuyendo al cumplimiento de los Objetivos Institucionales. | E11: Subsistemas con diferentes niveles de implementación. | G11: Interno | H11: No hay articulación entre los Subsistemas que integran el SIGUD | I11: Desinterés y falta de disposición para la realización de las Mesas de Trabajo, orientadas a la actualización de la documentación asociada a cada Proceso; así mismo, la no presencia por parte de los Gestores y/o Coordinadores en todo el proceso de Implmentación, actualización y mantenimiento de los Subsistemas. | J11: Operativos | K11: Dificultad en la actualización oportuna de la documentación y la gestión por Procesos. | L11: Probable - 4 | M11: Moderado - 3 | N11: =IF(AND(L11=[4]Datos!$B$65,M11=[4]Datos!$B$72),[4]Datos!$D$65,IF(AND(L11=[4]Datos!$B$65,M11=[4]Datos!$B$73),[4]Datos!$E$65,IF(AND(L11=[4]Datos!$B$65,M11=[4]Datos!$B$74),[4]Datos!$F$65,IF(AND(L11=[4]Datos!$B$65,M11=[4]Datos!$B$75),[4]Datos!$G$65,IF(AND(L11=[4]Datos!$B$65,M11=[4]Datos!$B$76),[4]Datos!$H$65,IF(AND(L11=[4]Datos!$B$66,M11=[4]Datos!$B$72),[4]Datos!$D$66,IF(AND(L11=[4]Datos!$B$66,M11=[4]Datos!$B$73),[4]Datos!$E$66,IF(AND(L11=[4]Datos!$B$66,M11=[4]Datos!$B$74),[4]Datos!$F$66,IF(AND(L11=[4]Datos!$B$66,M11=[4]Datos!$B$75),[4]Datos!$G$66,IF(AND(L11=[4]Datos!$B$66,M11=[4]Datos!$B$76),[4]Datos!$H$66,IF(AND(L11=[4]Datos!$B$67,M11=[4]Datos!$B$72),[4]Datos!$D$67,IF(AND(L11=[4]Datos!$B$67,M11=[4]Datos!$B$73),[4]Datos!$E$67,IF(AND(L11=[4]Datos!$B$67,M11=[4]Datos!$B$74),[4]Datos!$F$67,IF(AND(L11=[4]Datos!$B$67,M11=[4]Datos!$B$75),[4]Datos!$G$67,IF(AND(L11=[4]Datos!$B$67,M11=[4]Datos!$B$76),[4]Datos!$H$67,IF(AND(L11=[4]Datos!$B$68,M11=[4]Datos!$B$72),[4]Datos!$D$68,IF(AND(L11=[4]Datos!$B$68,M11=[4]Datos!$B$73),[4]Datos!$E$68,IF(AND(L11=[4]Datos!$B$68,M11=[4]Datos!$B$74),[4]Datos!$F$68,IF(AND(L11=[4]Datos!$B$68,M11=[4]Datos!$B$75),[4]Datos!$G$68,IF(AND(L11=[4]Datos!$B$68,M11=[4]Datos!$B$76),[4]Datos!$H$68,IF(AND(L11=[4]Datos!$B$69,M11=[4]Datos!$B$72),[4]Datos!$D$69,IF(AND(L11=[4]Datos!$B$69,M11=[4]Datos!$B$73),[4]Datos!$E$69,IF(AND(L11=[4]Datos!$B$69,M11=[4]Datos!$B$74),[4]Datos!$F$69,IF(AND(L11=[4]Datos!$B$69,M11=[4]Datos!$B$75),[4]Datos!$G$69,IF(AND(L11=[4]Datos!$B$69,M11=[4]Datos!$B$76),[4]Datos!$H$69,"-"))))))))))))))))))))))))) -> ALTA - IMPORTANTE 12 | O11: Fortalecer canales de comunicación que permitan la interacción entre Procesos a su vez entre Subsistemas que integran el SIGUD. | P11: Manual | Q11: Preventivo | R11: Medio Alto - 20 | S11: Medio Alto - 20 | T11: Medio Alto - 20 | U11: Medio Alto - 20 | V11: =((IF(R11=[4]Datos!$B$83,0,IF(R11=[4]Datos!$B$84,5,IF(R11=[4]Datos!$B$85,10,IF(R11=[4]Datos!$B$86,15,IF(R11=[4]Datos!$B$87,20,IF(R11=[4]Datos!$B$88,25,0)))))))/100)+((IF(S11=[4]Datos!$B$83,0,IF(S11=[4]Datos!$B$84,5,IF(S11=[4]Datos!$B$85,10,IF(S11=[4]Datos!$B$86,15,IF(S11=[4]Datos!$B$87,20,IF(S11=[4]Datos!$B$88,25,0)))))))/100)+((IF(T11=[4]Datos!$B$83,0,IF(T11=[4]Datos!$B$84,5,IF(T11=[4]Datos!$B$85,10,IF(T11=[4]Datos!$B$86,15,IF(T11=[4]Datos!$B$87,20,IF(T11=[4]Datos!$B$88,25,0)))))))/100)+((IF(U11=[4]Datos!$B$83,0,IF(U11=[4]Datos!$B$84,5,IF(U11=[4]Datos!$B$85,10,IF(U11=[4]Datos!$B$86,15,IF(U11=[4]Datos!$B$87,20,IF(U11=[4]Datos!$B$88,25,0)))))))/100) -> 0.8 | W11: =IF(ISERROR((IF(Q11=[4]Datos!$B$80,V11,0)+IF(Q12=[4]Datos!$B$80,V12,0)+IF(Q13=[4]Datos!$B$80,V13,0)+IF(Q14=[4]Datos!$B$80,V14,0)+IF(Q15=[4]Datos!$B$80,V15,0)+IF(Q16=[4]Datos!$B$80,V16,0))/(IF(Q11=[4]Datos!$B$80,1,0)+IF(Q12=[4]Datos!$B$80,1,0)+IF(Q13=[4]Datos!$B$80,1,0)+IF(Q14=[4]Datos!$B$80,1,0)+IF(Q15=[4]Datos!$B$80,1,0)+IF(Q16=[4]Datos!$B$80,1,0))),0,(IF(Q11=[4]Datos!$B$80,V11,0)+IF(Q12=[4]Datos!$B$80,V12,0)+IF(Q13=[4]Datos!$B$80,V13,0)+IF(Q14=[4]Datos!$B$80,V14,0)+IF(Q15=[4]Datos!$B$80,V15,0)+IF(Q16=[4]Datos!$B$80,V16,0))/(IF(Q11=[4]Datos!$B$80,1,0)+IF(Q12=[4]Datos!$B$80,1,0)+IF(Q13=[4]Datos!$B$80,1,0)+IF(Q14=[4]Datos!$B$80,1,0)+IF(Q15=[4]Datos!$B$80,1,0)+IF(Q16=[4]Datos!$B$80,1,0))) -> 0.55 | X11: =IF(L11="","-",(IF(W11>0,(IF(L11=[4]Datos!$B$65,[4]Datos!$B$65,IF(AND(L11=[4]Datos!$B$66,W11>0.49),[4]Datos!$B$65,IF(AND(L11=[4]Datos!$B$67,W11>0.74),[4]Datos!$B$65,IF(AND(L11=[4]Datos!$B$67,W11<0.75,W11>0.49),[4]Datos!$B$66,IF(AND(L11=[4]Datos!$B$68,W11>0.74),[4]Datos!$B$66,IF(AND(L11=[4]Datos!$B$68,W11<0.75,W11>0.49),[4]Datos!$B$67,IF(AND(L11=[4]Datos!$B$69,W11>0.74),[4]Datos!$B$67,IF(AND(L11=[4]Datos!$B$69,W11<0.75,W11>0.49),[4]Datos!$B$68,L11))))))))),L11))) -> Posible - 3 | Y11: =IF(ISERROR((IF(Q11=[4]Datos!$B$79,V11,0)+IF(Q12=[4]Datos!$B$79,V12,0)+IF(Q13=[4]Datos!$B$79,V13,0)+IF(Q14=[4]Datos!$B$79,V14,0)+IF(Q15=[4]Datos!$B$79,V15,0)+IF(Q16=[4]Datos!$B$79,V16,0))/(IF(Q11=[4]Datos!$B$79,1,0)+IF(Q12=[4]Datos!$B$79,1,0)+IF(Q13=[4]Datos!$B$79,1,0)+IF(Q14=[4]Datos!$B$79,1,0)+IF(Q15=[4]Datos!$B$79,1,0)+IF(Q16=[4]Datos!$B$79,1,0))),0,(IF(Q11=[4]Datos!$B$79,V11,0)+IF(Q12=[4]Datos!$B$79,V12,0)+IF(Q13=[4]Datos!$B$79,V13,0)+IF(Q14=[4]Datos!$B$79,V14,0)+IF(Q15=[4]Datos!$B$79,V15,0)+IF(Q16=[4]Datos!$B$79,V16,0))/(IF(Q11=[4]Datos!$B$79,1,0)+IF(Q12=[4]Datos!$B$79,1,0)+IF(Q13=[4]Datos!$B$79,1,0)+IF(Q14=[4]Datos!$B$79,1,0)+IF(Q15=[4]Datos!$B$79,1,0)+IF(Q16=[4]Datos!$B$79,1,0))) -> 0.25 | Z11: =IF(M11="","-",(IF(Y11>0,(IF(M11=[4]Datos!$B$72,[4]Datos!$B$72,IF(AND(M11=[4]Datos!$B$73,Y11>0.49),[4]Datos!$B$72,IF(AND(M11=[4]Datos!$B$74,Y11>0.74),[4]Datos!$B$72,IF(AND(M11=[4]Datos!$B$74,Y11<0.75,Y11>0.49),[4]Datos!$B$73,IF(AND(M11=[4]Datos!$B$75,Y11>0.74),[4]Datos!$B$73,IF(AND(M11=[4]Datos!$B$75,Y11<0.75,Y11>0.49),[4]Datos!$B$74,IF(AND(M11=[4]Datos!$B$76,Y11>0.74),[4]Datos!$B$74,IF(AND(M11=[4]Datos!$B$76,Y11<0.75,Y11>0.49),[4]Datos!$B$75,M11))))))))),M11))) -> Moderado - 3 | AA11: =IF(AND(X11=[4]Datos!$B$65,Z11=[4]Datos!$B$72),[4]Datos!$D$65,IF(AND(X11=[4]Datos!$B$65,Z11=[4]Datos!$B$73),[4]Datos!$E$65,IF(AND(X11=[4]Datos!$B$65,Z11=[4]Datos!$B$74),[4]Datos!$F$65,IF(AND(X11=[4]Datos!$B$65,Z11=[4]Datos!$B$75),[4]Datos!$G$65,IF(AND(X11=[4]Datos!$B$65,Z11=[4]Datos!$B$76),[4]Datos!$H$65,IF(AND(X11=[4]Datos!$B$66,Z11=[4]Datos!$B$72),[4]Datos!$D$66,IF(AND(X11=[4]Datos!$B$66,Z11=[4]Datos!$B$73),[4]Datos!$E$66,IF(AND(X11=[4]Datos!$B$66,Z11=[4]Datos!$B$74),[4]Datos!$F$66,IF(AND(X11=[4]Datos!$B$66,Z11=[4]Datos!$B$75),[4]Datos!$G$66,IF(AND(X11=[4]Datos!$B$66,Z11=[4]Datos!$B$76),[4]Datos!$H$66,IF(AND(X11=[4]Datos!$B$67,Z11=[4]Datos!$B$72),[4]Datos!$D$67,IF(AND(X11=[4]Datos!$B$67,Z11=[4]Datos!$B$73),[4]Datos!$E$67,IF(AND(X11=[4]Datos!$B$67,Z11=[4]Datos!$B$74),[4]Datos!$F$67,IF(AND(X11=[4]Datos!$B$67,Z11=[4]Datos!$B$75),[4]Datos!$G$67,IF(AND(X11=[4]Datos!$B$67,Z11=[4]Datos!$B$76),[4]Datos!$H$67,IF(AND(X11=[4]Datos!$B$68,Z11=[4]Datos!$B$72),[4]Datos!$D$68,IF(AND(X11=[4]Datos!$B$68,Z11=[4]Datos!$B$73),[4]Datos!$E$68,IF(AND(X11=[4]Datos!$B$68,Z11=[4]Datos!$B$74),[4]Datos!$F$68,IF(AND(X11=[4]Datos!$B$68,Z11=[4]Datos!$B$75),[4]Datos!$G$68,IF(AND(X11=[4]Datos!$B$68,Z11=[4]Datos!$B$76),[4]Datos!$H$68,IF(AND(X11=[4]Datos!$B$69,Z11=[4]Datos!$B$72),[4]Datos!$D$69,IF(AND(X11=[4]Datos!$B$69,Z11=[4]Datos!$B$73),[4]Datos!$E$69,IF(AND(X11=[4]Datos!$B$69,Z11=[4]Datos!$B$74),[4]Datos!$F$69,IF(AND(X11=[4]Datos!$B$69,Z11=[4]Datos!$B$75),[4]Datos!$G$69,IF(AND(X11=[4]Datos!$B$69,Z11=[4]Datos!$B$76),[4]Datos!$H$69,"-"))))))))))))))))))))))))) -> ALTA - IMPORTANTE 9 | AB11: Asumir (AS)
E12: Insuficientes instrumentos de seguimiento y control en la implementación de cada subsistema. | G12: Interno | K12: Gestión inadecuada para la Implementación del Modelo de Operación por Procesos. | O12: Realizar Auditorias Internas de Calidad. | P12: Manual | Q12: Correctivo | R12: Alto - 25 | S12: Nulo - 0 | T12: Nulo - 0 | U12: Nulo - 0 | V12: =((IF(R12=[4]Datos!$B$83,0,IF(R12=[4]Datos!$B$84,5,IF(R12=[4]Datos!$B$85,10,IF(R12=[4]Datos!$B$86,15,IF(R12=[4]Datos!$B$87,20,IF(R12=[4]Datos!$B$88,25,0)))))))/100)+((IF(S12=[4]Datos!$B$83,0,IF(S12=[4]Datos!$B$84,5,IF(S12=[4]Datos!$B$85,10,IF(S12=[4]Datos!$B$86,15,IF(S12=[4]Datos!$B$87,20,IF(S12=[4]Datos!$B$88,25,0)))))))/100)+((IF(T12=[4]Datos!$B$83,0,IF(T12=[4]Datos!$B$84,5,IF(T12=[4]Datos!$B$85,10,IF(T12=[4]Datos!$B$86,15,IF(T12=[4]Datos!$B$87,20,IF(T12=[4]Datos!$B$88,25,0)))))))/100)+((IF(U12=[4]Datos!$B$83,0,IF(U12=[4]Datos!$B$84,5,IF(U12=[4]Datos!$B$85,10,IF(U12=[4]Datos!$B$86,15,IF(U12=[4]Datos!$B$87,20,IF(U12=[4]Datos!$B$88,25,0)))))))/100) -> 0.25
E13: Falta de alineación conceptual con los Gestores de Procesos. | G13: Interno | K13: Pérdida de recursos. | O13: Realizar Revisión por la Dirección. | P13: Manual | Q13: Preventivo | R13: Medio - 15 | S13: Bajo - 5 | T13: Bajo - 5 | U13: Bajo - 5 | V13: =((IF(R13=[4]Datos!$B$83,0,IF(R13=[4]Datos!$B$84,5,IF(R13=[4]Datos!$B$85,10,IF(R13=[4]Datos!$B$86,15,IF(R13=[4]Datos!$B$87,20,IF(R13=[4]Datos!$B$88,25,0)))))))/100)+((IF(S13=[4]Datos!$B$83,0,IF(S13=[4]Datos!$B$84,5,IF(S13=[4]Datos!$B$85,10,IF(S13=[4]Datos!$B$86,15,IF(S13=[4]Datos!$B$87,20,IF(S13=[4]Datos!$B$88,25,0)))))))/100)+((IF(T13=[4]Datos!$B$83,0,IF(T13=[4]Datos!$B$84,5,IF(T13=[4]Datos!$B$85,10,IF(T13=[4]Datos!$B$86,15,IF(T13=[4]Datos!$B$87,20,IF(T13=[4]Datos!$B$88,25,0)))))))/100)+((IF(U13=[4]Datos!$B$83,0,IF(U13=[4]Datos!$B$84,5,IF(U13=[4]Datos!$B$85,10,IF(U13=[4]Datos!$B$86,15,IF(U13=[4]Datos!$B$87,20,IF(U13=[4]Datos!$B$88,25,0)))))))/100) -> 0.3
E14: Falta de apropiación por parte de los Lideres y Gestores de Procesos. | G14: Externo | K14: Reprocesos. | V14: =((IF(R14=[4]Datos!$B$83,0,IF(R14=[4]Datos!$B$84,5,IF(R14=[4]Datos!$B$85,10,IF(R14=[4]Datos!$B$86,15,IF(R14=[4]Datos!$B$87,20,IF(R14=[4]Datos!$B$88,25,0)))))))/100)+((IF(S14=[4]Datos!$B$83,0,IF(S14=[4]Datos!$B$84,5,IF(S14=[4]Datos!$B$85,10,IF(S14=[4]Datos!$B$86,15,IF(S14=[4]Datos!$B$87,20,IF(S14=[4]Datos!$B$88,25,0)))))))/100)+((IF(T14=[4]Datos!$B$83,0,IF(T14=[4]Datos!$B$84,5,IF(T14=[4]Datos!$B$85,10,IF(T14=[4]Datos!$B$86,15,IF(T14=[4]Datos!$B$87,20,IF(T14=[4]Datos!$B$88,25,0)))))))/100)+((IF(U14=[4]Datos!$B$83,0,IF(U14=[4]Datos!$B$84,5,IF(U14=[4]Datos!$B$85,10,IF(U14=[4]Datos!$B$86,15,IF(U14=[4]Datos!$B$87,20,IF(U14=[4]Datos!$B$88,25,0)))))))/100) -> 0
E15: Desarticulación de los Coordinadores y Gestores de los diferentes Subsistemas de la Universidad. | G15: Interno | K15: Incumplimiento de requisitos normativos. | V15: =((IF(R15=[4]Datos!$B$83,0,IF(R15=[4]Datos!$B$84,5,IF(R15=[4]Datos!$B$85,10,IF(R15=[4]Datos!$B$86,15,IF(R15=[4]Datos!$B$87,20,IF(R15=[4]Datos!$B$88,25,0)))))))/100)+((IF(S15=[4]Datos!$B$83,0,IF(S15=[4]Datos!$B$84,5,IF(S15=[4]Datos!$B$85,10,IF(S15=[4]Datos!$B$86,15,IF(S15=[4]Datos!$B$87,20,IF(S15=[4]Datos!$B$88,25,0)))))))/100)+((IF(T15=[4]Datos!$B$83,0,IF(T15=[4]Datos!$B$84,5,IF(T15=[4]Datos!$B$85,10,IF(T15=[4]Datos!$B$86,15,IF(T15=[4]Datos!$B$87,20,IF(T15=[4]Datos!$B$88,25,0)))))))/100)+((IF(U15=[4]Datos!$B$83,0,IF(U15=[4]Datos!$B$84,5,IF(U15=[4]Datos!$B$85,10,IF(U15=[4]Datos!$B$86,15,IF(U15=[4]Datos!$B$87,20,IF(U15=[4]Datos!$B$88,25,0)))))))/100) -> 0
V16: =((IF(R16=[4]Datos!$B$83,0,IF(R16=[4]Datos!$B$84,5,IF(R16=[4]Datos!$B$85,10,IF(R16=[4]Datos!$B$86,15,IF(R16=[4]Datos!$B$87,20,IF(R16=[4]Datos!$B$88,25,0)))))))/100)+((IF(S16=[4]Datos!$B$83,0,IF(S16=[4]Datos!$B$84,5,IF(S16=[4]Datos!$B$85,10,IF(S16=[4]Datos!$B$86,15,IF(S16=[4]Datos!$B$87,20,IF(S16=[4]Datos!$B$88,25,0)))))))/100)+((IF(T16=[4]Datos!$B$83,0,IF(T16=[4]Datos!$B$84,5,IF(T16=[4]Datos!$B$85,10,IF(T16=[4]Datos!$B$86,15,IF(T16=[4]Datos!$B$87,20,IF(T16=[4]Datos!$B$88,25,0)))))))/100)+((IF(U16=[4]Datos!$B$83,0,IF(U16=[4]Datos!$B$84,5,IF(U16=[4]Datos!$B$85,10,IF(U16=[4]Datos!$B$86,15,IF(U16=[4]Datos!$B$87,20,IF(U16=[4]Datos!$B$88,25,0)))))))/100) -> 0
B17: =IF([4]Menú!$C$7="","-",[4]Menú!$C$7) -> Gestión Integrada | D17: Articular y fortalecer la Gestión de los subsistemas que integran el Sistema Integrado de Gestión, a través de un análisis sinérgico que permita establecer planes de Mejoramiento Continuo, contribuyendo al cumplimiento de los Objetivos Institucionales. | E17: Presupuesto de la UD insuficiente para atender la totalidad de las necesidades. | G17: Externo | H17: Recursos limitados para el desarrollo de Estrategias institucionales que promuevan una cultura de calidad en la Universidad. | I17: Asignación de Recursos insuficiente para el desarrollo de estrategias que influyan en la promoción de una cultura de calidad . | J17: Operativos | K17: Desgaste administrativo. | L17: Probable - 4 | M17: Mayor - 4 | N17: =IF(AND(L17=[4]Datos!$B$65,M17=[4]Datos!$B$72),[4]Datos!$D$65,IF(AND(L17=[4]Datos!$B$65,M17=[4]Datos!$B$73),[4]Datos!$E$65,IF(AND(L17=[4]Datos!$B$65,M17=[4]Datos!$B$74),[4]Datos!$F$65,IF(AND(L17=[4]Datos!$B$65,M17=[4]Datos!$B$75),[4]Datos!$G$65,IF(AND(L17=[4]Datos!$B$65,M17=[4]Datos!$B$76),[4]Datos!$H$65,IF(AND(L17=[4]Datos!$B$66,M17=[4]Datos!$B$72),[4]Datos!$D$66,IF(AND(L17=[4]Datos!$B$66,M17=[4]Datos!$B$73),[4]Datos!$E$66,IF(AND(L17=[4]Datos!$B$66,M17=[4]Datos!$B$74),[4]Datos!$F$66,IF(AND(L17=[4]Datos!$B$66,M17=[4]Datos!$B$75),[4]Datos!$G$66,IF(AND(L17=[4]Datos!$B$66,M17=[4]Datos!$B$76),[4]Datos!$H$66,IF(AND(L17=[4]Datos!$B$67,M17=[4]Datos!$B$72),[4]Datos!$D$67,IF(AND(L17=[4]Datos!$B$67,M17=[4]Datos!$B$73),[4]Datos!$E$67,IF(AND(L17=[4]Datos!$B$67,M17=[4]Datos!$B$74),[4]Datos!$F$67,IF(AND(L17=[4]Datos!$B$67,M17=[4]Datos!$B$75),[4]Datos!$G$67,IF(AND(L17=[4]Datos!$B$67,M17=[4]Datos!$B$76),[4]Datos!$H$67,IF(AND(L17=[4]Datos!$B$68,M17=[4]Datos!$B$72),[4]Datos!$D$68,IF(AND(L17=[4]Datos!$B$68,M17=[4]Datos!$B$73),[4]Datos!$E$68,IF(AND(L17=[4]Datos!$B$68,M17=[4]Datos!$B$74),[4]Datos!$F$68,IF(AND(L17=[4]Datos!$B$68,M17=[4]Datos!$B$75),[4]Datos!$G$68,IF(AND(L17=[4]Datos!$B$68,M17=[4]Datos!$B$76),[4]Datos!$H$68,IF(AND(L17=[4]Datos!$B$69,M17=[4]Datos!$B$72),[4]Datos!$D$69,IF(AND(L17=[4]Datos!$B$69,M17=[4]Datos!$B$73),[4]Datos!$E$69,IF(AND(L17=[4]Datos!$B$69,M17=[4]Datos!$B$74),[4]Datos!$F$69,IF(AND(L17=[4]Datos!$B$69,M17=[4]Datos!$B$75),[4]Datos!$G$69,IF(AND(L17=[4]Datos!$B$69,M17=[4]Datos!$B$76),[4]Datos!$H$69,"-"))))))))))))))))))))))))) -> CATASTRÓFICO – INACEPTABLE 16 | O17: Socializar con la comunidad universitaria el estado de la implementación del SIGUD. | P17: Manual | Q17: Preventivo | R17: Alto - 25 | S17: Medio Alto - 20 | T17: Medio Alto - 20 | U17: Medio Alto - 20 | V17: =((IF(R17=[4]Datos!$B$83,0,IF(R17=[4]Datos!$B$84,5,IF(R17=[4]Datos!$B$85,10,IF(R17=[4]Datos!$B$86,15,IF(R17=[4]Datos!$B$87,20,IF(R17=[4]Datos!$B$88,25,0)))))))/100)+((IF(S17=[4]Datos!$B$83,0,IF(S17=[4]Datos!$B$84,5,IF(S17=[4]Datos!$B$85,10,IF(S17=[4]Datos!$B$86,15,IF(S17=[4]Datos!$B$87,20,IF(S17=[4]Datos!$B$88,25,0)))))))/100)+((IF(T17=[4]Datos!$B$83,0,IF(T17=[4]Datos!$B$84,5,IF(T17=[4]Datos!$B$85,10,IF(T17=[4]Datos!$B$86,15,IF(T17=[4]Datos!$B$87,20,IF(T17=[4]Datos!$B$88,25,0)))))))/100)+((IF(U17=[4]Datos!$B$83,0,IF(U17=[4]Datos!$B$84,5,IF(U17=[4]Datos!$B$85,10,IF(U17=[4]Datos!$B$86,15,IF(U17=[4]Datos!$B$87,20,IF(U17=[4]Datos!$B$88,25,0)))))))/100) -> 0.85 | W17: =IF(ISERROR((IF(Q17=[4]Datos!$B$80,V17,0)+IF(Q18=[4]Datos!$B$80,V18,0)+IF(Q19=[4]Datos!$B$80,V19,0)+IF(Q20=[4]Datos!$B$80,V20,0)+IF(Q21=[4]Datos!$B$80,V21,0)+IF(Q22=[4]Datos!$B$80,V22,0))/(IF(Q17=[4]Datos!$B$80,1,0)+IF(Q18=[4]Datos!$B$80,1,0)+IF(Q19=[4]Datos!$B$80,1,0)+IF(Q20=[4]Datos!$B$80,1,0)+IF(Q21=[4]Datos!$B$80,1,0)+IF(Q22=[4]Datos!$B$80,1,0))),0,(IF(Q17=[4]Datos!$B$80,V17,0)+IF(Q18=[4]Datos!$B$80,V18,0)+IF(Q19=[4]Datos!$B$80,V19,0)+IF(Q20=[4]Datos!$B$80,V20,0)+IF(Q21=[4]Datos!$B$80,V21,0)+IF(Q22=[4]Datos!$B$80,V22,0))/(IF(Q17=[4]Datos!$B$80,1,0)+IF(Q18=[4]Datos!$B$80,1,0)+IF(Q19=[4]Datos!$B$80,1,0)+IF(Q20=[4]Datos!$B$80,1,0)+IF(Q21=[4]Datos!$B$80,1,0)+IF(Q22=[4]Datos!$B$80,1,0))) -> 0.875 | X17: =IF(L17="","-",(IF(W17>0,(IF(L17=[4]Datos!$B$65,[4]Datos!$B$65,IF(AND(L17=[4]Datos!$B$66,W17>0.49),[4]Datos!$B$65,IF(AND(L17=[4]Datos!$B$67,W17>0.74),[4]Datos!$B$65,IF(AND(L17=[4]Datos!$B$67,W17<0.75,W17>0.49),[4]Datos!$B$66,IF(AND(L17=[4]Datos!$B$68,W17>0.74),[4]Datos!$B$66,IF(AND(L17=[4]Datos!$B$68,W17<0.75,W17>0.49),[4]Datos!$B$67,IF(AND(L17=[4]Datos!$B$69,W17>0.74),[4]Datos!$B$67,IF(AND(L17=[4]Datos!$B$69,W17<0.75,W17>0.49),[4]Datos!$B$68,L17))))))))),L17))) -> Improbable - 2 | Y17: =IF(ISERROR((IF(Q17=[4]Datos!$B$79,V17,0)+IF(Q18=[4]Datos!$B$79,V18,0)+IF(Q19=[4]Datos!$B$79,V19,0)+IF(Q20=[4]Datos!$B$79,V20,0)+IF(Q21=[4]Datos!$B$79,V21,0)+IF(Q22=[4]Datos!$B$79,V22,0))/(IF(Q17=[4]Datos!$B$79,1,0)+IF(Q18=[4]Datos!$B$79,1,0)+IF(Q19=[4]Datos!$B$79,1,0)+IF(Q20=[4]Datos!$B$79,1,0)+IF(Q21=[4]Datos!$B$79,1,0)+IF(Q22=[4]Datos!$B$79,1,0))),0,(IF(Q17=[4]Datos!$B$79,V17,0)+IF(Q18=[4]Datos!$B$79,V18,0)+IF(Q19=[4]Datos!$B$79,V19,0)+IF(Q20=[4]Datos!$B$79,V20,0)+IF(Q21=[4]Datos!$B$79,V21,0)+IF(Q22=[4]Datos!$B$79,V22,0))/(IF(Q17=[4]Datos!$B$79,1,0)+IF(Q18=[4]Datos!$B$79,1,0)+IF(Q19=[4]Datos!$B$79,1,0)+IF(Q20=[4]Datos!$B$79,1,0)+IF(Q21=[4]Datos!$B$79,1,0)+IF(Q22=[4]Datos!$B$79,1,0))) -> 0.35 | Z17: =IF(M17="","-",(IF(Y17>0,(IF(M17=[4]Datos!$B$72,[4]Datos!$B$72,IF(AND(M17=[4]Datos!$B$73,Y17>0.49),[4]Datos!$B$72,IF(AND(M17=[4]Datos!$B$74,Y17>0.74),[4]Datos!$B$72,IF(AND(M17=[4]Datos!$B$74,Y17<0.75,Y17>0.49),[4]Datos!$B$73,IF(AND(M17=[4]Datos!$B$75,Y17>0.74),[4]Datos!$B$73,IF(AND(M17=[4]Datos!$B$75,Y17<0.75,Y17>0.49),[4]Datos!$B$74,IF(AND(M17=[4]Datos!$B$76,Y17>0.74),[4]Datos!$B$74,IF(AND(M17=[4]Datos!$B$76,Y17<0.75,Y17>0.49),[4]Datos!$B$75,M17))))))))),M17))) -> Mayor - 4 | AA17: =IF(AND(X17=[4]Datos!$B$65,Z17=[4]Datos!$B$72),[4]Datos!$D$65,IF(AND(X17=[4]Datos!$B$65,Z17=[4]Datos!$B$73),[4]Datos!$E$65,IF(AND(X17=[4]Datos!$B$65,Z17=[4]Datos!$B$74),[4]Datos!$F$65,IF(AND(X17=[4]Datos!$B$65,Z17=[4]Datos!$B$75),[4]Datos!$G$65,IF(AND(X17=[4]Datos!$B$65,Z17=[4]Datos!$B$76),[4]Datos!$H$65,IF(AND(X17=[4]Datos!$B$66,Z17=[4]Datos!$B$72),[4]Datos!$D$66,IF(AND(X17=[4]Datos!$B$66,Z17=[4]Datos!$B$73),[4]Datos!$E$66,IF(AND(X17=[4]Datos!$B$66,Z17=[4]Datos!$B$74),[4]Datos!$F$66,IF(AND(X17=[4]Datos!$B$66,Z17=[4]Datos!$B$75),[4]Datos!$G$66,IF(AND(X17=[4]Datos!$B$66,Z17=[4]Datos!$B$76),[4]Datos!$H$66,IF(AND(X17=[4]Datos!$B$67,Z17=[4]Datos!$B$72),[4]Datos!$D$67,IF(AND(X17=[4]Datos!$B$67,Z17=[4]Datos!$B$73),[4]Datos!$E$67,IF(AND(X17=[4]Datos!$B$67,Z17=[4]Datos!$B$74),[4]Datos!$F$67,IF(AND(X17=[4]Datos!$B$67,Z17=[4]Datos!$B$75),[4]Datos!$G$67,IF(AND(X17=[4]Datos!$B$67,Z17=[4]Datos!$B$76),[4]Datos!$H$67,IF(AND(X17=[4]Datos!$B$68,Z17=[4]Datos!$B$72),[4]Datos!$D$68,IF(AND(X17=[4]Datos!$B$68,Z17=[4]Datos!$B$73),[4]Datos!$E$68,IF(AND(X17=[4]Datos!$B$68,Z17=[4]Datos!$B$74),[4]Datos!$F$68,IF(AND(X17=[4]Datos!$B$68,Z17=[4]Datos!$B$75),[4]Datos!$G$68,IF(AND(X17=[4]Datos!$B$68,Z17=[4]Datos!$B$76),[4]Datos!$H$68,IF(AND(X17=[4]Datos!$B$69,Z17=[4]Datos!$B$72),[4]Datos!$D$69,IF(AND(X17=[4]Datos!$B$69,Z17=[4]Datos!$B$73),[4]Datos!$E$69,IF(AND(X17=[4]Datos!$B$69,Z17=[4]Datos!$B$74),[4]Datos!$F$69,IF(AND(X17=[4]Datos!$B$69,Z17=[4]Datos!$B$75),[4]Datos!$G$69,IF(AND(X17=[4]Datos!$B$69,Z17=[4]Datos!$B$76),[4]Datos!$H$69,"-"))))))))))))))))))))))))) -> ALTA-IMPORTANTE 8 | AB17: Reducir (RE)
E18: Déficit de espacios para el desarrollo de todas las actividades de promoción del SIGUD. | G18: Externo | K18: Deterioro de la imagen administrativa. | O18: Realizar Revisión por la Dirección. | P18: Manual | Q18: Correctivo | R18: Alto - 25 | S18: Nulo - 0 | T18: Bajo - 5 | U18: Bajo - 5 | V18: =((IF(R18=[4]Datos!$B$83,0,IF(R18=[4]Datos!$B$84,5,IF(R18=[4]Datos!$B$85,10,IF(R18=[4]Datos!$B$86,15,IF(R18=[4]Datos!$B$87,20,IF(R18=[4]Datos!$B$88,25,0)))))))/100)+((IF(S18=[4]Datos!$B$83,0,IF(S18=[4]Datos!$B$84,5,IF(S18=[4]Datos!$B$85,10,IF(S18=[4]Datos!$B$86,15,IF(S18=[4]Datos!$B$87,20,IF(S18=[4]Datos!$B$88,25,0)))))))/100)+((IF(T18=[4]Datos!$B$83,0,IF(T18=[4]Datos!$B$84,5,IF(T18=[4]Datos!$B$85,10,IF(T18=[4]Datos!$B$86,15,IF(T18=[4]Datos!$B$87,20,IF(T18=[4]Datos!$B$88,25,0)))))))/100)+((IF(U18=[4]Datos!$B$83,0,IF(U18=[4]Datos!$B$84,5,IF(U18=[4]Datos!$B$85,10,IF(U18=[4]Datos!$B$86,15,IF(U18=[4]Datos!$B$87,20,IF(U18=[4]Datos!$B$88,25,0)))))))/100) -> 0.35
E19: Falta de espacios para la socialización del SIGUD. | G19: Externo | K19: Perdida de credibilidad. | O19: Monitorear constantemente los cambios normativos y socializarlos conforme al Procedimiento GI-PR-002, Identificación y Evaluación de Requisitos Legales. | P19: Manual | Q19: Preventivo | R19: Alto - 25 | S19: Alto - 25 | T19: Medio Alto - 20 | U19: Medio Alto - 20 | V19: =((IF(R19=[4]Datos!$B$83,0,IF(R19=[4]Datos!$B$84,5,IF(R19=[4]Datos!$B$85,10,IF(R19=[4]Datos!$B$86,15,IF(R19=[4]Datos!$B$87,20,IF(R19=[4]Datos!$B$88,25,0)))))))/100)+((IF(S19=[4]Datos!$B$83,0,IF(S19=[4]Datos!$B$84,5,IF(S19=[4]Datos!$B$85,10,IF(S19=[4]Datos!$B$86,15,IF(S19=[4]Datos!$B$87,20,IF(S19=[4]Datos!$B$88,25,0)))))))/100)+((IF(T19=[4]Datos!$B$83,0,IF(T19=[4]Datos!$B$84,5,IF(T19=[4]Datos!$B$85,10,IF(T19=[4]Datos!$B$86,15,IF(T19=[4]Datos!$B$87,20,IF(T19=[4]Datos!$B$88,25,0)))))))/100)+((IF(U19=[4]Datos!$B$83,0,IF(U19=[4]Datos!$B$84,5,IF(U19=[4]Datos!$B$85,10,IF(U19=[4]Datos!$B$86,15,IF(U19=[4]Datos!$B$87,20,IF(U19=[4]Datos!$B$88,25,0)))))))/100) -> 0.9
V20: =((IF(R20=[4]Datos!$B$83,0,IF(R20=[4]Datos!$B$84,5,IF(R20=[4]Datos!$B$85,10,IF(R20=[4]Datos!$B$86,15,IF(R20=[4]Datos!$B$87,20,IF(R20=[4]Datos!$B$88,25,0)))))))/100)+((IF(S20=[4]Datos!$B$83,0,IF(S20=[4]Datos!$B$84,5,IF(S20=[4]Datos!$B$85,10,IF(S20=[4]Datos!$B$86,15,IF(S20=[4]Datos!$B$87,20,IF(S20=[4]Datos!$B$88,25,0)))))))/100)+((IF(T20=[4]Datos!$B$83,0,IF(T20=[4]Datos!$B$84,5,IF(T20=[4]Datos!$B$85,10,IF(T20=[4]Datos!$B$86,15,IF(T20=[4]Datos!$B$87,20,IF(T20=[4]Datos!$B$88,25,0)))))))/100)+((IF(U20=[4]Datos!$B$83,0,IF(U20=[4]Datos!$B$84,5,IF(U20=[4]Datos!$B$85,10,IF(U20=[4]Datos!$B$86,15,IF(U20=[4]Datos!$B$87,20,IF(U20=[4]Datos!$B$88,25,0)))))))/100) -> 0
V21: =((IF(R21=[4]Datos!$B$83,0,IF(R21=[4]Datos!$B$84,5,IF(R21=[4]Datos!$B$85,10,IF(R21=[4]Datos!$B$86,15,IF(R21=[4]Datos!$B$87,20,IF(R21=[4]Datos!$B$88,25,0)))))))/100)+((IF(S21=[4]Datos!$B$83,0,IF(S21=[4]Datos!$B$84,5,IF(S21=[4]Datos!$B$85,10,IF(S21=[4]Datos!$B$86,15,IF(S21=[4]Datos!$B$87,20,IF(S21=[4]Datos!$B$88,25,0)))))))/100)+((IF(T21=[4]Datos!$B$83,0,IF(T21=[4]Datos!$B$84,5,IF(T21=[4]Datos!$B$85,10,IF(T21=[4]Datos!$B$86,15,IF(T21=[4]Datos!$B$87,20,IF(T21=[4]Datos!$B$88,25,0)))))))/100)+((IF(U21=[4]Datos!$B$83,0,IF(U21=[4]Datos!$B$84,5,IF(U21=[4]Datos!$B$85,10,IF(U21=[4]Datos!$B$86,15,IF(U21=[4]Datos!$B$87,20,IF(U21=[4]Datos!$B$88,25,0)))))))/100) -> 0
V22: =((IF(R22=[4]Datos!$B$83,0,IF(R22=[4]Datos!$B$84,5,IF(R22=[4]Datos!$B$85,10,IF(R22=[4]Datos!$B$86,15,IF(R22=[4]Datos!$B$87,20,IF(R22=[4]Datos!$B$88,25,0)))))))/100)+((IF(S22=[4]Datos!$B$83,0,IF(S22=[4]Datos!$B$84,5,IF(S22=[4]Datos!$B$85,10,IF(S22=[4]Datos!$B$86,15,IF(S22=[4]Datos!$B$87,20,IF(S22=[4]Datos!$B$88,25,0)))))))/100)+((IF(T22=[4]Datos!$B$83,0,IF(T22=[4]Datos!$B$84,5,IF(T22=[4]Datos!$B$85,10,IF(T22=[4]Datos!$B$86,15,IF(T22=[4]Datos!$B$87,20,IF(T22=[4]Datos!$B$88,25,0)))))))/100)+((IF(U22=[4]Datos!$B$83,0,IF(U22=[4]Datos!$B$84,5,IF(U22=[4]Datos!$B$85,10,IF(U22=[4]Datos!$B$86,15,IF(U22=[4]Datos!$B$87,20,IF(U22=[4]Datos!$B$88,25,0)))))))/100) -> 0
B23: =IF([4]Menú!$C$7="","-",[4]Menú!$C$7) -> Gestión Integrada | D23: Articular y fortalecer la Gestión de los subsistemas que integran el Sistema Integrado de Gestión, a través de un análisis sinérgico que permita establecer planes de Mejoramiento Continuo, contribuyendo al cumplimiento de los Objetivos Institucionales. | E23: Rezago en la implementación y documentación de los Procesos. | G23: Interno | H23: Inexistencia de instrumentos de evaluación del desempeño del SIGUD que permitan la evaluación y mejora del desempeño del SIGUD | I23: Falta de canales de comunicación que permitan visibilizar el trabajo realizado para la implementación del SIGUD, y que a su vez facilite la retroalimentación para evaluar y mejorar el nivel de desempeño del Sistema Integrado de Gestión | J23: Operativos | K23: Dificultad en la toma de decisiones. | L23: Posible - 3 | M23: Moderado - 3 | N23: =IF(AND(L23=[4]Datos!$B$65,M23=[4]Datos!$B$72),[4]Datos!$D$65,IF(AND(L23=[4]Datos!$B$65,M23=[4]Datos!$B$73),[4]Datos!$E$65,IF(AND(L23=[4]Datos!$B$65,M23=[4]Datos!$B$74),[4]Datos!$F$65,IF(AND(L23=[4]Datos!$B$65,M23=[4]Datos!$B$75),[4]Datos!$G$65,IF(AND(L23=[4]Datos!$B$65,M23=[4]Datos!$B$76),[4]Datos!$H$65,IF(AND(L23=[4]Datos!$B$66,M23=[4]Datos!$B$72),[4]Datos!$D$66,IF(AND(L23=[4]Datos!$B$66,M23=[4]Datos!$B$73),[4]Datos!$E$66,IF(AND(L23=[4]Datos!$B$66,M23=[4]Datos!$B$74),[4]Datos!$F$66,IF(AND(L23=[4]Datos!$B$66,M23=[4]Datos!$B$75),[4]Datos!$G$66,IF(AND(L23=[4]Datos!$B$66,M23=[4]Datos!$B$76),[4]Datos!$H$66,IF(AND(L23=[4]Datos!$B$67,M23=[4]Datos!$B$72),[4]Datos!$D$67,IF(AND(L23=[4]Datos!$B$67,M23=[4]Datos!$B$73),[4]Datos!$E$67,IF(AND(L23=[4]Datos!$B$67,M23=[4]Datos!$B$74),[4]Datos!$F$67,IF(AND(L23=[4]Datos!$B$67,M23=[4]Datos!$B$75),[4]Datos!$G$67,IF(AND(L23=[4]Datos!$B$67,M23=[4]Datos!$B$76),[4]Datos!$H$67,IF(AND(L23=[4]Datos!$B$68,M23=[4]Datos!$B$72),[4]Datos!$D$68,IF(AND(L23=[4]Datos!$B$68,M23=[4]Datos!$B$73),[4]Datos!$E$68,IF(AND(L23=[4]Datos!$B$68,M23=[4]Datos!$B$74),[4]Datos!$F$68,IF(AND(L23=[4]Datos!$B$68,M23=[4]Datos!$B$75),[4]Datos!$G$68,IF(AND(L23=[4]Datos!$B$68,M23=[4]Datos!$B$76),[4]Datos!$H$68,IF(AND(L23=[4]Datos!$B$69,M23=[4]Datos!$B$72),[4]Datos!$D$69,IF(AND(L23=[4]Datos!$B$69,M23=[4]Datos!$B$73),[4]Datos!$E$69,IF(AND(L23=[4]Datos!$B$69,M23=[4]Datos!$B$74),[4]Datos!$F$69,IF(AND(L23=[4]Datos!$B$69,M23=[4]Datos!$B$75),[4]Datos!$G$69,IF(AND(L23=[4]Datos!$B$69,M23=[4]Datos!$B$76),[4]Datos!$H$69,"-"))))))))))))))))))))))))) -> ALTA - IMPORTANTE 9 | O23: Implementar Auditorias Internas de Calidad. | P23: Manual | Q23: Correctivo | R23: Alto - 25 | S23: Medio - 15 | T23: Medio Alto - 20 | U23: Alto - 25 | V23: =((IF(R23=[4]Datos!$B$83,0,IF(R23=[4]Datos!$B$84,5,IF(R23=[4]Datos!$B$85,10,IF(R23=[4]Datos!$B$86,15,IF(R23=[4]Datos!$B$87,20,IF(R23=[4]Datos!$B$88,25,0)))))))/100)+((IF(S23=[4]Datos!$B$83,0,IF(S23=[4]Datos!$B$84,5,IF(S23=[4]Datos!$B$85,10,IF(S23=[4]Datos!$B$86,15,IF(S23=[4]Datos!$B$87,20,IF(S23=[4]Datos!$B$88,25,0)))))))/100)+((IF(T23=[4]Datos!$B$83,0,IF(T23=[4]Datos!$B$84,5,IF(T23=[4]Datos!$B$85,10,IF(T23=[4]Datos!$B$86,15,IF(T23=[4]Datos!$B$87,20,IF(T23=[4]Datos!$B$88,25,0)))))))/100)+((IF(U23=[4]Datos!$B$83,0,IF(U23=[4]Datos!$B$84,5,IF(U23=[4]Datos!$B$85,10,IF(U23=[4]Datos!$B$86,15,IF(U23=[4]Datos!$B$87,20,IF(U23=[4]Datos!$B$88,25,0)))))))/100) -> 0.85 | W23: =IF(ISERROR((IF(Q23=[4]Datos!$B$80,V23,0)+IF(Q24=[4]Datos!$B$80,V24,0)+IF(Q25=[4]Datos!$B$80,V25,0)+IF(Q26=[4]Datos!$B$80,V26,0)+IF(Q27=[4]Datos!$B$80,V27,0)+IF(Q28=[4]Datos!$B$80,V28,0))/(IF(Q23=[4]Datos!$B$80,1,0)+IF(Q24=[4]Datos!$B$80,1,0)+IF(Q25=[4]Datos!$B$80,1,0)+IF(Q26=[4]Datos!$B$80,1,0)+IF(Q27=[4]Datos!$B$80,1,0)+IF(Q28=[4]Datos!$B$80,1,0))),0,(IF(Q23=[4]Datos!$B$80,V23,0)+IF(Q24=[4]Datos!$B$80,V24,0)+IF(Q25=[4]Datos!$B$80,V25,0)+IF(Q26=[4]Datos!$B$80,V26,0)+IF(Q27=[4]Datos!$B$80,V27,0)+IF(Q28=[4]Datos!$B$80,V28,0))/(IF(Q23=[4]Datos!$B$80,1,0)+IF(Q24=[4]Datos!$B$80,1,0)+IF(Q25=[4]Datos!$B$80,1,0)+IF(Q26=[4]Datos!$B$80,1,0)+IF(Q27=[4]Datos!$B$80,1,0)+IF(Q28=[4]Datos!$B$80,1,0))) -> 0.55 | X23: =IF(L23="","-",(IF(W23>0,(IF(L23=[4]Datos!$B$65,[4]Datos!$B$65,IF(AND(L23=[4]Datos!$B$66,W23>0.49),[4]Datos!$B$65,IF(AND(L23=[4]Datos!$B$67,W23>0.74),[4]Datos!$B$65,IF(AND(L23=[4]Datos!$B$67,W23<0.75,W23>0.49),[4]Datos!$B$66,IF(AND(L23=[4]Datos!$B$68,W23>0.74),[4]Datos!$B$66,IF(AND(L23=[4]Datos!$B$68,W23<0.75,W23>0.49),[4]Datos!$B$67,IF(AND(L23=[4]Datos!$B$69,W23>0.74),[4]Datos!$B$67,IF(AND(L23=[4]Datos!$B$69,W23<0.75,W23>0.49),[4]Datos!$B$68,L23))))))))),L23))) -> Improbable - 2 | Y23: =IF(ISERROR((IF(Q23=[4]Datos!$B$79,V23,0)+IF(Q24=[4]Datos!$B$79,V24,0)+IF(Q25=[4]Datos!$B$79,V25,0)+IF(Q26=[4]Datos!$B$79,V26,0)+IF(Q27=[4]Datos!$B$79,V27,0)+IF(Q28=[4]Datos!$B$79,V28,0))/(IF(Q23=[4]Datos!$B$79,1,0)+IF(Q24=[4]Datos!$B$79,1,0)+IF(Q25=[4]Datos!$B$79,1,0)+IF(Q26=[4]Datos!$B$79,1,0)+IF(Q27=[4]Datos!$B$79,1,0)+IF(Q28=[4]Datos!$B$79,1,0))),0,(IF(Q23=[4]Datos!$B$79,V23,0)+IF(Q24=[4]Datos!$B$79,V24,0)+IF(Q25=[4]Datos!$B$79,V25,0)+IF(Q26=[4]Datos!$B$79,V26,0)+IF(Q27=[4]Datos!$B$79,V27,0)+IF(Q28=[4]Datos!$B$79,V28,0))/(IF(Q23=[4]Datos!$B$79,1,0)+IF(Q24=[4]Datos!$B$79,1,0)+IF(Q25=[4]Datos!$B$79,1,0)+IF(Q26=[4]Datos!$B$79,1,0)+IF(Q27=[4]Datos!$B$79,1,0)+IF(Q28=[4]Datos!$B$79,1,0))) -> 0.675 | Z23: =IF(M23="","-",(IF(Y23>0,(IF(M23=[4]Datos!$B$72,[4]Datos!$B$72,IF(AND(M23=[4]Datos!$B$73,Y23>0.49),[4]Datos!$B$72,IF(AND(M23=[4]Datos!$B$74,Y23>0.74),[4]Datos!$B$72,IF(AND(M23=[4]Datos!$B$74,Y23<0.75,Y23>0.49),[4]Datos!$B$73,IF(AND(M23=[4]Datos!$B$75,Y23>0.74),[4]Datos!$B$73,IF(AND(M23=[4]Datos!$B$75,Y23<0.75,Y23>0.49),[4]Datos!$B$74,IF(AND(M23=[4]Datos!$B$76,Y23>0.74),[4]Datos!$B$74,IF(AND(M23=[4]Datos!$B$76,Y23<0.75,Y23>0.49),[4]Datos!$B$75,M23))))))))),M23))) -> Menor - 2 | AA23: =IF(AND(X23=[4]Datos!$B$65,Z23=[4]Datos!$B$72),[4]Datos!$D$65,IF(AND(X23=[4]Datos!$B$65,Z23=[4]Datos!$B$73),[4]Datos!$E$65,IF(AND(X23=[4]Datos!$B$65,Z23=[4]Datos!$B$74),[4]Datos!$F$65,IF(AND(X23=[4]Datos!$B$65,Z23=[4]Datos!$B$75),[4]Datos!$G$65,IF(AND(X23=[4]Datos!$B$65,Z23=[4]Datos!$B$76),[4]Datos!$H$65,IF(AND(X23=[4]Datos!$B$66,Z23=[4]Datos!$B$72),[4]Datos!$D$66,IF(AND(X23=[4]Datos!$B$66,Z23=[4]Datos!$B$73),[4]Datos!$E$66,IF(AND(X23=[4]Datos!$B$66,Z23=[4]Datos!$B$74),[4]Datos!$F$66,IF(AND(X23=[4]Datos!$B$66,Z23=[4]Datos!$B$75),[4]Datos!$G$66,IF(AND(X23=[4]Datos!$B$66,Z23=[4]Datos!$B$76),[4]Datos!$H$66,IF(AND(X23=[4]Datos!$B$67,Z23=[4]Datos!$B$72),[4]Datos!$D$67,IF(AND(X23=[4]Datos!$B$67,Z23=[4]Datos!$B$73),[4]Datos!$E$67,IF(AND(X23=[4]Datos!$B$67,Z23=[4]Datos!$B$74),[4]Datos!$F$67,IF(AND(X23=[4]Datos!$B$67,Z23=[4]Datos!$B$75),[4]Datos!$G$67,IF(AND(X23=[4]Datos!$B$67,Z23=[4]Datos!$B$76),[4]Datos!$H$67,IF(AND(X23=[4]Datos!$B$68,Z23=[4]Datos!$B$72),[4]Datos!$D$68,IF(AND(X23=[4]Datos!$B$68,Z23=[4]Datos!$B$73),[4]Datos!$E$68,IF(AND(X23=[4]Datos!$B$68,Z23=[4]Datos!$B$74),[4]Datos!$F$68,IF(AND(X23=[4]Datos!$B$68,Z23=[4]Datos!$B$75),[4]Datos!$G$68,IF(AND(X23=[4]Datos!$B$68,Z23=[4]Datos!$B$76),[4]Datos!$H$68,IF(AND(X23=[4]Datos!$B$69,Z23=[4]Datos!$B$72),[4]Datos!$D$69,IF(AND(X23=[4]Datos!$B$69,Z23=[4]Datos!$B$73),[4]Datos!$E$69,IF(AND(X23=[4]Datos!$B$69,Z23=[4]Datos!$B$74),[4]Datos!$F$69,IF(AND(X23=[4]Datos!$B$69,Z23=[4]Datos!$B$75),[4]Datos!$G$69,IF(AND(X23=[4]Datos!$B$69,Z23=[4]Datos!$B$76),[4]Datos!$H$69,"-"))))))))))))))))))))))))) -> BAJO - ACEPTABLE 4 | AB23: Asumir (AS)
E24: Falta de compromiso en todos los niveles de la institución con respecto a la gestión de los Subsistemas. | G24: Interno | K24: Demora en la implementación del Sistema Integrado de Gestión. | O24: Realizar Seguimiento a los Planes de Mejoramiento a través de plataforma de información facilitando la verificación del avance en las acciones planteadas. | P24: Manual | Q24: Correctivo | R24: Alto - 25 | S24: Bajo - 5 | T24: Bajo - 5 | U24: Medio - 15 | V24: =((IF(R24=[4]Datos!$B$83,0,IF(R24=[4]Datos!$B$84,5,IF(R24=[4]Datos!$B$85,10,IF(R24=[4]Datos!$B$86,15,IF(R24=[4]Datos!$B$87,20,IF(R24=[4]Datos!$B$88,25,0)))))))/100)+((IF(S24=[4]Datos!$B$83,0,IF(S24=[4]Datos!$B$84,5,IF(S24=[4]Datos!$B$85,10,IF(S24=[4]Datos!$B$86,15,IF(S24=[4]Datos!$B$87,20,IF(S24=[4]Datos!$B$88,25,0)))))))/100)+((IF(T24=[4]Datos!$B$83,0,IF(T24=[4]Datos!$B$84,5,IF(T24=[4]Datos!$B$85,10,IF(T24=[4]Datos!$B$86,15,IF(T24=[4]Datos!$B$87,20,IF(T24=[4]Datos!$B$88,25,0)))))))/100)+((IF(U24=[4]Datos!$B$83,0,IF(U24=[4]Datos!$B$84,5,IF(U24=[4]Datos!$B$85,10,IF(U24=[4]Datos!$B$86,15,IF(U24=[4]Datos!$B$87,20,IF(U24=[4]Datos!$B$88,25,0)))))))/100) -> 0.5
E25: Incumplimiento en los tiempos propuestos en el Plan de Acción. | G25: Externo | K25: Generación de Hallazgos, No conformidades y Brechas por parte de los diferentes entes de control externo. | O25: Implementar el proceso de Revisión por la Dirección. | P25: Manual | Q25: Preventivo | R25: Medio Bajo - 10 | S25: Medio - 15 | T25: Medio - 15 | U25: Medio - 15 | V25: =((IF(R25=[4]Datos!$B$83,0,IF(R25=[4]Datos!$B$84,5,IF(R25=[4]Datos!$B$85,10,IF(R25=[4]Datos!$B$86,15,IF(R25=[4]Datos!$B$87,20,IF(R25=[4]Datos!$B$88,25,0)))))))/100)+((IF(S25=[4]Datos!$B$83,0,IF(S25=[4]Datos!$B$84,5,IF(S25=[4]Datos!$B$85,10,IF(S25=[4]Datos!$B$86,15,IF(S25=[4]Datos!$B$87,20,IF(S25=[4]Datos!$B$88,25,0)))))))/100)+((IF(T25=[4]Datos!$B$83,0,IF(T25=[4]Datos!$B$84,5,IF(T25=[4]Datos!$B$85,10,IF(T25=[4]Datos!$B$86,15,IF(T25=[4]Datos!$B$87,20,IF(T25=[4]Datos!$B$88,25,0)))))))/100)+((IF(U25=[4]Datos!$B$83,0,IF(U25=[4]Datos!$B$84,5,IF(U25=[4]Datos!$B$85,10,IF(U25=[4]Datos!$B$86,15,IF(U25=[4]Datos!$B$87,20,IF(U25=[4]Datos!$B$88,25,0)))))))/100) -> 0.55
V26: =((IF(R26=[4]Datos!$B$83,0,IF(R26=[4]Datos!$B$84,5,IF(R26=[4]Datos!$B$85,10,IF(R26=[4]Datos!$B$86,15,IF(R26=[4]Datos!$B$87,20,IF(R26=[4]Datos!$B$88,25,0)))))))/100)+((IF(S26=[4]Datos!$B$83,0,IF(S26=[4]Datos!$B$84,5,IF(S26=[4]Datos!$B$85,10,IF(S26=[4]Datos!$B$86,15,IF(S26=[4]Datos!$B$87,20,IF(S26=[4]Datos!$B$88,25,0)))))))/100)+((IF(T26=[4]Datos!$B$83,0,IF(T26=[4]Datos!$B$84,5,IF(T26=[4]Datos!$B$85,10,IF(T26=[4]Datos!$B$86,15,IF(T26=[4]Datos!$B$87,20,IF(T26=[4]Datos!$B$88,25,0)))))))/100)+((IF(U26=[4]Datos!$B$83,0,IF(U26=[4]Datos!$B$84,5,IF(U26=[4]Datos!$B$85,10,IF(U26=[4]Datos!$B$86,15,IF(U26=[4]Datos!$B$87,20,IF(U26=[4]Datos!$B$88,25,0)))))))/100) -> 0
V27: =((IF(R27=[4]Datos!$B$83,0,IF(R27=[4]Datos!$B$84,5,IF(R27=[4]Datos!$B$85,10,IF(R27=[4]Datos!$B$86,15,IF(R27=[4]Datos!$B$87,20,IF(R27=[4]Datos!$B$88,25,0)))))))/100)+((IF(S27=[4]Datos!$B$83,0,IF(S27=[4]Datos!$B$84,5,IF(S27=[4]Datos!$B$85,10,IF(S27=[4]Datos!$B$86,15,IF(S27=[4]Datos!$B$87,20,IF(S27=[4]Datos!$B$88,25,0)))))))/100)+((IF(T27=[4]Datos!$B$83,0,IF(T27=[4]Datos!$B$84,5,IF(T27=[4]Datos!$B$85,10,IF(T27=[4]Datos!$B$86,15,IF(T27=[4]Datos!$B$87,20,IF(T27=[4]Datos!$B$88,25,0)))))))/100)+((IF(U27=[4]Datos!$B$83,0,IF(U27=[4]Datos!$B$84,5,IF(U27=[4]Datos!$B$85,10,IF(U27=[4]Datos!$B$86,15,IF(U27=[4]Datos!$B$87,20,IF(U27=[4]Datos!$B$88,25,0)))))))/100) -> 0
V28: =((IF(R28=[4]Datos!$B$83,0,IF(R28=[4]Datos!$B$84,5,IF(R28=[4]Datos!$B$85,10,IF(R28=[4]Datos!$B$86,15,IF(R28=[4]Datos!$B$87,20,IF(R28=[4]Datos!$B$88,25,0)))))))/100)+((IF(S28=[4]Datos!$B$83,0,IF(S28=[4]Datos!$B$84,5,IF(S28=[4]Datos!$B$85,10,IF(S28=[4]Datos!$B$86,15,IF(S28=[4]Datos!$B$87,20,IF(S28=[4]Datos!$B$88,25,0)))))))/100)+((IF(T28=[4]Datos!$B$83,0,IF(T28=[4]Datos!$B$84,5,IF(T28=[4]Datos!$B$85,10,IF(T28=[4]Datos!$B$86,15,IF(T28=[4]Datos!$B$87,20,IF(T28=[4]Datos!$B$88,25,0)))))))/100)+((IF(U28=[4]Datos!$B$83,0,IF(U28=[4]Datos!$B$84,5,IF(U28=[4]Datos!$B$85,10,IF(U28=[4]Datos!$B$86,15,IF(U28=[4]Datos!$B$87,20,IF(U28=[4]Datos!$B$88,25,0)))))))/100) -> 0
B30: ELABORÓ | D30: REVISÓ | E30: APROBÓ
B31: Nombre: Equipo SIGUD Cargo: N/A Fecha: Noviembre 19 de 2018 | D31: Nombre: María Fernanda Reyes Cargo: Jefe Oficina Asesora Planeación Fecha: Noviembre 19 de 2018 | E31: Nombre: María Fernanda Reyes Cargo: Jefe Oficina Asesora Planeación Fecha: Noviembre 19 de 2018

Sheet SGC-C
C2: MAPA INTEGRAL DE RIESGOS | E2: Código: GI-MG-001-FR-014
C3: Macroproceso: Direccionamiento Estratégico | E3: Versión: 02
C4: Proceso: Gestión Integrada | E4: Fecha de Aprobación: 29/10/2015
C6: Subsistema de Gestión de Calidad (SGC)
B8: PROCESO | D8: OBJETIVO DEL PROCESO | E8: CONTEXTO ESTRATÉGICO | H8: RIESGO | I8: DESCRIPCIÓN | J8: TIPO DE RIESGO | K8: CONSECUENCIAS | L8: CLASIFICACIÓN | O8: EVALUACIÓN DEL RIESGO
E9: CAUSA O FUENTE | G9: CLASIFICACIÓN | L9: PROBABILIDAD | M9: IMPACTO | N9: ZONA DE RIESGO | O9: CONTROLES | P9: CONTROL AUTOMÁTICO O MANUAL | Q9: TIPO DE CONTROL | R9: NIVEL | V9: TOTAL NIVEL | W9: PROBABILIDAD RESIDUAL | Y9: IMPACTO RESIDUAL | AA9: ZONA DE RIESGO RESIDUAL | AB9: MANEJO DEL RIESGO
R10: Documentado | S10: Aplicación | T10: Efectivo | U10: Seguimiento, evaluación y mejora | W10: RIESGO CONTROLADO | X10: PROBABILIDAD | Y10: RIESGO CONTROLADO | Z10: IMPACTO
B11: Comunicaciones | D11: =IF(B11="","-",VLOOKUP(B11,[5]Datos!$B$4:$C$25,2,FALSE)) -> Coordinar, las actividades de comunicación institucional interna y externa con el objeto de garantizar el conocimiento de la universidad a las partes interesadas y generar sentido de pertenencia con la institución. | E11: Desutilización de los recursos tecnológicos que tiene la universidad para la comunicación interna y externa. | G11: Interno | H11: Tercerización de productos que la universidad produce pero no son conocidos por la comunidad. | I11: Hace referencia a las tecnologías y herramientas con las que cuenta la universidad, estas no están siendo utilizadas de manera eficiente, ya que la comunidad no sabe que existen ocasionando que se empleen medios externos para la difusión de contenidos de la universidad. | J11: Operativos | K11: Mala imagen institucional. | L11: Seguro - 5 | M11: Moderado - 3 | N11: =IF(AND(L11=[5]Datos!$B$65,M11=[5]Datos!$B$72),[5]Datos!$D$65,IF(AND(L11=[5]Datos!$B$65,M11=[5]Datos!$B$73),[5]Datos!$E$65,IF(AND(L11=[5]Datos!$B$65,M11=[5]Datos!$B$74),[5]Datos!$F$65,IF(AND(L11=[5]Datos!$B$65,M11=[5]Datos!$B$75),[5]Datos!$G$65,IF(AND(L11=[5]Datos!$B$65,M11=[5]Datos!$B$76),[5]Datos!$H$65,IF(AND(L11=[5]Datos!$B$66,M11=[5]Datos!$B$72),[5]Datos!$D$66,IF(AND(L11=[5]Datos!$B$66,M11=[5]Datos!$B$73),[5]Datos!$E$66,IF(AND(L11=[5]Datos!$B$66,M11=[5]Datos!$B$74),[5]Datos!$F$66,IF(AND(L11=[5]Datos!$B$66,M11=[5]Datos!$B$75),[5]Datos!$G$66,IF(AND(L11=[5]Datos!$B$66,M11=[5]Datos!$B$76),[5]Datos!$H$66,IF(AND(L11=[5]Datos!$B$67,M11=[5]Datos!$B$72),[5]Datos!$D$67,IF(AND(L11=[5]Datos!$B$67,M11=[5]Datos!$B$73),[5]Datos!$E$67,IF(AND(L11=[5]Datos!$B$67,M11=[5]Datos!$B$74),[5]Datos!$F$67,IF(AND(L11=[5]Datos!$B$67,M11=[5]Datos!$B$75),[5]Datos!$G$67,IF(AND(L11=[5]Datos!$B$67,M11=[5]Datos!$B$76),[5]Datos!$H$67,IF(AND(L11=[5]Datos!$B$68,M11=[5]Datos!$B$72),[5]Datos!$D$68,IF(AND(L11=[5]Datos!$B$68,M11=[5]Datos!$B$73),[5]Datos!$E$68,IF(AND(L11=[5]Datos!$B$68,M11=[5]Datos!$B$74),[5]Datos!$F$68,IF(AND(L11=[5]Datos!$B$68,M11=[5]Datos!$B$75),[5]Datos!$G$68,IF(AND(L11=[5]Datos!$B$68,M11=[5]Datos!$B$76),[5]Datos!$H$68,IF(AND(L11=[5]Datos!$B$69,M11=[5]Datos!$B$72),[5]Datos!$D$69,IF(AND(L11=[5]Datos!$B$69,M11=[5]Datos!$B$73),[5]Datos!$E$69,IF(AND(L11=[5]Datos!$B$69,M11=[5]Datos!$B$74),[5]Datos!$F$69,IF(AND(L11=[5]Datos!$B$69,M11=[5]Datos!$B$75),[5]Datos!$G$69,IF(AND(L11=[5]Datos!$B$69,M11=[5]Datos!$B$76),[5]Datos!$H$69,"-"))))))))))))))))))))))))) -> CATASTRÓFICO – INACEPTABLE 15 | O11: Mesas de trabajo entre facultades, centros e institutos para socializar los recursos tecnológicos y herramientas de comunicación existentes en la universidad. | P11: Manual | Q11: Preventivo | R11: Nulo - 0 | S11: Nulo - 0 | T11: Nulo - 0 | U11: Nulo - 0 | V11: =((IF(R11=[5]Datos!$B$83,0,IF(R11=[5]Datos!$B$84,5,IF(R11=[5]Datos!$B$85,10,IF(R11=[5]Datos!$B$86,15,IF(R11=[5]Datos!$B$87,20,IF(R11=[5]Datos!$B$88,25,0)))))))/100)+((IF(S11=[5]Datos!$B$83,0,IF(S11=[5]Datos!$B$84,5,IF(S11=[5]Datos!$B$85,10,IF(S11=[5]Datos!$B$86,15,IF(S11=[5]Datos!$B$87,20,IF(S11=[5]Datos!$B$88,25,0)))))))/100)+((IF(T11=[5]Datos!$B$83,0,IF(T11=[5]Datos!$B$84,5,IF(T11=[5]Datos!$B$85,10,IF(T11=[5]Datos!$B$86,15,IF(T11=[5]Datos!$B$87,20,IF(T11=[5]Datos!$B$88,25,0)))))))/100)+((IF(U11=[5]Datos!$B$83,0,IF(U11=[5]Datos!$B$84,5,IF(U11=[5]Datos!$B$85,10,IF(U11=[5]Datos!$B$86,15,IF(U11=[5]Datos!$B$87,20,IF(U11=[5]Datos!$B$88,25,0)))))))/100) -> 0 | W11: =IF(ISERROR((IF(Q11=[5]Datos!$B$80,V11,0)+IF(Q12=[5]Datos!$B$80,V12,0)+IF(Q13=[5]Datos!$B$80,V13,0)+IF(Q14=[5]Datos!$B$80,V14,0)+IF(Q15=[5]Datos!$B$80,V15,0)+IF(Q16=[5]Datos!$B$80,V16,0))/(IF(Q11=[5]Datos!$B$80,1,0)+IF(Q12=[5]Datos!$B$80,1,0)+IF(Q13=[5]Datos!$B$80,1,0)+IF(Q14=[5]Datos!$B$80,1,0)+IF(Q15=[5]Datos!$B$80,1,0)+IF(Q16=[5]Datos!$B$80,1,0))),0,(IF(Q11=[5]Datos!$B$80,V11,0)+IF(Q12=[5]Datos!$B$80,V12,0)+IF(Q13=[5]Datos!$B$80,V13,0)+IF(Q14=[5]Datos!$B$80,V14,0)+IF(Q15=[5]Datos!$B$80,V15,0)+IF(Q16=[5]Datos!$B$80,V16,0))/(IF(Q11=[5]Datos!$B$80,1,0)+IF(Q12=[5]Datos!$B$80,1,0)+IF(Q13=[5]Datos!$B$80,1,0)+IF(Q14=[5]Datos!$B$80,1,0)+IF(Q15=[5]Datos!$B$80,1,0)+IF(Q16=[5]Datos!$B$80,1,0))) -> 0.4666666667 | X11: =IF(L11="","-",(IF(W11>0,(IF(L11=[5]Datos!$B$65,[5]Datos!$B$65,IF(AND(L11=[5]Datos!$B$66,W11>0.49),[5]Datos!$B$65,IF(AND(L11=[5]Datos!$B$67,W11>0.74),[5]Datos!$B$65,IF(AND(L11=[5]Datos!$B$67,W11<0.75,W11>0.49),[5]Datos!$B$66,IF(AND(L11=[5]Datos!$B$68,W11>0.74),[5]Datos!$B$66,IF(AND(L11=[5]Datos!$B$68,W11<0.75,W11>0.49),[5]Datos!$B$67,IF(AND(L11=[5]Datos!$B$69,W11>0.74),[5]Datos!$B$67,IF(AND(L11=[5]Datos!$B$69,W11<0.75,W11>0.49),[5]Datos!$B$68,L11))))))))),L11))) -> Seguro - 5 | Y11: =IF(ISERROR((IF(Q11=[5]Datos!$B$79,V11,0)+IF(Q12=[5]Datos!$B$79,V12,0)+IF(Q13=[5]Datos!$B$79,V13,0)+IF(Q14=[5]Datos!$B$79,V14,0)+IF(Q15=[5]Datos!$B$79,V15,0)+IF(Q16=[5]Datos!$B$79,V16,0))/(IF(Q11=[5]Datos!$B$79,1,0)+IF(Q12=[5]Datos!$B$79,1,0)+IF(Q13=[5]Datos!$B$79,1,0)+IF(Q14=[5]Datos!$B$79,1,0)+IF(Q15=[5]Datos!$B$79,1,0)+IF(Q16=[5]Datos!$B$79,1,0))),0,(IF(Q11=[5]Datos!$B$79,V11,0)+IF(Q12=[5]Datos!$B$79,V12,0)+IF(Q13=[5]Datos!$B$79,V13,0)+IF(Q14=[5]Datos!$B$79,V14,0)+IF(Q15=[5]Datos!$B$79,V15,0)+IF(Q16=[5]Datos!$B$79,V16,0))/(IF(Q11=[5]Datos!$B$79,1,0)+IF(Q12=[5]Datos!$B$79,1,0)+IF(Q13=[5]Datos!$B$79,1,0)+IF(Q14=[5]Datos!$B$79,1,0)+IF(Q15=[5]Datos!$B$79,1,0)+IF(Q16=[5]Datos!$B$79,1,0))) -> 0 | Z11: =IF(M11="","-",(IF(Y11>0,(IF(M11=[5]Datos!$B$72,[5]Datos!$B$72,IF(AND(M11=[5]Datos!$B$73,Y11>0.49),[5]Datos!$B$72,IF(AND(M11=[5]Datos!$B$74,Y11>0.74),[5]Datos!$B$72,IF(AND(M11=[5]Datos!$B$74,Y11<0.75,Y11>0.49),[5]Datos!$B$73,IF(AND(M11=[5]Datos!$B$75,Y11>0.74),[5]Datos!$B$73,IF(AND(M11=[5]Datos!$B$75,Y11<0.75,Y11>0.49),[5]Datos!$B$74,IF(AND(M11=[5]Datos!$B$76,Y11>0.74),[5]Datos!$B$74,IF(AND(M11=[5]Datos!$B$76,Y11<0.75,Y11>0.49),[5]Datos!$B$75,M11))))))))),M11))) -> Moderado - 3 | AA11: =IF(AND(X11=[5]Datos!$B$65,Z11=[5]Datos!$B$72),[5]Datos!$D$65,IF(AND(X11=[5]Datos!$B$65,Z11=[5]Datos!$B$73),[5]Datos!$E$65,IF(AND(X11=[5]Datos!$B$65,Z11=[5]Datos!$B$74),[5]Datos!$F$65,IF(AND(X11=[5]Datos!$B$65,Z11=[5]Datos!$B$75),[5]Datos!$G$65,IF(AND(X11=[5]Datos!$B$65,Z11=[5]Datos!$B$76),[5]Datos!$H$65,IF(AND(X11=[5]Datos!$B$66,Z11=[5]Datos!$B$72),[5]Datos!$D$66,IF(AND(X11=[5]Datos!$B$66,Z11=[5]Datos!$B$73),[5]Datos!$E$66,IF(AND(X11=[5]Datos!$B$66,Z11=[5]Datos!$B$74),[5]Datos!$F$66,IF(AND(X11=[5]Datos!$B$66,Z11=[5]Datos!$B$75),[5]Datos!$G$66,IF(AND(X11=[5]Datos!$B$66,Z11=[5]Datos!$B$76),[5]Datos!$H$66,IF(AND(X11=[5]Datos!$B$67,Z11=[5]Datos!$B$72),[5]Datos!$D$67,IF(AND(X11=[5]Datos!$B$67,Z11=[5]Datos!$B$73),[5]Datos!$E$67,IF(AND(X11=[5]Datos!$B$67,Z11=[5]Datos!$B$74),[5]Datos!$F$67,IF(AND(X11=[5]Datos!$B$67,Z11=[5]Datos!$B$75),[5]Datos!$G$67,IF(AND(X11=[5]Datos!$B$67,Z11=[5]Datos!$B$76),[5]Datos!$H$67,IF(AND(X11=[5]Datos!$B$68,Z11=[5]Datos!$B$72),[5]Datos!$D$68,IF(AND(X11=[5]Datos!$B$68,Z11=[5]Datos!$B$73),[5]Datos!$E$68,IF(AND(X11=[5]Datos!$B$68,Z11=[5]Datos!$B$74),[5]Datos!$F$68,IF(AND(X11=[5]Datos!$B$68,Z11=[5]Datos!$B$75),[5]Datos!$G$68,IF(AND(X11=[5]Datos!$B$68,Z11=[5]Datos!$B$76),[5]Datos!$H$68,IF(AND(X11=[5]Datos!$B$69,Z11=[5]Datos!$B$72),[5]Datos!$D$69,IF(AND(X11=[5]Datos!$B$69,Z11=[5]Datos!$B$73),[5]Datos!$E$69,IF(AND(X11=[5]Datos!$B$69,Z11=[5]Datos!$B$74),[5]Datos!$F$69,IF(AND(X11=[5]Datos!$B$69,Z11=[5]Datos!$B$75),[5]Datos!$G$69,IF(AND(X11=[5]Datos!$B$69,Z11=[5]Datos!$B$76),[5]Datos!$H$69,"-"))))))))))))))))))))))))) -> CATASTRÓFICO – INACEPTABLE 15 | AB11: Asumir (AS)
E12: La no utilización los recursos tecnológicos de la universidad para realizar una socialización de eventos a llevar a cabo por las facultades, centros, institutos y unidades administrativas y que de esta manera exista una mayor interacción entre todos los gestores del proceso de comunicaciones. | G12: Interno | K12: Desconocimiento de información institucional. | O12: Socializar los recursos tecnológicos y herramientas de comunicación existentes en la Universidad. | P12: Manual | Q12: Preventivo | R12: Alto - 25 | S12: Medio Bajo - 10 | T12: Medio Bajo - 10 | U12: Bajo - 5 | V12: =((IF(R12=[5]Datos!$B$83,0,IF(R12=[5]Datos!$B$84,5,IF(R12=[5]Datos!$B$85,10,IF(R12=[5]Datos!$B$86,15,IF(R12=[5]Datos!$B$87,20,IF(R12=[5]Datos!$B$88,25,0)))))))/100)+((IF(S12=[5]Datos!$B$83,0,IF(S12=[5]Datos!$B$84,5,IF(S12=[5]Datos!$B$85,10,IF(S12=[5]Datos!$B$86,15,IF(S12=[5]Datos!$B$87,20,IF(S12=[5]Datos!$B$88,25,0)))))))/100)+((IF(T12=[5]Datos!$B$83,0,IF(T12=[5]Datos!$B$84,5,IF(T12=[5]Datos!$B$85,10,IF(T12=[5]Datos!$B$86,15,IF(T12=[5]Datos!$B$87,20,IF(T12=[5]Datos!$B$88,25,0)))))))/100)+((IF(U12=[5]Datos!$B$83,0,IF(U12=[5]Datos!$B$84,5,IF(U12=[5]Datos!$B$85,10,IF(U12=[5]Datos!$B$86,15,IF(U12=[5]Datos!$B$87,20,IF(U12=[5]Datos!$B$88,25,0)))))))/100) -> 0.5
E13: No dar a conocer a la comunidad en general todos los medios, canales y herramientas que la universidad tiene para la generación y difusión de contenidos de información. | G13: Interno | K13: Contratar a costos más elevados ya que la tercerización ocasiona estas consecuencias. | O13: Actualización permanente de los diferentes medios de comunicación existentes en la Universidad. | P13: Manual | Q13: Preventivo | R13: Alto - 25 | S13: Alto - 25 | T13: Medio - 15 | U13: Alto - 25 | V13: =((IF(R13=[5]Datos!$B$83,0,IF(R13=[5]Datos!$B$84,5,IF(R13=[5]Datos!$B$85,10,IF(R13=[5]Datos!$B$86,15,IF(R13=[5]Datos!$B$87,20,IF(R13=[5]Datos!$B$88,25,0)))))))/100)+((IF(S13=[5]Datos!$B$83,0,IF(S13=[5]Datos!$B$84,5,IF(S13=[5]Datos!$B$85,10,IF(S13=[5]Datos!$B$86,15,IF(S13=[5]Datos!$B$87,20,IF(S13=[5]Datos!$B$88,25,0)))))))/100)+((IF(T13=[5]Datos!$B$83,0,IF(T13=[5]Datos!$B$84,5,IF(T13=[5]Datos!$B$85,10,IF(T13=[5]Datos!$B$86,15,IF(T13=[5]Datos!$B$87,20,IF(T13=[5]Datos!$B$88,25,0)))))))/100)+((IF(U13=[5]Datos!$B$83,0,IF(U13=[5]Datos!$B$84,5,IF(U13=[5]Datos!$B$85,10,IF(U13=[5]Datos!$B$86,15,IF(U13=[5]Datos!$B$87,20,IF(U13=[5]Datos!$B$88,25,0)))))))/100) -> 0.9
E14: La falta de asociación de los recursos tecnológicos para la difusión de contenidos integrando todos los gestores de contenido de la universidad. | G14: Interno | V14: =((IF(R14=[5]Datos!$B$83,0,IF(R14=[5]Datos!$B$84,5,IF(R14=[5]Datos!$B$85,10,IF(R14=[5]Datos!$B$86,15,IF(R14=[5]Datos!$B$87,20,IF(R14=[5]Datos!$B$88,25,0)))))))/100)+((IF(S14=[5]Datos!$B$83,0,IF(S14=[5]Datos!$B$84,5,IF(S14=[5]Datos!$B$85,10,IF(S14=[5]Datos!$B$86,15,IF(S14=[5]Datos!$B$87,20,IF(S14=[5]Datos!$B$88,25,0)))))))/100)+((IF(T14=[5]Datos!$B$83,0,IF(T14=[5]Datos!$B$84,5,IF(T14=[5]Datos!$B$85,10,IF(T14=[5]Datos!$B$86,15,IF(T14=[5]Datos!$B$87,20,IF(T14=[5]Datos!$B$88,25,0)))))))/100)+((IF(U14=[5]Datos!$B$83,0,IF(U14=[5]Datos!$B$84,5,IF(U14=[5]Datos!$B$85,10,IF(U14=[5]Datos!$B$86,15,IF(U14=[5]Datos!$B$87,20,IF(U14=[5]Datos!$B$88,25,0)))))))/100) -> 0
E15: Las facultades cuentan con presupuesto propio de publicaciones el cual se ejecuta con empresas externas y no se utilizan los recursos técnicos que tiene la Sección de Publicaciones. | V15: =((IF(R15=[5]Datos!$B$83,0,IF(R15=[5]Datos!$B$84,5,IF(R15=[5]Datos!$B$85,10,IF(R15=[5]Datos!$B$86,15,IF(R15=[5]Datos!$B$87,20,IF(R15=[5]Datos!$B$88,25,0)))))))/100)+((IF(S15=[5]Datos!$B$83,0,IF(S15=[5]Datos!$B$84,5,IF(S15=[5]Datos!$B$85,10,IF(S15=[5]Datos!$B$86,15,IF(S15=[5]Datos!$B$87,20,IF(S15=[5]Datos!$B$88,25,0)))))))/100)+((IF(T15=[5]Datos!$B$83,0,IF(T15=[5]Datos!$B$84,5,IF(T15=[5]Datos!$B$85,10,IF(T15=[5]Datos!$B$86,15,IF(T15=[5]Datos!$B$87,20,IF(T15=[5]Datos!$B$88,25,0)))))))/100)+((IF(U15=[5]Datos!$B$83,0,IF(U15=[5]Datos!$B$84,5,IF(U15=[5]Datos!$B$85,10,IF(U15=[5]Datos!$B$86,15,IF(U15=[5]Datos!$B$87,20,IF(U15=[5]Datos!$B$88,25,0)))))))/100) -> 0
E16: Maquinaria obsoleta para impresión ofset. | V16: =((IF(R16=[5]Datos!$B$83,0,IF(R16=[5]Datos!$B$84,5,IF(R16=[5]Datos!$B$85,10,IF(R16=[5]Datos!$B$86,15,IF(R16=[5]Datos!$B$87,20,IF(R16=[5]Datos!$B$88,25,0)))))))/100)+((IF(S16=[5]Datos!$B$83,0,IF(S16=[5]Datos!$B$84,5,IF(S16=[5]Datos!$B$85,10,IF(S16=[5]Datos!$B$86,15,IF(S16=[5]Datos!$B$87,20,IF(S16=[5]Datos!$B$88,25,0)))))))/100)+((IF(T16=[5]Datos!$B$83,0,IF(T16=[5]Datos!$B$84,5,IF(T16=[5]Datos!$B$85,10,IF(T16=[5]Datos!$B$86,15,IF(T16=[5]Datos!$B$87,20,IF(T16=[5]Datos!$B$88,25,0)))))))/100)+((IF(U16=[5]Datos!$B$83,0,IF(U16=[5]Datos!$B$84,5,IF(U16=[5]Datos!$B$85,10,IF(U16=[5]Datos!$B$86,15,IF(U16=[5]Datos!$B$87,20,IF(U16=[5]Datos!$B$88,25,0)))))))/100) -> 0
B17: Comunicaciones | D17: =IF(B17="","-",VLOOKUP(B17,[5]Datos!$B$4:$C$25,2,FALSE)) -> Coordinar, las actividades de comunicación institucional interna y externa con el objeto de garantizar el conocimiento de la universidad a las partes interesadas y generar sentido de pertenencia con la institución. | E17: Generar una mala estrategia de contenidos, control y seguimiento que permita la interacción entre el cliente externo, el interno y la universidad en general. | G17: Interno | H17: Generar malos objetivos estratégicos. | I17: Al no tener una buena estrategia de comunicación y contenidos se puede generar malos objetivos, metas confusas y el incumplimiento de las metas. | J17: Estratégico | K17: Confundir metas con estrategias. | L17: Posible - 3 | M17: Mayor - 4 | N17: =IF(AND(L17=[5]Datos!$B$65,M17=[5]Datos!$B$72),[5]Datos!$D$65,IF(AND(L17=[5]Datos!$B$65,M17=[5]Datos!$B$73),[5]Datos!$E$65,IF(AND(L17=[5]Datos!$B$65,M17=[5]Datos!$B$74),[5]Datos!$F$65,IF(AND(L17=[5]Datos!$B$65,M17=[5]Datos!$B$75),[5]Datos!$G$65,IF(AND(L17=[5]Datos!$B$65,M17=[5]Datos!$B$76),[5]Datos!$H$65,IF(AND(L17=[5]Datos!$B$66,M17=[5]Datos!$B$72),[5]Datos!$D$66,IF(AND(L17=[5]Datos!$B$66,M17=[5]Datos!$B$73),[5]Datos!$E$66,IF(AND(L17=[5]Datos!$B$66,M17=[5]Datos!$B$74),[5]Datos!$F$66,IF(AND(L17=[5]Datos!$B$66,M17=[5]Datos!$B$75),[5]Datos!$G$66,IF(AND(L17=[5]Datos!$B$66,M17=[5]Datos!$B$76),[5]Datos!$H$66,IF(AND(L17=[5]Datos!$B$67,M17=[5]Datos!$B$72),[5]Datos!$D$67,IF(AND(L17=[5]Datos!$B$67,M17=[5]Datos!$B$73),[5]Datos!$E$67,IF(AND(L17=[5]Datos!$B$67,M17=[5]Datos!$B$74),[5]Datos!$F$67,IF(AND(L17=[5]Datos!$B$67,M17=[5]Datos!$B$75),[5]Datos!$G$67,IF(AND(L17=[5]Datos!$B$67,M17=[5]Datos!$B$76),[5]Datos!$H$67,IF(AND(L17=[5]Datos!$B$68,M17=[5]Datos!$B$72),[5]Datos!$D$68,IF(AND(L17=[5]Datos!$B$68,M17=[5]Datos!$B$73),[5]Datos!$E$68,IF(AND(L17=[5]Datos!$B$68,M17=[5]Datos!$B$74),[5]Datos!$F$68,IF(AND(L17=[5]Datos!$B$68,M17=[5]Datos!$B$75),[5]Datos!$G$68,IF(AND(L17=[5]Datos!$B$68,M17=[5]Datos!$B$76),[5]Datos!$H$68,IF(AND(L17=[5]Datos!$B$69,M17=[5]Datos!$B$72),[5]Datos!$D$69,IF(AND(L17=[5]Datos!$B$69,M17=[5]Datos!$B$73),[5]Datos!$E$69,IF(AND(L17=[5]Datos!$B$69,M17=[5]Datos!$B$74),[5]Datos!$F$69,IF(AND(L17=[5]Datos!$B$69,M17=[5]Datos!$B$75),[5]Datos!$G$69,IF(AND(L17=[5]Datos!$B$69,M17=[5]Datos!$B$76),[5]Datos!$H$69,"-"))))))))))))))))))))))))) -> CATASTRÓFICO – INACEPTABLE 12 | O17: Definir las metas a cumplir para que se han logrados los objetivos. | P17: Manual | Q17: Preventivo | R17: Nulo - 0 | S17: Medio Bajo - 10 | T17: Medio Alto - 20 | U17: Alto - 25 | V17: =((IF(R17=[5]Datos!$B$83,0,IF(R17=[5]Datos!$B$84,5,IF(R17=[5]Datos!$B$85,10,IF(R17=[5]Datos!$B$86,15,IF(R17=[5]Datos!$B$87,20,IF(R17=[5]Datos!$B$88,25,0)))))))/100)+((IF(S17=[5]Datos!$B$83,0,IF(S17=[5]Datos!$B$84,5,IF(S17=[5]Datos!$B$85,10,IF(S17=[5]Datos!$B$86,15,IF(S17=[5]Datos!$B$87,20,IF(S17=[5]Datos!$B$88,25,0)))))))/100)+((IF(T17=[5]Datos!$B$83,0,IF(T17=[5]Datos!$B$84,5,IF(T17=[5]Datos!$B$85,10,IF(T17=[5]Datos!$B$86,15,IF(T17=[5]Datos!$B$87,20,IF(T17=[5]Datos!$B$88,25,0)))))))/100)+((IF(U17=[5]Datos!$B$83,0,IF(U17=[5]Datos!$B$84,5,IF(U17=[5]Datos!$B$85,10,IF(U17=[5]Datos!$B$86,15,IF(U17=[5]Datos!$B$87,20,IF(U17=[5]Datos!$B$88,25,0)))))))/100) -> 0.55 | W17: =IF(ISERROR((IF(Q17=[5]Datos!$B$80,V17,0)+IF(Q18=[5]Datos!$B$80,V18,0)+IF(Q19=[5]Datos!$B$80,V19,0)+IF(Q20=[5]Datos!$B$80,V20,0)+IF(Q21=[5]Datos!$B$80,V21,0)+IF(Q22=[5]Datos!$B$80,V22,0))/(IF(Q17=[5]Datos!$B$80,1,0)+IF(Q18=[5]Datos!$B$80,1,0)+IF(Q19=[5]Datos!$B$80,1,0)+IF(Q20=[5]Datos!$B$80,1,0)+IF(Q21=[5]Datos!$B$80,1,0)+IF(Q22=[5]Datos!$B$80,1,0))),0,(IF(Q17=[5]Datos!$B$80,V17,0)+IF(Q18=[5]Datos!$B$80,V18,0)+IF(Q19=[5]Datos!$B$80,V19,0)+IF(Q20=[5]Datos!$B$80,V20,0)+IF(Q21=[5]Datos!$B$80,V21,0)+IF(Q22=[5]Datos!$B$80,V22,0))/(IF(Q17=[5]Datos!$B$80,1,0)+IF(Q18=[5]Datos!$B$80,1,0)+IF(Q19=[5]Datos!$B$80,1,0)+IF(Q20=[5]Datos!$B$80,1,0)+IF(Q21=[5]Datos!$B$80,1,0)+IF(Q22=[5]Datos!$B$80,1,0))) -> 0.7166666667 | X17: =IF(L17="","-",(IF(W17>0,(IF(L17=[5]Datos!$B$65,[5]Datos!$B$65,IF(AND(L17=[5]Datos!$B$66,W17>0.49),[5]Datos!$B$65,IF(AND(L17=[5]Datos!$B$67,W17>0.74),[5]Datos!$B$65,IF(AND(L17=[5]Datos!$B$67,W17<0.75,W17>0.49),[5]Datos!$B$66,IF(AND(L17=[5]Datos!$B$68,W17>0.74),[5]Datos!$B$66,IF(AND(L17=[5]Datos!$B$68,W17<0.75,W17>0.49),[5]Datos!$B$67,IF(AND(L17=[5]Datos!$B$69,W17>0.74),[5]Datos!$B$67,IF(AND(L17=[5]Datos!$B$69,W17<0.75,W17>0.49),[5]Datos!$B$68,L17))))))))),L17))) -> Improbable - 2 | Y17: =IF(ISERROR((IF(Q17=[5]Datos!$B$79,V17,0)+IF(Q18=[5]Datos!$B$79,V18,0)+IF(Q19=[5]Datos!$B$79,V19,0)+IF(Q20=[5]Datos!$B$79,V20,0)+IF(Q21=[5]Datos!$B$79,V21,0)+IF(Q22=[5]Datos!$B$79,V22,0))/(IF(Q17=[5]Datos!$B$79,1,0)+IF(Q18=[5]Datos!$B$79,1,0)+IF(Q19=[5]Datos!$B$79,1,0)+IF(Q20=[5]Datos!$B$79,1,0)+IF(Q21=[5]Datos!$B$79,1,0)+IF(Q22=[5]Datos!$B$79,1,0))),0,(IF(Q17=[5]Datos!$B$79,V17,0)+IF(Q18=[5]Datos!$B$79,V18,0)+IF(Q19=[5]Datos!$B$79,V19,0)+IF(Q20=[5]Datos!$B$79,V20,0)+IF(Q21=[5]Datos!$B$79,V21,0)+IF(Q22=[5]Datos!$B$79,V22,0))/(IF(Q17=[5]Datos!$B$79,1,0)+IF(Q18=[5]Datos!$B$79,1,0)+IF(Q19=[5]Datos!$B$79,1,0)+IF(Q20=[5]Datos!$B$79,1,0)+IF(Q21=[5]Datos!$B$79,1,0)+IF(Q22=[5]Datos!$B$79,1,0))) -> 0 | Z17: =IF(M17="","-",(IF(Y17>0,(IF(M17=[5]Datos!$B$72,[5]Datos!$B$72,IF(AND(M17=[5]Datos!$B$73,Y17>0.49),[5]Datos!$B$72,IF(AND(M17=[5]Datos!$B$74,Y17>0.74),[5]Datos!$B$72,IF(AND(M17=[5]Datos!$B$74,Y17<0.75,Y17>0.49),[5]Datos!$B$73,IF(AND(M17=[5]Datos!$B$75,Y17>0.74),[5]Datos!$B$73,IF(AND(M17=[5]Datos!$B$75,Y17<0.75,Y17>0.49),[5]Datos!$B$74,IF(AND(M17=[5]Datos!$B$76,Y17>0.74),[5]Datos!$B$74,IF(AND(M17=[5]Datos!$B$76,Y17<0.75,Y17>0.49),[5]Datos!$B$75,M17))))))))),M17))) -> Mayor - 4 | AA17: =IF(AND(X17=[5]Datos!$B$65,Z17=[5]Datos!$B$72),[5]Datos!$D$65,IF(AND(X17=[5]Datos!$B$65,Z17=[5]Datos!$B$73),[5]Datos!$E$65,IF(AND(X17=[5]Datos!$B$65,Z17=[5]Datos!$B$74),[5]Datos!$F$65,IF(AND(X17=[5]Datos!$B$65,Z17=[5]Datos!$B$75),[5]Datos!$G$65,IF(AND(X17=[5]Datos!$B$65,Z17=[5]Datos!$B$76),[5]Datos!$H$65,IF(AND(X17=[5]Datos!$B$66,Z17=[5]Datos!$B$72),[5]Datos!$D$66,IF(AND(X17=[5]Datos!$B$66,Z17=[5]Datos!$B$73),[5]Datos!$E$66,IF(AND(X17=[5]Datos!$B$66,Z17=[5]Datos!$B$74),[5]Datos!$F$66,IF(AND(X17=[5]Datos!$B$66,Z17=[5]Datos!$B$75),[5]Datos!$G$66,IF(AND(X17=[5]Datos!$B$66,Z17=[5]Datos!$B$76),[5]Datos!$H$66,IF(AND(X17=[5]Datos!$B$67,Z17=[5]Datos!$B$72),[5]Datos!$D$67,IF(AND(X17=[5]Datos!$B$67,Z17=[5]Datos!$B$73),[5]Datos!$E$67,IF(AND(X17=[5]Datos!$B$67,Z17=[5]Datos!$B$74),[5]Datos!$F$67,IF(AND(X17=[5]Datos!$B$67,Z17=[5]Datos!$B$75),[5]Datos!$G$67,IF(AND(X17=[5]Datos!$B$67,Z17=[5]Datos!$B$76),[5]Datos!$H$67,IF(AND(X17=[5]Datos!$B$68,Z17=[5]Datos!$B$72),[5]Datos!$D$68,IF(AND(X17=[5]Datos!$B$68,Z17=[5]Datos!$B$73),[5]Datos!$E$68,IF(AND(X17=[5]Datos!$B$68,Z17=[5]Datos!$B$74),[5]Datos!$F$68,IF(AND(X17=[5]Datos!$B$68,Z17=[5]Datos!$B$75),[5]Datos!$G$68,IF(AND(X17=[5]Datos!$B$68,Z17=[5]Datos!$B$76),[5]Datos!$H$68,IF(AND(X17=[5]Datos!$B$69,Z17=[5]Datos!$B$72),[5]Datos!$D$69,IF(AND(X17=[5]Datos!$B$69,Z17=[5]Datos!$B$73),[5]Datos!$E$69,IF(AND(X17=[5]Datos!$B$69,Z17=[5]Datos!$B$74),[5]Datos!$F$69,IF(AND(X17=[5]Datos!$B$69,Z17=[5]Datos!$B$75),[5]Datos!$G$69,IF(AND(X17=[5]Datos!$B$69,Z17=[5]Datos!$B$76),[5]Datos!$H$69,"-"))))))))))))))))))))))))) -> ALTA-IMPORTANTE 8 | AB17: Reducir (RE)
E18: La falta de diseñar una estrategia de comunicación interna que permita optimizar los canales internos para fortalecer las áreas de interés a través de acciones innovadoras. | G18: Interno | K18: Generar malos objetivos estratégicos. | O18: Realizar mesas de trabajo para analizar los objetivos estratégicos de comunicaciones. | P18: Manual | Q18: Preventivo | R18: Medio - 15 | S18: Medio - 15 | T18: Alto - 25 | U18: Medio Alto - 20 | V18: =((IF(R18=[5]Datos!$B$83,0,IF(R18=[5]Datos!$B$84,5,IF(R18=[5]Datos!$B$85,10,IF(R18=[5]Datos!$B$86,15,IF(R18=[5]Datos!$B$87,20,IF(R18=[5]Datos!$B$88,25,0)))))))/100)+((IF(S18=[5]Datos!$B$83,0,IF(S18=[5]Datos!$B$84,5,IF(S18=[5]Datos!$B$85,10,IF(S18=[5]Datos!$B$86,15,IF(S18=[5]Datos!$B$87,20,IF(S18=[5]Datos!$B$88,25,0)))))))/100)+((IF(T18=[5]Datos!$B$83,0,IF(T18=[5]Datos!$B$84,5,IF(T18=[5]Datos!$B$85,10,IF(T18=[5]Datos!$B$86,15,IF(T18=[5]Datos!$B$87,20,IF(T18=[5]Datos!$B$88,25,0)))))))/100)+((IF(U18=[5]Datos!$B$83,0,IF(U18=[5]Datos!$B$84,5,IF(U18=[5]Datos!$B$85,10,IF(U18=[5]Datos!$B$86,15,IF(U18=[5]Datos!$B$87,20,IF(U18=[5]Datos!$B$88,25,0)))))))/100) -> 0.75
E19: Formular e implementar alternativas de solución que permitan difundir los mensajes de comunicación interna y externa de manera oportuna. | G19: Interno | K19: Incumplimiento de metas. | O19: Realizar seguimiento y control al cumplimiento de las metas propuestas. | P19: Manual | Q19: Preventivo | R19: Medio Alto - 20 | S19: Medio - 15 | T19: Alto - 25 | U19: Alto - 25 | V19: =((IF(R19=[5]Datos!$B$83,0,IF(R19=[5]Datos!$B$84,5,IF(R19=[5]Datos!$B$85,10,IF(R19=[5]Datos!$B$86,15,IF(R19=[5]Datos!$B$87,20,IF(R19=[5]Datos!$B$88,25,0)))))))/100)+((IF(S19=[5]Datos!$B$83,0,IF(S19=[5]Datos!$B$84,5,IF(S19=[5]Datos!$B$85,10,IF(S19=[5]Datos!$B$86,15,IF(S19=[5]Datos!$B$87,20,IF(S19=[5]Datos!$B$88,25,0)))))))/100)+((IF(T19=[5]Datos!$B$83,0,IF(T19=[5]Datos!$B$84,5,IF(T19=[5]Datos!$B$85,10,IF(T19=[5]Datos!$B$86,15,IF(T19=[5]Datos!$B$87,20,IF(T19=[5]Datos!$B$88,25,0)))))))/100)+((IF(U19=[5]Datos!$B$83,0,IF(U19=[5]Datos!$B$84,5,IF(U19=[5]Datos!$B$85,10,IF(U19=[5]Datos!$B$86,15,IF(U19=[5]Datos!$B$87,20,IF(U19=[5]Datos!$B$88,25,0)))))))/100) -> 0.85
V20: =((IF(R20=[5]Datos!$B$83,0,IF(R20=[5]Datos!$B$84,5,IF(R20=[5]Datos!$B$85,10,IF(R20=[5]Datos!$B$86,15,IF(R20=[5]Datos!$B$87,20,IF(R20=[5]Datos!$B$88,25,0)))))))/100)+((IF(S20=[5]Datos!$B$83,0,IF(S20=[5]Datos!$B$84,5,IF(S20=[5]Datos!$B$85,10,IF(S20=[5]Datos!$B$86,15,IF(S20=[5]Datos!$B$87,20,IF(S20=[5]Datos!$B$88,25,0)))))))/100)+((IF(T20=[5]Datos!$B$83,0,IF(T20=[5]Datos!$B$84,5,IF(T20=[5]Datos!$B$85,10,IF(T20=[5]Datos!$B$86,15,IF(T20=[5]Datos!$B$87,20,IF(T20=[5]Datos!$B$88,25,0)))))))/100)+((IF(U20=[5]Datos!$B$83,0,IF(U20=[5]Datos!$B$84,5,IF(U20=[5]Datos!$B$85,10,IF(U20=[5]Datos!$B$86,15,IF(U20=[5]Datos!$B$87,20,IF(U20=[5]Datos!$B$88,25,0)))))))/100) -> 0
V21: =((IF(R21=[5]Datos!$B$83,0,IF(R21=[5]Datos!$B$84,5,IF(R21=[5]Datos!$B$85,10,IF(R21=[5]Datos!$B$86,15,IF(R21=[5]Datos!$B$87,20,IF(R21=[5]Datos!$B$88,25,0)))))))/100)+((IF(S21=[5]Datos!$B$83,0,IF(S21=[5]Datos!$B$84,5,IF(S21=[5]Datos!$B$85,10,IF(S21=[5]Datos!$B$86,15,IF(S21=[5]Datos!$B$87,20,IF(S21=[5]Datos!$B$88,25,0)))))))/100)+((IF(T21=[5]Datos!$B$83,0,IF(T21=[5]Datos!$B$84,5,IF(T21=[5]Datos!$B$85,10,IF(T21=[5]Datos!$B$86,15,IF(T21=[5]Datos!$B$87,20,IF(T21=[5]Datos!$B$88,25,0)))))))/100)+((IF(U21=[5]Datos!$B$83,0,IF(U21=[5]Datos!$B$84,5,IF(U21=[5]Datos!$B$85,10,IF(U21=[5]Datos!$B$86,15,IF(U21=[5]Datos!$B$87,20,IF(U21=[5]Datos!$B$88,25,0)))))))/100) -> 0
V22: =((IF(R22=[5]Datos!$B$83,0,IF(R22=[5]Datos!$B$84,5,IF(R22=[5]Datos!$B$85,10,IF(R22=[5]Datos!$B$86,15,IF(R22=[5]Datos!$B$87,20,IF(R22=[5]Datos!$B$88,25,0)))))))/100)+((IF(S22=[5]Datos!$B$83,0,IF(S22=[5]Datos!$B$84,5,IF(S22=[5]Datos!$B$85,10,IF(S22=[5]Datos!$B$86,15,IF(S22=[5]Datos!$B$87,20,IF(S22=[5]Datos!$B$88,25,0)))))))/100)+((IF(T22=[5]Datos!$B$83,0,IF(T22=[5]Datos!$B$84,5,IF(T22=[5]Datos!$B$85,10,IF(T22=[5]Datos!$B$86,15,IF(T22=[5]Datos!$B$87,20,IF(T22=[5]Datos!$B$88,25,0)))))))/100)+((IF(U22=[5]Datos!$B$83,0,IF(U22=[5]Datos!$B$84,5,IF(U22=[5]Datos!$B$85,10,IF(U22=[5]Datos!$B$86,15,IF(U22=[5]Datos!$B$87,20,IF(U22=[5]Datos!$B$88,25,0)))))))/100) -> 0
B24: ELABORÓ | D24: REVISÓ | E24: APROBÓ
B25: Nombre:SIGUD Cargo: NA Fecha: 10/10/2018 | D25: Nombre: Diana Cortés, Sandra Milena Velasquez Cargo: CPS Fecha: 22/10/2018 | E25: Nombre: Ruben Carvajalino Cargo: Jefe Sección de Publicaciones Fecha: 22/10/2018

Sheet C-C
C2: MAPA INTEGRAL DE RIESGOS | E2: Código: GI-MG-001-FR-014
C3: Macroproceso: Direccionamiento Estratégico | E3: Versión: 02
C4: Proceso: Gestión Integrada | E4: Fecha de Aprobación: 29/10/2015
C6: Riesgos de Corrupción
B8: PROCESO | D8: OBJETIVO DEL PROCESO | E8: CONTEXTO ESTRATÉGICO | G8: RIESGO | H8: DEFINICIÓN | I8: CONSECUENCIAS | J8: CLASIFICACIÓN | M8: EVALUACIÓN DEL RIESGO
E9: CAUSAS | J9: PROBABILIDAD | K9: IMPACTO | L9: ZONA DE RIESGO | M9: CONTROLES | N9: TIPO DE CONTROL | O9: CRITERIOS PARA LA EVALUACIÓN / CRITERIO DE MEDICIÓN | V9: TOTAL | W9: PROBABILIDAD RESIDUAL | Y9: IMPACTO RESIDUAL | AA9: ZONA DE RIESGO RESIDUAL | AB9: ACCIONES ASOCIADAS AL CONTROL | AE9: MONITOREO Y REVISIÓN
O10: ¿Existen manuales, instructivos o procedimientos para el manejo del control? | P10: ¿Está(n) definido(s) el(los) responsable(s) de la ejecución del control y del seguimiento? | Q10: ¿El control es automático? | R10: ¿El control es manual? | S10: ¿La frecuencia de ejecución del control y seguimiento es adecuada? | T10: ¿Se cuenta con evidencias de la ejecución y seguimiento del control? | U10: ¿En el tiempo que lleva la herramienta ha demostrado ser efectiva? | W10: RIESGO CONTROLADO | X10: PROBABILIDAD | Y10: RIESGO CONTROLADO | Z10: IMPACTO | AB10: PERIODO DE EJECUCIÓN | AC10: ACCIONES | AD10: REGISTRO | AE10: FECHA | AF10: ACCIONES | AG10: RESPONSABLES | AH10: INDICADOR
B11: Comunicaciones | D11: Coordinar las actividades de comunicación institucional interna y externa con el objeto de garantizar el conocimiento de la universidad a las partes interesadas y generar sentido de pertenencia con la institución. | E11: Intereses creados para favorecer a un tercero. | G11: Concentración, sustracción y manipulación de información institucional. | H11: Manipulación de la información institucional en beneficio de terceros y no a favor de la universidad y de la comunidad en general y la utilización indebida de los recursos publicos. | I11: Desgaste administrativo. | J11: Probable - 4 | K11: Catastrófico - 20 | L11: =IF(AND(J11=[5]Datos!$B$212,K11=[5]Datos!$B$219),[5]Datos!$D$216,IF(AND(J11=[5]Datos!$B$212,K11=[5]Datos!$B$220),[5]Datos!$E$216,IF(AND(J11=[5]Datos!$B$212,K11=[5]Datos!$B$221),[5]Datos!$F$216,IF(AND(J11=[5]Datos!$B$213,K11=[5]Datos!$B$219),[5]Datos!$D$215,IF(AND(J11=[5]Datos!$B$213,K11=[5]Datos!$B$220),[5]Datos!$E$215,IF(AND(J11=[5]Datos!$B$213,K11=[5]Datos!$B$221),[5]Datos!$F$215,IF(AND(J11=[5]Datos!$B$214,K11=[5]Datos!$B$219),[5]Datos!$D$214,IF(AND(J11=[5]Datos!$B$214,K11=[5]Datos!$B$220),[5]Datos!$E$214,IF(AND(J11=[5]Datos!$B$214,K11=[5]Datos!$B$221),[5]Datos!$F$214,IF(AND(J11=[5]Datos!$B$215,K11=[5]Datos!$B$219),[5]Datos!$D$213,IF(AND(J11=[5]Datos!$B$215,K11=[5]Datos!$B$220),[5]Datos!$E$213,IF(AND(J11=[5]Datos!$B$215,K11=[5]Datos!$B$221),[5]Datos!$F$213,IF(AND(J11=[5]Datos!$B$216,K11=[5]Datos!$B$219),[5]Datos!$D$212,IF(AND(J11=[5]Datos!$B$216,K11=[5]Datos!$B$220),[5]Datos!$E$212,IF(AND(J11=[5]Datos!$B$216,K11=[5]Datos!$B$221),[5]Datos!$F$212,"-"))))))))))))))) -> EXTREMA 80 | M11: Inducción a funcionarios donde se presenta asuntos disciplinario. | N11: Preventivo | O11: Sí - 15 | P11: Sí - 5 | Q11: No - 0 | R11: Sí - 10 | S11: Sí - 15 | T11: No - 0 | U11: No - 0 | V11: =((IF(O11=[5]Datos!$B$233,15,0))/100)+((IF(P11=[5]Datos!$B$229,5,0))/100)+((IF(Q11=[5]Datos!$B$233,15,0))/100)+((IF(R11=[5]Datos!$B$231,10,0))/100)+((IF(S11=[5]Datos!$B$233,15,0))/100)+((IF(T11=[5]Datos!$B$231,10,0))/100)+((IF(U11=[5]Datos!$B$235,30,0))/100) -> 0.45 | W11: =IF(ISERROR(((IF(N11=[5]Datos!$B$224,V11,0))+(IF(N12=[5]Datos!$B$224,V12,0))+(IF(N13=[5]Datos!$B$224,V13,0))+(IF(N14=[5]Datos!$B$224,V14,0))+(IF(N15=[5]Datos!$B$224,V15,0))+(IF(N16=[5]Datos!$B$224,V16,0)))/((IF(N11=[5]Datos!$B$224,1,0))+(IF(N12=[5]Datos!$B$224,1,0))+(IF(N13=[5]Datos!$B$224,1,0))+(IF(N14=[5]Datos!$B$224,1,0))+(IF(N15=[5]Datos!$B$224,1,0))+(IF(N16=[5]Datos!$B$224,1,0)))),0,(((IF(N11=[5]Datos!$B$224,V11,0))+(IF(N12=[5]Datos!$B$224,V12,0))+(IF(N13=[5]Datos!$B$224,V13,0))+(IF(N14=[5]Datos!$B$224,V14,0))+(IF(N15=[5]Datos!$B$224,V15,0))+(IF(N16=[5]Datos!$B$224,V16,0)))/((IF(N11=[5]Datos!$B$224,1,0))+(IF(N12=[5]Datos!$B$224,1,0))+(IF(N13=[5]Datos!$B$224,1,0))+(IF(N14=[5]Datos!$B$224,1,0))+(IF(N15=[5]Datos!$B$224,1,0))+(IF(N16=[5]Datos!$B$224,1,0))))) -> 0.45 | X11: =IF(J11="","-",(IF(W11>0,(IF(J11=[5]Datos!$B$212,[5]Datos!$B$212,IF(AND(J11=[5]Datos!$B$213,W11>0.49),[5]Datos!$B$212,IF(AND(J11=[5]Datos!$B$214,W11>0.74),[5]Datos!$B$212,IF(AND(J11=[5]Datos!$B$214,W11<0.75,W11>0.49),[5]Datos!$B$213,IF(AND(J11=[5]Datos!$B$215,W11>0.74),[5]Datos!$B$213,IF(AND(J11=[5]Datos!$B$215,W11<0.75,W11>0.49),[5]Datos!$B$214,IF(AND(J11=[5]Datos!$B$216,W11>0.74),[5]Datos!$B$214,IF(AND(J11=[5]Datos!$B$216,W11<0.75,W11>0.49),[5]Datos!$B$215,J11))))))))),J11))) -> Probable - 4 | Y11: =IF(ISERROR(((IF(N11=[5]Datos!$B$225,V11,0))+(IF(N12=[5]Datos!$B$225,V12,0))+(IF(N13=[5]Datos!$B$225,V13,0))+(IF(N14=[5]Datos!$B$225,V14,0))+(IF(N15=[5]Datos!$B$225,V15,0))+(IF(N16=[5]Datos!$B$225,V16,0))+(IF(N11=[5]Datos!$B$226,V11,0))+(IF(N12=[5]Datos!$B$226,V12,0))+(IF(N13=[5]Datos!$B$226,V13,0))+(IF(N14=[5]Datos!$B$226,V14,0))+(IF(N15=[5]Datos!$B$226,V15,0))+(IF(N16=[5]Datos!$B$226,V16,0)))/((IF(N11=[5]Datos!$B$225,1,0))+(IF(N12=[5]Datos!$B$225,1,0))+(IF(N13=[5]Datos!$B$225,1,0))+(IF(N14=[5]Datos!$B$225,1,0))+(IF(N15=[5]Datos!$B$225,1,0))+(IF(N16=[5]Datos!$B$225,1,0))+(IF(N11=[5]Datos!$B$226,1,0))+(IF(N12=[5]Datos!$B$226,1,0))+(IF(N13=[5]Datos!$B$226,1,0))+(IF(N14=[5]Datos!$B$226,1,0))+(IF(N15=[5]Datos!$B$226,1,0))+(IF(N16=[5]Datos!$B$226,1,0)))),0,((IF(N11=[5]Datos!$B$225,V11,0))+(IF(N12=[5]Datos!$B$225,V12,0))+(IF(N13=[5]Datos!$B$225,V13,0))+(IF(N14=[5]Datos!$B$225,V14,0))+(IF(N15=[5]Datos!$B$225,V15,0))+(IF(N16=[5]Datos!$B$225,V16,0))+(IF(N11=[5]Datos!$B$226,V11,0))+(IF(N12=[5]Datos!$B$226,V12,0))+(IF(N13=[5]Datos!$B$226,V13,0))+(IF(N14=[5]Datos!$B$226,V14,0))+(IF(N15=[5]Datos!$B$226,V15,0))+(IF(N16=[5]Datos!$B$226,V16,0)))/((IF(N11=[5]Datos!$B$225,1,0))+(IF(N12=[5]Datos!$B$225,1,0))+(IF(N13=[5]Datos!$B$225,1,0))+(IF(N14=[5]Datos!$B$225,1,0))+(IF(N15=[5]Datos!$B$225,1,0))+(IF(N16=[5]Datos!$B$225,1,0))+(IF(N11=[5]Datos!$B$226,1,0))+(IF(N12=[5]Datos!$B$226,1,0))+(IF(N13=[5]Datos!$B$226,1,0))+(IF(N14=[5]Datos!$B$226,1,0))+(IF(N15=[5]Datos!$B$226,1,0))+(IF(N16=[5]Datos!$B$226,1,0)))) -> 0 | Z11: =IF(K11="","-",(IF(Y11>0,(IF(K11=[5]Datos!$B$219,[5]Datos!$B$219,IF(AND(K11=[5]Datos!$B$220,Y11>0.49),[5]Datos!$B$219,IF(AND(K11=[5]Datos!$B$221,Y11>0.74),[5]Datos!$B$219,IF(AND(K11=[5]Datos!$B$221,Y11<0.75,Y11>0.49),[5]Datos!$B$220,IF(AND(K11=[5]Datos!$B$222,Y11>0.74),[5]Datos!$B$220,IF(AND(K11=[5]Datos!$B$222,Y11<0.75,Y11>0.49),[5]Datos!$B$221,IF(AND(K11=[5]Datos!$B$223,Y11>0.74),[5]Datos!$B$221,IF(AND(K11=[5]Datos!$B$223,Y11<0.75,Y11>0.49),[5]Datos!$B$222,K11))))))))),K11))) -> Catastrófico - 20 | AA11: =IF(AND(X11=[5]Datos!$B$212,Z11=[5]Datos!$B$219),[5]Datos!$D$216,IF(AND(X11=[5]Datos!$B$212,Z11=[5]Datos!$B$220),[5]Datos!$E$216,IF(AND(X11=[5]Datos!$B$212,Z11=[5]Datos!$B$221),[5]Datos!$F$216,IF(AND(X11=[5]Datos!$B$213,Z11=[5]Datos!$B$219),[5]Datos!$D$215,IF(AND(X11=[5]Datos!$B$213,Z11=[5]Datos!$B$220),[5]Datos!$E$215,IF(AND(X11=[5]Datos!$B$213,Z11=[5]Datos!$B$221),[5]Datos!$F$215,IF(AND(X11=[5]Datos!$B$214,Z11=[5]Datos!$B$219),[5]Datos!$D$214,IF(AND(X11=[5]Datos!$B$214,Z11=[5]Datos!$B$220),[5]Datos!$E$214,IF(AND(X11=[5]Datos!$B$214,Z11=[5]Datos!$B$221),[5]Datos!$F$214,IF(AND(X11=[5]Datos!$B$215,Z11=[5]Datos!$B$219),[5]Datos!$D$213,IF(AND(X11=[5]Datos!$B$215,Z11=[5]Datos!$B$220),[5]Datos!$E$213,IF(AND(X11=[5]Datos!$B$215,Z11=[5]Datos!$B$221),[5]Datos!$F$213,IF(AND(X11=[5]Datos!$B$216,Z11=[5]Datos!$B$219),[5]Datos!$D$212,IF(AND(X11=[5]Datos!$B$216,Z11=[5]Datos!$B$220),[5]Datos!$E$212,IF(AND(X11=[5]Datos!$B$216,Z11=[5]Datos!$B$221),[5]Datos!$F$212,"-"))))))))))))))) -> EXTREMA 80
E12: Violación de codigo de etica institucional. | I12: Investigaciones disciplinarias. | M12: Entrega de estatuto anticorrupción. | N12: Preventivo | O12: Sí - 15 | P12: Sí - 5 | Q12: No - 0 | R12: Sí - 10 | S12: Sí - 15 | T12: No - 0 | U12: No - 0 | V12: =((IF(O12=[5]Datos!$B$233,15,0))/100)+((IF(P12=[5]Datos!$B$229,5,0))/100)+((IF(Q12=[5]Datos!$B$233,15,0))/100)+((IF(R12=[5]Datos!$B$231,10,0))/100)+((IF(S12=[5]Datos!$B$233,15,0))/100)+((IF(T12=[5]Datos!$B$231,10,0))/100)+((IF(U12=[5]Datos!$B$235,30,0))/100) -> 0.45
E13: No contar con procedimientos claros y/o estandarizados frente a la protección de la información confidencial, el almacenamiento y la transmisión electrónica de los resultados y los derechos de propiedad de los clientes. | I13: Afectación en la imagen institucional y credibilidad de la entidad, por cuanto lesiona la transparencia universitaria. | V13: =((IF(O13=[5]Datos!$B$233,15,0))/100)+((IF(P13=[5]Datos!$B$229,5,0))/100)+((IF(Q13=[5]Datos!$B$233,15,0))/100)+((IF(R13=[5]Datos!$B$231,10,0))/100)+((IF(S13=[5]Datos!$B$233,15,0))/100)+((IF(T13=[5]Datos!$B$231,10,0))/100)+((IF(U13=[5]Datos!$B$235,30,0))/100) -> 0
E14: Inobservancia de los procedimientos, directrices y puntos de control establecidos para ejecutar los procedimientos. | I14: Perdida de la trazabilidad de procedimiento e información. | V14: =((IF(O14=[5]Datos!$B$233,15,0))/100)+((IF(P14=[5]Datos!$B$229,5,0))/100)+((IF(Q14=[5]Datos!$B$233,15,0))/100)+((IF(R14=[5]Datos!$B$231,10,0))/100)+((IF(S14=[5]Datos!$B$233,15,0))/100)+((IF(T14=[5]Datos!$B$231,10,0))/100)+((IF(U14=[5]Datos!$B$235,30,0))/100) -> 0
V15: =((IF(O15=[5]Datos!$B$233,15,0))/100)+((IF(P15=[5]Datos!$B$229,5,0))/100)+((IF(Q15=[5]Datos!$B$233,15,0))/100)+((IF(R15=[5]Datos!$B$231,10,0))/100)+((IF(S15=[5]Datos!$B$233,15,0))/100)+((IF(T15=[5]Datos!$B$231,10,0))/100)+((IF(U15=[5]Datos!$B$235,30,0))/100) -> 0
V16: =((IF(O16=[5]Datos!$B$233,15,0))/100)+((IF(P16=[5]Datos!$B$229,5,0))/100)+((IF(Q16=[5]Datos!$B$233,15,0))/100)+((IF(R16=[5]Datos!$B$231,10,0))/100)+((IF(S16=[5]Datos!$B$233,15,0))/100)+((IF(T16=[5]Datos!$B$231,10,0))/100)+((IF(U16=[5]Datos!$B$235,30,0))/100) -> 0
B17: Comunicaciones | D17: Coordinar las actividades de comunicación institucional interna y externa con el objeto de garantizar el conocimiento de la universidad a las partes interesadas y generar sentido de pertenencia con la institución. | E17: Incumplimiento de la alcaldía para velar por la seguridad de la Universidad en general. | G17: Hurto de equipo en instalaciones de la Universidad. | H17: Robo de equipo en las instalaciones de la universidad por ausencia de personal de seguridad contratado por la alcadía Distrital o la rectoría según sea el caso. | I17: No prestación de servicios de comunicación interna y externa. | J17: Posible - 3 | K17: Catastrófico - 20 | L17: =IF(AND(J17=[5]Datos!$B$212,K17=[5]Datos!$B$219),[5]Datos!$D$216,IF(AND(J17=[5]Datos!$B$212,K17=[5]Datos!$B$220),[5]Datos!$E$216,IF(AND(J17=[5]Datos!$B$212,K17=[5]Datos!$B$221),[5]Datos!$F$216,IF(AND(J17=[5]Datos!$B$213,K17=[5]Datos!$B$219),[5]Datos!$D$215,IF(AND(J17=[5]Datos!$B$213,K17=[5]Datos!$B$220),[5]Datos!$E$215,IF(AND(J17=[5]Datos!$B$213,K17=[5]Datos!$B$221),[5]Datos!$F$215,IF(AND(J17=[5]Datos!$B$214,K17=[5]Datos!$B$219),[5]Datos!$D$214,IF(AND(J17=[5]Datos!$B$214,K17=[5]Datos!$B$220),[5]Datos!$E$214,IF(AND(J17=[5]Datos!$B$214,K17=[5]Datos!$B$221),[5]Datos!$F$214,IF(AND(J17=[5]Datos!$B$215,K17=[5]Datos!$B$219),[5]Datos!$D$213,IF(AND(J17=[5]Datos!$B$215,K17=[5]Datos!$B$220),[5]Datos!$E$213,IF(AND(J17=[5]Datos!$B$215,K17=[5]Datos!$B$221),[5]Datos!$F$213,IF(AND(J17=[5]Datos!$B$216,K17=[5]Datos!$B$219),[5]Datos!$D$212,IF(AND(J17=[5]Datos!$B$216,K17=[5]Datos!$B$220),[5]Datos!$E$212,IF(AND(J17=[5]Datos!$B$216,K17=[5]Datos!$B$221),[5]Datos!$F$212,"-"))))))))))))))) -> EXTREMA 60 | M17: Mantener actualizados los convenios con la alcaldía para garantizar el compromiso frente a la seguridad de las estraciones. | N17: Preventivo | O17: No - 0 | P17: Sí - 5 | Q17: Sí - 15 | R17: No - 0 | S17: Sí - 15 | T17: No - 0 | U17: Sí - 30 | V17: =((IF(O17=[5]Datos!$B$233,15,0))/100)+((IF(P17=[5]Datos!$B$229,5,0))/100)+((IF(Q17=[5]Datos!$B$233,15,0))/100)+((IF(R17=[5]Datos!$B$231,10,0))/100)+((IF(S17=[5]Datos!$B$233,15,0))/100)+((IF(T17=[5]Datos!$B$231,10,0))/100)+((IF(U17=[5]Datos!$B$235,30,0))/100) -> 0.65 | W17: =IF(ISERROR(((IF(N17=[5]Datos!$B$224,V17,0))+(IF(N18=[5]Datos!$B$224,V18,0))+(IF(N19=[5]Datos!$B$224,V19,0))+(IF(N20=[5]Datos!$B$224,V20,0))+(IF(N21=[5]Datos!$B$224,V21,0))+(IF(N22=[5]Datos!$B$224,V22,0)))/((IF(N17=[5]Datos!$B$224,1,0))+(IF(N18=[5]Datos!$B$224,1,0))+(IF(N19=[5]Datos!$B$224,1,0))+(IF(N20=[5]Datos!$B$224,1,0))+(IF(N21=[5]Datos!$B$224,1,0))+(IF(N22=[5]Datos!$B$224,1,0)))),0,(((IF(N17=[5]Datos!$B$224,V17,0))+(IF(N18=[5]Datos!$B$224,V18,0))+(IF(N19=[5]Datos!$B$224,V19,0))+(IF(N20=[5]Datos!$B$224,V20,0))+(IF(N21=[5]Datos!$B$224,V21,0))+(IF(N22=[5]Datos!$B$224,V22,0)))/((IF(N17=[5]Datos!$B$224,1,0))+(IF(N18=[5]Datos!$B$224,1,0))+(IF(N19=[5]Datos!$B$224,1,0))+(IF(N20=[5]Datos!$B$224,1,0))+(IF(N21=[5]Datos!$B$224,1,0))+(IF(N22=[5]Datos!$B$224,1,0))))) -> 0.65 | X17: =IF(J17="","-",(IF(W17>0,(IF(J17=[5]Datos!$B$212,[5]Datos!$B$212,IF(AND(J17=[5]Datos!$B$213,W17>0.49),[5]Datos!$B$212,IF(AND(J17=[5]Datos!$B$214,W17>0.74),[5]Datos!$B$212,IF(AND(J17=[5]Datos!$B$214,W17<0.75,W17>0.49),[5]Datos!$B$213,IF(AND(J17=[5]Datos!$B$215,W17>0.74),[5]Datos!$B$213,IF(AND(J17=[5]Datos!$B$215,W17<0.75,W17>0.49),[5]Datos!$B$214,IF(AND(J17=[5]Datos!$B$216,W17>0.74),[5]Datos!$B$214,IF(AND(J17=[5]Datos!$B$216,W17<0.75,W17>0.49),[5]Datos!$B$215,J17))))))))),J17))) -> Improbable - 2 | Y17: =IF(ISERROR(((IF(N17=[5]Datos!$B$225,V17,0))+(IF(N18=[5]Datos!$B$225,V18,0))+(IF(N19=[5]Datos!$B$225,V19,0))+(IF(N20=[5]Datos!$B$225,V20,0))+(IF(N21=[5]Datos!$B$225,V21,0))+(IF(N22=[5]Datos!$B$225,V22,0))+(IF(N17=[5]Datos!$B$226,V17,0))+(IF(N18=[5]Datos!$B$226,V18,0))+(IF(N19=[5]Datos!$B$226,V19,0))+(IF(N20=[5]Datos!$B$226,V20,0))+(IF(N21=[5]Datos!$B$226,V21,0))+(IF(N22=[5]Datos!$B$226,V22,0)))/((IF(N17=[5]Datos!$B$225,1,0))+(IF(N18=[5]Datos!$B$225,1,0))+(IF(N19=[5]Datos!$B$225,1,0))+(IF(N20=[5]Datos!$B$225,1,0))+(IF(N21=[5]Datos!$B$225,1,0))+(IF(N22=[5]Datos!$B$225,1,0))+(IF(N17=[5]Datos!$B$226,1,0))+(IF(N18=[5]Datos!$B$226,1,0))+(IF(N19=[5]Datos!$B$226,1,0))+(IF(N20=[5]Datos!$B$226,1,0))+(IF(N21=[5]Datos!$B$226,1,0))+(IF(N22=[5]Datos!$B$226,1,0)))),0,((IF(N17=[5]Datos!$B$225,V17,0))+(IF(N18=[5]Datos!$B$225,V18,0))+(IF(N19=[5]Datos!$B$225,V19,0))+(IF(N20=[5]Datos!$B$225,V20,0))+(IF(N21=[5]Datos!$B$225,V21,0))+(IF(N22=[5]Datos!$B$225,V22,0))+(IF(N17=[5]Datos!$B$226,V17,0))+(IF(N18=[5]Datos!$B$226,V18,0))+(IF(N19=[5]Datos!$B$226,V19,0))+(IF(N20=[5]Datos!$B$226,V20,0))+(IF(N21=[5]Datos!$B$226,V21,0))+(IF(N22=[5]Datos!$B$226,V22,0)))/((IF(N17=[5]Datos!$B$225,1,0))+(IF(N18=[5]Datos!$B$225,1,0))+(IF(N19=[5]Datos!$B$225,1,0))+(IF(N20=[5]Datos!$B$225,1,0))+(IF(N21=[5]Datos!$B$225,1,0))+(IF(N22=[5]Datos!$B$225,1,0))+(IF(N17=[5]Datos!$B$226,1,0))+(IF(N18=[5]Datos!$B$226,1,0))+(IF(N19=[5]Datos!$B$226,1,0))+(IF(N20=[5]Datos!$B$226,1,0))+(IF(N21=[5]Datos!$B$226,1,0))+(IF(N22=[5]Datos!$B$226,1,0)))) -> 0 | Z17: =IF(K17="","-",(IF(Y17>0,(IF(K17=[5]Datos!$B$219,[5]Datos!$B$219,IF(AND(K17=[5]Datos!$B$220,Y17>0.49),[5]Datos!$B$219,IF(AND(K17=[5]Datos!$B$221,Y17>0.74),[5]Datos!$B$219,IF(AND(K17=[5]Datos!$B$221,Y17<0.75,Y17>0.49),[5]Datos!$B$220,IF(AND(K17=[5]Datos!$B$222,Y17>0.74),[5]Datos!$B$220,IF(AND(K17=[5]Datos!$B$222,Y17<0.75,Y17>0.49),[5]Datos!$B$221,IF(AND(K17=[5]Datos!$B$223,Y17>0.74),[5]Datos!$B$221,IF(AND(K17=[5]Datos!$B$223,Y17<0.75,Y17>0.49),[5]Datos!$B$222,K17))))))))),K17))) -> Catastrófico - 20 | AA17: =IF(AND(X17=[5]Datos!$B$212,Z17=[5]Datos!$B$219),[5]Datos!$D$216,IF(AND(X17=[5]Datos!$B$212,Z17=[5]Datos!$B$220),[5]Datos!$E$216,IF(AND(X17=[5]Datos!$B$212,Z17=[5]Datos!$B$221),[5]Datos!$F$216,IF(AND(X17=[5]Datos!$B$213,Z17=[5]Datos!$B$219),[5]Datos!$D$215,IF(AND(X17=[5]Datos!$B$213,Z17=[5]Datos!$B$220),[5]Datos!$E$215,IF(AND(X17=[5]Datos!$B$213,Z17=[5]Datos!$B$221),[5]Datos!$F$215,IF(AND(X17=[5]Datos!$B$214,Z17=[5]Datos!$B$219),[5]Datos!$D$214,IF(AND(X17=[5]Datos!$B$214,Z17=[5]Datos!$B$220),[5]Datos!$E$214,IF(AND(X17=[5]Datos!$B$214,Z17=[5]Datos!$B$221),[5]Datos!$F$214,IF(AND(X17=[5]Datos!$B$215,Z17=[5]Datos!$B$219),[5]Datos!$D$213,IF(AND(X17=[5]Datos!$B$215,Z17=[5]Datos!$B$220),[5]Datos!$E$213,IF(AND(X17=[5]Datos!$B$215,Z17=[5]Datos!$B$221),[5]Datos!$F$213,IF(AND(X17=[5]Datos!$B$216,Z17=[5]Datos!$B$219),[5]Datos!$D$212,IF(AND(X17=[5]Datos!$B$216,Z17=[5]Datos!$B$220),[5]Datos!$E$212,IF(AND(X17=[5]Datos!$B$216,Z17=[5]Datos!$B$221),[5]Datos!$F$212,"-"))))))))))))))) -> ALTA 40
I18: afectación de la imagen institucional. | V18: =((IF(O18=[5]Datos!$B$233,15,0))/100)+((IF(P18=[5]Datos!$B$229,5,0))/100)+((IF(Q18=[5]Datos!$B$233,15,0))/100)+((IF(R18=[5]Datos!$B$231,10,0))/100)+((IF(S18=[5]Datos!$B$233,15,0))/100)+((IF(T18=[5]Datos!$B$231,10,0))/100)+((IF(U18=[5]Datos!$B$235,30,0))/100) -> 0
I19: insactisfacción de los clientes internos y externos. | V19: =((IF(O19=[5]Datos!$B$233,15,0))/100)+((IF(P19=[5]Datos!$B$229,5,0))/100)+((IF(Q19=[5]Datos!$B$233,15,0))/100)+((IF(R19=[5]Datos!$B$231,10,0))/100)+((IF(S19=[5]Datos!$B$233,15,0))/100)+((IF(T19=[5]Datos!$B$231,10,0))/100)+((IF(U19=[5]Datos!$B$235,30,0))/100) -> 0
V20: =((IF(O20=[5]Datos!$B$233,15,0))/100)+((IF(P20=[5]Datos!$B$229,5,0))/100)+((IF(Q20=[5]Datos!$B$233,15,0))/100)+((IF(R20=[5]Datos!$B$231,10,0))/100)+((IF(S20=[5]Datos!$B$233,15,0))/100)+((IF(T20=[5]Datos!$B$231,10,0))/100)+((IF(U20=[5]Datos!$B$235,30,0))/100) -> 0
